Workbook

Sheet Справочник (hidden)
C2: Циклическая | E2: Качество | G2: Секунды | I2: Месяц
A3: - | C3: Периодическая | E3: Производительность | G3: Минуты | I3: Год
E4: Безопасность

Sheet Время такта-Old
B3: Лист Вычисления Времени Такта
F4: =IFERROR(ROUND((L7-(C12*D12+E12+F12)*60)*E6/ROUND(I12*J12/L12,3),0),"") -> 153 | H4: =IFERROR(IF($F$4="","",INT($F$4/60)&"' "&MOD($F$4,60)&"''"),"") -> 2' 33''
B6: • Сколько смен (А)? | E6: 1
B7: • Сколько секунд в смене (В)? | F7: 9 | L7: =IF($F$7="","",$F$7*60*60) -> 32400
B8: • Сколько секунд в смену уходит на перерывы (С)?
C9: =CONCATENATE(IF(C12=1,CONCATENATE(D12,"'"),IF(C12=2,CONCATENATE("(",D12,"'"," + ",D12,"'",")"),IF(C12=3,CONCATENATE("(",D12,"'"," + ",D12,"'"," + ",D12,"'",")"),IF(C12=4,CONCATENATE("(",D12,"'"," + ",D12,"'"," + ",D12,"'"," + ",D12,"'",")"),IF(C12=5,CONCATENATE("(",D12,"'"," + ",D12,"'"," + ",D12,"'"," + ",D12,"'"," + ",D12,"'",")"),IF(C12=6,CONCATENATE("(",D12,"'"," + ",D12,"'"," + ",D12,"'"," + ",D12,"'"," + ",D12,"'"," + ",D12,"'",")"),"")))))),IF(AND(E12>0,F12>0),CONCATENATE(" + ",E12,"'"," + ",F12,"'"," = ",C12*D12+E12+F12,"'"," х ",60," = ",(C12*D12+E12+F12)*60,"''"),"")) -> (15' + 15')
C11: Количество перерывов в смене | D11: Продолжительность перерыва (мин) | E11: Общее время на раскомандировку (мин) | F11: Продолжительность приема пищи (мин) | I11: Количество типового оборудования | J11: Периодичность обслуживания (раз/год) | L11: Количетсво рабочих дней в году
C12: 2 | D12: 15 | F12: 60 | I12: 352 | J12: 10 | L12: 20
B14: • Сколько рабочих секунд в смене (В-С=D)? | H14: =IFERROR(CONCATENATE(L7,"''"," - ",(C12*D12+E12+F12)*60,"''"," = ",L7-(C12*D12+E12+F12)*60,"''"),"") -> 32400'' - 5400'' = 27000''
B15: • Сколько рабочих секунд в день (А*D=Е)? | H15: =IFERROR(CONCATENATE(L7-(C12*D12+E12+F12)*60,"''"," х ",E6," = ",(L7-(C12*D12+E12+F12)*60)*E6,"''"),"") -> 27000'' х 1 = 27000''
B16: • Какой объем ежедневного заказа (F)? | G16: =IFERROR(CONCATENATE(I12," шт.","* ",J12," раз/год / ",L12," рабочих дней = ",ROUND(I12*J12/L12,3)," шт."),"") -> 352 шт.* 10 раз/год / 20 рабочих дней = 176 шт.
B17: • Какое время такта (Е/F)? | F17: =IFERROR(CONCATENATE((L7-(C12*D12+E12+F12)*60)*E6,"''"," / ",ROUND(I12*J12/L12,3)," шт. "," = ",ROUND((L7-(C12*D12+E12+F12)*60)*E6/ROUND(I12*J12/L12,3),0),"''"," (",INT(IFERROR(ROUND((L7-(C12*D12+E12+F12)*60)*E6/ROUND(I12*J12/L12,3),0),"")/60)&"' "&MOD(IFERROR(ROUND((L7-(C12*D12+E12+F12)*60)*E6/ROUND(I12*J12/L12,3),0),""),60)&"''",")"),"!") -> 27000'' / 176 шт. = 153'' (2' 33'')

Sheet Под. лист наблюдени
A2: Подготовительный Лист Наблюдения
A4: Состав. части | B4: От: | C4: Подготовка рабочего места | E4: Участок: | F4: БФПО | H4: Дата: | I4: 2021-11-29
B5: До: | C5: Убрать рабочее место | E5: Время такта: | F5: =IF($C$6="Секунды",'Время такта-Old'!$F$4&"''",IF('Время такта-Old'!$F$4="","",INT('Время такта-Old'!$F$4/60)&"' "&MOD('Время такта-Old'!$F$4,60)&"''")) -> 153'' | H5: Подготовлено: | I5: Иванов И.И.
A6: Единицы измерения | C6: Секунды | D6: Цена 1 клетки в ОКСР | E6: 10 | F6: Наименование подразделения | G6: ЦРОЭП | H6: Профессия | I6: Электромонтер
A7: № | B7: =IF(F8="","",CONCATENATE("Общее Время Цикла (",F8,")"," (",IF($C$6="Секунды","сек.","мин."),")")) -> Общее Время Цикла (Электромонтер А) (сек.) | C7: =IF(F8="","",CONCATENATE("Причина Колебаний (",F8,")")) -> Причина Колебаний (Электромонтер А) | D7: =IF(H8="","",CONCATENATE("Общее Время Цикла (",H8,")"," (",IF($C$6="Секунды","сек.","мин."),")")) -> Общее Время Цикла (Электромонтер Б) (сек.) | E7: =IF(H8="","",CONCATENATE("Причина Колебаний (",H8,")")) -> Причина Колебаний (Электромонтер Б) | F7: Зарисовка Рабочих Элементов
F8: =IF(H8="",I6,IF(I6="","",CONCATENATE(I6," А"))) -> Электромонтер А | H8: =IF(I6="","",CONCATENATE(I6," Б")) -> Электромонтер Б
A9: 1 | B9: =IF('Лист набл. руч. раб. - 1'!F107=0,"",'Лист набл. руч. раб. - 1'!F107) -> 624 | D9: =IF('Лист набл. руч. раб. - 2'!F107=0,"",'Лист набл. руч. раб. - 2'!F107) -> 627 | F9: 1 | G9: Подготовка рабочего места. Выполнение отключений | H9: 1 | I9: Подготовка рабочего места. Выполнение отключений
F10: 2 | G10: Капроновой щёткой смести пыль снаружи и изнутри шкафа управления | H10: - | I10: Переход
A11: 2 | B11: =IF('Лист набл. руч. раб. - 1'!G107=0,"",'Лист набл. руч. раб. - 1'!G107) -> 648 | D11: =IF('Лист набл. руч. раб. - 2'!G107=0,"",'Лист набл. руч. раб. - 2'!G107) -> 660 | F11: 3 | G11: При помощи отвёртки затянуть все винты крепления ПЗА и клеммных колодок | H11: 2 | I11: Очистка электродвигателя
F12: 4 | G12: При помощи отвёрток, гаечных ключей затянуть все винты, болты контактных соединений ПЗА и клеммных колодок | H12: 3 | I12: Протяжка болтов крепления электродвигателя
A13: 3 | B13: =IF('Лист набл. руч. раб. - 1'!H107=0,"",'Лист набл. руч. раб. - 1'!H107) -> 639 | D13: =IF('Лист набл. руч. раб. - 2'!H107=0,"",'Лист набл. руч. раб. - 2'!H107) -> 633 | F13: 5 | G13: Почистить контакты пускателя от нагара надфилем или наждачной бумагой. Заменить контакты если они сильно обгорели | H13: 4 | I13: Протяжка защитного кожуха электродвигателя
F14: - | G14: Переход | H14: 5 | I14: Снятие крышки брно
A15: 4 | B15: =IF('Лист набл. руч. раб. - 1'!I107=0,"",'Лист набл. руч. раб. - 1'!I107) -> 648 | D15: =IF('Лист набл. руч. раб. - 2'!I107=0,"",'Лист набл. руч. раб. - 2'!I107) -> 647 | F15: 6 | G15: Проверка сопротивления изоляции электродвигателя | H15: 6 | I15: Проверить отсутствие напряжения на эл.двигателе
F16: 7 | G16: Проверка сопротивления изоляции питающего кабеля | H16: 7 | I16: Отсоединить кабель от электродвигателя
A17: 5 | B17: =IF('Лист набл. руч. раб. - 1'!J107=0,"",'Лист набл. руч. раб. - 1'!J107) ->  | D17: =IF('Лист набл. руч. раб. - 2'!J107=0,"",'Лист набл. руч. раб. - 2'!J107) ->  | F17: - | G17: Переход | H17: 8 | I17: Проверка сопротивления изоляции электродвигателя
F18: 8 | G18: Собрать инструмент, материалы, приспособления. Убрать рабочее место | H18: 9 | I18: Проверка сопротивления изоляции питающего кабеля
A19: 6 | B19: =IF('Лист набл. руч. раб. - 1'!K107=0,"",'Лист набл. руч. раб. - 1'!K107) ->  | D19: =IF('Лист набл. руч. раб. - 2'!K107=0,"",'Лист набл. руч. раб. - 2'!K107) ->  | H19: 10 | I19: Подсоединение кабеля к электродвигателю. (ремонт металлорукава
H20: 11 | I20: Установка крышки брно
A21: 7 | B21: =IF('Лист набл. руч. раб. - 1'!L107=0,"",'Лист набл. руч. раб. - 1'!L107) ->  | D21: =IF('Лист набл. руч. раб. - 2'!L107=0,"",'Лист набл. руч. раб. - 2'!L107) ->  | H21: 12 | I21: Собрать инструмент, материалы, приспособления. Убрать рабочее место
A23: 8 | B23: =IF('Лист набл. руч. раб. - 1'!M107=0,"",'Лист набл. руч. раб. - 1'!M107) ->  | D23: =IF('Лист набл. руч. раб. - 2'!M107=0,"",'Лист набл. руч. раб. - 2'!M107) -> 
A25: 9 | B25: =IF('Лист набл. руч. раб. - 1'!N107=0,"",'Лист набл. руч. раб. - 1'!N107) ->  | D25: =IF('Лист набл. руч. раб. - 2'!N107=0,"",'Лист набл. руч. раб. - 2'!N107) -> 
A27: 10 | B27: =IF('Лист набл. руч. раб. - 1'!O107=0,"",'Лист набл. руч. раб. - 1'!O107) ->  | D27: =IF('Лист набл. руч. раб. - 2'!O107=0,"",'Лист набл. руч. раб. - 2'!O107) -> 
A29: Колебания | B29: =$F$8 -> Электромонтер А | C29: Объяснение условных знаков
B30: =IF(MAX($B$9:$B$28)=0,"-",CONCATENATE(IF('Под. лист наблюдени'!$C$6="Секунды",ROUND(MAX($B$9:$B$28),1)&"''",INT(MAX($B$9:$B$28))&"'"&TEXT(MAX($B$9:$B$28)/24,"мм")&"''")," - ",IF('Под. лист наблюдени'!$C$6="Секунды",ROUND(MIN($B$9:$B$28),1)&"''",INT(MIN($B$9:$B$28))&"'"&TEXT(MIN($B$9:$B$28)/24,"мм")&"''")," = ",IF('Под. лист наблюдени'!$C$6="Секунды",ROUND(MAX($B$9:$B$28)-MIN($B$9:$B$28),1)&"''",INT(MAX($B$9:$B$28)-MIN($B$9:$B$28))&"'"&TEXT(MAX($B$9:$B$28)-MIN($B$9:$B$28)/24,"мм")&"''"))) -> 648'' - 624'' = 24'' | C30: X - зачеркнуть ошибку
C31: O - обвести наибольшее время
B32: =$H$8 -> Электромонтер Б | C32: __ - подчеркнуть повтор. наименьшее время
B33: =IF(MAX($D$9:$D$28)=0,"-",CONCATENATE(IF('Под. лист наблюдени'!$C$6="Секунды",ROUND(MAX($D$9:$D$28),1)&"''",INT(MAX($D$9:$D$28))&"'"&TEXT(MAX($D$9:$D$28)/24,"мм")&"''")," - ",IF('Под. лист наблюдени'!$C$6="Секунды",ROUND(MIN($D$9:$D$28),1)&"''",INT(MIN($D$9:$D$28))&"'"&TEXT(MIN($D$9:$D$28)/24,"мм")&"''")," = ",IF('Под. лист наблюдени'!$C$6="Секунды",ROUND(MAX($D$9:$D$28)-MIN($D$9:$D$28),1)&"''",INT(MAX($D$9:$D$28)-MIN($D$9:$D$28))&"'"&TEXT(MAX($D$9:$D$28)-MIN($D$9:$D$28)/24,"мм")&"''"))) -> 660'' - 627'' = 33''
C44: __ - подчеркнуть повтор. наименьшее время

Sheet Лист набл. руч. раб. - 1
A2: =CONCATENATE("Лист Наблюдения Ручной Работы (",'Под. лист наблюдени'!F8,")") -> Лист Наблюдения Ручной Работы (Электромонтер А)
A4: Состав. части | C4: От: | D4: =IF('Под. лист наблюдени'!$C$4="","",'Под. лист наблюдени'!$C$4) -> Подготовка рабочего места | G4: Участок: | K4: =IF('Под. лист наблюдени'!$F$4="","",'Под. лист наблюдени'!$F$4) -> БФПО | P4: Дата: | S4: =IF('Под. лист наблюдени'!I4="","",'Под. лист наблюдени'!I4) -> 2021-11-29
C5: До: | D5: =IF('Под. лист наблюдени'!$C$5="","",'Под. лист наблюдени'!$C$5) -> Убрать рабочее место | G5: Время такта: | K5: ='Под. лист наблюдени'!$F$5 -> 153'' | P5: Подготовлено: | S5: =IF('Под. лист наблюдени'!I5="","",'Под. лист наблюдени'!I5) -> Иванов И.И.
A6: № | B6: Рабочий элемент - t | E6: Точка отсчета | F6: 1 | G6: 2 | H6: 3 | I6: 4 | J6: 5 | K6: 6 | L6: 7 | M6: 8 | N6: 9 | O6: 10 | P6: t min | Q6: =IFERROR(IF(IF('Под. лист наблюдени'!$C$6="Секунды",ROUND(SMALL(F107:O107,COUNTIF(F107:O107,"<=0")+1)-$P$107,1)&"''",INT(SMALL(F107:O107,COUNTIF(F107:O107,"<=0")+1)-$P$107)&"'"&TEXT(SMALL(F107:O107,COUNTIF(F107:O107,"<=0")+1)-$P$107/24,"мм")&"''")<>IF('Под. лист наблюдени'!$C$6="Секунды",$Q$107&"''",INT($Q$107)&"'"&TEXT($Q$107/24,"мм")&"''"),IF('Под. лист наблюдени'!$C$6="Секунды",ROUND(SMALL(F107:O107,COUNTIF(F107:O107,"<=0")+1)-$P$107-SUM($Q$7:$Q$106),1)&"''",INT(SMALL(F107:O107,COUNTIF(F107:O107,"<=0")+1)-$P$107-SUM($Q$7:$Q$106))&"'"&TEXT(SMALL(F107:O107,COUNTIF(F107:O107,"<=0")+1)-$P$107-SUM($Q$7:$Q$106)/24,"мм")&"''"),"Ко-во отрегул"),"Ко-во отрегул") -> Ко-во отрегул | R6: t отрегул. | S6: Колеб. факт. | T6: Комментарии
A7: =IF('Под. лист наблюдени'!F9="","",'Под. лист наблюдени'!F9) -> 1 | B7: =IF('Под. лист наблюдени'!G9="","",'Под. лист наблюдени'!G9) -> Подготовка рабочего места. Выполнение отключений | E7: начало подготовки | F7: 30 | G7: 32 | H7: 30 | I7: 33 | P7: =IF(MIN(F7:O7)=0,"",MIN(F7:O7)) -> 30 | R7: =IF(P7="","",P7+Q7) -> 30 | S7: =IFERROR(IF(B7="","",MAX(F7:O7)-R7),"") -> 3
A8: =IF('Под. лист наблюдени'!F10="","",'Под. лист наблюдени'!F10) -> 2 | B8: =IF('Под. лист наблюдени'!G10="","",'Под. лист наблюдени'!G10) -> Капроновой щёткой смести пыль снаружи и изнутри шкафа управления | E8: касание щетки | F8: 45 | G8: 48 | H8: 50 | I8: 47 | P8: 45 | R8: 45 | S8: =IFERROR(IF(B8="","",MAX(F8:O8)-R8),"") -> 5
A9: =IF('Под. лист наблюдени'!F11="","",'Под. лист наблюдени'!F11) -> 3 | B9: =IF('Под. лист наблюдени'!G11="","",'Под. лист наблюдени'!G11) -> При помощи отвёртки затянуть все винты крепления ПЗА и клеммных колодок | E9: касание отвертки | F9: 120 | G9: 130 | H9: 120 | I9: 126 | P9: 120 | Q9: 2 | R9: 122 | S9: 8
A10: =IF('Под. лист наблюдени'!F12="","",'Под. лист наблюдени'!F12) -> 4 | B10: =IF('Под. лист наблюдени'!G12="","",'Под. лист наблюдени'!G12) -> При помощи отвёрток, гаечных ключей затянуть все винты, болты контактных соединений ПЗА и клеммных колодок | E10: касание отвертки | F10: 120 | G10: 122 | H10: 124 | I10: 125 | P10: 120 | Q10: 2 | R10: 122 | S10: 3
A11: =IF('Под. лист наблюдени'!F13="","",'Под. лист наблюдени'!F13) -> 5 | B11: =IF('Под. лист наблюдени'!G13="","",'Под. лист наблюдени'!G13) -> Почистить контакты пускателя от нагара надфилем или наждачной бумагой. Заменить контакты если они сильно обгорели | E11: касание надфиля | F11: 120 | G11: 125 | H11: 120 | I11: 122 | P11: 120 | R11: 120 | S11: 5
A12: =IF('Под. лист наблюдени'!F14="","",'Под. лист наблюдени'!F14) -> - | B12: =IF('Под. лист наблюдени'!G14="","",'Под. лист наблюдени'!G14) -> Переход | E12: начало движения | F12: 35 | G12: 32 | H12: 38 | I12: 37 | P12: 32 | R12: 32 | S12: 6
A13: =IF('Под. лист наблюдени'!F15="","",'Под. лист наблюдени'!F15) -> 6 | B13: =IF('Под. лист наблюдени'!G15="","",'Под. лист наблюдени'!G15) -> Проверка сопротивления изоляции электродвигателя | E13: касание мегоометра | F13: 45 | G13: 48 | H13: 45 | I13: 46 | P13: 45 | R13: 45 | S13: 3
A14: =IF('Под. лист наблюдени'!F16="","",'Под. лист наблюдени'!F16) -> 7 | B14: =IF('Под. лист наблюдени'!G16="","",'Под. лист наблюдени'!G16) -> Проверка сопротивления изоляции питающего кабеля | E14: касание мегоометра | F14: 49 | G14: 50 | H14: 48 | I14: 49 | P14: 48 | R14: 48 | S14: 2
A15: =IF('Под. лист наблюдени'!F17="","",'Под. лист наблюдени'!F17) -> - | B15: =IF('Под. лист наблюдени'!G17="","",'Под. лист наблюдени'!G17) -> Переход | E15: начало движения | F15: 20 | G15: 20 | H15: 20 | I15: 20 | P15: 20 | R15: 20 | S15: 0
A16: =IF('Под. лист наблюдени'!F18="","",'Под. лист наблюдени'!F18) -> 8 | B16: =IF('Под. лист наблюдени'!G18="","",'Под. лист наблюдени'!G18) -> Собрать инструмент, материалы, приспособления. Убрать рабочее место | E16: касание инструмента | F16: 40 | G16: 41 | H16: 44 | I16: 43 | P16: 40 | R16: 40 | S16: 4
A17: =IF('Под. лист наблюдени'!F19="","",'Под. лист наблюдени'!F19) ->  | B17: =IF('Под. лист наблюдени'!G19="","",'Под. лист наблюдени'!G19) -> 
A18: =IF('Под. лист наблюдени'!F20="","",'Под. лист наблюдени'!F20) ->  | B18: =IF('Под. лист наблюдени'!G20="","",'Под. лист наблюдени'!G20) -> 
A19: =IF('Под. лист наблюдени'!F21="","",'Под. лист наблюдени'!F21) ->  | B19: =IF('Под. лист наблюдени'!G21="","",'Под. лист наблюдени'!G21) -> 
A20: =IF('Под. лист наблюдени'!F22="","",'Под. лист наблюдени'!F22) ->  | B20: =IF('Под. лист наблюдени'!G22="","",'Под. лист наблюдени'!G22) -> 
A21: =IF('Под. лист наблюдени'!F23="","",'Под. лист наблюдени'!F23) ->  | B21: =IF('Под. лист наблюдени'!G23="","",'Под. лист наблюдени'!G23) -> 
A22: =IF('Под. лист наблюдени'!F24="","",'Под. лист наблюдени'!F24) ->  | B22: =IF('Под. лист наблюдени'!G24="","",'Под. лист наблюдени'!G24) -> 
A23: =IF('Под. лист наблюдени'!F25="","",'Под. лист наблюдени'!F25) ->  | B23: =IF('Под. лист наблюдени'!G25="","",'Под. лист наблюдени'!G25) -> 
A24: =IF('Под. лист наблюдени'!F26="","",'Под. лист наблюдени'!F26) ->  | B24: =IF('Под. лист наблюдени'!G26="","",'Под. лист наблюдени'!G26) -> 
A25: =IF('Под. лист наблюдени'!F27="","",'Под. лист наблюдени'!F27) ->  | B25: =IF('Под. лист наблюдени'!G27="","",'Под. лист наблюдени'!G27) -> 
A26: =IF('Под. лист наблюдени'!F28="","",'Под. лист наблюдени'!F28) ->  | B26: =IF('Под. лист наблюдени'!G28="","",'Под. лист наблюдени'!G28) -> 
A27: =IF('Под. лист наблюдени'!F29="","",'Под. лист наблюдени'!F29) ->  | B27: =IF('Под. лист наблюдени'!G29="","",'Под. лист наблюдени'!G29) -> 
A28: =IF('Под. лист наблюдени'!F30="","",'Под. лист наблюдени'!F30) ->  | B28: =IF('Под. лист наблюдени'!G30="","",'Под. лист наблюдени'!G30) -> 
A29: =IF('Под. лист наблюдени'!F31="","",'Под. лист наблюдени'!F31) ->  | B29: =IF('Под. лист наблюдени'!G31="","",'Под. лист наблюдени'!G31) -> 
A30: =IF('Под. лист наблюдени'!F32="","",'Под. лист наблюдени'!F32) ->  | B30: =IF('Под. лист наблюдени'!G32="","",'Под. лист наблюдени'!G32) -> 
A31: =IF('Под. лист наблюдени'!F33="","",'Под. лист наблюдени'!F33) ->  | B31: =IF('Под. лист наблюдени'!G33="","",'Под. лист наблюдени'!G33) -> 
A32: =IF('Под. лист наблюдени'!F34="","",'Под. лист наблюдени'!F34) ->  | B32: =IF('Под. лист наблюдени'!G34="","",'Под. лист наблюдени'!G34) -> 
A33: =IF('Под. лист наблюдени'!F35="","",'Под. лист наблюдени'!F35) ->  | B33: =IF('Под. лист наблюдени'!G35="","",'Под. лист наблюдени'!G35) -> 
A34: =IF('Под. лист наблюдени'!F36="","",'Под. лист наблюдени'!F36) ->  | B34: =IF('Под. лист наблюдени'!G36="","",'Под. лист наблюдени'!G36) -> 
A35: =IF('Под. лист наблюдени'!F37="","",'Под. лист наблюдени'!F37) ->  | B35: =IF('Под. лист наблюдени'!G37="","",'Под. лист наблюдени'!G37) -> 
A36: =IF('Под. лист наблюдени'!F38="","",'Под. лист наблюдени'!F38) ->  | B36: =IF('Под. лист наблюдени'!G38="","",'Под. лист наблюдени'!G38) -> 
A37: =IF('Под. лист наблюдени'!F39="","",'Под. лист наблюдени'!F39) ->  | B37: =IF('Под. лист наблюдени'!G39="","",'Под. лист наблюдени'!G39) -> 
A38: =IF('Под. лист наблюдени'!F40="","",'Под. лист наблюдени'!F40) ->  | B38: =IF('Под. лист наблюдени'!G40="","",'Под. лист наблюдени'!G40) -> 
A39: =IF('Под. лист наблюдени'!F41="","",'Под. лист наблюдени'!F41) ->  | B39: =IF('Под. лист наблюдени'!G41="","",'Под. лист наблюдени'!G41) -> 
A40: =IF('Под. лист наблюдени'!F42="","",'Под. лист наблюдени'!F42) ->  | B40: =IF('Под. лист наблюдени'!G42="","",'Под. лист наблюдени'!G42) -> 
A41: =IF('Под. лист наблюдени'!F43="","",'Под. лист наблюдени'!F43) ->  | B41: =IF('Под. лист наблюдени'!G43="","",'Под. лист наблюдени'!G43) -> 
A42: =IF('Под. лист наблюдени'!F44="","",'Под. лист наблюдени'!F44) ->  | B42: =IF('Под. лист наблюдени'!G44="","",'Под. лист наблюдени'!G44) -> 
A43: =IF('Под. лист наблюдени'!F45="","",'Под. лист наблюдени'!F45) ->  | B43: =IF('Под. лист наблюдени'!G45="","",'Под. лист наблюдени'!G45) -> 
A44: =IF('Под. лист наблюдени'!F46="","",'Под. лист наблюдени'!F46) ->  | B44: =IF('Под. лист наблюдени'!G46="","",'Под. лист наблюдени'!G46) -> 
A45: =IF('Под. лист наблюдени'!F47="","",'Под. лист наблюдени'!F47) ->  | B45: =IF('Под. лист наблюдени'!G47="","",'Под. лист наблюдени'!G47) -> 
A46: =IF('Под. лист наблюдени'!F48="","",'Под. лист наблюдени'!F48) ->  | B46: =IF('Под. лист наблюдени'!G48="","",'Под. лист наблюдени'!G48) -> 
A47: =IF('Под. лист наблюдени'!F49="","",'Под. лист наблюдени'!F49) ->  | B47: =IF('Под. лист наблюдени'!G49="","",'Под. лист наблюдени'!G49) -> 
A48: =IF('Под. лист наблюдени'!F50="","",'Под. лист наблюдени'!F50) ->  | B48: =IF('Под. лист наблюдени'!G50="","",'Под. лист наблюдени'!G50) -> 
A49: =IF('Под. лист наблюдени'!F51="","",'Под. лист наблюдени'!F51) ->  | B49: =IF('Под. лист наблюдени'!G51="","",'Под. лист наблюдени'!G51) -> 
A50: =IF('Под. лист наблюдени'!F52="","",'Под. лист наблюдени'!F52) ->  | B50: =IF('Под. лист наблюдени'!G52="","",'Под. лист наблюдени'!G52) -> 
A51: =IF('Под. лист наблюдени'!F53="","",'Под. лист наблюдени'!F53) ->  | B51: =IF('Под. лист наблюдени'!G53="","",'Под. лист наблюдени'!G53) -> 
A52: =IF('Под. лист наблюдени'!F54="","",'Под. лист наблюдени'!F54) ->  | B52: =IF('Под. лист наблюдени'!G54="","",'Под. лист наблюдени'!G54) -> 
A53: =IF('Под. лист наблюдени'!F55="","",'Под. лист наблюдени'!F55) ->  | B53: =IF('Под. лист наблюдени'!G55="","",'Под. лист наблюдени'!G55) -> 
A54: =IF('Под. лист наблюдени'!F56="","",'Под. лист наблюдени'!F56) ->  | B54: =IF('Под. лист наблюдени'!G56="","",'Под. лист наблюдени'!G56) -> 
A55: =IF('Под. лист наблюдени'!F57="","",'Под. лист наблюдени'!F57) ->  | B55: =IF('Под. лист наблюдени'!G57="","",'Под. лист наблюдени'!G57) -> 
A56: =IF('Под. лист наблюдени'!F58="","",'Под. лист наблюдени'!F58) ->  | B56: =IF('Под. лист наблюдени'!G58="","",'Под. лист наблюдени'!G58) -> 
A57: =IF('Под. лист наблюдени'!F59="","",'Под. лист наблюдени'!F59) ->  | B57: =IF('Под. лист наблюдени'!G59="","",'Под. лист наблюдени'!G59) -> 
A58: =IF('Под. лист наблюдени'!F60="","",'Под. лист наблюдени'!F60) ->  | B58: =IF('Под. лист наблюдени'!G60="","",'Под. лист наблюдени'!G60) -> 
A59: =IF('Под. лист наблюдени'!F61="","",'Под. лист наблюдени'!F61) ->  | B59: =IF('Под. лист наблюдени'!G61="","",'Под. лист наблюдени'!G61) -> 
A60: =IF('Под. лист наблюдени'!F62="","",'Под. лист наблюдени'!F62) ->  | B60: =IF('Под. лист наблюдени'!G62="","",'Под. лист наблюдени'!G62) -> 
A61: =IF('Под. лист наблюдени'!F63="","",'Под. лист наблюдени'!F63) ->  | B61: =IF('Под. лист наблюдени'!G63="","",'Под. лист наблюдени'!G63) -> 
A62: =IF('Под. лист наблюдени'!F64="","",'Под. лист наблюдени'!F64) ->  | B62: =IF('Под. лист наблюдени'!G64="","",'Под. лист наблюдени'!G64) -> 
A63: =IF('Под. лист наблюдени'!F65="","",'Под. лист наблюдени'!F65) ->  | B63: =IF('Под. лист наблюдени'!G65="","",'Под. лист наблюдени'!G65) -> 
A64: =IF('Под. лист наблюдени'!F66="","",'Под. лист наблюдени'!F66) ->  | B64: =IF('Под. лист наблюдени'!G66="","",'Под. лист наблюдени'!G66) -> 
A65: =IF('Под. лист наблюдени'!F67="","",'Под. лист наблюдени'!F67) ->  | B65: =IF('Под. лист наблюдени'!G67="","",'Под. лист наблюдени'!G67) -> 
A66: =IF('Под. лист наблюдени'!F68="","",'Под. лист наблюдени'!F68) ->  | B66: =IF('Под. лист наблюдени'!G68="","",'Под. лист наблюдени'!G68) -> 
A67: =IF('Под. лист наблюдени'!F69="","",'Под. лист наблюдени'!F69) ->  | B67: =IF('Под. лист наблюдени'!G69="","",'Под. лист наблюдени'!G69) -> 
A68: =IF('Под. лист наблюдени'!F70="","",'Под. лист наблюдени'!F70) ->  | B68: =IF('Под. лист наблюдени'!G70="","",'Под. лист наблюдени'!G70) -> 
A69: =IF('Под. лист наблюдени'!F71="","",'Под. лист наблюдени'!F71) ->  | B69: =IF('Под. лист наблюдени'!G71="","",'Под. лист наблюдени'!G71) -> 
A70: =IF('Под. лист наблюдени'!F72="","",'Под. лист наблюдени'!F72) ->  | B70: =IF('Под. лист наблюдени'!G72="","",'Под. лист наблюдени'!G72) -> 
A71: =IF('Под. лист наблюдени'!F73="","",'Под. лист наблюдени'!F73) ->  | B71: =IF('Под. лист наблюдени'!G73="","",'Под. лист наблюдени'!G73) ->  | P71: =IF(MIN(F71:O71)=0,"",MIN(F71:O71)) ->  | R71: =IF(P71="","",P71+Q71) -> 
A72: =IF('Под. лист наблюдени'!F74="","",'Под. лист наблюдени'!F74) ->  | B72: =IF('Под. лист наблюдени'!G74="","",'Под. лист наблюдени'!G74) ->  | S72: =IFERROR(IF(B72="","",MAX(F72:O72)-R72),"") -> 
A73: =IF('Под. лист наблюдени'!F75="","",'Под. лист наблюдени'!F75) ->  | B73: =IF('Под. лист наблюдени'!G75="","",'Под. лист наблюдени'!G75) -> 
A74: =IF('Под. лист наблюдени'!F76="","",'Под. лист наблюдени'!F76) ->  | B74: =IF('Под. лист наблюдени'!G76="","",'Под. лист наблюдени'!G76) -> 
A75: =IF('Под. лист наблюдени'!F77="","",'Под. лист наблюдени'!F77) ->  | B75: =IF('Под. лист наблюдени'!G77="","",'Под. лист наблюдени'!G77) -> 
A76: =IF('Под. лист наблюдени'!F78="","",'Под. лист наблюдени'!F78) ->  | B76: =IF('Под. лист наблюдени'!G78="","",'Под. лист наблюдени'!G78) -> 
A77: =IF('Под. лист наблюдени'!F79="","",'Под. лист наблюдени'!F79) ->  | B77: =IF('Под. лист наблюдени'!G79="","",'Под. лист наблюдени'!G79) -> 
A78: =IF('Под. лист наблюдени'!F80="","",'Под. лист наблюдени'!F80) ->  | B78: =IF('Под. лист наблюдени'!G80="","",'Под. лист наблюдени'!G80) -> 
A79: =IF('Под. лист наблюдени'!F81="","",'Под. лист наблюдени'!F81) ->  | B79: =IF('Под. лист наблюдени'!G81="","",'Под. лист наблюдени'!G81) -> 
A80: =IF('Под. лист наблюдени'!F82="","",'Под. лист наблюдени'!F82) ->  | B80: =IF('Под. лист наблюдени'!G82="","",'Под. лист наблюдени'!G82) -> 
A81: =IF('Под. лист наблюдени'!F83="","",'Под. лист наблюдени'!F83) ->  | B81: =IF('Под. лист наблюдени'!G83="","",'Под. лист наблюдени'!G83) -> 
A82: =IF('Под. лист наблюдени'!F84="","",'Под. лист наблюдени'!F84) ->  | B82: =IF('Под. лист наблюдени'!G84="","",'Под. лист наблюдени'!G84) -> 
A83: =IF('Под. лист наблюдени'!F85="","",'Под. лист наблюдени'!F85) ->  | B83: =IF('Под. лист наблюдени'!G85="","",'Под. лист наблюдени'!G85) -> 
A84: =IF('Под. лист наблюдени'!F86="","",'Под. лист наблюдени'!F86) ->  | B84: =IF('Под. лист наблюдени'!G86="","",'Под. лист наблюдени'!G86) -> 
A85: =IF('Под. лист наблюдени'!F87="","",'Под. лист наблюдени'!F87) ->  | B85: =IF('Под. лист наблюдени'!G87="","",'Под. лист наблюдени'!G87) -> 
A86: =IF('Под. лист наблюдени'!F88="","",'Под. лист наблюдени'!F88) ->  | B86: =IF('Под. лист наблюдени'!G88="","",'Под. лист наблюдени'!G88) -> 
A87: =IF('Под. лист наблюдени'!F89="","",'Под. лист наблюдени'!F89) ->  | B87: =IF('Под. лист наблюдени'!G89="","",'Под. лист наблюдени'!G89) -> 
A88: =IF('Под. лист наблюдени'!F90="","",'Под. лист наблюдени'!F90) ->  | B88: =IF('Под. лист наблюдени'!G90="","",'Под. лист наблюдени'!G90) -> 
A89: =IF('Под. лист наблюдени'!F91="","",'Под. лист наблюдени'!F91) ->  | B89: =IF('Под. лист наблюдени'!G91="","",'Под. лист наблюдени'!G91) -> 
A90: =IF('Под. лист наблюдени'!F92="","",'Под. лист наблюдени'!F92) ->  | B90: =IF('Под. лист наблюдени'!G92="","",'Под. лист наблюдени'!G92) -> 
A91: =IF('Под. лист наблюдени'!F93="","",'Под. лист наблюдени'!F93) ->  | B91: =IF('Под. лист наблюдени'!G93="","",'Под. лист наблюдени'!G93) -> 
A92: =IF('Под. лист наблюдени'!F94="","",'Под. лист наблюдени'!F94) ->  | B92: =IF('Под. лист наблюдени'!G94="","",'Под. лист наблюдени'!G94) -> 
A93: =IF('Под. лист наблюдени'!F95="","",'Под. лист наблюдени'!F95) ->  | B93: =IF('Под. лист наблюдени'!G95="","",'Под. лист наблюдени'!G95) -> 
A94: =IF('Под. лист наблюдени'!F96="","",'Под. лист наблюдени'!F96) ->  | B94: =IF('Под. лист наблюдени'!G96="","",'Под. лист наблюдени'!G96) -> 
A95: =IF('Под. лист наблюдени'!F97="","",'Под. лист наблюдени'!F97) ->  | B95: =IF('Под. лист наблюдени'!G97="","",'Под. лист наблюдени'!G97) -> 
A96: =IF('Под. лист наблюдени'!F98="","",'Под. лист наблюдени'!F98) ->  | B96: =IF('Под. лист наблюдени'!G98="","",'Под. лист наблюдени'!G98) -> 
A97: =IF('Под. лист наблюдени'!F99="","",'Под. лист наблюдени'!F99) ->  | B97: =IF('Под. лист наблюдени'!G99="","",'Под. лист наблюдени'!G99) -> 
A98: =IF('Под. лист наблюдени'!F100="","",'Под. лист наблюдени'!F100) ->  | B98: =IF('Под. лист наблюдени'!G100="","",'Под. лист наблюдени'!G100) -> 
A99: =IF('Под. лист наблюдени'!F101="","",'Под. лист наблюдени'!F101) ->  | B99: =IF('Под. лист наблюдени'!G101="","",'Под. лист наблюдени'!G101) -> 
A100: =IF('Под. лист наблюдени'!F102="","",'Под. лист наблюдени'!F102) ->  | B100: =IF('Под. лист наблюдени'!G102="","",'Под. лист наблюдени'!G102) -> 
A101: =IF('Под. лист наблюдени'!F103="","",'Под. лист наблюдени'!F103) ->  | B101: =IF('Под. лист наблюдени'!G103="","",'Под. лист наблюдени'!G103) -> 
A102: =IF('Под. лист наблюдени'!F104="","",'Под. лист наблюдени'!F104) ->  | B102: =IF('Под. лист наблюдени'!G104="","",'Под. лист наблюдени'!G104) -> 
A103: =IF('Под. лист наблюдени'!F105="","",'Под. лист наблюдени'!F105) ->  | B103: =IF('Под. лист наблюдени'!G105="","",'Под. лист наблюдени'!G105) -> 
A104: =IF('Под. лист наблюдени'!F106="","",'Под. лист наблюдени'!F106) ->  | B104: =IF('Под. лист наблюдени'!G106="","",'Под. лист наблюдени'!G106) -> 
A105: =IF('Под. лист наблюдени'!F107="","",'Под. лист наблюдени'!F107) ->  | B105: =IF('Под. лист наблюдени'!G107="","",'Под. лист наблюдени'!G107) -> 
A106: =IF('Под. лист наблюдени'!F108="","",'Под. лист наблюдени'!F108) ->  | B106: =IF('Под. лист наблюдени'!G108="","",'Под. лист наблюдени'!G108) ->  | T106: =IF(F106="","",AND(MAX($F$106:$O$106)=F106,COUNTIFS($F$106:F106,F106)=1)) -> 
A107: ИТОГО | F107: =SUM(F7:F106) -> 624 | G107: =SUM(G7:G106) -> 648 | H107: 639 | I107: 648 | J107: 0 | K107: 0 | L107: 0 | M107: 0 | N107: 0 | O107: 0 | P107: 620 | Q107: =SUM(Q7:Q106) -> 4 | R107: =SUM(R7:R106) -> 624 | S107: 39
A109: Оператор 1
A110: Σt =
A111: =IF(P107=0,"-",IF('Под. лист наблюдени'!$C$6="Секунды",ROUND(P107,1)&"''",INT(P107)&"'"&TEXT(P107/24,"мм")&"''")) -> 620''
A112: C= T - Σt =
A113: =IFERROR(CONCATENATE(IF('Под. лист наблюдени'!$C$6="Секунды",ROUND(MIN(SMALL(F107:O107,COUNTIF(F107:O107,"<=0")+1)),1)&"''",INT(SMALL(F107:O107,COUNTIF(F107:O107,"<=0")+1))&"'"&TEXT(SMALL(F107:O107,COUNTIF(F107:O107,"<=0")+1)/24,"мм")&"''")," - ",IF('Под. лист наблюдени'!$C$6="Секунды",ROUND(P107,1)&"''",INT(P107)&"'"&TEXT(P107/24,"мм")&"''")," = ",IF('Под. лист наблюдени'!$C$6="Секунды",ROUND(SMALL(F107:O107,COUNTIF(F107:O107,"<=0")+1)-$P$107,1)&"''",INT(SMALL(F107:O107,COUNTIF(F107:O107,"<=0")+1)-$P$107)&"'"&TEXT(SMALL(F107:O107,COUNTIF(F107:O107,"<=0")+1)-$P$107/24,"мм")&"''")),"-") -> 624'' - 620'' = 4'' | D113: =IFERROR(IF(IF('Под. лист наблюдени'!$C$6="Секунды",ROUND(SMALL(F107:O107,COUNTIF(F107:O107,"<=0")+1)-$P$107,1)&"''",INT(SMALL(F107:O107,COUNTIF(F107:O107,"<=0")+1)-$P$107)&"'"&TEXT(SMALL(F107:O107,COUNTIF(F107:O107,"<=0")+1)-$P$107/24,"мм")&"''")<>IF('Под. лист наблюдени'!$C$6="Секунды",$Q$107&"''",INT($Q$107)&"'"&TEXT($Q$107/24,"мм")&"''"),"!",""),"") -> 
A115: Объяснение условных знаков
A116: X - зачеркнуть ошибку
A117: O - обвести наибольшее время
A118: __ - подчеркнуть повтор. наименьшее время

Sheet Лист набл. руч. раб. - 2
A2: =CONCATENATE("Лист Наблюдения Ручной Работы (",'Под. лист наблюдени'!H8,")") -> Лист Наблюдения Ручной Работы (Электромонтер Б)
A4: Состав. части | C4: От: | D4: =IF('Под. лист наблюдени'!$C$4="","",'Под. лист наблюдени'!$C$4) -> Подготовка рабочего места | G4: Участок: | K4: =IF('Под. лист наблюдени'!$F$4="","",'Под. лист наблюдени'!$F$4) -> БФПО | P4: Дата: | S4: =IF('Под. лист наблюдени'!I4="","",'Под. лист наблюдени'!I4) -> 2021-11-29
C5: До: | D5: =IF('Под. лист наблюдени'!$C$5="","",'Под. лист наблюдени'!$C$5) -> Убрать рабочее место | G5: Время такта: | K5: ='Под. лист наблюдени'!$F$5 -> 153'' | P5: Подготовлено: | S5: =IF('Под. лист наблюдени'!I5="","",'Под. лист наблюдени'!I5) -> Иванов И.И.
A6: № | B6: Рабочий элемент - t | E6: Точка отсчета | F6: 1 | G6: 2 | H6: 3 | I6: 4 | J6: 5 | K6: 6 | L6: 7 | M6: 8 | N6: 9 | O6: 10 | P6: t min | Q6: =IFERROR(IF(IF('Под. лист наблюдени'!$C$6="Секунды",ROUND(SMALL(F107:O107,COUNTIF(F107:O107,"<=0")+1)-$P$107,1)&"''",INT(SMALL(F107:O107,COUNTIF(F107:O107,"<=0")+1)-$P$107)&"'"&TEXT(SMALL(F107:O107,COUNTIF(F107:O107,"<=0")+1)-$P$107/24,"мм")&"''")<>IF('Под. лист наблюдени'!$C$6="Секунды",$Q$107&"''",INT($Q$107)&"'"&TEXT($Q$107/24,"мм")&"''"),IF('Под. лист наблюдени'!$C$6="Секунды",ROUND(SMALL(F107:O107,COUNTIF(F107:O107,"<=0")+1)-$P$107-SUM($Q$7:$Q$106),1)&"''",INT(SMALL(F107:O107,COUNTIF(F107:O107,"<=0")+1)-$P$107-SUM($Q$7:$Q$106))&"'"&TEXT(SMALL(F107:O107,COUNTIF(F107:O107,"<=0")+1)-$P$107-SUM($Q$7:$Q$106)/24,"мм")&"''"),"Ко-во отрегул"),"Ко-во отрегул") -> Ко-во отрегул | R6: t отрегул. | S6: Колеб. факт. | T6: Комментарии
A7: =IF('Под. лист наблюдени'!H9="","",'Под. лист наблюдени'!H9) -> 1 | B7: =IF('Под. лист наблюдени'!I9="","",'Под. лист наблюдени'!I9) -> Подготовка рабочего места. Выполнение отключений | E7: начало подготовки | F7: 60 | G7: 62 | H7: 60 | I7: 63 | P7: =IF(MIN(F7:O7)=0,"",MIN(F7:O7)) -> 60 | R7: =IF(P7="","",P7+Q7) -> 60 | S7: =IFERROR(IF(B7="","",MAX(F7:O7)-R7),"") -> 3
A8: =IF('Под. лист наблюдени'!H10="","",'Под. лист наблюдени'!H10) -> - | B8: =IF('Под. лист наблюдени'!I10="","",'Под. лист наблюдени'!I10) -> Переход | E8: начало движения | F8: 20 | G8: 20 | H8: 20 | I8: 20 | P8: 20 | R8: 20 | S8: =IFERROR(IF(B8="","",MAX(F8:O8)-R8),"") -> 0
A9: =IF('Под. лист наблюдени'!H11="","",'Под. лист наблюдени'!H11) -> 2 | B9: =IF('Под. лист наблюдени'!I11="","",'Под. лист наблюдени'!I11) -> Очистка электродвигателя | E9: касание щетки | F9: 45 | G9: 46 | H9: 47 | I9: 45 | P9: 45 | R9: 45 | S9: 2
A10: =IF('Под. лист наблюдени'!H12="","",'Под. лист наблюдени'!H12) -> 3 | B10: =IF('Под. лист наблюдени'!I12="","",'Под. лист наблюдени'!I12) -> Протяжка болтов крепления электродвигателя | E10: касание отвертки | F10: 110 | G10: 114 | H10: 112 | I10: 111 | P10: 110 | Q10: 2 | R10: 112 | S10: 2
A11: =IF('Под. лист наблюдени'!H13="","",'Под. лист наблюдени'!H13) -> 4 | B11: =IF('Под. лист наблюдени'!I13="","",'Под. лист наблюдени'!I13) -> Протяжка защитного кожуха электродвигателя | E11: касание отвертки | F11: 65 | G11: 73 | H11: 70 | I11: 69 | P11: 65 | Q11: 2 | R11: 67 | S11: 6
A12: =IF('Под. лист наблюдени'!H14="","",'Под. лист наблюдени'!H14) -> 5 | B12: =IF('Под. лист наблюдени'!I14="","",'Под. лист наблюдени'!I14) -> Снятие крышки брно | E12: касание крышки | F12: 20 | G12: 23 | H12: 20 | I12: 24 | P12: 20 | R12: 20 | S12: 4
A13: =IF('Под. лист наблюдени'!H15="","",'Под. лист наблюдени'!H15) -> 6 | B13: =IF('Под. лист наблюдени'!I15="","",'Под. лист наблюдени'!I15) -> Проверить отсутствие напряжения на эл.двигателе | E13: касание мультиметра | F13: 47 | G13: 46 | H13: 43 | I13: 45 | P13: 43 | R13: 43 | S13: 4
A14: =IF('Под. лист наблюдени'!H16="","",'Под. лист наблюдени'!H16) -> 7 | B14: =IF('Под. лист наблюдени'!I16="","",'Под. лист наблюдени'!I16) -> Отсоединить кабель от электродвигателя | E14: касание кабеля | F14: 40 | G14: 44 | H14: 40 | I14: 42 | P14: 40 | R14: 40 | S14: 4
A15: =IF('Под. лист наблюдени'!H17="","",'Под. лист наблюдени'!H17) -> 8 | B15: =IF('Под. лист наблюдени'!I17="","",'Под. лист наблюдени'!I17) -> Проверка сопротивления изоляции электродвигателя | E15: касание мегоометра | F15: 40 | G15: 42 | H15: 40 | I15: 41 | P15: 40 | R15: 40 | S15: 2
A16: =IF('Под. лист наблюдени'!H18="","",'Под. лист наблюдени'!H18) -> 9 | B16: =IF('Под. лист наблюдени'!I18="","",'Под. лист наблюдени'!I18) -> Проверка сопротивления изоляции питающего кабеля | E16: касание мегоометра | F16: 40 | G16: 42 | H16: 40 | I16: 43 | P16: 40 | R16: 40 | S16: 3
A17: =IF('Под. лист наблюдени'!H19="","",'Под. лист наблюдени'!H19) -> 10 | B17: =IF('Под. лист наблюдени'!I19="","",'Под. лист наблюдени'!I19) -> Подсоединение кабеля к электродвигателю. (ремонт металлорукава | E17: касание кабеля | F17: 40 | G17: 43 | H17: 40 | I17: 42 | P17: 40 | R17: 40 | S17: 3
A18: =IF('Под. лист наблюдени'!H20="","",'Под. лист наблюдени'!H20) -> 11 | B18: =IF('Под. лист наблюдени'!I20="","",'Под. лист наблюдени'!I20) -> Установка крышки брно | E18: касание крышки | F18: 20 | G18: 23 | H18: 20 | I18: 22 | P18: 20 | R18: 20 | S18: 3
A19: =IF('Под. лист наблюдени'!H21="","",'Под. лист наблюдени'!H21) -> 12 | B19: =IF('Под. лист наблюдени'!I21="","",'Под. лист наблюдени'!I21) -> Собрать инструмент, материалы, приспособления. Убрать рабочее место | E19: касание инструмента | F19: 80 | G19: 82 | H19: 81 | I19: 80 | P19: 80 | R19: 80 | S19: 2
A20: =IF('Под. лист наблюдени'!H22="","",'Под. лист наблюдени'!H22) ->  | B20: =IF('Под. лист наблюдени'!I22="","",'Под. лист наблюдени'!I22) -> 
A21: =IF('Под. лист наблюдени'!H23="","",'Под. лист наблюдени'!H23) ->  | B21: =IF('Под. лист наблюдени'!I23="","",'Под. лист наблюдени'!I23) -> 
A22: =IF('Под. лист наблюдени'!H24="","",'Под. лист наблюдени'!H24) ->  | B22: =IF('Под. лист наблюдени'!I24="","",'Под. лист наблюдени'!I24) -> 
A23: =IF('Под. лист наблюдени'!H25="","",'Под. лист наблюдени'!H25) ->  | B23: =IF('Под. лист наблюдени'!I25="","",'Под. лист наблюдени'!I25) -> 
A24: =IF('Под. лист наблюдени'!H26="","",'Под. лист наблюдени'!H26) ->  | B24: =IF('Под. лист наблюдени'!I26="","",'Под. лист наблюдени'!I26) -> 
A25: =IF('Под. лист наблюдени'!H27="","",'Под. лист наблюдени'!H27) ->  | B25: =IF('Под. лист наблюдени'!I27="","",'Под. лист наблюдени'!I27) -> 
A26: =IF('Под. лист наблюдени'!H28="","",'Под. лист наблюдени'!H28) ->  | B26: =IF('Под. лист наблюдени'!I28="","",'Под. лист наблюдени'!I28) -> 
A27: =IF('Под. лист наблюдени'!H29="","",'Под. лист наблюдени'!H29) ->  | B27: =IF('Под. лист наблюдени'!I29="","",'Под. лист наблюдени'!I29) -> 
A28: =IF('Под. лист наблюдени'!H30="","",'Под. лист наблюдени'!H30) ->  | B28: =IF('Под. лист наблюдени'!I30="","",'Под. лист наблюдени'!I30) -> 
A29: =IF('Под. лист наблюдени'!H31="","",'Под. лист наблюдени'!H31) ->  | B29: =IF('Под. лист наблюдени'!I31="","",'Под. лист наблюдени'!I31) -> 
A30: =IF('Под. лист наблюдени'!H32="","",'Под. лист наблюдени'!H32) ->  | B30: =IF('Под. лист наблюдени'!I32="","",'Под. лист наблюдени'!I32) -> 
A31: =IF('Под. лист наблюдени'!H33="","",'Под. лист наблюдени'!H33) ->  | B31: =IF('Под. лист наблюдени'!I33="","",'Под. лист наблюдени'!I33) -> 
A32: =IF('Под. лист наблюдени'!H34="","",'Под. лист наблюдени'!H34) ->  | B32: =IF('Под. лист наблюдени'!I34="","",'Под. лист наблюдени'!I34) -> 
A33: =IF('Под. лист наблюдени'!H35="","",'Под. лист наблюдени'!H35) ->  | B33: =IF('Под. лист наблюдени'!I35="","",'Под. лист наблюдени'!I35) -> 
A34: =IF('Под. лист наблюдени'!H36="","",'Под. лист наблюдени'!H36) ->  | B34: =IF('Под. лист наблюдени'!I36="","",'Под. лист наблюдени'!I36) -> 
A35: =IF('Под. лист наблюдени'!H37="","",'Под. лист наблюдени'!H37) ->  | B35: =IF('Под. лист наблюдени'!I37="","",'Под. лист наблюдени'!I37) -> 
A36: =IF('Под. лист наблюдени'!H38="","",'Под. лист наблюдени'!H38) ->  | B36: =IF('Под. лист наблюдени'!I38="","",'Под. лист наблюдени'!I38) -> 
A37: =IF('Под. лист наблюдени'!H39="","",'Под. лист наблюдени'!H39) ->  | B37: =IF('Под. лист наблюдени'!I39="","",'Под. лист наблюдени'!I39) -> 
A38: =IF('Под. лист наблюдени'!H40="","",'Под. лист наблюдени'!H40) ->  | B38: =IF('Под. лист наблюдени'!I40="","",'Под. лист наблюдени'!I40) -> 
A39: =IF('Под. лист наблюдени'!H41="","",'Под. лист наблюдени'!H41) ->  | B39: =IF('Под. лист наблюдени'!I41="","",'Под. лист наблюдени'!I41) -> 
A40: =IF('Под. лист наблюдени'!H42="","",'Под. лист наблюдени'!H42) ->  | B40: =IF('Под. лист наблюдени'!I42="","",'Под. лист наблюдени'!I42) -> 
A41: =IF('Под. лист наблюдени'!H43="","",'Под. лист наблюдени'!H43) ->  | B41: =IF('Под. лист наблюдени'!I43="","",'Под. лист наблюдени'!I43) -> 
A42: =IF('Под. лист наблюдени'!H44="","",'Под. лист наблюдени'!H44) ->  | B42: =IF('Под. лист наблюдени'!I44="","",'Под. лист наблюдени'!I44) -> 
A43: =IF('Под. лист наблюдени'!H45="","",'Под. лист наблюдени'!H45) ->  | B43: =IF('Под. лист наблюдени'!I45="","",'Под. лист наблюдени'!I45) -> 
A44: =IF('Под. лист наблюдени'!H46="","",'Под. лист наблюдени'!H46) ->  | B44: =IF('Под. лист наблюдени'!I46="","",'Под. лист наблюдени'!I46) -> 
A45: =IF('Под. лист наблюдени'!H47="","",'Под. лист наблюдени'!H47) ->  | B45: =IF('Под. лист наблюдени'!I47="","",'Под. лист наблюдени'!I47) -> 
A46: =IF('Под. лист наблюдени'!H48="","",'Под. лист наблюдени'!H48) ->  | B46: =IF('Под. лист наблюдени'!I48="","",'Под. лист наблюдени'!I48) -> 
A47: =IF('Под. лист наблюдени'!H49="","",'Под. лист наблюдени'!H49) ->  | B47: =IF('Под. лист наблюдени'!I49="","",'Под. лист наблюдени'!I49) -> 
A48: =IF('Под. лист наблюдени'!H50="","",'Под. лист наблюдени'!H50) ->  | B48: =IF('Под. лист наблюдени'!I50="","",'Под. лист наблюдени'!I50) -> 
A49: =IF('Под. лист наблюдени'!H51="","",'Под. лист наблюдени'!H51) ->  | B49: =IF('Под. лист наблюдени'!I51="","",'Под. лист наблюдени'!I51) -> 
A50: =IF('Под. лист наблюдени'!H52="","",'Под. лист наблюдени'!H52) ->  | B50: =IF('Под. лист наблюдени'!I52="","",'Под. лист наблюдени'!I52) -> 
A51: =IF('Под. лист наблюдени'!H53="","",'Под. лист наблюдени'!H53) ->  | B51: =IF('Под. лист наблюдени'!I53="","",'Под. лист наблюдени'!I53) -> 
A52: =IF('Под. лист наблюдени'!H54="","",'Под. лист наблюдени'!H54) ->  | B52: =IF('Под. лист наблюдени'!I54="","",'Под. лист наблюдени'!I54) -> 
A53: =IF('Под. лист наблюдени'!H55="","",'Под. лист наблюдени'!H55) ->  | B53: =IF('Под. лист наблюдени'!I55="","",'Под. лист наблюдени'!I55) -> 
A54: =IF('Под. лист наблюдени'!H56="","",'Под. лист наблюдени'!H56) ->  | B54: =IF('Под. лист наблюдени'!I56="","",'Под. лист наблюдени'!I56) -> 
A55: =IF('Под. лист наблюдени'!H57="","",'Под. лист наблюдени'!H57) ->  | B55: =IF('Под. лист наблюдени'!I57="","",'Под. лист наблюдени'!I57) -> 
A56: =IF('Под. лист наблюдени'!H58="","",'Под. лист наблюдени'!H58) ->  | B56: =IF('Под. лист наблюдени'!I58="","",'Под. лист наблюдени'!I58) -> 
A57: =IF('Под. лист наблюдени'!H59="","",'Под. лист наблюдени'!H59) ->  | B57: =IF('Под. лист наблюдени'!I59="","",'Под. лист наблюдени'!I59) -> 
A58: =IF('Под. лист наблюдени'!H60="","",'Под. лист наблюдени'!H60) ->  | B58: =IF('Под. лист наблюдени'!I60="","",'Под. лист наблюдени'!I60) -> 
A59: =IF('Под. лист наблюдени'!H61="","",'Под. лист наблюдени'!H61) ->  | B59: =IF('Под. лист наблюдени'!I61="","",'Под. лист наблюдени'!I61) -> 
A60: =IF('Под. лист наблюдени'!H62="","",'Под. лист наблюдени'!H62) ->  | B60: =IF('Под. лист наблюдени'!I62="","",'Под. лист наблюдени'!I62) -> 
A61: =IF('Под. лист наблюдени'!H63="","",'Под. лист наблюдени'!H63) ->  | B61: =IF('Под. лист наблюдени'!I63="","",'Под. лист наблюдени'!I63) -> 
A62: =IF('Под. лист наблюдени'!H64="","",'Под. лист наблюдени'!H64) ->  | B62: =IF('Под. лист наблюдени'!I64="","",'Под. лист наблюдени'!I64) -> 
A63: =IF('Под. лист наблюдени'!H65="","",'Под. лист наблюдени'!H65) ->  | B63: =IF('Под. лист наблюдени'!I65="","",'Под. лист наблюдени'!I65) -> 
A64: =IF('Под. лист наблюдени'!H66="","",'Под. лист наблюдени'!H66) ->  | B64: =IF('Под. лист наблюдени'!I66="","",'Под. лист наблюдени'!I66) -> 
A65: =IF('Под. лист наблюдени'!H67="","",'Под. лист наблюдени'!H67) ->  | B65: =IF('Под. лист наблюдени'!I67="","",'Под. лист наблюдени'!I67) -> 
A66: =IF('Под. лист наблюдени'!H68="","",'Под. лист наблюдени'!H68) ->  | B66: =IF('Под. лист наблюдени'!I68="","",'Под. лист наблюдени'!I68) -> 
A67: =IF('Под. лист наблюдени'!H69="","",'Под. лист наблюдени'!H69) ->  | B67: =IF('Под. лист наблюдени'!I69="","",'Под. лист наблюдени'!I69) -> 
A68: =IF('Под. лист наблюдени'!H70="","",'Под. лист наблюдени'!H70) ->  | B68: =IF('Под. лист наблюдени'!I70="","",'Под. лист наблюдени'!I70) -> 
A69: =IF('Под. лист наблюдени'!H71="","",'Под. лист наблюдени'!H71) ->  | B69: =IF('Под. лист наблюдени'!I71="","",'Под. лист наблюдени'!I71) -> 
A70: =IF('Под. лист наблюдени'!H72="","",'Под. лист наблюдени'!H72) ->  | B70: =IF('Под. лист наблюдени'!I72="","",'Под. лист наблюдени'!I72) -> 
A71: =IF('Под. лист наблюдени'!H73="","",'Под. лист наблюдени'!H73) ->  | B71: =IF('Под. лист наблюдени'!I73="","",'Под. лист наблюдени'!I73) ->  | P71: =IF(MIN(F71:O71)=0,"",MIN(F71:O71)) ->  | R71: =IF(P71="","",P71+Q71) -> 
A72: =IF('Под. лист наблюдени'!H74="","",'Под. лист наблюдени'!H74) ->  | B72: =IF('Под. лист наблюдени'!I74="","",'Под. лист наблюдени'!I74) ->  | S72: =IFERROR(IF(B72="","",MAX(F72:O72)-R72),"") -> 
A73: =IF('Под. лист наблюдени'!H75="","",'Под. лист наблюдени'!H75) ->  | B73: =IF('Под. лист наблюдени'!I75="","",'Под. лист наблюдени'!I75) -> 
A74: =IF('Под. лист наблюдени'!H76="","",'Под. лист наблюдени'!H76) ->  | B74: =IF('Под. лист наблюдени'!I76="","",'Под. лист наблюдени'!I76) -> 
A75: =IF('Под. лист наблюдени'!H77="","",'Под. лист наблюдени'!H77) ->  | B75: =IF('Под. лист наблюдени'!I77="","",'Под. лист наблюдени'!I77) -> 
A76: =IF('Под. лист наблюдени'!H78="","",'Под. лист наблюдени'!H78) ->  | B76: =IF('Под. лист наблюдени'!I78="","",'Под. лист наблюдени'!I78) -> 
A77: =IF('Под. лист наблюдени'!H79="","",'Под. лист наблюдени'!H79) ->  | B77: =IF('Под. лист наблюдени'!I79="","",'Под. лист наблюдени'!I79) -> 
A78: =IF('Под. лист наблюдени'!H80="","",'Под. лист наблюдени'!H80) ->  | B78: =IF('Под. лист наблюдени'!I80="","",'Под. лист наблюдени'!I80) -> 
A79: =IF('Под. лист наблюдени'!H81="","",'Под. лист наблюдени'!H81) ->  | B79: =IF('Под. лист наблюдени'!I81="","",'Под. лист наблюдени'!I81) -> 
A80: =IF('Под. лист наблюдени'!H82="","",'Под. лист наблюдени'!H82) ->  | B80: =IF('Под. лист наблюдени'!I82="","",'Под. лист наблюдени'!I82) -> 
A81: =IF('Под. лист наблюдени'!H83="","",'Под. лист наблюдени'!H83) ->  | B81: =IF('Под. лист наблюдени'!I83="","",'Под. лист наблюдени'!I83) -> 
A82: =IF('Под. лист наблюдени'!H84="","",'Под. лист наблюдени'!H84) ->  | B82: =IF('Под. лист наблюдени'!I84="","",'Под. лист наблюдени'!I84) -> 
A83: =IF('Под. лист наблюдени'!H85="","",'Под. лист наблюдени'!H85) ->  | B83: =IF('Под. лист наблюдени'!I85="","",'Под. лист наблюдени'!I85) -> 
A84: =IF('Под. лист наблюдени'!H86="","",'Под. лист наблюдени'!H86) ->  | B84: =IF('Под. лист наблюдени'!I86="","",'Под. лист наблюдени'!I86) -> 
A85: =IF('Под. лист наблюдени'!H87="","",'Под. лист наблюдени'!H87) ->  | B85: =IF('Под. лист наблюдени'!I87="","",'Под. лист наблюдени'!I87) -> 
A86: =IF('Под. лист наблюдени'!H88="","",'Под. лист наблюдени'!H88) ->  | B86: =IF('Под. лист наблюдени'!I88="","",'Под. лист наблюдени'!I88) -> 
A87: =IF('Под. лист наблюдени'!H89="","",'Под. лист наблюдени'!H89) ->  | B87: =IF('Под. лист наблюдени'!I89="","",'Под. лист наблюдени'!I89) -> 
A88: =IF('Под. лист наблюдени'!H90="","",'Под. лист наблюдени'!H90) ->  | B88: =IF('Под. лист наблюдени'!I90="","",'Под. лист наблюдени'!I90) -> 
A89: =IF('Под. лист наблюдени'!H91="","",'Под. лист наблюдени'!H91) ->  | B89: =IF('Под. лист наблюдени'!I91="","",'Под. лист наблюдени'!I91) -> 
A90: =IF('Под. лист наблюдени'!H92="","",'Под. лист наблюдени'!H92) ->  | B90: =IF('Под. лист наблюдени'!I92="","",'Под. лист наблюдени'!I92) -> 
A91: =IF('Под. лист наблюдени'!H93="","",'Под. лист наблюдени'!H93) ->  | B91: =IF('Под. лист наблюдени'!I93="","",'Под. лист наблюдени'!I93) -> 
A92: =IF('Под. лист наблюдени'!H94="","",'Под. лист наблюдени'!H94) ->  | B92: =IF('Под. лист наблюдени'!I94="","",'Под. лист наблюдени'!I94) -> 
A93: =IF('Под. лист наблюдени'!H95="","",'Под. лист наблюдени'!H95) ->  | B93: =IF('Под. лист наблюдени'!I95="","",'Под. лист наблюдени'!I95) -> 
A94: =IF('Под. лист наблюдени'!H96="","",'Под. лист наблюдени'!H96) ->  | B94: =IF('Под. лист наблюдени'!I96="","",'Под. лист наблюдени'!I96) -> 
A95: =IF('Под. лист наблюдени'!H97="","",'Под. лист наблюдени'!H97) ->  | B95: =IF('Под. лист наблюдени'!I97="","",'Под. лист наблюдени'!I97) -> 
A96: =IF('Под. лист наблюдени'!H98="","",'Под. лист наблюдени'!H98) ->  | B96: =IF('Под. лист наблюдени'!I98="","",'Под. лист наблюдени'!I98) -> 
A97: =IF('Под. лист наблюдени'!H99="","",'Под. лист наблюдени'!H99) ->  | B97: =IF('Под. лист наблюдени'!I99="","",'Под. лист наблюдени'!I99) -> 
A98: =IF('Под. лист наблюдени'!H100="","",'Под. лист наблюдени'!H100) ->  | B98: =IF('Под. лист наблюдени'!I100="","",'Под. лист наблюдени'!I100) -> 
A99: =IF('Под. лист наблюдени'!H101="","",'Под. лист наблюдени'!H101) ->  | B99: =IF('Под. лист наблюдени'!I101="","",'Под. лист наблюдени'!I101) -> 
A100: =IF('Под. лист наблюдени'!H102="","",'Под. лист наблюдени'!H102) ->  | B100: =IF('Под. лист наблюдени'!I102="","",'Под. лист наблюдени'!I102) -> 
A101: =IF('Под. лист наблюдени'!H103="","",'Под. лист наблюдени'!H103) ->  | B101: =IF('Под. лист наблюдени'!I103="","",'Под. лист наблюдени'!I103) -> 
A102: =IF('Под. лист наблюдени'!H104="","",'Под. лист наблюдени'!H104) ->  | B102: =IF('Под. лист наблюдени'!I104="","",'Под. лист наблюдени'!I104) -> 
A103: =IF('Под. лист наблюдени'!H105="","",'Под. лист наблюдени'!H105) ->  | B103: =IF('Под. лист наблюдени'!I105="","",'Под. лист наблюдени'!I105) -> 
A104: =IF('Под. лист наблюдени'!H106="","",'Под. лист наблюдени'!H106) ->  | B104: =IF('Под. лист наблюдени'!I106="","",'Под. лист наблюдени'!I106) -> 
A105: =IF('Под. лист наблюдени'!H107="","",'Под. лист наблюдени'!H107) ->  | B105: =IF('Под. лист наблюдени'!I107="","",'Под. лист наблюдени'!I107) -> 
A106: =IF('Под. лист наблюдени'!H108="","",'Под. лист наблюдени'!H108) ->  | B106: =IF('Под. лист наблюдени'!I108="","",'Под. лист наблюдени'!I108) -> 
A107: ИТОГО | F107: =SUM(F7:F106) -> 627 | G107: 660 | H107: 633 | I107: 647 | J107: 0 | K107: 0 | L107: 0 | M107: 0 | N107: 0 | O107: 0 | P107: 623 | Q107: 4 | R107: 627 | S107: 38
A109: Оператор 2
A110: Σt =
A111: =IF(P107=0,"-",IF('Под. лист наблюдени'!$C$6="Секунды",ROUND(P107,1)&"''",INT(P107)&"'"&TEXT(P107/24,"мм")&"''")) -> 623''
A112: C= T - Σt =
A113: =IFERROR(CONCATENATE(IF('Под. лист наблюдени'!$C$6="Секунды",ROUND(MIN(SMALL(F107:O107,COUNTIF(F107:O107,"<=0")+1)),1)&"''",INT(SMALL(F107:O107,COUNTIF(F107:O107,"<=0")+1))&"'"&TEXT(SMALL(F107:O107,COUNTIF(F107:O107,"<=0")+1)/24,"мм")&"''")," - ",IF('Под. лист наблюдени'!$C$6="Секунды",ROUND(P107,1)&"''",INT(P107)&"'"&TEXT(P107/24,"мм")&"''")," = ",IF('Под. лист наблюдени'!$C$6="Секунды",ROUND(SMALL(F107:O107,COUNTIF(F107:O107,"<=0")+1)-$P$107,1)&"''",INT(SMALL(F107:O107,COUNTIF(F107:O107,"<=0")+1)-$P$107)&"'"&TEXT(SMALL(F107:O107,COUNTIF(F107:O107,"<=0")+1)-$P$107/24,"мм")&"''")),"-") -> 627'' - 623'' = 4'' | D113: =IFERROR(IF(IF('Под. лист наблюдени'!$C$6="Секунды",ROUND(SMALL(F107:O107,COUNTIF(F107:O107,"<=0")+1)-$P$107,1)&"''",INT(SMALL(F107:O107,COUNTIF(F107:O107,"<=0")+1)-$P$107)&"'"&TEXT(SMALL(F107:O107,COUNTIF(F107:O107,"<=0")+1)-$P$107/24,"мм")&"''")<>IF('Под. лист наблюдени'!$C$6="Секунды",$Q$107&"''",INT($Q$107)&"'"&TEXT($Q$107/24,"мм")&"''"),"!",""),"") -> 
A115: Объяснение условных знаков
A116: X - зачеркнуть ошибку
A117: O - обвести наибольшее время
A118: __ - подчеркнуть повтор. наименьшее время

Sheet Лист наб.пер.раб
A2: Лист Наблюдения Периодической работы
A4: Состав. части | B4: От: | C4: ='Лист набл. руч. раб. - 1'!$D$4 -> Подготовка рабочего места | D4: Участок: | E4: =IF('Под. лист наблюдени'!$F$4="","",'Под. лист наблюдени'!$F$4) -> БФПО | H4: Дата: | I4: =IF('Под. лист наблюдени'!I4="","",'Под. лист наблюдени'!I4) -> 2021-11-29
B5: До: | C5: ='Лист набл. руч. раб. - 1'!$D$5 -> Убрать рабочее место | D5: Время такта: | E5: ='Под. лист наблюдени'!$F$5 -> 153'' | H5: Подготовлено: | I5: =IF('Под. лист наблюдени'!I5="","",'Под. лист наблюдени'!I5) -> Иванов И.И.
A6: № | B6: Побочная работа | E6: Повторяемость (А) | F6: =IF('Под. лист наблюдени'!$C$6="Секунды","Время (сек.)","Время (мин.)") -> Время (сек.) | I6: Наименьшее (В) | J6: Время побочной работы (В/А)
F7: 1 | G7: 2 | H7: 3
I8: =IF(MIN(F8:H8)=0,"",MIN(F8:H8)) ->  | J8: =IFERROR(ROUNDUP(I8/E8,2),"") -> 
J9: =IFERROR(ROUNDUP(I9/E9,2),"") -> 
A22: =ROUND(SUM(J8:J21),2) -> 0 | J22: =CONCATENATE("Σ = ",IF('Под. лист наблюдени'!$C$6="Секунды",ROUND(SUM(J8:J21),2)&"''",INT(ROUND(SUM(J8:J21),2))&"'"&TEXT(ROUND(SUM(J8:J21),2)/24,"мм")&"''")) -> Σ = 0''

Sheet Таб. сбал. работы
AC1: Name | AD1: Top | AE1: Text
AC2: ObjN1 | AD2: =V4 -> 153 | AF2: Ттакта
A3: Таблица сбалансированной работы | U3: Полный цикл | V3: =B51 -> 663 | X3: =B52 -> 665 | AC3: ObjN2 | AD3: =AD2+5 -> 158 | AE3: =A48& " = " &C48 -> Ттакта = 153'' | AF3: Ттакта Текст
U4: Ттакта | V4: =B48 -> 153 | AC4: ObjN3 | AD4: =AD8+4 -> 628 | AE4: =A49& " = " &C49 -> (1) Тцикла = 624'' | AF4: Синий текст(1)
A5: Дата: | B5: =IF('Под. лист наблюдени'!$I$4="","",'Под. лист наблюдени'!$I$4) -> 2021-11-29 | M5: Колебания | O5: (Ц.р.1+П.р.1) + (Ц.р.2+П.р.2) | Q5: = Кол. Человек | U5: Периодическая работа | V5: ='Лист наб.пер.раб'!$A$22 -> 0 | X5: ='Лист наб.пер.раб'!$A$22 -> 0 | AC5: ObjN10 | AD5: =AD9+4 -> 631 | AE5: =A50& " = " &C50 -> (2) Тцикла = 627'' | AF5: Синий текст(2)
A6: Участок: | B6: =IF('Под. лист наблюдени'!$F$4="","",'Под. лист наблюдени'!$F$4) -> БФПО | M6: Периодическая работа | O6: Время такта | U6: Колебания | V6: ='Лист набл. руч. раб. - 1'!$S$107 -> 39 | X6: ='Лист набл. руч. раб. - 2'!$S$107 -> 38 | AC6: ObjN4 | AD6: =V3 -> 663 | AF6: Линия черн(1)
M7: Циклическая работа | O7: =IFERROR(IF('Под. лист наблюдени'!$I$6="","",IF('Под. лист наблюдени'!$H$8="",CONCATENATE("(",IF('Под. лист наблюдени'!$C$6="Секунды",ROUND(B49,2)&"''",INT(ROUND(B49,2))&"'"&TEXT(ROUND(B49,2)/24,"мм")&"''")," + ",IF('Под. лист наблюдени'!$C$6="Секунды",ROUND(B53,2)&"''",INT(ROUND(B53,2))&"'"&TEXT(ROUND(B53,2)/24,"мм")&"''"),")"),CONCATENATE("(",IF('Под. лист наблюдени'!$C$6="Секунды",ROUND(B49,2)&"''",INT(ROUND(B49,2))&"'"&TEXT(ROUND(B49,2)/24,"мм")&"''")," + ",IF('Под. лист наблюдени'!$C$6="Секунды",ROUND(B53,2)&"''",INT(ROUND(B53,2))&"'"&TEXT(ROUND(B53,2)/24,"мм")&"''"),") + ","(",IF('Под. лист наблюдени'!$C$6="Секунды",ROUND(B50,2)&"''",INT(ROUND(B50,2))&"'"&TEXT(ROUND(B50,2)/24,"мм")&"''")," + ",IF('Под. лист наблюдени'!$C$6="Секунды",ROUND(B53,2)&"''",INT(ROUND(B53,2))&"'"&TEXT(ROUND(B53,2)/24,"мм")&"''"),")"))),"") -> (624'' + 0'') + (627'' + 0'') | Q7: =IFERROR(IF('Под. лист наблюдени'!$I$6="","",IF('Под. лист наблюдени'!$H$8="",CONCATENATE("= ",ROUND(($B$49+$B$53)/$B$48,3)),CONCATENATE("= ",ROUND((($B$49+$B$53)+($B$50+$B$53))/$B$48,3)))),"") -> = 8,176 | U7: Тцыкла | V7: =B49 -> 624 | X7: =B50 -> 627 | AC7: ObjN5 | AD7: =X3 -> 665 | AF7: Линия черн(2)
O8: =IFERROR(IF('Под. лист наблюдени'!$I$6="","",IF('Под. лист наблюдени'!$C$6="Секунды",ROUND(B48,2)&"''",'Время такта-Old'!$H$4)),"") -> 153'' | V8: ='Под. лист наблюдени'!$F$8 -> Электромонтер А | X8: ='Под. лист наблюдени'!$H$8 -> Электромонтер Б | AC8: ObjN6 | AD8: =V7 -> 624 | AF8: Линия синяя(1)
U9: 0 | AC9: ObjN7 | AD9: =X7 -> 627 | AF9: Линия синяя(2)
U10: (1) Подготовка рабочего места. Выполнение отключений | V10: 30 | AC10: ObjN8 | AD10: =AD6+4 -> 667 | AE10: =A51& " = " &C51 -> (1) Т = 663'' | AF10: Черный текст(1)
U11: (2) Капроновой щёткой смести пыль снаружи и изнутри шкафа управления | V11: 45 | AC11: ObjN9 | AD11: =AD7+4 -> 669 | AE11: =A52& " = " &C52 -> (2) Т = 665'' | AF11: Черный текст(2)
U12: (3) При помощи отвёртки затянуть все винты крепления ПЗА и клеммных колодок | V12: 122
U13: (4) При помощи отвёрток, гаечных ключей затянуть все винты, болты контактных соединений ПЗА и клеммных колодок | V13: 122
U14: (5) Почистить контакты пускателя от нагара надфилем или наждачной бумагой. Заменить контакты если они сильно обгорели | V14: 120
U15: `Переход | V15: 32
U16: (6) Проверка сопротивления изоляции электродвигателя | V16: 45
U17: (7) Проверка сопротивления изоляции питающего кабеля | V17: 48
U18: `Переход | V18: 20
U19: (8) Собрать инструмент, материалы, приспособления. Убрать рабочее место | V19: 40
U20: `
U21: `
U22: (1) Подготовка рабочего места. Выполнение отключений | X22: 60
U23: `Переход | X23: 20
U24: (2) Очистка электродвигателя | X24: 45
U25: (3) Протяжка болтов крепления электродвигателя | X25: 112
U26: (4) Протяжка защитного кожуха электродвигателя | X26: 67
U27: (5) Снятие крышки брно | X27: 20
U28: (6) Проверить отсутствие напряжения на эл.двигателе | X28: 43
U29: (7) Отсоединить кабель от электродвигателя | X29: 40
U30: (8) Проверка сопротивления изоляции электродвигателя | X30: 40
U31: (9) Проверка сопротивления изоляции питающего кабеля | X31: 40
U32: (10) Подсоединение кабеля к электродвигателю. (ремонт металлорукава | X32: 40
U33: (11) Установка крышки брно | X33: 20
U34: (12) Собрать инструмент, материалы, приспособления. Убрать рабочее место | X34: 80
U35: `
U36: `
U37: Периодическая работа | V37: 600 | X37: 600
U38: Колебания | V38: 39 | X38: 38
A48: Ттакта | B48: =IF('Под. лист наблюдени'!$C$6="Секунды",'Время такта-Old'!$F$4,ROUND('Время такта-Old'!$F$4/60,2)) -> 153 | C48: =IF('Под. лист наблюдени'!$C$6="Секунды",ROUND(B48,2)&"''",'Время такта-Old'!$H$4) -> 153''
A49: (1) Тцикла | B49: ='Лист набл. руч. раб. - 1'!$R$107 -> 624 | C49: =IF('Под. лист наблюдени'!$C$6="Секунды",ROUND(B49,2)&"''",INT(ROUND(B49,2))&"'"&TEXT(ROUND(B49,2)/24,"мм")&"''") -> 624''
A50: (2) Тцикла | B50: ='Лист набл. руч. раб. - 2'!$R$107 -> 627 | C50: =IF('Под. лист наблюдени'!$C$6="Секунды",ROUND(B50,2)&"''",INT(ROUND(B50,2))&"'"&TEXT(ROUND(B50,2)/24,"мм")&"''") -> 627''
A51: (1) Т | B51: =SUM($B$49,$B$53,'Лист набл. руч. раб. - 1'!$S$107) -> 663 | C51: =IF('Под. лист наблюдени'!$C$6="Секунды",ROUND(B51,2)&"''",INT(ROUND(B51,2))&"'"&TEXT(ROUND(B51,2)/24,"мм")&"''") -> 663''
A52: (2) Т | B52: =SUM($B$50,$B$53,'Лист набл. руч. раб. - 2'!$S$107) -> 665 | C52: =IF('Под. лист наблюдени'!$C$6="Секунды",ROUND(B52,2)&"''",INT(ROUND(B52,2))&"'"&TEXT(ROUND(B52,2)/24,"мм")&"''") -> 665''
A53: Период.раб | B53: ='Лист наб.пер.раб'!$A$22 -> 0 | C53: =IF('Под. лист наблюдени'!$C$6="Секунды",ROUND(B53,2)&"''",INT(ROUND(B53,2))&"'"&TEXT(ROUND(B53,2)/24,"мм")&"''") -> 0''

Sheet ОКСР
A1: Объединенная Карта Стандартизированной Работы
A2: =CONCATENATE("Цех / Подразделение:"," ",'Под. лист наблюдени'!G6) -> Цех / Подразделение: ЦРОЭП | G2: Дата | AN2: =IF('Под. лист наблюдени'!$I$4="","",'Под. лист наблюдени'!$I$4) -> 2021-11-29 | BU2: =IF('Под. лист наблюдени'!$C$6="Секунды","Цена 1 клетки, сек","Цена 1 клетки, мин") -> Цена 1 клетки, сек | DB2: ='Под. лист наблюдени'!$E$6 -> 10 | EI2: Ежедневный требуемый объем | FE2: =IFERROR(ROUND(('Время такта-Old'!$I$12*'Время такта-Old'!$J$12)/'Время такта-Old'!$L$12,0),"") -> 176
A3: № | B3: Элемент | C3: Время | G3: Операция: | AN3: =IF('Под. лист наблюдени'!$F$4="","",'Под. лист наблюдени'!$F$4) -> БФПО | BU3: Время цикла оператора 1, с | CS3: =IF('Под. лист наблюдени'!$C$6="Секунды",ROUND('Лист набл. руч. раб. - 1'!$R$107,2)&"''",INT(ROUND('Лист набл. руч. раб. - 1'!$R$107,2))&"'"&TEXT(ROUND('Лист набл. руч. раб. - 1'!$R$107,2)/24,"мм")&"''") -> 624'' | DB3: Время цикла оператора 2, с | DZ3: =IF('Под. лист наблюдени'!$C$6="Секунды",ROUND('Лист набл. руч. раб. - 2'!$R$107,2)&"''",INT(ROUND('Лист набл. руч. раб. - 2'!$R$107,2))&"'"&TEXT(ROUND('Лист набл. руч. раб. - 2'!$R$107,2)/24,"мм")&"''") -> 627'' | EI3: Время такта | FE3: ='Время такта-Old'!$H$4 -> 2' 33''
C4: Работа | E4: Ожидание | F4: Переход | G4: 1 | L4: 2 | Q4: 3 | V4: 4 | AA4: 5 | AF4: 6 | AK4: 7 | AP4: 8 | AU4: 9 | AZ4: 10 | BE4: 11 | BJ4: 12 | BO4: 13 | BT4: 14 | BY4: 15 | CD4: 16 | CI4: 17 | CN4: 18 | CS4: 19 | CX4: 20 | DC4: 21 | DH4: 22 | DM4: 23 | DR4: 24 | DW4: 25 | EB4: 26 | EG4: 27 | EL4: 28 | EQ4: 29 | EV4: 30 | FA4: 31 | FF4: 32 | FK4: 33 | FP4: 34 | FU4: 35 | FZ4: 36 | GE4: 37 | GJ4: 38 | GO4: 39 | GT4: 40 | GY4: 41 | HD4: 42 | HI4: 43 | HN4: 44 | HS4: 45 | HX4: 46 | IC4: 47 | IH4: 48 | IM4: 49 | IR4: 50
C5: Ручная | D5: Техн. | G5: =TIME(0,0,$DB$2)*G4*5*IF('Под. лист наблюдени'!$C$6="Секунды",1,60) -> 00:00:50 | L5: =TIME(0,0,$DB$2)*L4*5*IF('Под. лист наблюдени'!$C$6="Секунды",1,60) -> 00:01:40 | Q5: =TIME(0,0,$DB$2)*Q4*5*IF('Под. лист наблюдени'!$C$6="Секунды",1,60) -> 00:02:30 | V5: =TIME(0,0,$DB$2)*V4*5*IF('Под. лист наблюдени'!$C$6="Секунды",1,60) -> 00:03:20 | AA5: =TIME(0,0,$DB$2)*AA4*5*IF('Под. лист наблюдени'!$C$6="Секунды",1,60) -> 00:04:10 | AF5: =TIME(0,0,$DB$2)*AF4*5*IF('Под. лист наблюдени'!$C$6="Секунды",1,60) -> 00:05:00 | AK5: =TIME(0,0,$DB$2)*AK4*5*IF('Под. лист наблюдени'!$C$6="Секунды",1,60) -> 00:05:50 | AP5: =TIME(0,0,$DB$2)*AP4*5*IF('Под. лист наблюдени'!$C$6="Секунды",1,60) -> 00:06:40 | AU5: =TIME(0,0,$DB$2)*AU4*5*IF('Под. лист наблюдени'!$C$6="Секунды",1,60) -> 00:07:30 | AZ5: =TIME(0,0,$DB$2)*AZ4*5*IF('Под. лист наблюдени'!$C$6="Секунды",1,60) -> 00:08:20 | BE5: =TIME(0,0,$DB$2)*BE4*5*IF('Под. лист наблюдени'!$C$6="Секунды",1,60) -> 00:09:10 | BJ5: =TIME(0,0,$DB$2)*BJ4*5*IF('Под. лист наблюдени'!$C$6="Секунды",1,60) -> 00:10:00 | BO5: =TIME(0,0,$DB$2)*BO4*5*IF('Под. лист наблюдени'!$C$6="Секунды",1,60) -> 00:10:50 | BT5: =TIME(0,0,$DB$2)*BT4*5*IF('Под. лист наблюдени'!$C$6="Секунды",1,60) -> 00:11:40 | BY5: =TIME(0,0,$DB$2)*BY4*5*IF('Под. лист наблюдени'!$C$6="Секунды",1,60) -> 00:12:30 | CD5: =TIME(0,0,$DB$2)*CD4*5*IF('Под. лист наблюдени'!$C$6="Секунды",1,60) -> 00:13:20 | CI5: =TIME(0,0,$DB$2)*CI4*5*IF('Под. лист наблюдени'!$C$6="Секунды",1,60) -> 00:14:10 | CN5: =TIME(0,0,$DB$2)*CN4*5*IF('Под. лист наблюдени'!$C$6="Секунды",1,60) -> 00:15:00 | CS5: =TIME(0,0,$DB$2)*CS4*5*IF('Под. лист наблюдени'!$C$6="Секунды",1,60) -> 00:15:50 | CX5: =TIME(0,0,$DB$2)*CX4*5*IF('Под. лист наблюдени'!$C$6="Секунды",1,60) -> 00:16:40 | DC5: =TIME(0,0,$DB$2)*DC4*5*IF('Под. лист наблюдени'!$C$6="Секунды",1,60) -> 00:17:30 | DH5: =TIME(0,0,$DB$2)*DH4*5*IF('Под. лист наблюдени'!$C$6="Секунды",1,60) -> 00:18:20 | DM5: =TIME(0,0,$DB$2)*DM4*5*IF('Под. лист наблюдени'!$C$6="Секунды",1,60) -> 00:19:10 | DR5: =TIME(0,0,$DB$2)*DR4*5*IF('Под. лист наблюдени'!$C$6="Секунды",1,60) -> 00:20:00 | DW5: =TIME(0,0,$DB$2)*DW4*5*IF('Под. лист наблюдени'!$C$6="Секунды",1,60) -> 00:20:50 | EB5: =TIME(0,0,$DB$2)*EB4*5*IF('Под. лист наблюдени'!$C$6="Секунды",1,60) -> 00:21:40 | EG5: =TIME(0,0,$DB$2)*EG4*5*IF('Под. лист наблюдени'!$C$6="Секунды",1,60) -> 00:22:30 | EL5: =TIME(0,0,$DB$2)*EL4*5*IF('Под. лист наблюдени'!$C$6="Секунды",1,60) -> 00:23:20 | EQ5: =TIME(0,0,$DB$2)*EQ4*5*IF('Под. лист наблюдени'!$C$6="Секунды",1,60) -> 00:24:10 | EV5: =TIME(0,0,$DB$2)*EV4*5*IF('Под. лист наблюдени'!$C$6="Секунды",1,60) -> 00:25:00 | FA5: =TIME(0,0,$DB$2)*FA4*5*IF('Под. лист наблюдени'!$C$6="Секунды",1,60) -> 00:25:50 | FF5: =TIME(0,0,$DB$2)*FF4*5*IF('Под. лист наблюдени'!$C$6="Секунды",1,60) -> 00:26:40 | FK5: =TIME(0,0,$DB$2)*FK4*5*IF('Под. лист наблюдени'!$C$6="Секунды",1,60) -> 00:27:30 | FP5: =TIME(0,0,$DB$2)*FP4*5*IF('Под. лист наблюдени'!$C$6="Секунды",1,60) -> 00:28:20 | FU5: =TIME(0,0,$DB$2)*FU4*5*IF('Под. лист наблюдени'!$C$6="Секунды",1,60) -> 00:29:10 | FZ5: =TIME(0,0,$DB$2)*FZ4*5*IF('Под. лист наблюдени'!$C$6="Секунды",1,60) -> 00:30:00 | GE5: =TIME(0,0,$DB$2)*GE4*5*IF('Под. лист наблюдени'!$C$6="Секунды",1,60) -> 00:30:50 | GJ5: =TIME(0,0,$DB$2)*GJ4*5*IF('Под. лист наблюдени'!$C$6="Секунды",1,60) -> 00:31:40 | GO5: =TIME(0,0,$DB$2)*GO4*5*IF('Под. лист наблюдени'!$C$6="Секунды",1,60) -> 00:32:30 | GT5: =TIME(0,0,$DB$2)*GT4*5*IF('Под. лист наблюдени'!$C$6="Секунды",1,60) -> 00:33:20 | GY5: =TIME(0,0,$DB$2)*GY4*5*IF('Под. лист наблюдени'!$C$6="Секунды",1,60) -> 00:34:10 | HD5: =TIME(0,0,$DB$2)*HD4*5*IF('Под. лист наблюдени'!$C$6="Секунды",1,60) -> 00:35:00 | HI5: =TIME(0,0,$DB$2)*HI4*5*IF('Под. лист наблюдени'!$C$6="Секунды",1,60) -> 00:35:50 | HN5: =TIME(0,0,$DB$2)*HN4*5*IF('Под. лист наблюдени'!$C$6="Секунды",1,60) -> 00:36:40 | HS5: =TIME(0,0,$DB$2)*HS4*5*IF('Под. лист наблюдени'!$C$6="Секунды",1,60) -> 00:37:30 | HX5: =TIME(0,0,$DB$2)*HX4*5*IF('Под. лист наблюдени'!$C$6="Секунды",1,60) -> 00:38:20 | IC5: =TIME(0,0,$DB$2)*IC4*5*IF('Под. лист наблюдени'!$C$6="Секунды",1,60) -> 00:39:10 | IH5: =TIME(0,0,$DB$2)*IH4*5*IF('Под. лист наблюдени'!$C$6="Секунды",1,60) -> 00:40:00 | IM5: =TIME(0,0,$DB$2)*IM4*5*IF('Под. лист наблюдени'!$C$6="Секунды",1,60) -> 00:40:50 | IR5: =TIME(0,0,$DB$2)*IR4*5*IF('Под. лист наблюдени'!$C$6="Секунды",1,60) -> 00:41:40
A6: 1 | B6: Подготовка рабочего места. Выполнение отключений | C6: 30
A8: 2 | B8: Капроновой щёткой смести пыль снаружи и изнутри шкафа управления | C8: 45
A10: 3 | B10: При помощи отвёртки затянуть все винты крепления ПЗА и клеммных колодок | C10: 122
A12: 4 | B12: При помощи отвёрток, гаечных ключей затянуть все винты, болты контактных соединений ПЗА и клеммных колодок | C12: 122
A14: 5 | B14: Почистить контакты пускателя от нагара надфилем или наждачной бумагой. Заменить контакты если они сильно обгорели | C14: 120
F15: 32
A16: 6 | B16: Проверка сопротивления изоляции электродвигателя | C16: 45
A18: 7 | B18: Проверка сопротивления изоляции питающего кабеля | C18: 48
F19: 20
A20: 8 | B20: Собрать инструмент, материалы, приспособления. Убрать рабочее место | C20: 40
A24: 1 | B24: Подготовка рабочего места. Выполнение отключений | C24: 60
F25: 20
A26: 2 | B26: Очистка электродвигателя | C26: 45
A28: 3 | B28: Протяжка болтов крепления электродвигателя | C28: 112
A30: 4 | B30: Протяжка защитного кожуха электродвигателя | C30: 67
A32: 5 | B32: Снятие крышки брно | C32: 20
A34: 6 | B34: Проверить отсутствие напряжения на эл.двигателе | C34: 43
A36: 7 | B36: Отсоединить кабель от электродвигателя | C36: 40
A38: 8 | B38: Проверка сопротивления изоляции электродвигателя | C38: 40
A40: 9 | B40: Проверка сопротивления изоляции питающего кабеля | C40: 40
A42: 10 | B42: Подсоединение кабеля к электродвигателю. (ремонт металлорукава | C42: 40
A44: 11 | B44: Установка крышки брно | C44: 20
A46: 12 | B46: Собрать инструмент, материалы, приспособления. Убрать рабочее место | C46: 80

Sheet Лист вычисления
F1: *ожидание* | G1: *переход* | N1: *ожидание* | O1: *переход*
A2: № пп | B2: Наименование операции (Оператор № 1) | D2: Ручная | E2: Авто | F2: Ожидание | G2: Переходы | I2: № пп | J2: Наименование операции (Оператор № 2) | L2: Ручная | M2: Авто | N2: Ожидание | O2: Переходы | Q2: № пп | R2: Наименование операции | S2: Ручная | T2: Авто | U2: Ожидание | V2: Переходы | W2: Зона | X2: Оператор | Z2: № пп | AA2: Наименование операции | AB2: Ручная | AC2: Авто | AD2: Ожидание | AE2: Переходы | AF2: Зона | AG2: Оператор
A3: ='Лист набл. руч. раб. - 1'!A7 -> 1 | B3: =IF('Лист набл. руч. раб. - 1'!B7="","",'Лист набл. руч. раб. - 1'!B7) -> Подготовка рабочего места. Выполнение отключений | C3: =IF('Лист набл. руч. раб. - 1'!R7="","",'Лист набл. руч. раб. - 1'!R7) -> 30 | D3: =IF(B3="","",IF(AND(F3=0,G3=0),C3,0)) -> 30 | F3: =IF(B3="","",IFERROR(VLOOKUP($F$1,B3:C3,2,FALSE),0)) -> 0 | G3: =IF(B3="","",IFERROR(VLOOKUP($G$1,B3:C3,2,FALSE),0)) -> 0 | I3: ='Лист набл. руч. раб. - 2'!A7 -> 1 | J3: =IF('Лист набл. руч. раб. - 2'!B7="","",'Лист набл. руч. раб. - 2'!B7) -> Подготовка рабочего места. Выполнение отключений | K3: =IF('Лист набл. руч. раб. - 2'!R7="","",'Лист набл. руч. раб. - 2'!R7) -> 60 | L3: =IF(J3="","",IF(AND(N3=0,O3=0),K3,0)) -> 60 | N3: =IF(J3="","",IFERROR(VLOOKUP($N$1,J3:K3,2,FALSE),0)) -> 0 | O3: =IF(J3="","",IFERROR(VLOOKUP($O$1,J3:K3,2,FALSE),0)) -> 0 | Q3: 1 | R3: =IFERROR(INDEX($B$3:$B$102,MATCH(Q3,$A$3:$A$102,0)),"") -> Подготовка рабочего места. Выполнение отключений | S3: =IFERROR(INDEX($C$3:$C$102,MATCH(Q3,$A$3:$A$102,0)),"") -> 30 | T3: =IF(R3="","",0) -> 0 | U3: =IFERROR(INDEX(F$1:F$102,MATCH($Q3,$A:$A,0)+1),"") -> 0 | V3: =IFERROR(INDEX(G$1:G$102,MATCH($Q3,$A:$A,0)+1),"") -> 0 | W3: =IF(R3="","",1) -> 1 | X3: =IF(R3="","",1) -> 1 | Z3: 1 | AA3: =IF(ROW()-ROW($R$3:$R$202)+1>ROWS($AA$3:$AA$202)-COUNTBLANK($R$3:$R$202),"",INDIRECT(ADDRESS(SMALL((IF($R$3:$R$202<>"",ROW($R$3:$R$202),ROW()+ROWS($R$3:$R$202))),ROW()-ROW($AA$3:$AA$202)+1),COLUMN($R$3:$R$202),4))) -> Подготовка рабочего места. Выполнение отключений | AB3: =IF(ROW()-ROW($S$3:$S$202)+1>ROWS($AB$3:$AB$202)-COUNTBLANK($S$3:$S$202),"",INDIRECT(ADDRESS(SMALL((IF($S$3:$S$202<>"",ROW($S$3:$S$202),ROW()+ROWS($S$3:$S$202))),ROW()-ROW($AB$3:$AB$202)+1),COLUMN($S$3:$S$202),4))) -> 30 | AC3: =IF(ROW()-ROW($T$3:$T$202)+1>ROWS($AC$3:$AC$202)-COUNTBLANK($T$3:$T$202),"",INDIRECT(ADDRESS(SMALL((IF($T$3:$T$202<>"",ROW($T$3:$T$202),ROW()+ROWS($T$3:$T$202))),ROW()-ROW($AC$3:$AC$202)+1),COLUMN($T$3:$T$202),4))) -> 0 | AD3: =IF(ROW()-ROW($U$3:$U$202)+1>ROWS($AD$3:$AD$202)-COUNTBLANK($U$3:$U$202),"",INDIRECT(ADDRESS(SMALL((IF($U$3:$U$202<>"",ROW($U$3:$U$202),ROW()+ROWS($U$3:$U$202))),ROW()-ROW($AD$3:$AD$202)+1),COLUMN($U$3:$U$202),4))) -> 0 | AE3: =IF(ROW()-ROW($V$3:$V$202)+1>ROWS($AE$3:$AE$202)-COUNTBLANK($V$3:$V$202),"",INDIRECT(ADDRESS(SMALL((IF($V$3:$V$202<>"",ROW($V$3:$V$202),ROW()+ROWS($V$3:$V$202))),ROW()-ROW($AE$3:$AE$202)+1),COLUMN($V$3:$V$202),4))) -> 0 | AF3: =IF(ROW()-ROW($W$3:$W$202)+1>ROWS($AF$3:$AF$202)-COUNTBLANK($W$3:$W$202),"",INDIRECT(ADDRESS(SMALL((IF($W$3:$W$202<>"",ROW($W$3:$W$202),ROW()+ROWS($W$3:$W$202))),ROW()-ROW($AF$3:$AF$202)+1),COLUMN($W$3:$W$202),4))) -> 1 | AG3: =IF(ROW()-ROW($X$3:$X$202)+1>ROWS($AG$3:$AG$202)-COUNTBLANK($X$3:$X$202),"",INDIRECT(ADDRESS(SMALL((IF($X$3:$X$202<>"",ROW($X$3:$X$202),ROW()+ROWS($X$3:$X$203))),ROW()-ROW($AG$3:$AG$202)+1),COLUMN($X$3:$X$202),4))) -> 1
A4: ='Лист набл. руч. раб. - 1'!A8 -> 2 | B4: =IF('Лист набл. руч. раб. - 1'!B8="","",'Лист набл. руч. раб. - 1'!B8) -> Капроновой щёткой смести пыль снаружи и изнутри шкафа управления | C4: =IF('Лист набл. руч. раб. - 1'!R8="","",'Лист набл. руч. раб. - 1'!R8) -> 45 | D4: =IF(B4="","",IF(AND(F4=0,G4=0),C4,0)) -> 45 | F4: =IF(B4="","",IFERROR(VLOOKUP($F$1,B4:C4,2,FALSE),0)) -> 0 | G4: =IF(B4="","",IFERROR(VLOOKUP($G$1,B4:C4,2,FALSE),0)) -> 0 | I4: ='Лист набл. руч. раб. - 2'!A8 -> - | J4: =IF('Лист набл. руч. раб. - 2'!B8="","",'Лист набл. руч. раб. - 2'!B8) -> Переход | K4: =IF('Лист набл. руч. раб. - 2'!R8="","",'Лист набл. руч. раб. - 2'!R8) -> 20 | L4: =IF(J4="","",IF(AND(N4=0,O4=0),K4,0)) -> 0 | N4: =IF(J4="","",IFERROR(VLOOKUP($N$1,J4:K4,2,FALSE),0)) -> 0 | O4: =IF(J4="","",IFERROR(VLOOKUP($O$1,J4:K4,2,FALSE),0)) -> 20 | Q4: 2 | R4: =IFERROR(INDEX($B$3:$B$102,MATCH(Q4,$A$3:$A$102,0)),"") -> Капроновой щёткой смести пыль снаружи и изнутри шкафа управления | S4: =IFERROR(INDEX($C$3:$C$102,MATCH(Q4,$A$3:$A$102,0)),"") -> 45 | T4: =IF(R4="","",0) -> 0 | U4: =IFERROR(INDEX(F$1:F$102,MATCH($Q4,$A:$A,0)+1),"") -> 0 | V4: =IFERROR(INDEX(G$1:G$102,MATCH($Q4,$A:$A,0)+1),"") -> 0 | W4: =IF(R4="","",1) -> 1 | X4: =IF(R4="","",1) -> 1 | Z4: 2 | AA4: =IF(ROW()-ROW($R$3:$R$202)+1>ROWS($AA$3:$AA$202)-COUNTBLANK($R$3:$R$202),"",INDIRECT(ADDRESS(SMALL((IF($R$3:$R$202<>"",ROW($R$3:$R$202),ROW()+ROWS($R$3:$R$202))),ROW()-ROW($AA$3:$AA$202)+1),COLUMN($R$3:$R$202),4))) -> Капроновой щёткой смести пыль снаружи и изнутри шкафа управления | AB4: =IF(ROW()-ROW($S$3:$S$202)+1>ROWS($AB$3:$AB$202)-COUNTBLANK($S$3:$S$202),"",INDIRECT(ADDRESS(SMALL((IF($S$3:$S$202<>"",ROW($S$3:$S$202),ROW()+ROWS($S$3:$S$202))),ROW()-ROW($AB$3:$AB$202)+1),COLUMN($S$3:$S$202),4))) -> 45 | AC4: =IF(ROW()-ROW($T$3:$T$202)+1>ROWS($AC$3:$AC$202)-COUNTBLANK($T$3:$T$202),"",INDIRECT(ADDRESS(SMALL((IF($T$3:$T$202<>"",ROW($T$3:$T$202),ROW()+ROWS($T$3:$T$202))),ROW()-ROW($AC$3:$AC$202)+1),COLUMN($T$3:$T$202),4))) -> 0 | AD4: =IF(ROW()-ROW($U$3:$U$202)+1>ROWS($AD$3:$AD$202)-COUNTBLANK($U$3:$U$202),"",INDIRECT(ADDRESS(SMALL((IF($U$3:$U$202<>"",ROW($U$3:$U$202),ROW()+ROWS($U$3:$U$202))),ROW()-ROW($AD$3:$AD$202)+1),COLUMN($U$3:$U$202),4))) -> 0 | AE4: =IF(ROW()-ROW($V$3:$V$202)+1>ROWS($AE$3:$AE$202)-COUNTBLANK($V$3:$V$202),"",INDIRECT(ADDRESS(SMALL((IF($V$3:$V$202<>"",ROW($V$3:$V$202),ROW()+ROWS($V$3:$V$202))),ROW()-ROW($AE$3:$AE$202)+1),COLUMN($V$3:$V$202),4))) -> 0 | AF4: =IF(ROW()-ROW($W$3:$W$202)+1>ROWS($AF$3:$AF$202)-COUNTBLANK($W$3:$W$202),"",INDIRECT(ADDRESS(SMALL((IF($W$3:$W$202<>"",ROW($W$3:$W$202),ROW()+ROWS($W$3:$W$202))),ROW()-ROW($AF$3:$AF$202)+1),COLUMN($W$3:$W$202),4))) -> 1 | AG4: =IF(ROW()-ROW($X$3:$X$202)+1>ROWS($AG$3:$AG$202)-COUNTBLANK($X$3:$X$202),"",INDIRECT(ADDRESS(SMALL((IF($X$3:$X$202<>"",ROW($X$3:$X$202),ROW()+ROWS($X$3:$X$203))),ROW()-ROW($AG$3:$AG$202)+1),COLUMN($X$3:$X$202),4))) -> 1
A5: ='Лист набл. руч. раб. - 1'!A9 -> 3 | B5: =IF('Лист набл. руч. раб. - 1'!B9="","",'Лист набл. руч. раб. - 1'!B9) -> При помощи отвёртки затянуть все винты крепления ПЗА и клеммных колодок | C5: =IF('Лист набл. руч. раб. - 1'!R9="","",'Лист набл. руч. раб. - 1'!R9) -> 122 | D5: 122 | F5: 0 | G5: 0 | I5: ='Лист набл. руч. раб. - 2'!A9 -> 2 | J5: =IF('Лист набл. руч. раб. - 2'!B9="","",'Лист набл. руч. раб. - 2'!B9) -> Очистка электродвигателя | K5: =IF('Лист набл. руч. раб. - 2'!R9="","",'Лист набл. руч. раб. - 2'!R9) -> 45 | L5: 45 | N5: 0 | O5: 0 | Q5: 3 | R5: =IFERROR(INDEX($B$3:$B$102,MATCH(Q5,$A$3:$A$102,0)),"") -> При помощи отвёртки затянуть все винты крепления ПЗА и клеммных колодок | S5: =IFERROR(INDEX($C$3:$C$102,MATCH(Q5,$A$3:$A$102,0)),"") -> 122 | T5: 0 | U5: =IFERROR(INDEX(F$1:F$102,MATCH($Q5,$A:$A,0)+1),"") -> 0 | V5: =IFERROR(INDEX(G$1:G$102,MATCH($Q5,$A:$A,0)+1),"") -> 0 | W5: 1 | X5: 1 | Z5: 3 | AA5: =IF(ROW()-ROW($R$3:$R$202)+1>ROWS($AA$3:$AA$202)-COUNTBLANK($R$3:$R$202),"",INDIRECT(ADDRESS(SMALL((IF($R$3:$R$202<>"",ROW($R$3:$R$202),ROW()+ROWS($R$3:$R$202))),ROW()-ROW($AA$3:$AA$202)+1),COLUMN($R$3:$R$202),4))) -> При помощи отвёртки затянуть все винты крепления ПЗА и клеммных колодок | AB5: =IF(ROW()-ROW($S$3:$S$202)+1>ROWS($AB$3:$AB$202)-COUNTBLANK($S$3:$S$202),"",INDIRECT(ADDRESS(SMALL((IF($S$3:$S$202<>"",ROW($S$3:$S$202),ROW()+ROWS($S$3:$S$202))),ROW()-ROW($AB$3:$AB$202)+1),COLUMN($S$3:$S$202),4))) -> 122 | AC5: =IF(ROW()-ROW($T$3:$T$202)+1>ROWS($AC$3:$AC$202)-COUNTBLANK($T$3:$T$202),"",INDIRECT(ADDRESS(SMALL((IF($T$3:$T$202<>"",ROW($T$3:$T$202),ROW()+ROWS($T$3:$T$202))),ROW()-ROW($AC$3:$AC$202)+1),COLUMN($T$3:$T$202),4))) -> 0 | AD5: =IF(ROW()-ROW($U$3:$U$202)+1>ROWS($AD$3:$AD$202)-COUNTBLANK($U$3:$U$202),"",INDIRECT(ADDRESS(SMALL((IF($U$3:$U$202<>"",ROW($U$3:$U$202),ROW()+ROWS($U$3:$U$202))),ROW()-ROW($AD$3:$AD$202)+1),COLUMN($U$3:$U$202),4))) -> 0 | AE5: =IF(ROW()-ROW($V$3:$V$202)+1>ROWS($AE$3:$AE$202)-COUNTBLANK($V$3:$V$202),"",INDIRECT(ADDRESS(SMALL((IF($V$3:$V$202<>"",ROW($V$3:$V$202),ROW()+ROWS($V$3:$V$202))),ROW()-ROW($AE$3:$AE$202)+1),COLUMN($V$3:$V$202),4))) -> 0 | AF5: =IF(ROW()-ROW($W$3:$W$202)+1>ROWS($AF$3:$AF$202)-COUNTBLANK($W$3:$W$202),"",INDIRECT(ADDRESS(SMALL((IF($W$3:$W$202<>"",ROW($W$3:$W$202),ROW()+ROWS($W$3:$W$202))),ROW()-ROW($AF$3:$AF$202)+1),COLUMN($W$3:$W$202),4))) -> 1 | AG5: =IF(ROW()-ROW($X$3:$X$202)+1>ROWS($AG$3:$AG$202)-COUNTBLANK($X$3:$X$202),"",INDIRECT(ADDRESS(SMALL((IF($X$3:$X$202<>"",ROW($X$3:$X$202),ROW()+ROWS($X$3:$X$203))),ROW()-ROW($AG$3:$AG$202)+1),COLUMN($X$3:$X$202),4))) -> 1
A6: ='Лист набл. руч. раб. - 1'!A10 -> 4 | B6: =IF('Лист набл. руч. раб. - 1'!B10="","",'Лист набл. руч. раб. - 1'!B10) -> При помощи отвёрток, гаечных ключей затянуть все винты, болты контактных соединений ПЗА и клеммных колодок | C6: =IF('Лист набл. руч. раб. - 1'!R10="","",'Лист набл. руч. раб. - 1'!R10) -> 122 | D6: 122 | F6: 0 | G6: 0 | I6: ='Лист набл. руч. раб. - 2'!A10 -> 3 | J6: =IF('Лист набл. руч. раб. - 2'!B10="","",'Лист набл. руч. раб. - 2'!B10) -> Протяжка болтов крепления электродвигателя | K6: =IF('Лист набл. руч. раб. - 2'!R10="","",'Лист набл. руч. раб. - 2'!R10) -> 112 | L6: 112 | N6: 0 | O6: 0 | Q6: 4 | R6: =IFERROR(INDEX($B$3:$B$102,MATCH(Q6,$A$3:$A$102,0)),"") -> При помощи отвёрток, гаечных ключей затянуть все винты, болты контактных соединений ПЗА и клеммных колодок | S6: =IFERROR(INDEX($C$3:$C$102,MATCH(Q6,$A$3:$A$102,0)),"") -> 122 | T6: 0 | U6: =IFERROR(INDEX(F$1:F$102,MATCH($Q6,$A:$A,0)+1),"") -> 0 | V6: =IFERROR(INDEX(G$1:G$102,MATCH($Q6,$A:$A,0)+1),"") -> 0 | W6: 1 | X6: 1 | Z6: 4 | AA6: =IF(ROW()-ROW($R$3:$R$202)+1>ROWS($AA$3:$AA$202)-COUNTBLANK($R$3:$R$202),"",INDIRECT(ADDRESS(SMALL((IF($R$3:$R$202<>"",ROW($R$3:$R$202),ROW()+ROWS($R$3:$R$202))),ROW()-ROW($AA$3:$AA$202)+1),COLUMN($R$3:$R$202),4))) -> При помощи отвёрток, гаечных ключей затянуть все винты, болты контактных соединений ПЗА и клеммных колодок | AB6: =IF(ROW()-ROW($S$3:$S$202)+1>ROWS($AB$3:$AB$202)-COUNTBLANK($S$3:$S$202),"",INDIRECT(ADDRESS(SMALL((IF($S$3:$S$202<>"",ROW($S$3:$S$202),ROW()+ROWS($S$3:$S$202))),ROW()-ROW($AB$3:$AB$202)+1),COLUMN($S$3:$S$202),4))) -> 122 | AC6: =IF(ROW()-ROW($T$3:$T$202)+1>ROWS($AC$3:$AC$202)-COUNTBLANK($T$3:$T$202),"",INDIRECT(ADDRESS(SMALL((IF($T$3:$T$202<>"",ROW($T$3:$T$202),ROW()+ROWS($T$3:$T$202))),ROW()-ROW($AC$3:$AC$202)+1),COLUMN($T$3:$T$202),4))) -> 0 | AD6: =IF(ROW()-ROW($U$3:$U$202)+1>ROWS($AD$3:$AD$202)-COUNTBLANK($U$3:$U$202),"",INDIRECT(ADDRESS(SMALL((IF($U$3:$U$202<>"",ROW($U$3:$U$202),ROW()+ROWS($U$3:$U$202))),ROW()-ROW($AD$3:$AD$202)+1),COLUMN($U$3:$U$202),4))) -> 0 | AE6: =IF(ROW()-ROW($V$3:$V$202)+1>ROWS($AE$3:$AE$202)-COUNTBLANK($V$3:$V$202),"",INDIRECT(ADDRESS(SMALL((IF($V$3:$V$202<>"",ROW($V$3:$V$202),ROW()+ROWS($V$3:$V$202))),ROW()-ROW($AE$3:$AE$202)+1),COLUMN($V$3:$V$202),4))) -> 0 | AF6: =IF(ROW()-ROW($W$3:$W$202)+1>ROWS($AF$3:$AF$202)-COUNTBLANK($W$3:$W$202),"",INDIRECT(ADDRESS(SMALL((IF($W$3:$W$202<>"",ROW($W$3:$W$202),ROW()+ROWS($W$3:$W$202))),ROW()-ROW($AF$3:$AF$202)+1),COLUMN($W$3:$W$202),4))) -> 1 | AG6: =IF(ROW()-ROW($X$3:$X$202)+1>ROWS($AG$3:$AG$202)-COUNTBLANK($X$3:$X$202),"",INDIRECT(ADDRESS(SMALL((IF($X$3:$X$202<>"",ROW($X$3:$X$202),ROW()+ROWS($X$3:$X$203))),ROW()-ROW($AG$3:$AG$202)+1),COLUMN($X$3:$X$202),4))) -> 1
A7: ='Лист набл. руч. раб. - 1'!A11 -> 5 | B7: =IF('Лист набл. руч. раб. - 1'!B11="","",'Лист набл. руч. раб. - 1'!B11) -> Почистить контакты пускателя от нагара надфилем или наждачной бумагой. Заменить контакты если они сильно обгорели | C7: =IF('Лист набл. руч. раб. - 1'!R11="","",'Лист набл. руч. раб. - 1'!R11) -> 120 | D7: 120 | F7: 0 | G7: 0 | I7: ='Лист набл. руч. раб. - 2'!A11 -> 4 | J7: =IF('Лист набл. руч. раб. - 2'!B11="","",'Лист набл. руч. раб. - 2'!B11) -> Протяжка защитного кожуха электродвигателя | K7: =IF('Лист набл. руч. раб. - 2'!R11="","",'Лист набл. руч. раб. - 2'!R11) -> 67 | L7: 67 | N7: 0 | O7: 0 | Q7: 5 | R7: =IFERROR(INDEX($B$3:$B$102,MATCH(Q7,$A$3:$A$102,0)),"") -> Почистить контакты пускателя от нагара надфилем или наждачной бумагой. Заменить контакты если они сильно обгорели | S7: =IFERROR(INDEX($C$3:$C$102,MATCH(Q7,$A$3:$A$102,0)),"") -> 120 | T7: 0 | U7: =IFERROR(INDEX(F$1:F$102,MATCH($Q7,$A:$A,0)+1),"") -> 0 | V7: =IFERROR(INDEX(G$1:G$102,MATCH($Q7,$A:$A,0)+1),"") -> 32 | W7: 1 | X7: 1 | Z7: 5 | AA7: =IF(ROW()-ROW($R$3:$R$202)+1>ROWS($AA$3:$AA$202)-COUNTBLANK($R$3:$R$202),"",INDIRECT(ADDRESS(SMALL((IF($R$3:$R$202<>"",ROW($R$3:$R$202),ROW()+ROWS($R$3:$R$202))),ROW()-ROW($AA$3:$AA$202)+1),COLUMN($R$3:$R$202),4))) -> Почистить контакты пускателя от нагара надфилем или наждачной бумагой. Заменить контакты если они сильно обгорели | AB7: =IF(ROW()-ROW($S$3:$S$202)+1>ROWS($AB$3:$AB$202)-COUNTBLANK($S$3:$S$202),"",INDIRECT(ADDRESS(SMALL((IF($S$3:$S$202<>"",ROW($S$3:$S$202),ROW()+ROWS($S$3:$S$202))),ROW()-ROW($AB$3:$AB$202)+1),COLUMN($S$3:$S$202),4))) -> 120 | AC7: =IF(ROW()-ROW($T$3:$T$202)+1>ROWS($AC$3:$AC$202)-COUNTBLANK($T$3:$T$202),"",INDIRECT(ADDRESS(SMALL((IF($T$3:$T$202<>"",ROW($T$3:$T$202),ROW()+ROWS($T$3:$T$202))),ROW()-ROW($AC$3:$AC$202)+1),COLUMN($T$3:$T$202),4))) -> 0 | AD7: =IF(ROW()-ROW($U$3:$U$202)+1>ROWS($AD$3:$AD$202)-COUNTBLANK($U$3:$U$202),"",INDIRECT(ADDRESS(SMALL((IF($U$3:$U$202<>"",ROW($U$3:$U$202),ROW()+ROWS($U$3:$U$202))),ROW()-ROW($AD$3:$AD$202)+1),COLUMN($U$3:$U$202),4))) -> 0 | AE7: =IF(ROW()-ROW($V$3:$V$202)+1>ROWS($AE$3:$AE$202)-COUNTBLANK($V$3:$V$202),"",INDIRECT(ADDRESS(SMALL((IF($V$3:$V$202<>"",ROW($V$3:$V$202),ROW()+ROWS($V$3:$V$202))),ROW()-ROW($AE$3:$AE$202)+1),COLUMN($V$3:$V$202),4))) -> 32 | AF7: =IF(ROW()-ROW($W$3:$W$202)+1>ROWS($AF$3:$AF$202)-COUNTBLANK($W$3:$W$202),"",INDIRECT(ADDRESS(SMALL((IF($W$3:$W$202<>"",ROW($W$3:$W$202),ROW()+ROWS($W$3:$W$202))),ROW()-ROW($AF$3:$AF$202)+1),COLUMN($W$3:$W$202),4))) -> 1 | AG7: =IF(ROW()-ROW($X$3:$X$202)+1>ROWS($AG$3:$AG$202)-COUNTBLANK($X$3:$X$202),"",INDIRECT(ADDRESS(SMALL((IF($X$3:$X$202<>"",ROW($X$3:$X$202),ROW()+ROWS($X$3:$X$203))),ROW()-ROW($AG$3:$AG$202)+1),COLUMN($X$3:$X$202),4))) -> 1
A8: ='Лист набл. руч. раб. - 1'!A12 -> - | B8: =IF('Лист набл. руч. раб. - 1'!B12="","",'Лист набл. руч. раб. - 1'!B12) -> Переход | C8: =IF('Лист набл. руч. раб. - 1'!R12="","",'Лист набл. руч. раб. - 1'!R12) -> 32 | D8: 0 | F8: 0 | G8: 32 | I8: ='Лист набл. руч. раб. - 2'!A12 -> 5 | J8: =IF('Лист набл. руч. раб. - 2'!B12="","",'Лист набл. руч. раб. - 2'!B12) -> Снятие крышки брно | K8: =IF('Лист набл. руч. раб. - 2'!R12="","",'Лист набл. руч. раб. - 2'!R12) -> 20 | L8: 20 | N8: 0 | O8: 0 | Q8: 6 | R8: =IFERROR(INDEX($B$3:$B$102,MATCH(Q8,$A$3:$A$102,0)),"") -> Проверка сопротивления изоляции электродвигателя | S8: =IFERROR(INDEX($C$3:$C$102,MATCH(Q8,$A$3:$A$102,0)),"") -> 45 | T8: 0 | U8: =IFERROR(INDEX(F$1:F$102,MATCH($Q8,$A:$A,0)+1),"") -> 0 | V8: =IFERROR(INDEX(G$1:G$102,MATCH($Q8,$A:$A,0)+1),"") -> 0 | W8: 1 | X8: 1 | Z8: 6 | AA8: =IF(ROW()-ROW($R$3:$R$202)+1>ROWS($AA$3:$AA$202)-COUNTBLANK($R$3:$R$202),"",INDIRECT(ADDRESS(SMALL((IF($R$3:$R$202<>"",ROW($R$3:$R$202),ROW()+ROWS($R$3:$R$202))),ROW()-ROW($AA$3:$AA$202)+1),COLUMN($R$3:$R$202),4))) -> Проверка сопротивления изоляции электродвигателя | AB8: =IF(ROW()-ROW($S$3:$S$202)+1>ROWS($AB$3:$AB$202)-COUNTBLANK($S$3:$S$202),"",INDIRECT(ADDRESS(SMALL((IF($S$3:$S$202<>"",ROW($S$3:$S$202),ROW()+ROWS($S$3:$S$202))),ROW()-ROW($AB$3:$AB$202)+1),COLUMN($S$3:$S$202),4))) -> 45 | AC8: =IF(ROW()-ROW($T$3:$T$202)+1>ROWS($AC$3:$AC$202)-COUNTBLANK($T$3:$T$202),"",INDIRECT(ADDRESS(SMALL((IF($T$3:$T$202<>"",ROW($T$3:$T$202),ROW()+ROWS($T$3:$T$202))),ROW()-ROW($AC$3:$AC$202)+1),COLUMN($T$3:$T$202),4))) -> 0 | AD8: =IF(ROW()-ROW($U$3:$U$202)+1>ROWS($AD$3:$AD$202)-COUNTBLANK($U$3:$U$202),"",INDIRECT(ADDRESS(SMALL((IF($U$3:$U$202<>"",ROW($U$3:$U$202),ROW()+ROWS($U$3:$U$202))),ROW()-ROW($AD$3:$AD$202)+1),COLUMN($U$3:$U$202),4))) -> 0 | AE8: =IF(ROW()-ROW($V$3:$V$202)+1>ROWS($AE$3:$AE$202)-COUNTBLANK($V$3:$V$202),"",INDIRECT(ADDRESS(SMALL((IF($V$3:$V$202<>"",ROW($V$3:$V$202),ROW()+ROWS($V$3:$V$202))),ROW()-ROW($AE$3:$AE$202)+1),COLUMN($V$3:$V$202),4))) -> 0 | AF8: =IF(ROW()-ROW($W$3:$W$202)+1>ROWS($AF$3:$AF$202)-COUNTBLANK($W$3:$W$202),"",INDIRECT(ADDRESS(SMALL((IF($W$3:$W$202<>"",ROW($W$3:$W$202),ROW()+ROWS($W$3:$W$202))),ROW()-ROW($AF$3:$AF$202)+1),COLUMN($W$3:$W$202),4))) -> 1 | AG8: =IF(ROW()-ROW($X$3:$X$202)+1>ROWS($AG$3:$AG$202)-COUNTBLANK($X$3:$X$202),"",INDIRECT(ADDRESS(SMALL((IF($X$3:$X$202<>"",ROW($X$3:$X$202),ROW()+ROWS($X$3:$X$203))),ROW()-ROW($AG$3:$AG$202)+1),COLUMN($X$3:$X$202),4))) -> 1
A9: ='Лист набл. руч. раб. - 1'!A13 -> 6 | B9: =IF('Лист набл. руч. раб. - 1'!B13="","",'Лист набл. руч. раб. - 1'!B13) -> Проверка сопротивления изоляции электродвигателя | C9: =IF('Лист набл. руч. раб. - 1'!R13="","",'Лист набл. руч. раб. - 1'!R13) -> 45 | D9: 45 | F9: 0 | G9: 0 | I9: ='Лист набл. руч. раб. - 2'!A13 -> 6 | J9: =IF('Лист набл. руч. раб. - 2'!B13="","",'Лист набл. руч. раб. - 2'!B13) -> Проверить отсутствие напряжения на эл.двигателе | K9: =IF('Лист набл. руч. раб. - 2'!R13="","",'Лист набл. руч. раб. - 2'!R13) -> 43 | L9: 43 | N9: 0 | O9: 0 | Q9: 7 | R9: =IFERROR(INDEX($B$3:$B$102,MATCH(Q9,$A$3:$A$102,0)),"") -> Проверка сопротивления изоляции питающего кабеля | S9: =IFERROR(INDEX($C$3:$C$102,MATCH(Q9,$A$3:$A$102,0)),"") -> 48 | T9: 0 | U9: =IFERROR(INDEX(F$1:F$102,MATCH($Q9,$A:$A,0)+1),"") -> 0 | V9: =IFERROR(INDEX(G$1:G$102,MATCH($Q9,$A:$A,0)+1),"") -> 20 | W9: 1 | X9: 1 | Z9: 7 | AA9: =IF(ROW()-ROW($R$3:$R$202)+1>ROWS($AA$3:$AA$202)-COUNTBLANK($R$3:$R$202),"",INDIRECT(ADDRESS(SMALL((IF($R$3:$R$202<>"",ROW($R$3:$R$202),ROW()+ROWS($R$3:$R$202))),ROW()-ROW($AA$3:$AA$202)+1),COLUMN($R$3:$R$202),4))) -> Проверка сопротивления изоляции питающего кабеля | AB9: =IF(ROW()-ROW($S$3:$S$202)+1>ROWS($AB$3:$AB$202)-COUNTBLANK($S$3:$S$202),"",INDIRECT(ADDRESS(SMALL((IF($S$3:$S$202<>"",ROW($S$3:$S$202),ROW()+ROWS($S$3:$S$202))),ROW()-ROW($AB$3:$AB$202)+1),COLUMN($S$3:$S$202),4))) -> 48 | AC9: =IF(ROW()-ROW($T$3:$T$202)+1>ROWS($AC$3:$AC$202)-COUNTBLANK($T$3:$T$202),"",INDIRECT(ADDRESS(SMALL((IF($T$3:$T$202<>"",ROW($T$3:$T$202),ROW()+ROWS($T$3:$T$202))),ROW()-ROW($AC$3:$AC$202)+1),COLUMN($T$3:$T$202),4))) -> 0 | AD9: =IF(ROW()-ROW($U$3:$U$202)+1>ROWS($AD$3:$AD$202)-COUNTBLANK($U$3:$U$202),"",INDIRECT(ADDRESS(SMALL((IF($U$3:$U$202<>"",ROW($U$3:$U$202),ROW()+ROWS($U$3:$U$202))),ROW()-ROW($AD$3:$AD$202)+1),COLUMN($U$3:$U$202),4))) -> 0 | AE9: =IF(ROW()-ROW($V$3:$V$202)+1>ROWS($AE$3:$AE$202)-COUNTBLANK($V$3:$V$202),"",INDIRECT(ADDRESS(SMALL((IF($V$3:$V$202<>"",ROW($V$3:$V$202),ROW()+ROWS($V$3:$V$202))),ROW()-ROW($AE$3:$AE$202)+1),COLUMN($V$3:$V$202),4))) -> 20 | AF9: =IF(ROW()-ROW($W$3:$W$202)+1>ROWS($AF$3:$AF$202)-COUNTBLANK($W$3:$W$202),"",INDIRECT(ADDRESS(SMALL((IF($W$3:$W$202<>"",ROW($W$3:$W$202),ROW()+ROWS($W$3:$W$202))),ROW()-ROW($AF$3:$AF$202)+1),COLUMN($W$3:$W$202),4))) -> 1 | AG9: =IF(ROW()-ROW($X$3:$X$202)+1>ROWS($AG$3:$AG$202)-COUNTBLANK($X$3:$X$202),"",INDIRECT(ADDRESS(SMALL((IF($X$3:$X$202<>"",ROW($X$3:$X$202),ROW()+ROWS($X$3:$X$203))),ROW()-ROW($AG$3:$AG$202)+1),COLUMN($X$3:$X$202),4))) -> 1
A10: ='Лист набл. руч. раб. - 1'!A14 -> 7 | B10: =IF('Лист набл. руч. раб. - 1'!B14="","",'Лист набл. руч. раб. - 1'!B14) -> Проверка сопротивления изоляции питающего кабеля | C10: =IF('Лист набл. руч. раб. - 1'!R14="","",'Лист набл. руч. раб. - 1'!R14) -> 48 | D10: 48 | F10: 0 | G10: 0 | I10: ='Лист набл. руч. раб. - 2'!A14 -> 7 | J10: =IF('Лист набл. руч. раб. - 2'!B14="","",'Лист набл. руч. раб. - 2'!B14) -> Отсоединить кабель от электродвигателя | K10: =IF('Лист набл. руч. раб. - 2'!R14="","",'Лист набл. руч. раб. - 2'!R14) -> 40 | L10: 40 | N10: 0 | O10: 0 | Q10: 8 | R10: =IFERROR(INDEX($B$3:$B$102,MATCH(Q10,$A$3:$A$102,0)),"") -> Собрать инструмент, материалы, приспособления. Убрать рабочее место | S10: =IFERROR(INDEX($C$3:$C$102,MATCH(Q10,$A$3:$A$102,0)),"") -> 40 | T10: 0 | U10: =IFERROR(INDEX(F$1:F$102,MATCH($Q10,$A:$A,0)+1),"") ->  | V10: =IFERROR(INDEX(G$1:G$102,MATCH($Q10,$A:$A,0)+1),"") ->  | W10: 1 | X10: 1 | Z10: 8 | AA10: =IF(ROW()-ROW($R$3:$R$202)+1>ROWS($AA$3:$AA$202)-COUNTBLANK($R$3:$R$202),"",INDIRECT(ADDRESS(SMALL((IF($R$3:$R$202<>"",ROW($R$3:$R$202),ROW()+ROWS($R$3:$R$202))),ROW()-ROW($AA$3:$AA$202)+1),COLUMN($R$3:$R$202),4))) -> Собрать инструмент, материалы, приспособления. Убрать рабочее место | AB10: =IF(ROW()-ROW($S$3:$S$202)+1>ROWS($AB$3:$AB$202)-COUNTBLANK($S$3:$S$202),"",INDIRECT(ADDRESS(SMALL((IF($S$3:$S$202<>"",ROW($S$3:$S$202),ROW()+ROWS($S$3:$S$202))),ROW()-ROW($AB$3:$AB$202)+1),COLUMN($S$3:$S$202),4))) -> 40 | AC10: =IF(ROW()-ROW($T$3:$T$202)+1>ROWS($AC$3:$AC$202)-COUNTBLANK($T$3:$T$202),"",INDIRECT(ADDRESS(SMALL((IF($T$3:$T$202<>"",ROW($T$3:$T$202),ROW()+ROWS($T$3:$T$202))),ROW()-ROW($AC$3:$AC$202)+1),COLUMN($T$3:$T$202),4))) -> 0 | AD10: =IF(ROW()-ROW($U$3:$U$202)+1>ROWS($AD$3:$AD$202)-COUNTBLANK($U$3:$U$202),"",INDIRECT(ADDRESS(SMALL((IF($U$3:$U$202<>"",ROW($U$3:$U$202),ROW()+ROWS($U$3:$U$202))),ROW()-ROW($AD$3:$AD$202)+1),COLUMN($U$3:$U$202),4))) -> 0 | AE10: =IF(ROW()-ROW($V$3:$V$202)+1>ROWS($AE$3:$AE$202)-COUNTBLANK($V$3:$V$202),"",INDIRECT(ADDRESS(SMALL((IF($V$3:$V$202<>"",ROW($V$3:$V$202),ROW()+ROWS($V$3:$V$202))),ROW()-ROW($AE$3:$AE$202)+1),COLUMN($V$3:$V$202),4))) -> 20 | AF10: =IF(ROW()-ROW($W$3:$W$202)+1>ROWS($AF$3:$AF$202)-COUNTBLANK($W$3:$W$202),"",INDIRECT(ADDRESS(SMALL((IF($W$3:$W$202<>"",ROW($W$3:$W$202),ROW()+ROWS($W$3:$W$202))),ROW()-ROW($AF$3:$AF$202)+1),COLUMN($W$3:$W$202),4))) -> 1 | AG10: =IF(ROW()-ROW($X$3:$X$202)+1>ROWS($AG$3:$AG$202)-COUNTBLANK($X$3:$X$202),"",INDIRECT(ADDRESS(SMALL((IF($X$3:$X$202<>"",ROW($X$3:$X$202),ROW()+ROWS($X$3:$X$203))),ROW()-ROW($AG$3:$AG$202)+1),COLUMN($X$3:$X$202),4))) -> 1
A11: ='Лист набл. руч. раб. - 1'!A15 -> - | B11: =IF('Лист набл. руч. раб. - 1'!B15="","",'Лист набл. руч. раб. - 1'!B15) -> Переход | C11: =IF('Лист набл. руч. раб. - 1'!R15="","",'Лист набл. руч. раб. - 1'!R15) -> 20 | D11: 0 | F11: 0 | G11: 20 | I11: ='Лист набл. руч. раб. - 2'!A15 -> 8 | J11: =IF('Лист набл. руч. раб. - 2'!B15="","",'Лист набл. руч. раб. - 2'!B15) -> Проверка сопротивления изоляции электродвигателя | K11: =IF('Лист набл. руч. раб. - 2'!R15="","",'Лист набл. руч. раб. - 2'!R15) -> 40 | L11: 40 | N11: 0 | O11: 0 | Q11: 9 | R11: =IFERROR(INDEX($B$3:$B$102,MATCH(Q11,$A$3:$A$102,0)),"") ->  | S11: =IFERROR(INDEX($C$3:$C$102,MATCH(Q11,$A$3:$A$102,0)),"") ->  | U11: =IFERROR(INDEX(F$1:F$102,MATCH($Q11,$A:$A,0)+1),"") ->  | V11: =IFERROR(INDEX(G$1:G$102,MATCH($Q11,$A:$A,0)+1),"") ->  | Z11: 9 | AA11: =IF(ROW()-ROW($R$3:$R$202)+1>ROWS($AA$3:$AA$202)-COUNTBLANK($R$3:$R$202),"",INDIRECT(ADDRESS(SMALL((IF($R$3:$R$202<>"",ROW($R$3:$R$202),ROW()+ROWS($R$3:$R$202))),ROW()-ROW($AA$3:$AA$202)+1),COLUMN($R$3:$R$202),4))) -> Подготовка рабочего места. Выполнение отключений | AB11: =IF(ROW()-ROW($S$3:$S$202)+1>ROWS($AB$3:$AB$202)-COUNTBLANK($S$3:$S$202),"",INDIRECT(ADDRESS(SMALL((IF($S$3:$S$202<>"",ROW($S$3:$S$202),ROW()+ROWS($S$3:$S$202))),ROW()-ROW($AB$3:$AB$202)+1),COLUMN($S$3:$S$202),4))) -> 60 | AC11: =IF(ROW()-ROW($T$3:$T$202)+1>ROWS($AC$3:$AC$202)-COUNTBLANK($T$3:$T$202),"",INDIRECT(ADDRESS(SMALL((IF($T$3:$T$202<>"",ROW($T$3:$T$202),ROW()+ROWS($T$3:$T$202))),ROW()-ROW($AC$3:$AC$202)+1),COLUMN($T$3:$T$202),4))) -> 0 | AD11: =IF(ROW()-ROW($U$3:$U$202)+1>ROWS($AD$3:$AD$202)-COUNTBLANK($U$3:$U$202),"",INDIRECT(ADDRESS(SMALL((IF($U$3:$U$202<>"",ROW($U$3:$U$202),ROW()+ROWS($U$3:$U$202))),ROW()-ROW($AD$3:$AD$202)+1),COLUMN($U$3:$U$202),4))) -> 0 | AE11: =IF(ROW()-ROW($V$3:$V$202)+1>ROWS($AE$3:$AE$202)-COUNTBLANK($V$3:$V$202),"",INDIRECT(ADDRESS(SMALL((IF($V$3:$V$202<>"",ROW($V$3:$V$202),ROW()+ROWS($V$3:$V$202))),ROW()-ROW($AE$3:$AE$202)+1),COLUMN($V$3:$V$202),4))) -> 0 | AF11: =IF(ROW()-ROW($W$3:$W$202)+1>ROWS($AF$3:$AF$202)-COUNTBLANK($W$3:$W$202),"",INDIRECT(ADDRESS(SMALL((IF($W$3:$W$202<>"",ROW($W$3:$W$202),ROW()+ROWS($W$3:$W$202))),ROW()-ROW($AF$3:$AF$202)+1),COLUMN($W$3:$W$202),4))) -> 1 | AG11: =IF(ROW()-ROW($X$3:$X$202)+1>ROWS($AG$3:$AG$202)-COUNTBLANK($X$3:$X$202),"",INDIRECT(ADDRESS(SMALL((IF($X$3:$X$202<>"",ROW($X$3:$X$202),ROW()+ROWS($X$3:$X$203))),ROW()-ROW($AG$3:$AG$202)+1),COLUMN($X$3:$X$202),4))) -> 2
A12: ='Лист набл. руч. раб. - 1'!A16 -> 8 | B12: =IF('Лист набл. руч. раб. - 1'!B16="","",'Лист набл. руч. раб. - 1'!B16) -> Собрать инструмент, материалы, приспособления. Убрать рабочее место | C12: =IF('Лист набл. руч. раб. - 1'!R16="","",'Лист набл. руч. раб. - 1'!R16) -> 40 | D12: 40 | F12: 0 | G12: 0 | I12: ='Лист набл. руч. раб. - 2'!A16 -> 9 | J12: =IF('Лист набл. руч. раб. - 2'!B16="","",'Лист набл. руч. раб. - 2'!B16) -> Проверка сопротивления изоляции питающего кабеля | K12: =IF('Лист набл. руч. раб. - 2'!R16="","",'Лист набл. руч. раб. - 2'!R16) -> 40 | L12: 40 | N12: 0 | O12: 0 | Q12: 10 | R12: =IFERROR(INDEX($B$3:$B$102,MATCH(Q12,$A$3:$A$102,0)),"") ->  | S12: =IFERROR(INDEX($C$3:$C$102,MATCH(Q12,$A$3:$A$102,0)),"") ->  | U12: =IFERROR(INDEX(F$1:F$102,MATCH($Q12,$A:$A,0)+1),"") ->  | V12: =IFERROR(INDEX(G$1:G$102,MATCH($Q12,$A:$A,0)+1),"") ->  | Z12: 10 | AA12: =IF(ROW()-ROW($R$3:$R$202)+1>ROWS($AA$3:$AA$202)-COUNTBLANK($R$3:$R$202),"",INDIRECT(ADDRESS(SMALL((IF($R$3:$R$202<>"",ROW($R$3:$R$202),ROW()+ROWS($R$3:$R$202))),ROW()-ROW($AA$3:$AA$202)+1),COLUMN($R$3:$R$202),4))) -> Очистка электродвигателя | AB12: =IF(ROW()-ROW($S$3:$S$202)+1>ROWS($AB$3:$AB$202)-COUNTBLANK($S$3:$S$202),"",INDIRECT(ADDRESS(SMALL((IF($S$3:$S$202<>"",ROW($S$3:$S$202),ROW()+ROWS($S$3:$S$202))),ROW()-ROW($AB$3:$AB$202)+1),COLUMN($S$3:$S$202),4))) -> 45 | AC12: =IF(ROW()-ROW($T$3:$T$202)+1>ROWS($AC$3:$AC$202)-COUNTBLANK($T$3:$T$202),"",INDIRECT(ADDRESS(SMALL((IF($T$3:$T$202<>"",ROW($T$3:$T$202),ROW()+ROWS($T$3:$T$202))),ROW()-ROW($AC$3:$AC$202)+1),COLUMN($T$3:$T$202),4))) -> 0 | AD12: =IF(ROW()-ROW($U$3:$U$202)+1>ROWS($AD$3:$AD$202)-COUNTBLANK($U$3:$U$202),"",INDIRECT(ADDRESS(SMALL((IF($U$3:$U$202<>"",ROW($U$3:$U$202),ROW()+ROWS($U$3:$U$202))),ROW()-ROW($AD$3:$AD$202)+1),COLUMN($U$3:$U$202),4))) -> 0 | AE12: =IF(ROW()-ROW($V$3:$V$202)+1>ROWS($AE$3:$AE$202)-COUNTBLANK($V$3:$V$202),"",INDIRECT(ADDRESS(SMALL((IF($V$3:$V$202<>"",ROW($V$3:$V$202),ROW()+ROWS($V$3:$V$202))),ROW()-ROW($AE$3:$AE$202)+1),COLUMN($V$3:$V$202),4))) -> 0 | AF12: =IF(ROW()-ROW($W$3:$W$202)+1>ROWS($AF$3:$AF$202)-COUNTBLANK($W$3:$W$202),"",INDIRECT(ADDRESS(SMALL((IF($W$3:$W$202<>"",ROW($W$3:$W$202),ROW()+ROWS($W$3:$W$202))),ROW()-ROW($AF$3:$AF$202)+1),COLUMN($W$3:$W$202),4))) -> 1 | AG12: =IF(ROW()-ROW($X$3:$X$202)+1>ROWS($AG$3:$AG$202)-COUNTBLANK($X$3:$X$202),"",INDIRECT(ADDRESS(SMALL((IF($X$3:$X$202<>"",ROW($X$3:$X$202),ROW()+ROWS($X$3:$X$203))),ROW()-ROW($AG$3:$AG$202)+1),COLUMN($X$3:$X$202),4))) -> 2
A13: ='Лист набл. руч. раб. - 1'!A17 ->  | B13: =IF('Лист набл. руч. раб. - 1'!B17="","",'Лист набл. руч. раб. - 1'!B17) ->  | C13: =IF('Лист набл. руч. раб. - 1'!R17="","",'Лист набл. руч. раб. - 1'!R17) ->  | I13: ='Лист набл. руч. раб. - 2'!A17 -> 10 | J13: =IF('Лист набл. руч. раб. - 2'!B17="","",'Лист набл. руч. раб. - 2'!B17) -> Подсоединение кабеля к электродвигателю. (ремонт металлорукава | K13: =IF('Лист набл. руч. раб. - 2'!R17="","",'Лист набл. руч. раб. - 2'!R17) -> 40 | L13: 40 | N13: 0 | O13: 0 | Q13: 11 | R13: =IFERROR(INDEX($B$3:$B$102,MATCH(Q13,$A$3:$A$102,0)),"") ->  | S13: =IFERROR(INDEX($C$3:$C$102,MATCH(Q13,$A$3:$A$102,0)),"") ->  | U13: =IFERROR(INDEX(F$1:F$102,MATCH($Q13,$A:$A,0)+1),"") ->  | V13: =IFERROR(INDEX(G$1:G$102,MATCH($Q13,$A:$A,0)+1),"") ->  | Z13: 11 | AA13: =IF(ROW()-ROW($R$3:$R$202)+1>ROWS($AA$3:$AA$202)-COUNTBLANK($R$3:$R$202),"",INDIRECT(ADDRESS(SMALL((IF($R$3:$R$202<>"",ROW($R$3:$R$202),ROW()+ROWS($R$3:$R$202))),ROW()-ROW($AA$3:$AA$202)+1),COLUMN($R$3:$R$202),4))) -> Протяжка болтов крепления электродвигателя | AB13: =IF(ROW()-ROW($S$3:$S$202)+1>ROWS($AB$3:$AB$202)-COUNTBLANK($S$3:$S$202),"",INDIRECT(ADDRESS(SMALL((IF($S$3:$S$202<>"",ROW($S$3:$S$202),ROW()+ROWS($S$3:$S$202))),ROW()-ROW($AB$3:$AB$202)+1),COLUMN($S$3:$S$202),4))) -> 112 | AC13: =IF(ROW()-ROW($T$3:$T$202)+1>ROWS($AC$3:$AC$202)-COUNTBLANK($T$3:$T$202),"",INDIRECT(ADDRESS(SMALL((IF($T$3:$T$202<>"",ROW($T$3:$T$202),ROW()+ROWS($T$3:$T$202))),ROW()-ROW($AC$3:$AC$202)+1),COLUMN($T$3:$T$202),4))) -> 0 | AD13: =IF(ROW()-ROW($U$3:$U$202)+1>ROWS($AD$3:$AD$202)-COUNTBLANK($U$3:$U$202),"",INDIRECT(ADDRESS(SMALL((IF($U$3:$U$202<>"",ROW($U$3:$U$202),ROW()+ROWS($U$3:$U$202))),ROW()-ROW($AD$3:$AD$202)+1),COLUMN($U$3:$U$202),4))) -> 0 | AE13: =IF(ROW()-ROW($V$3:$V$202)+1>ROWS($AE$3:$AE$202)-COUNTBLANK($V$3:$V$202),"",INDIRECT(ADDRESS(SMALL((IF($V$3:$V$202<>"",ROW($V$3:$V$202),ROW()+ROWS($V$3:$V$202))),ROW()-ROW($AE$3:$AE$202)+1),COLUMN($V$3:$V$202),4))) -> 0 | AF13: =IF(ROW()-ROW($W$3:$W$202)+1>ROWS($AF$3:$AF$202)-COUNTBLANK($W$3:$W$202),"",INDIRECT(ADDRESS(SMALL((IF($W$3:$W$202<>"",ROW($W$3:$W$202),ROW()+ROWS($W$3:$W$202))),ROW()-ROW($AF$3:$AF$202)+1),COLUMN($W$3:$W$202),4))) -> 1 | AG13: =IF(ROW()-ROW($X$3:$X$202)+1>ROWS($AG$3:$AG$202)-COUNTBLANK($X$3:$X$202),"",INDIRECT(ADDRESS(SMALL((IF($X$3:$X$202<>"",ROW($X$3:$X$202),ROW()+ROWS($X$3:$X$203))),ROW()-ROW($AG$3:$AG$202)+1),COLUMN($X$3:$X$202),4))) -> 2
A14: ='Лист набл. руч. раб. - 1'!A18 ->  | B14: =IF('Лист набл. руч. раб. - 1'!B18="","",'Лист набл. руч. раб. - 1'!B18) ->  | C14: =IF('Лист набл. руч. раб. - 1'!R18="","",'Лист набл. руч. раб. - 1'!R18) ->  | I14: ='Лист набл. руч. раб. - 2'!A18 -> 11 | J14: =IF('Лист набл. руч. раб. - 2'!B18="","",'Лист набл. руч. раб. - 2'!B18) -> Установка крышки брно | K14: =IF('Лист набл. руч. раб. - 2'!R18="","",'Лист набл. руч. раб. - 2'!R18) -> 20 | L14: 20 | N14: 0 | O14: 0 | Q14: 12 | R14: =IFERROR(INDEX($B$3:$B$102,MATCH(Q14,$A$3:$A$102,0)),"") ->  | S14: =IFERROR(INDEX($C$3:$C$102,MATCH(Q14,$A$3:$A$102,0)),"") ->  | U14: =IFERROR(INDEX(F$1:F$102,MATCH($Q14,$A:$A,0)+1),"") ->  | V14: =IFERROR(INDEX(G$1:G$102,MATCH($Q14,$A:$A,0)+1),"") ->  | Z14: 12 | AA14: =IF(ROW()-ROW($R$3:$R$202)+1>ROWS($AA$3:$AA$202)-COUNTBLANK($R$3:$R$202),"",INDIRECT(ADDRESS(SMALL((IF($R$3:$R$202<>"",ROW($R$3:$R$202),ROW()+ROWS($R$3:$R$202))),ROW()-ROW($AA$3:$AA$202)+1),COLUMN($R$3:$R$202),4))) -> Протяжка защитного кожуха электродвигателя | AB14: =IF(ROW()-ROW($S$3:$S$202)+1>ROWS($AB$3:$AB$202)-COUNTBLANK($S$3:$S$202),"",INDIRECT(ADDRESS(SMALL((IF($S$3:$S$202<>"",ROW($S$3:$S$202),ROW()+ROWS($S$3:$S$202))),ROW()-ROW($AB$3:$AB$202)+1),COLUMN($S$3:$S$202),4))) -> 67 | AC14: =IF(ROW()-ROW($T$3:$T$202)+1>ROWS($AC$3:$AC$202)-COUNTBLANK($T$3:$T$202),"",INDIRECT(ADDRESS(SMALL((IF($T$3:$T$202<>"",ROW($T$3:$T$202),ROW()+ROWS($T$3:$T$202))),ROW()-ROW($AC$3:$AC$202)+1),COLUMN($T$3:$T$202),4))) -> 0 | AD14: =IF(ROW()-ROW($U$3:$U$202)+1>ROWS($AD$3:$AD$202)-COUNTBLANK($U$3:$U$202),"",INDIRECT(ADDRESS(SMALL((IF($U$3:$U$202<>"",ROW($U$3:$U$202),ROW()+ROWS($U$3:$U$202))),ROW()-ROW($AD$3:$AD$202)+1),COLUMN($U$3:$U$202),4))) -> 0 | AE14: =IF(ROW()-ROW($V$3:$V$202)+1>ROWS($AE$3:$AE$202)-COUNTBLANK($V$3:$V$202),"",INDIRECT(ADDRESS(SMALL((IF($V$3:$V$202<>"",ROW($V$3:$V$202),ROW()+ROWS($V$3:$V$202))),ROW()-ROW($AE$3:$AE$202)+1),COLUMN($V$3:$V$202),4))) -> 0 | AF14: =IF(ROW()-ROW($W$3:$W$202)+1>ROWS($AF$3:$AF$202)-COUNTBLANK($W$3:$W$202),"",INDIRECT(ADDRESS(SMALL((IF($W$3:$W$202<>"",ROW($W$3:$W$202),ROW()+ROWS($W$3:$W$202))),ROW()-ROW($AF$3:$AF$202)+1),COLUMN($W$3:$W$202),4))) -> 1 | AG14: =IF(ROW()-ROW($X$3:$X$202)+1>ROWS($AG$3:$AG$202)-COUNTBLANK($X$3:$X$202),"",INDIRECT(ADDRESS(SMALL((IF($X$3:$X$202<>"",ROW($X$3:$X$202),ROW()+ROWS($X$3:$X$203))),ROW()-ROW($AG$3:$AG$202)+1),COLUMN($X$3:$X$202),4))) -> 2
A15: ='Лист набл. руч. раб. - 1'!A19 ->  | B15: =IF('Лист набл. руч. раб. - 1'!B19="","",'Лист набл. руч. раб. - 1'!B19) ->  | C15: =IF('Лист набл. руч. раб. - 1'!R19="","",'Лист набл. руч. раб. - 1'!R19) ->  | I15: ='Лист набл. руч. раб. - 2'!A19 -> 12 | J15: =IF('Лист набл. руч. раб. - 2'!B19="","",'Лист набл. руч. раб. - 2'!B19) -> Собрать инструмент, материалы, приспособления. Убрать рабочее место | K15: =IF('Лист набл. руч. раб. - 2'!R19="","",'Лист набл. руч. раб. - 2'!R19) -> 80 | L15: 80 | N15: 0 | O15: 0 | Q15: 13 | R15: =IFERROR(INDEX($B$3:$B$102,MATCH(Q15,$A$3:$A$102,0)),"") ->  | S15: =IFERROR(INDEX($C$3:$C$102,MATCH(Q15,$A$3:$A$102,0)),"") ->  | U15: =IFERROR(INDEX(F$1:F$102,MATCH($Q15,$A:$A,0)+1),"") ->  | V15: =IFERROR(INDEX(G$1:G$102,MATCH($Q15,$A:$A,0)+1),"") ->  | Z15: 13 | AA15: =IF(ROW()-ROW($R$3:$R$202)+1>ROWS($AA$3:$AA$202)-COUNTBLANK($R$3:$R$202),"",INDIRECT(ADDRESS(SMALL((IF($R$3:$R$202<>"",ROW($R$3:$R$202),ROW()+ROWS($R$3:$R$202))),ROW()-ROW($AA$3:$AA$202)+1),COLUMN($R$3:$R$202),4))) -> Снятие крышки брно | AB15: =IF(ROW()-ROW($S$3:$S$202)+1>ROWS($AB$3:$AB$202)-COUNTBLANK($S$3:$S$202),"",INDIRECT(ADDRESS(SMALL((IF($S$3:$S$202<>"",ROW($S$3:$S$202),ROW()+ROWS($S$3:$S$202))),ROW()-ROW($AB$3:$AB$202)+1),COLUMN($S$3:$S$202),4))) -> 20 | AC15: =IF(ROW()-ROW($T$3:$T$202)+1>ROWS($AC$3:$AC$202)-COUNTBLANK($T$3:$T$202),"",INDIRECT(ADDRESS(SMALL((IF($T$3:$T$202<>"",ROW($T$3:$T$202),ROW()+ROWS($T$3:$T$202))),ROW()-ROW($AC$3:$AC$202)+1),COLUMN($T$3:$T$202),4))) -> 0 | AD15: =IF(ROW()-ROW($U$3:$U$202)+1>ROWS($AD$3:$AD$202)-COUNTBLANK($U$3:$U$202),"",INDIRECT(ADDRESS(SMALL((IF($U$3:$U$202<>"",ROW($U$3:$U$202),ROW()+ROWS($U$3:$U$202))),ROW()-ROW($AD$3:$AD$202)+1),COLUMN($U$3:$U$202),4))) -> 0 | AE15: =IF(ROW()-ROW($V$3:$V$202)+1>ROWS($AE$3:$AE$202)-COUNTBLANK($V$3:$V$202),"",INDIRECT(ADDRESS(SMALL((IF($V$3:$V$202<>"",ROW($V$3:$V$202),ROW()+ROWS($V$3:$V$202))),ROW()-ROW($AE$3:$AE$202)+1),COLUMN($V$3:$V$202),4))) -> 0 | AF15: =IF(ROW()-ROW($W$3:$W$202)+1>ROWS($AF$3:$AF$202)-COUNTBLANK($W$3:$W$202),"",INDIRECT(ADDRESS(SMALL((IF($W$3:$W$202<>"",ROW($W$3:$W$202),ROW()+ROWS($W$3:$W$202))),ROW()-ROW($AF$3:$AF$202)+1),COLUMN($W$3:$W$202),4))) -> 1 | AG15: =IF(ROW()-ROW($X$3:$X$202)+1>ROWS($AG$3:$AG$202)-COUNTBLANK($X$3:$X$202),"",INDIRECT(ADDRESS(SMALL((IF($X$3:$X$202<>"",ROW($X$3:$X$202),ROW()+ROWS($X$3:$X$203))),ROW()-ROW($AG$3:$AG$202)+1),COLUMN($X$3:$X$202),4))) -> 2
A16: ='Лист набл. руч. раб. - 1'!A20 ->  | B16: =IF('Лист набл. руч. раб. - 1'!B20="","",'Лист набл. руч. раб. - 1'!B20) ->  | C16: =IF('Лист набл. руч. раб. - 1'!R20="","",'Лист набл. руч. раб. - 1'!R20) ->  | I16: ='Лист набл. руч. раб. - 2'!A20 ->  | J16: =IF('Лист набл. руч. раб. - 2'!B20="","",'Лист набл. руч. раб. - 2'!B20) ->  | K16: =IF('Лист набл. руч. раб. - 2'!R20="","",'Лист набл. руч. раб. - 2'!R20) ->  | Q16: 14 | R16: =IFERROR(INDEX($B$3:$B$102,MATCH(Q16,$A$3:$A$102,0)),"") ->  | S16: =IFERROR(INDEX($C$3:$C$102,MATCH(Q16,$A$3:$A$102,0)),"") ->  | U16: =IFERROR(INDEX(F$1:F$102,MATCH($Q16,$A:$A,0)+1),"") ->  | V16: =IFERROR(INDEX(G$1:G$102,MATCH($Q16,$A:$A,0)+1),"") ->  | Z16: 14 | AA16: =IF(ROW()-ROW($R$3:$R$202)+1>ROWS($AA$3:$AA$202)-COUNTBLANK($R$3:$R$202),"",INDIRECT(ADDRESS(SMALL((IF($R$3:$R$202<>"",ROW($R$3:$R$202),ROW()+ROWS($R$3:$R$202))),ROW()-ROW($AA$3:$AA$202)+1),COLUMN($R$3:$R$202),4))) -> Проверить отсутствие напряжения на эл.двигателе | AB16: =IF(ROW()-ROW($S$3:$S$202)+1>ROWS($AB$3:$AB$202)-COUNTBLANK($S$3:$S$202),"",INDIRECT(ADDRESS(SMALL((IF($S$3:$S$202<>"",ROW($S$3:$S$202),ROW()+ROWS($S$3:$S$202))),ROW()-ROW($AB$3:$AB$202)+1),COLUMN($S$3:$S$202),4))) -> 43 | AC16: =IF(ROW()-ROW($T$3:$T$202)+1>ROWS($AC$3:$AC$202)-COUNTBLANK($T$3:$T$202),"",INDIRECT(ADDRESS(SMALL((IF($T$3:$T$202<>"",ROW($T$3:$T$202),ROW()+ROWS($T$3:$T$202))),ROW()-ROW($AC$3:$AC$202)+1),COLUMN($T$3:$T$202),4))) -> 0 | AD16: =IF(ROW()-ROW($U$3:$U$202)+1>ROWS($AD$3:$AD$202)-COUNTBLANK($U$3:$U$202),"",INDIRECT(ADDRESS(SMALL((IF($U$3:$U$202<>"",ROW($U$3:$U$202),ROW()+ROWS($U$3:$U$202))),ROW()-ROW($AD$3:$AD$202)+1),COLUMN($U$3:$U$202),4))) -> 0 | AE16: =IF(ROW()-ROW($V$3:$V$202)+1>ROWS($AE$3:$AE$202)-COUNTBLANK($V$3:$V$202),"",INDIRECT(ADDRESS(SMALL((IF($V$3:$V$202<>"",ROW($V$3:$V$202),ROW()+ROWS($V$3:$V$202))),ROW()-ROW($AE$3:$AE$202)+1),COLUMN($V$3:$V$202),4))) -> 0 | AF16: =IF(ROW()-ROW($W$3:$W$202)+1>ROWS($AF$3:$AF$202)-COUNTBLANK($W$3:$W$202),"",INDIRECT(ADDRESS(SMALL((IF($W$3:$W$202<>"",ROW($W$3:$W$202),ROW()+ROWS($W$3:$W$202))),ROW()-ROW($AF$3:$AF$202)+1),COLUMN($W$3:$W$202),4))) -> 1 | AG16: =IF(ROW()-ROW($X$3:$X$202)+1>ROWS($AG$3:$AG$202)-COUNTBLANK($X$3:$X$202),"",INDIRECT(ADDRESS(SMALL((IF($X$3:$X$202<>"",ROW($X$3:$X$202),ROW()+ROWS($X$3:$X$203))),ROW()-ROW($AG$3:$AG$202)+1),COLUMN($X$3:$X$202),4))) -> 2
A17: ='Лист набл. руч. раб. - 1'!A21 ->  | B17: =IF('Лист набл. руч. раб. - 1'!B21="","",'Лист набл. руч. раб. - 1'!B21) ->  | C17: =IF('Лист набл. руч. раб. - 1'!R21="","",'Лист набл. руч. раб. - 1'!R21) ->  | I17: ='Лист набл. руч. раб. - 2'!A21 ->  | J17: =IF('Лист набл. руч. раб. - 2'!B21="","",'Лист набл. руч. раб. - 2'!B21) ->  | K17: =IF('Лист набл. руч. раб. - 2'!R21="","",'Лист набл. руч. раб. - 2'!R21) ->  | Q17: 15 | R17: =IFERROR(INDEX($B$3:$B$102,MATCH(Q17,$A$3:$A$102,0)),"") ->  | S17: =IFERROR(INDEX($C$3:$C$102,MATCH(Q17,$A$3:$A$102,0)),"") ->  | U17: =IFERROR(INDEX(F$1:F$102,MATCH($Q17,$A:$A,0)+1),"") ->  | V17: =IFERROR(INDEX(G$1:G$102,MATCH($Q17,$A:$A,0)+1),"") ->  | Z17: 15 | AA17: =IF(ROW()-ROW($R$3:$R$202)+1>ROWS($AA$3:$AA$202)-COUNTBLANK($R$3:$R$202),"",INDIRECT(ADDRESS(SMALL((IF($R$3:$R$202<>"",ROW($R$3:$R$202),ROW()+ROWS($R$3:$R$202))),ROW()-ROW($AA$3:$AA$202)+1),COLUMN($R$3:$R$202),4))) -> Отсоединить кабель от электродвигателя | AB17: =IF(ROW()-ROW($S$3:$S$202)+1>ROWS($AB$3:$AB$202)-COUNTBLANK($S$3:$S$202),"",INDIRECT(ADDRESS(SMALL((IF($S$3:$S$202<>"",ROW($S$3:$S$202),ROW()+ROWS($S$3:$S$202))),ROW()-ROW($AB$3:$AB$202)+1),COLUMN($S$3:$S$202),4))) -> 40 | AC17: =IF(ROW()-ROW($T$3:$T$202)+1>ROWS($AC$3:$AC$202)-COUNTBLANK($T$3:$T$202),"",INDIRECT(ADDRESS(SMALL((IF($T$3:$T$202<>"",ROW($T$3:$T$202),ROW()+ROWS($T$3:$T$202))),ROW()-ROW($AC$3:$AC$202)+1),COLUMN($T$3:$T$202),4))) -> 0 | AD17: =IF(ROW()-ROW($U$3:$U$202)+1>ROWS($AD$3:$AD$202)-COUNTBLANK($U$3:$U$202),"",INDIRECT(ADDRESS(SMALL((IF($U$3:$U$202<>"",ROW($U$3:$U$202),ROW()+ROWS($U$3:$U$202))),ROW()-ROW($AD$3:$AD$202)+1),COLUMN($U$3:$U$202),4))) -> 0 | AE17: =IF(ROW()-ROW($V$3:$V$202)+1>ROWS($AE$3:$AE$202)-COUNTBLANK($V$3:$V$202),"",INDIRECT(ADDRESS(SMALL((IF($V$3:$V$202<>"",ROW($V$3:$V$202),ROW()+ROWS($V$3:$V$202))),ROW()-ROW($AE$3:$AE$202)+1),COLUMN($V$3:$V$202),4))) -> 0 | AF17: =IF(ROW()-ROW($W$3:$W$202)+1>ROWS($AF$3:$AF$202)-COUNTBLANK($W$3:$W$202),"",INDIRECT(ADDRESS(SMALL((IF($W$3:$W$202<>"",ROW($W$3:$W$202),ROW()+ROWS($W$3:$W$202))),ROW()-ROW($AF$3:$AF$202)+1),COLUMN($W$3:$W$202),4))) -> 1 | AG17: =IF(ROW()-ROW($X$3:$X$202)+1>ROWS($AG$3:$AG$202)-COUNTBLANK($X$3:$X$202),"",INDIRECT(ADDRESS(SMALL((IF($X$3:$X$202<>"",ROW($X$3:$X$202),ROW()+ROWS($X$3:$X$203))),ROW()-ROW($AG$3:$AG$202)+1),COLUMN($X$3:$X$202),4))) -> 2
A18: ='Лист набл. руч. раб. - 1'!A22 ->  | B18: =IF('Лист набл. руч. раб. - 1'!B22="","",'Лист набл. руч. раб. - 1'!B22) ->  | C18: =IF('Лист набл. руч. раб. - 1'!R22="","",'Лист набл. руч. раб. - 1'!R22) ->  | I18: ='Лист набл. руч. раб. - 2'!A22 ->  | J18: =IF('Лист набл. руч. раб. - 2'!B22="","",'Лист набл. руч. раб. - 2'!B22) ->  | K18: =IF('Лист набл. руч. раб. - 2'!R22="","",'Лист набл. руч. раб. - 2'!R22) ->  | Q18: 16 | R18: =IFERROR(INDEX($B$3:$B$102,MATCH(Q18,$A$3:$A$102,0)),"") ->  | S18: =IFERROR(INDEX($C$3:$C$102,MATCH(Q18,$A$3:$A$102,0)),"") ->  | U18: =IFERROR(INDEX(F$1:F$102,MATCH($Q18,$A:$A,0)+1),"") ->  | V18: =IFERROR(INDEX(G$1:G$102,MATCH($Q18,$A:$A,0)+1),"") ->  | Z18: 16 | AA18: =IF(ROW()-ROW($R$3:$R$202)+1>ROWS($AA$3:$AA$202)-COUNTBLANK($R$3:$R$202),"",INDIRECT(ADDRESS(SMALL((IF($R$3:$R$202<>"",ROW($R$3:$R$202),ROW()+ROWS($R$3:$R$202))),ROW()-ROW($AA$3:$AA$202)+1),COLUMN($R$3:$R$202),4))) -> Проверка сопротивления изоляции электродвигателя | AB18: =IF(ROW()-ROW($S$3:$S$202)+1>ROWS($AB$3:$AB$202)-COUNTBLANK($S$3:$S$202),"",INDIRECT(ADDRESS(SMALL((IF($S$3:$S$202<>"",ROW($S$3:$S$202),ROW()+ROWS($S$3:$S$202))),ROW()-ROW($AB$3:$AB$202)+1),COLUMN($S$3:$S$202),4))) -> 40 | AC18: =IF(ROW()-ROW($T$3:$T$202)+1>ROWS($AC$3:$AC$202)-COUNTBLANK($T$3:$T$202),"",INDIRECT(ADDRESS(SMALL((IF($T$3:$T$202<>"",ROW($T$3:$T$202),ROW()+ROWS($T$3:$T$202))),ROW()-ROW($AC$3:$AC$202)+1),COLUMN($T$3:$T$202),4))) -> 0 | AD18: =IF(ROW()-ROW($U$3:$U$202)+1>ROWS($AD$3:$AD$202)-COUNTBLANK($U$3:$U$202),"",INDIRECT(ADDRESS(SMALL((IF($U$3:$U$202<>"",ROW($U$3:$U$202),ROW()+ROWS($U$3:$U$202))),ROW()-ROW($AD$3:$AD$202)+1),COLUMN($U$3:$U$202),4))) -> 0 | AE18: =IF(ROW()-ROW($V$3:$V$202)+1>ROWS($AE$3:$AE$202)-COUNTBLANK($V$3:$V$202),"",INDIRECT(ADDRESS(SMALL((IF($V$3:$V$202<>"",ROW($V$3:$V$202),ROW()+ROWS($V$3:$V$202))),ROW()-ROW($AE$3:$AE$202)+1),COLUMN($V$3:$V$202),4))) -> 0 | AF18: =IF(ROW()-ROW($W$3:$W$202)+1>ROWS($AF$3:$AF$202)-COUNTBLANK($W$3:$W$202),"",INDIRECT(ADDRESS(SMALL((IF($W$3:$W$202<>"",ROW($W$3:$W$202),ROW()+ROWS($W$3:$W$202))),ROW()-ROW($AF$3:$AF$202)+1),COLUMN($W$3:$W$202),4))) -> 1 | AG18: =IF(ROW()-ROW($X$3:$X$202)+1>ROWS($AG$3:$AG$202)-COUNTBLANK($X$3:$X$202),"",INDIRECT(ADDRESS(SMALL((IF($X$3:$X$202<>"",ROW($X$3:$X$202),ROW()+ROWS($X$3:$X$203))),ROW()-ROW($AG$3:$AG$202)+1),COLUMN($X$3:$X$202),4))) -> 2
A19: ='Лист набл. руч. раб. - 1'!A23 ->  | B19: =IF('Лист набл. руч. раб. - 1'!B23="","",'Лист набл. руч. раб. - 1'!B23) ->  | C19: =IF('Лист набл. руч. раб. - 1'!R23="","",'Лист набл. руч. раб. - 1'!R23) ->  | I19: ='Лист набл. руч. раб. - 2'!A23 ->  | J19: =IF('Лист набл. руч. раб. - 2'!B23="","",'Лист набл. руч. раб. - 2'!B23) ->  | K19: =IF('Лист набл. руч. раб. - 2'!R23="","",'Лист набл. руч. раб. - 2'!R23) ->  | Q19: 17 | R19: =IFERROR(INDEX($B$3:$B$102,MATCH(Q19,$A$3:$A$102,0)),"") ->  | S19: =IFERROR(INDEX($C$3:$C$102,MATCH(Q19,$A$3:$A$102,0)),"") ->  | U19: =IFERROR(INDEX(F$1:F$102,MATCH($Q19,$A:$A,0)+1),"") ->  | V19: =IFERROR(INDEX(G$1:G$102,MATCH($Q19,$A:$A,0)+1),"") ->  | Z19: 17 | AA19: =IF(ROW()-ROW($R$3:$R$202)+1>ROWS($AA$3:$AA$202)-COUNTBLANK($R$3:$R$202),"",INDIRECT(ADDRESS(SMALL((IF($R$3:$R$202<>"",ROW($R$3:$R$202),ROW()+ROWS($R$3:$R$202))),ROW()-ROW($AA$3:$AA$202)+1),COLUMN($R$3:$R$202),4))) -> Проверка сопротивления изоляции питающего кабеля | AB19: =IF(ROW()-ROW($S$3:$S$202)+1>ROWS($AB$3:$AB$202)-COUNTBLANK($S$3:$S$202),"",INDIRECT(ADDRESS(SMALL((IF($S$3:$S$202<>"",ROW($S$3:$S$202),ROW()+ROWS($S$3:$S$202))),ROW()-ROW($AB$3:$AB$202)+1),COLUMN($S$3:$S$202),4))) -> 40 | AC19: =IF(ROW()-ROW($T$3:$T$202)+1>ROWS($AC$3:$AC$202)-COUNTBLANK($T$3:$T$202),"",INDIRECT(ADDRESS(SMALL((IF($T$3:$T$202<>"",ROW($T$3:$T$202),ROW()+ROWS($T$3:$T$202))),ROW()-ROW($AC$3:$AC$202)+1),COLUMN($T$3:$T$202),4))) -> 0 | AD19: =IF(ROW()-ROW($U$3:$U$202)+1>ROWS($AD$3:$AD$202)-COUNTBLANK($U$3:$U$202),"",INDIRECT(ADDRESS(SMALL((IF($U$3:$U$202<>"",ROW($U$3:$U$202),ROW()+ROWS($U$3:$U$202))),ROW()-ROW($AD$3:$AD$202)+1),COLUMN($U$3:$U$202),4))) -> 0 | AE19: =IF(ROW()-ROW($V$3:$V$202)+1>ROWS($AE$3:$AE$202)-COUNTBLANK($V$3:$V$202),"",INDIRECT(ADDRESS(SMALL((IF($V$3:$V$202<>"",ROW($V$3:$V$202),ROW()+ROWS($V$3:$V$202))),ROW()-ROW($AE$3:$AE$202)+1),COLUMN($V$3:$V$202),4))) -> 0 | AF19: =IF(ROW()-ROW($W$3:$W$202)+1>ROWS($AF$3:$AF$202)-COUNTBLANK($W$3:$W$202),"",INDIRECT(ADDRESS(SMALL((IF($W$3:$W$202<>"",ROW($W$3:$W$202),ROW()+ROWS($W$3:$W$202))),ROW()-ROW($AF$3:$AF$202)+1),COLUMN($W$3:$W$202),4))) -> 1 | AG19: =IF(ROW()-ROW($X$3:$X$202)+1>ROWS($AG$3:$AG$202)-COUNTBLANK($X$3:$X$202),"",INDIRECT(ADDRESS(SMALL((IF($X$3:$X$202<>"",ROW($X$3:$X$202),ROW()+ROWS($X$3:$X$203))),ROW()-ROW($AG$3:$AG$202)+1),COLUMN($X$3:$X$202),4))) -> 2
A20: ='Лист набл. руч. раб. - 1'!A24 ->  | B20: =IF('Лист набл. руч. раб. - 1'!B24="","",'Лист набл. руч. раб. - 1'!B24) ->  | C20: =IF('Лист набл. руч. раб. - 1'!R24="","",'Лист набл. руч. раб. - 1'!R24) ->  | I20: ='Лист набл. руч. раб. - 2'!A24 ->  | J20: =IF('Лист набл. руч. раб. - 2'!B24="","",'Лист набл. руч. раб. - 2'!B24) ->  | K20: =IF('Лист набл. руч. раб. - 2'!R24="","",'Лист набл. руч. раб. - 2'!R24) ->  | Q20: 18 | R20: =IFERROR(INDEX($B$3:$B$102,MATCH(Q20,$A$3:$A$102,0)),"") ->  | S20: =IFERROR(INDEX($C$3:$C$102,MATCH(Q20,$A$3:$A$102,0)),"") ->  | U20: =IFERROR(INDEX(F$1:F$102,MATCH($Q20,$A:$A,0)+1),"") ->  | V20: =IFERROR(INDEX(G$1:G$102,MATCH($Q20,$A:$A,0)+1),"") ->  | Z20: 18 | AA20: =IF(ROW()-ROW($R$3:$R$202)+1>ROWS($AA$3:$AA$202)-COUNTBLANK($R$3:$R$202),"",INDIRECT(ADDRESS(SMALL((IF($R$3:$R$202<>"",ROW($R$3:$R$202),ROW()+ROWS($R$3:$R$202))),ROW()-ROW($AA$3:$AA$202)+1),COLUMN($R$3:$R$202),4))) -> Подсоединение кабеля к электродвигателю. (ремонт металлорукава | AB20: =IF(ROW()-ROW($S$3:$S$202)+1>ROWS($AB$3:$AB$202)-COUNTBLANK($S$3:$S$202),"",INDIRECT(ADDRESS(SMALL((IF($S$3:$S$202<>"",ROW($S$3:$S$202),ROW()+ROWS($S$3:$S$202))),ROW()-ROW($AB$3:$AB$202)+1),COLUMN($S$3:$S$202),4))) -> 40 | AC20: =IF(ROW()-ROW($T$3:$T$202)+1>ROWS($AC$3:$AC$202)-COUNTBLANK($T$3:$T$202),"",INDIRECT(ADDRESS(SMALL((IF($T$3:$T$202<>"",ROW($T$3:$T$202),ROW()+ROWS($T$3:$T$202))),ROW()-ROW($AC$3:$AC$202)+1),COLUMN($T$3:$T$202),4))) -> 0 | AD20: =IF(ROW()-ROW($U$3:$U$202)+1>ROWS($AD$3:$AD$202)-COUNTBLANK($U$3:$U$202),"",INDIRECT(ADDRESS(SMALL((IF($U$3:$U$202<>"",ROW($U$3:$U$202),ROW()+ROWS($U$3:$U$202))),ROW()-ROW($AD$3:$AD$202)+1),COLUMN($U$3:$U$202),4))) -> 0 | AE20: =IF(ROW()-ROW($V$3:$V$202)+1>ROWS($AE$3:$AE$202)-COUNTBLANK($V$3:$V$202),"",INDIRECT(ADDRESS(SMALL((IF($V$3:$V$202<>"",ROW($V$3:$V$202),ROW()+ROWS($V$3:$V$202))),ROW()-ROW($AE$3:$AE$202)+1),COLUMN($V$3:$V$202),4))) -> 0 | AF20: =IF(ROW()-ROW($W$3:$W$202)+1>ROWS($AF$3:$AF$202)-COUNTBLANK($W$3:$W$202),"",INDIRECT(ADDRESS(SMALL((IF($W$3:$W$202<>"",ROW($W$3:$W$202),ROW()+ROWS($W$3:$W$202))),ROW()-ROW($AF$3:$AF$202)+1),COLUMN($W$3:$W$202),4))) -> 1 | AG20: =IF(ROW()-ROW($X$3:$X$202)+1>ROWS($AG$3:$AG$202)-COUNTBLANK($X$3:$X$202),"",INDIRECT(ADDRESS(SMALL((IF($X$3:$X$202<>"",ROW($X$3:$X$202),ROW()+ROWS($X$3:$X$203))),ROW()-ROW($AG$3:$AG$202)+1),COLUMN($X$3:$X$202),4))) -> 2
A21: ='Лист набл. руч. раб. - 1'!A25 ->  | B21: =IF('Лист набл. руч. раб. - 1'!B25="","",'Лист набл. руч. раб. - 1'!B25) ->  | C21: =IF('Лист набл. руч. раб. - 1'!R25="","",'Лист набл. руч. раб. - 1'!R25) ->  | I21: ='Лист набл. руч. раб. - 2'!A25 ->  | J21: =IF('Лист набл. руч. раб. - 2'!B25="","",'Лист набл. руч. раб. - 2'!B25) ->  | K21: =IF('Лист набл. руч. раб. - 2'!R25="","",'Лист набл. руч. раб. - 2'!R25) ->  | Q21: 19 | R21: =IFERROR(INDEX($B$3:$B$102,MATCH(Q21,$A$3:$A$102,0)),"") ->  | S21: =IFERROR(INDEX($C$3:$C$102,MATCH(Q21,$A$3:$A$102,0)),"") ->  | U21: =IFERROR(INDEX(F$1:F$102,MATCH($Q21,$A:$A,0)+1),"") ->  | V21: =IFERROR(INDEX(G$1:G$102,MATCH($Q21,$A:$A,0)+1),"") ->  | Z21: 19 | AA21: =IF(ROW()-ROW($R$3:$R$202)+1>ROWS($AA$3:$AA$202)-COUNTBLANK($R$3:$R$202),"",INDIRECT(ADDRESS(SMALL((IF($R$3:$R$202<>"",ROW($R$3:$R$202),ROW()+ROWS($R$3:$R$202))),ROW()-ROW($AA$3:$AA$202)+1),COLUMN($R$3:$R$202),4))) -> Установка крышки брно | AB21: =IF(ROW()-ROW($S$3:$S$202)+1>ROWS($AB$3:$AB$202)-COUNTBLANK($S$3:$S$202),"",INDIRECT(ADDRESS(SMALL((IF($S$3:$S$202<>"",ROW($S$3:$S$202),ROW()+ROWS($S$3:$S$202))),ROW()-ROW($AB$3:$AB$202)+1),COLUMN($S$3:$S$202),4))) -> 20 | AC21: =IF(ROW()-ROW($T$3:$T$202)+1>ROWS($AC$3:$AC$202)-COUNTBLANK($T$3:$T$202),"",INDIRECT(ADDRESS(SMALL((IF($T$3:$T$202<>"",ROW($T$3:$T$202),ROW()+ROWS($T$3:$T$202))),ROW()-ROW($AC$3:$AC$202)+1),COLUMN($T$3:$T$202),4))) -> 0 | AD21: =IF(ROW()-ROW($U$3:$U$202)+1>ROWS($AD$3:$AD$202)-COUNTBLANK($U$3:$U$202),"",INDIRECT(ADDRESS(SMALL((IF($U$3:$U$202<>"",ROW($U$3:$U$202),ROW()+ROWS($U$3:$U$202))),ROW()-ROW($AD$3:$AD$202)+1),COLUMN($U$3:$U$202),4))) -> 0 | AE21: =IF(ROW()-ROW($V$3:$V$202)+1>ROWS($AE$3:$AE$202)-COUNTBLANK($V$3:$V$202),"",INDIRECT(ADDRESS(SMALL((IF($V$3:$V$202<>"",ROW($V$3:$V$202),ROW()+ROWS($V$3:$V$202))),ROW()-ROW($AE$3:$AE$202)+1),COLUMN($V$3:$V$202),4))) -> 0 | AF21: =IF(ROW()-ROW($W$3:$W$202)+1>ROWS($AF$3:$AF$202)-COUNTBLANK($W$3:$W$202),"",INDIRECT(ADDRESS(SMALL((IF($W$3:$W$202<>"",ROW($W$3:$W$202),ROW()+ROWS($W$3:$W$202))),ROW()-ROW($AF$3:$AF$202)+1),COLUMN($W$3:$W$202),4))) -> 1 | AG21: =IF(ROW()-ROW($X$3:$X$202)+1>ROWS($AG$3:$AG$202)-COUNTBLANK($X$3:$X$202),"",INDIRECT(ADDRESS(SMALL((IF($X$3:$X$202<>"",ROW($X$3:$X$202),ROW()+ROWS($X$3:$X$203))),ROW()-ROW($AG$3:$AG$202)+1),COLUMN($X$3:$X$202),4))) -> 2
A22: ='Лист набл. руч. раб. - 1'!A26 ->  | B22: =IF('Лист набл. руч. раб. - 1'!B26="","",'Лист набл. руч. раб. - 1'!B26) ->  | C22: =IF('Лист набл. руч. раб. - 1'!R26="","",'Лист набл. руч. раб. - 1'!R26) ->  | I22: ='Лист набл. руч. раб. - 2'!A26 ->  | J22: =IF('Лист набл. руч. раб. - 2'!B26="","",'Лист набл. руч. раб. - 2'!B26) ->  | K22: =IF('Лист набл. руч. раб. - 2'!R26="","",'Лист набл. руч. раб. - 2'!R26) ->  | Q22: 20 | R22: =IFERROR(INDEX($B$3:$B$102,MATCH(Q22,$A$3:$A$102,0)),"") ->  | S22: =IFERROR(INDEX($C$3:$C$102,MATCH(Q22,$A$3:$A$102,0)),"") ->  | U22: =IFERROR(INDEX(F$1:F$102,MATCH($Q22,$A:$A,0)+1),"") ->  | V22: =IFERROR(INDEX(G$1:G$102,MATCH($Q22,$A:$A,0)+1),"") ->  | Z22: 20 | AA22: =IF(ROW()-ROW($R$3:$R$202)+1>ROWS($AA$3:$AA$202)-COUNTBLANK($R$3:$R$202),"",INDIRECT(ADDRESS(SMALL((IF($R$3:$R$202<>"",ROW($R$3:$R$202),ROW()+ROWS($R$3:$R$202))),ROW()-ROW($AA$3:$AA$202)+1),COLUMN($R$3:$R$202),4))) -> Собрать инструмент, материалы, приспособления. Убрать рабочее место | AB22: =IF(ROW()-ROW($S$3:$S$202)+1>ROWS($AB$3:$AB$202)-COUNTBLANK($S$3:$S$202),"",INDIRECT(ADDRESS(SMALL((IF($S$3:$S$202<>"",ROW($S$3:$S$202),ROW()+ROWS($S$3:$S$202))),ROW()-ROW($AB$3:$AB$202)+1),COLUMN($S$3:$S$202),4))) -> 80 | AC22: =IF(ROW()-ROW($T$3:$T$202)+1>ROWS($AC$3:$AC$202)-COUNTBLANK($T$3:$T$202),"",INDIRECT(ADDRESS(SMALL((IF($T$3:$T$202<>"",ROW($T$3:$T$202),ROW()+ROWS($T$3:$T$202))),ROW()-ROW($AC$3:$AC$202)+1),COLUMN($T$3:$T$202),4))) -> 0 | AD22: =IF(ROW()-ROW($U$3:$U$202)+1>ROWS($AD$3:$AD$202)-COUNTBLANK($U$3:$U$202),"",INDIRECT(ADDRESS(SMALL((IF($U$3:$U$202<>"",ROW($U$3:$U$202),ROW()+ROWS($U$3:$U$202))),ROW()-ROW($AD$3:$AD$202)+1),COLUMN($U$3:$U$202),4))) ->  | AE22: =IF(ROW()-ROW($V$3:$V$202)+1>ROWS($AE$3:$AE$202)-COUNTBLANK($V$3:$V$202),"",INDIRECT(ADDRESS(SMALL((IF($V$3:$V$202<>"",ROW($V$3:$V$202),ROW()+ROWS($V$3:$V$202))),ROW()-ROW($AE$3:$AE$202)+1),COLUMN($V$3:$V$202),4))) ->  | AF22: =IF(ROW()-ROW($W$3:$W$202)+1>ROWS($AF$3:$AF$202)-COUNTBLANK($W$3:$W$202),"",INDIRECT(ADDRESS(SMALL((IF($W$3:$W$202<>"",ROW($W$3:$W$202),ROW()+ROWS($W$3:$W$202))),ROW()-ROW($AF$3:$AF$202)+1),COLUMN($W$3:$W$202),4))) -> 1 | AG22: =IF(ROW()-ROW($X$3:$X$202)+1>ROWS($AG$3:$AG$202)-COUNTBLANK($X$3:$X$202),"",INDIRECT(ADDRESS(SMALL((IF($X$3:$X$202<>"",ROW($X$3:$X$202),ROW()+ROWS($X$3:$X$203))),ROW()-ROW($AG$3:$AG$202)+1),COLUMN($X$3:$X$202),4))) -> 2
A23: ='Лист набл. руч. раб. - 1'!A27 ->  | B23: =IF('Лист набл. руч. раб. - 1'!B27="","",'Лист набл. руч. раб. - 1'!B27) ->  | C23: =IF('Лист набл. руч. раб. - 1'!R27="","",'Лист набл. руч. раб. - 1'!R27) ->  | I23: ='Лист набл. руч. раб. - 2'!A27 ->  | J23: =IF('Лист набл. руч. раб. - 2'!B27="","",'Лист набл. руч. раб. - 2'!B27) ->  | K23: =IF('Лист набл. руч. раб. - 2'!R27="","",'Лист набл. руч. раб. - 2'!R27) ->  | Q23: 21 | R23: =IFERROR(INDEX($B$3:$B$102,MATCH(Q23,$A$3:$A$102,0)),"") ->  | S23: =IFERROR(INDEX($C$3:$C$102,MATCH(Q23,$A$3:$A$102,0)),"") ->  | U23: =IFERROR(INDEX(F$1:F$102,MATCH($Q23,$A:$A,0)+1),"") ->  | V23: =IFERROR(INDEX(G$1:G$102,MATCH($Q23,$A:$A,0)+1),"") ->  | Z23: 21 | AA23: =IF(ROW()-ROW($R$3:$R$202)+1>ROWS($AA$3:$AA$202)-COUNTBLANK($R$3:$R$202),"",INDIRECT(ADDRESS(SMALL((IF($R$3:$R$202<>"",ROW($R$3:$R$202),ROW()+ROWS($R$3:$R$202))),ROW()-ROW($AA$3:$AA$202)+1),COLUMN($R$3:$R$202),4))) ->  | AB23: =IF(ROW()-ROW($S$3:$S$202)+1>ROWS($AB$3:$AB$202)-COUNTBLANK($S$3:$S$202),"",INDIRECT(ADDRESS(SMALL((IF($S$3:$S$202<>"",ROW($S$3:$S$202),ROW()+ROWS($S$3:$S$202))),ROW()-ROW($AB$3:$AB$202)+1),COLUMN($S$3:$S$202),4))) ->  | AC23: =IF(ROW()-ROW($T$3:$T$202)+1>ROWS($AC$3:$AC$202)-COUNTBLANK($T$3:$T$202),"",INDIRECT(ADDRESS(SMALL((IF($T$3:$T$202<>"",ROW($T$3:$T$202),ROW()+ROWS($T$3:$T$202))),ROW()-ROW($AC$3:$AC$202)+1),COLUMN($T$3:$T$202),4))) ->  | AD23: =IF(ROW()-ROW($U$3:$U$202)+1>ROWS($AD$3:$AD$202)-COUNTBLANK($U$3:$U$202),"",INDIRECT(ADDRESS(SMALL((IF($U$3:$U$202<>"",ROW($U$3:$U$202),ROW()+ROWS($U$3:$U$202))),ROW()-ROW($AD$3:$AD$202)+1),COLUMN($U$3:$U$202),4))) ->  | AE23: =IF(ROW()-ROW($V$3:$V$202)+1>ROWS($AE$3:$AE$202)-COUNTBLANK($V$3:$V$202),"",INDIRECT(ADDRESS(SMALL((IF($V$3:$V$202<>"",ROW($V$3:$V$202),ROW()+ROWS($V$3:$V$202))),ROW()-ROW($AE$3:$AE$202)+1),COLUMN($V$3:$V$202),4))) ->  | AF23: =IF(ROW()-ROW($W$3:$W$202)+1>ROWS($AF$3:$AF$202)-COUNTBLANK($W$3:$W$202),"",INDIRECT(ADDRESS(SMALL((IF($W$3:$W$202<>"",ROW($W$3:$W$202),ROW()+ROWS($W$3:$W$202))),ROW()-ROW($AF$3:$AF$202)+1),COLUMN($W$3:$W$202),4))) ->  | AG23: =IF(ROW()-ROW($X$3:$X$202)+1>ROWS($AG$3:$AG$202)-COUNTBLANK($X$3:$X$202),"",INDIRECT(ADDRESS(SMALL((IF($X$3:$X$202<>"",ROW($X$3:$X$202),ROW()+ROWS($X$3:$X$203))),ROW()-ROW($AG$3:$AG$202)+1),COLUMN($X$3:$X$202),4))) -> 
A24: ='Лист набл. руч. раб. - 1'!A28 ->  | B24: =IF('Лист набл. руч. раб. - 1'!B28="","",'Лист набл. руч. раб. - 1'!B28) ->  | C24: =IF('Лист набл. руч. раб. - 1'!R28="","",'Лист набл. руч. раб. - 1'!R28) ->  | I24: ='Лист набл. руч. раб. - 2'!A28 ->  | J24: =IF('Лист набл. руч. раб. - 2'!B28="","",'Лист набл. руч. раб. - 2'!B28) ->  | K24: =IF('Лист набл. руч. раб. - 2'!R28="","",'Лист набл. руч. раб. - 2'!R28) ->  | Q24: 22 | R24: =IFERROR(INDEX($B$3:$B$102,MATCH(Q24,$A$3:$A$102,0)),"") ->  | S24: =IFERROR(INDEX($C$3:$C$102,MATCH(Q24,$A$3:$A$102,0)),"") ->  | U24: =IFERROR(INDEX(F$1:F$102,MATCH($Q24,$A:$A,0)+1),"") ->  | V24: =IFERROR(INDEX(G$1:G$102,MATCH($Q24,$A:$A,0)+1),"") ->  | Z24: 22 | AA24: =IF(ROW()-ROW($R$3:$R$202)+1>ROWS($AA$3:$AA$202)-COUNTBLANK($R$3:$R$202),"",INDIRECT(ADDRESS(SMALL((IF($R$3:$R$202<>"",ROW($R$3:$R$202),ROW()+ROWS($R$3:$R$202))),ROW()-ROW($AA$3:$AA$202)+1),COLUMN($R$3:$R$202),4))) ->  | AB24: =IF(ROW()-ROW($S$3:$S$202)+1>ROWS($AB$3:$AB$202)-COUNTBLANK($S$3:$S$202),"",INDIRECT(ADDRESS(SMALL((IF($S$3:$S$202<>"",ROW($S$3:$S$202),ROW()+ROWS($S$3:$S$202))),ROW()-ROW($AB$3:$AB$202)+1),COLUMN($S$3:$S$202),4))) ->  | AC24: =IF(ROW()-ROW($T$3:$T$202)+1>ROWS($AC$3:$AC$202)-COUNTBLANK($T$3:$T$202),"",INDIRECT(ADDRESS(SMALL((IF($T$3:$T$202<>"",ROW($T$3:$T$202),ROW()+ROWS($T$3:$T$202))),ROW()-ROW($AC$3:$AC$202)+1),COLUMN($T$3:$T$202),4))) ->  | AD24: =IF(ROW()-ROW($U$3:$U$202)+1>ROWS($AD$3:$AD$202)-COUNTBLANK($U$3:$U$202),"",INDIRECT(ADDRESS(SMALL((IF($U$3:$U$202<>"",ROW($U$3:$U$202),ROW()+ROWS($U$3:$U$202))),ROW()-ROW($AD$3:$AD$202)+1),COLUMN($U$3:$U$202),4))) ->  | AE24: =IF(ROW()-ROW($V$3:$V$202)+1>ROWS($AE$3:$AE$202)-COUNTBLANK($V$3:$V$202),"",INDIRECT(ADDRESS(SMALL((IF($V$3:$V$202<>"",ROW($V$3:$V$202),ROW()+ROWS($V$3:$V$202))),ROW()-ROW($AE$3:$AE$202)+1),COLUMN($V$3:$V$202),4))) ->  | AF24: =IF(ROW()-ROW($W$3:$W$202)+1>ROWS($AF$3:$AF$202)-COUNTBLANK($W$3:$W$202),"",INDIRECT(ADDRESS(SMALL((IF($W$3:$W$202<>"",ROW($W$3:$W$202),ROW()+ROWS($W$3:$W$202))),ROW()-ROW($AF$3:$AF$202)+1),COLUMN($W$3:$W$202),4))) ->  | AG24: =IF(ROW()-ROW($X$3:$X$202)+1>ROWS($AG$3:$AG$202)-COUNTBLANK($X$3:$X$202),"",INDIRECT(ADDRESS(SMALL((IF($X$3:$X$202<>"",ROW($X$3:$X$202),ROW()+ROWS($X$3:$X$203))),ROW()-ROW($AG$3:$AG$202)+1),COLUMN($X$3:$X$202),4))) -> 
A25: ='Лист набл. руч. раб. - 1'!A29 ->  | B25: =IF('Лист набл. руч. раб. - 1'!B29="","",'Лист набл. руч. раб. - 1'!B29) ->  | C25: =IF('Лист набл. руч. раб. - 1'!R29="","",'Лист набл. руч. раб. - 1'!R29) ->  | I25: ='Лист набл. руч. раб. - 2'!A29 ->  | J25: =IF('Лист набл. руч. раб. - 2'!B29="","",'Лист набл. руч. раб. - 2'!B29) ->  | K25: =IF('Лист набл. руч. раб. - 2'!R29="","",'Лист набл. руч. раб. - 2'!R29) ->  | Q25: 23 | R25: =IFERROR(INDEX($B$3:$B$102,MATCH(Q25,$A$3:$A$102,0)),"") ->  | S25: =IFERROR(INDEX($C$3:$C$102,MATCH(Q25,$A$3:$A$102,0)),"") ->  | U25: =IFERROR(INDEX(F$1:F$102,MATCH($Q25,$A:$A,0)+1),"") ->  | V25: =IFERROR(INDEX(G$1:G$102,MATCH($Q25,$A:$A,0)+1),"") ->  | Z25: 23 | AA25: =IF(ROW()-ROW($R$3:$R$202)+1>ROWS($AA$3:$AA$202)-COUNTBLANK($R$3:$R$202),"",INDIRECT(ADDRESS(SMALL((IF($R$3:$R$202<>"",ROW($R$3:$R$202),ROW()+ROWS($R$3:$R$202))),ROW()-ROW($AA$3:$AA$202)+1),COLUMN($R$3:$R$202),4))) ->  | AB25: =IF(ROW()-ROW($S$3:$S$202)+1>ROWS($AB$3:$AB$202)-COUNTBLANK($S$3:$S$202),"",INDIRECT(ADDRESS(SMALL((IF($S$3:$S$202<>"",ROW($S$3:$S$202),ROW()+ROWS($S$3:$S$202))),ROW()-ROW($AB$3:$AB$202)+1),COLUMN($S$3:$S$202),4))) ->  | AC25: =IF(ROW()-ROW($T$3:$T$202)+1>ROWS($AC$3:$AC$202)-COUNTBLANK($T$3:$T$202),"",INDIRECT(ADDRESS(SMALL((IF($T$3:$T$202<>"",ROW($T$3:$T$202),ROW()+ROWS($T$3:$T$202))),ROW()-ROW($AC$3:$AC$202)+1),COLUMN($T$3:$T$202),4))) ->  | AD25: =IF(ROW()-ROW($U$3:$U$202)+1>ROWS($AD$3:$AD$202)-COUNTBLANK($U$3:$U$202),"",INDIRECT(ADDRESS(SMALL((IF($U$3:$U$202<>"",ROW($U$3:$U$202),ROW()+ROWS($U$3:$U$202))),ROW()-ROW($AD$3:$AD$202)+1),COLUMN($U$3:$U$202),4))) ->  | AE25: =IF(ROW()-ROW($V$3:$V$202)+1>ROWS($AE$3:$AE$202)-COUNTBLANK($V$3:$V$202),"",INDIRECT(ADDRESS(SMALL((IF($V$3:$V$202<>"",ROW($V$3:$V$202),ROW()+ROWS($V$3:$V$202))),ROW()-ROW($AE$3:$AE$202)+1),COLUMN($V$3:$V$202),4))) ->  | AF25: =IF(ROW()-ROW($W$3:$W$202)+1>ROWS($AF$3:$AF$202)-COUNTBLANK($W$3:$W$202),"",INDIRECT(ADDRESS(SMALL((IF($W$3:$W$202<>"",ROW($W$3:$W$202),ROW()+ROWS($W$3:$W$202))),ROW()-ROW($AF$3:$AF$202)+1),COLUMN($W$3:$W$202),4))) ->  | AG25: =IF(ROW()-ROW($X$3:$X$202)+1>ROWS($AG$3:$AG$202)-COUNTBLANK($X$3:$X$202),"",INDIRECT(ADDRESS(SMALL((IF($X$3:$X$202<>"",ROW($X$3:$X$202),ROW()+ROWS($X$3:$X$203))),ROW()-ROW($AG$3:$AG$202)+1),COLUMN($X$3:$X$202),4))) -> 
A26: ='Лист набл. руч. раб. - 1'!A30 ->  | B26: =IF('Лист набл. руч. раб. - 1'!B30="","",'Лист набл. руч. раб. - 1'!B30) ->  | C26: =IF('Лист набл. руч. раб. - 1'!R30="","",'Лист набл. руч. раб. - 1'!R30) ->  | I26: ='Лист набл. руч. раб. - 2'!A30 ->  | J26: =IF('Лист набл. руч. раб. - 2'!B30="","",'Лист набл. руч. раб. - 2'!B30) ->  | K26: =IF('Лист набл. руч. раб. - 2'!R30="","",'Лист набл. руч. раб. - 2'!R30) ->  | O26: =IF(J26="","",IFERROR(VLOOKUP($O$1,J26:K26,2,FALSE),0)) ->  | Q26: 24 | R26: =IFERROR(INDEX($B$3:$B$102,MATCH(Q26,$A$3:$A$102,0)),"") ->  | S26: =IFERROR(INDEX($C$3:$C$102,MATCH(Q26,$A$3:$A$102,0)),"") ->  | U26: =IFERROR(INDEX(F$1:F$102,MATCH($Q26,$A:$A,0)+1),"") ->  | V26: =IFERROR(INDEX(G$1:G$102,MATCH($Q26,$A:$A,0)+1),"") ->  | Z26: 24 | AA26: =IF(ROW()-ROW($R$3:$R$202)+1>ROWS($AA$3:$AA$202)-COUNTBLANK($R$3:$R$202),"",INDIRECT(ADDRESS(SMALL((IF($R$3:$R$202<>"",ROW($R$3:$R$202),ROW()+ROWS($R$3:$R$202))),ROW()-ROW($AA$3:$AA$202)+1),COLUMN($R$3:$R$202),4))) ->  | AB26: =IF(ROW()-ROW($S$3:$S$202)+1>ROWS($AB$3:$AB$202)-COUNTBLANK($S$3:$S$202),"",INDIRECT(ADDRESS(SMALL((IF($S$3:$S$202<>"",ROW($S$3:$S$202),ROW()+ROWS($S$3:$S$202))),ROW()-ROW($AB$3:$AB$202)+1),COLUMN($S$3:$S$202),4))) ->  | AC26: =IF(ROW()-ROW($T$3:$T$202)+1>ROWS($AC$3:$AC$202)-COUNTBLANK($T$3:$T$202),"",INDIRECT(ADDRESS(SMALL((IF($T$3:$T$202<>"",ROW($T$3:$T$202),ROW()+ROWS($T$3:$T$202))),ROW()-ROW($AC$3:$AC$202)+1),COLUMN($T$3:$T$202),4))) ->  | AD26: =IF(ROW()-ROW($U$3:$U$202)+1>ROWS($AD$3:$AD$202)-COUNTBLANK($U$3:$U$202),"",INDIRECT(ADDRESS(SMALL((IF($U$3:$U$202<>"",ROW($U$3:$U$202),ROW()+ROWS($U$3:$U$202))),ROW()-ROW($AD$3:$AD$202)+1),COLUMN($U$3:$U$202),4))) ->  | AE26: =IF(ROW()-ROW($V$3:$V$202)+1>ROWS($AE$3:$AE$202)-COUNTBLANK($V$3:$V$202),"",INDIRECT(ADDRESS(SMALL((IF($V$3:$V$202<>"",ROW($V$3:$V$202),ROW()+ROWS($V$3:$V$202))),ROW()-ROW($AE$3:$AE$202)+1),COLUMN($V$3:$V$202),4))) ->  | AF26: =IF(ROW()-ROW($W$3:$W$202)+1>ROWS($AF$3:$AF$202)-COUNTBLANK($W$3:$W$202),"",INDIRECT(ADDRESS(SMALL((IF($W$3:$W$202<>"",ROW($W$3:$W$202),ROW()+ROWS($W$3:$W$202))),ROW()-ROW($AF$3:$AF$202)+1),COLUMN($W$3:$W$202),4))) ->  | AG26: =IF(ROW()-ROW($X$3:$X$202)+1>ROWS($AG$3:$AG$202)-COUNTBLANK($X$3:$X$202),"",INDIRECT(ADDRESS(SMALL((IF($X$3:$X$202<>"",ROW($X$3:$X$202),ROW()+ROWS($X$3:$X$203))),ROW()-ROW($AG$3:$AG$202)+1),COLUMN($X$3:$X$202),4))) -> 
A27: ='Лист набл. руч. раб. - 1'!A31 ->  | B27: =IF('Лист набл. руч. раб. - 1'!B31="","",'Лист набл. руч. раб. - 1'!B31) ->  | C27: =IF('Лист набл. руч. раб. - 1'!R31="","",'Лист набл. руч. раб. - 1'!R31) ->  | I27: ='Лист набл. руч. раб. - 2'!A31 ->  | J27: =IF('Лист набл. руч. раб. - 2'!B31="","",'Лист набл. руч. раб. - 2'!B31) ->  | K27: =IF('Лист набл. руч. раб. - 2'!R31="","",'Лист набл. руч. раб. - 2'!R31) ->  | Q27: 25 | R27: =IFERROR(INDEX($B$3:$B$102,MATCH(Q27,$A$3:$A$102,0)),"") ->  | S27: =IFERROR(INDEX($C$3:$C$102,MATCH(Q27,$A$3:$A$102,0)),"") ->  | U27: =IFERROR(INDEX(F$1:F$102,MATCH($Q27,$A:$A,0)+1),"") ->  | V27: =IFERROR(INDEX(G$1:G$102,MATCH($Q27,$A:$A,0)+1),"") ->  | Z27: 25 | AA27: =IF(ROW()-ROW($R$3:$R$202)+1>ROWS($AA$3:$AA$202)-COUNTBLANK($R$3:$R$202),"",INDIRECT(ADDRESS(SMALL((IF($R$3:$R$202<>"",ROW($R$3:$R$202),ROW()+ROWS($R$3:$R$202))),ROW()-ROW($AA$3:$AA$202)+1),COLUMN($R$3:$R$202),4))) ->  | AB27: =IF(ROW()-ROW($S$3:$S$202)+1>ROWS($AB$3:$AB$202)-COUNTBLANK($S$3:$S$202),"",INDIRECT(ADDRESS(SMALL((IF($S$3:$S$202<>"",ROW($S$3:$S$202),ROW()+ROWS($S$3:$S$202))),ROW()-ROW($AB$3:$AB$202)+1),COLUMN($S$3:$S$202),4))) ->  | AC27: =IF(ROW()-ROW($T$3:$T$202)+1>ROWS($AC$3:$AC$202)-COUNTBLANK($T$3:$T$202),"",INDIRECT(ADDRESS(SMALL((IF($T$3:$T$202<>"",ROW($T$3:$T$202),ROW()+ROWS($T$3:$T$202))),ROW()-ROW($AC$3:$AC$202)+1),COLUMN($T$3:$T$202),4))) ->  | AD27: =IF(ROW()-ROW($U$3:$U$202)+1>ROWS($AD$3:$AD$202)-COUNTBLANK($U$3:$U$202),"",INDIRECT(ADDRESS(SMALL((IF($U$3:$U$202<>"",ROW($U$3:$U$202),ROW()+ROWS($U$3:$U$202))),ROW()-ROW($AD$3:$AD$202)+1),COLUMN($U$3:$U$202),4))) ->  | AE27: =IF(ROW()-ROW($V$3:$V$202)+1>ROWS($AE$3:$AE$202)-COUNTBLANK($V$3:$V$202),"",INDIRECT(ADDRESS(SMALL((IF($V$3:$V$202<>"",ROW($V$3:$V$202),ROW()+ROWS($V$3:$V$202))),ROW()-ROW($AE$3:$AE$202)+1),COLUMN($V$3:$V$202),4))) ->  | AF27: =IF(ROW()-ROW($W$3:$W$202)+1>ROWS($AF$3:$AF$202)-COUNTBLANK($W$3:$W$202),"",INDIRECT(ADDRESS(SMALL((IF($W$3:$W$202<>"",ROW($W$3:$W$202),ROW()+ROWS($W$3:$W$202))),ROW()-ROW($AF$3:$AF$202)+1),COLUMN($W$3:$W$202),4))) ->  | AG27: =IF(ROW()-ROW($X$3:$X$202)+1>ROWS($AG$3:$AG$202)-COUNTBLANK($X$3:$X$202),"",INDIRECT(ADDRESS(SMALL((IF($X$3:$X$202<>"",ROW($X$3:$X$202),ROW()+ROWS($X$3:$X$203))),ROW()-ROW($AG$3:$AG$202)+1),COLUMN($X$3:$X$202),4))) -> 
A28: ='Лист набл. руч. раб. - 1'!A32 ->  | B28: =IF('Лист набл. руч. раб. - 1'!B32="","",'Лист набл. руч. раб. - 1'!B32) ->  | C28: =IF('Лист набл. руч. раб. - 1'!R32="","",'Лист набл. руч. раб. - 1'!R32) ->  | I28: ='Лист набл. руч. раб. - 2'!A32 ->  | J28: =IF('Лист набл. руч. раб. - 2'!B32="","",'Лист набл. руч. раб. - 2'!B32) ->  | K28: =IF('Лист набл. руч. раб. - 2'!R32="","",'Лист набл. руч. раб. - 2'!R32) ->  | Q28: 26 | R28: =IFERROR(INDEX($B$3:$B$102,MATCH(Q28,$A$3:$A$102,0)),"") ->  | S28: =IFERROR(INDEX($C$3:$C$102,MATCH(Q28,$A$3:$A$102,0)),"") ->  | U28: =IFERROR(INDEX(F$1:F$102,MATCH($Q28,$A:$A,0)+1),"") ->  | V28: =IFERROR(INDEX(G$1:G$102,MATCH($Q28,$A:$A,0)+1),"") ->  | Z28: 26 | AA28: =IF(ROW()-ROW($R$3:$R$202)+1>ROWS($AA$3:$AA$202)-COUNTBLANK($R$3:$R$202),"",INDIRECT(ADDRESS(SMALL((IF($R$3:$R$202<>"",ROW($R$3:$R$202),ROW()+ROWS($R$3:$R$202))),ROW()-ROW($AA$3:$AA$202)+1),COLUMN($R$3:$R$202),4))) ->  | AB28: =IF(ROW()-ROW($S$3:$S$202)+1>ROWS($AB$3:$AB$202)-COUNTBLANK($S$3:$S$202),"",INDIRECT(ADDRESS(SMALL((IF($S$3:$S$202<>"",ROW($S$3:$S$202),ROW()+ROWS($S$3:$S$202))),ROW()-ROW($AB$3:$AB$202)+1),COLUMN($S$3:$S$202),4))) ->  | AC28: =IF(ROW()-ROW($T$3:$T$202)+1>ROWS($AC$3:$AC$202)-COUNTBLANK($T$3:$T$202),"",INDIRECT(ADDRESS(SMALL((IF($T$3:$T$202<>"",ROW($T$3:$T$202),ROW()+ROWS($T$3:$T$202))),ROW()-ROW($AC$3:$AC$202)+1),COLUMN($T$3:$T$202),4))) ->  | AD28: =IF(ROW()-ROW($U$3:$U$202)+1>ROWS($AD$3:$AD$202)-COUNTBLANK($U$3:$U$202),"",INDIRECT(ADDRESS(SMALL((IF($U$3:$U$202<>"",ROW($U$3:$U$202),ROW()+ROWS($U$3:$U$202))),ROW()-ROW($AD$3:$AD$202)+1),COLUMN($U$3:$U$202),4))) ->  | AE28: =IF(ROW()-ROW($V$3:$V$202)+1>ROWS($AE$3:$AE$202)-COUNTBLANK($V$3:$V$202),"",INDIRECT(ADDRESS(SMALL((IF($V$3:$V$202<>"",ROW($V$3:$V$202),ROW()+ROWS($V$3:$V$202))),ROW()-ROW($AE$3:$AE$202)+1),COLUMN($V$3:$V$202),4))) ->  | AF28: =IF(ROW()-ROW($W$3:$W$202)+1>ROWS($AF$3:$AF$202)-COUNTBLANK($W$3:$W$202),"",INDIRECT(ADDRESS(SMALL((IF($W$3:$W$202<>"",ROW($W$3:$W$202),ROW()+ROWS($W$3:$W$202))),ROW()-ROW($AF$3:$AF$202)+1),COLUMN($W$3:$W$202),4))) ->  | AG28: =IF(ROW()-ROW($X$3:$X$202)+1>ROWS($AG$3:$AG$202)-COUNTBLANK($X$3:$X$202),"",INDIRECT(ADDRESS(SMALL((IF($X$3:$X$202<>"",ROW($X$3:$X$202),ROW()+ROWS($X$3:$X$203))),ROW()-ROW($AG$3:$AG$202)+1),COLUMN($X$3:$X$202),4))) -> 
A29: ='Лист набл. руч. раб. - 1'!A33 ->  | B29: =IF('Лист набл. руч. раб. - 1'!B33="","",'Лист набл. руч. раб. - 1'!B33) ->  | C29: =IF('Лист набл. руч. раб. - 1'!R33="","",'Лист набл. руч. раб. - 1'!R33) ->  | I29: ='Лист набл. руч. раб. - 2'!A33 ->  | J29: =IF('Лист набл. руч. раб. - 2'!B33="","",'Лист набл. руч. раб. - 2'!B33) ->  | K29: =IF('Лист набл. руч. раб. - 2'!R33="","",'Лист набл. руч. раб. - 2'!R33) ->  | Q29: 27 | R29: =IFERROR(INDEX($B$3:$B$102,MATCH(Q29,$A$3:$A$102,0)),"") ->  | S29: =IFERROR(INDEX($C$3:$C$102,MATCH(Q29,$A$3:$A$102,0)),"") ->  | U29: =IFERROR(INDEX(F$1:F$102,MATCH($Q29,$A:$A,0)+1),"") ->  | V29: =IFERROR(INDEX(G$1:G$102,MATCH($Q29,$A:$A,0)+1),"") ->  | Z29: 27 | AA29: =IF(ROW()-ROW($R$3:$R$202)+1>ROWS($AA$3:$AA$202)-COUNTBLANK($R$3:$R$202),"",INDIRECT(ADDRESS(SMALL((IF($R$3:$R$202<>"",ROW($R$3:$R$202),ROW()+ROWS($R$3:$R$202))),ROW()-ROW($AA$3:$AA$202)+1),COLUMN($R$3:$R$202),4))) ->  | AB29: =IF(ROW()-ROW($S$3:$S$202)+1>ROWS($AB$3:$AB$202)-COUNTBLANK($S$3:$S$202),"",INDIRECT(ADDRESS(SMALL((IF($S$3:$S$202<>"",ROW($S$3:$S$202),ROW()+ROWS($S$3:$S$202))),ROW()-ROW($AB$3:$AB$202)+1),COLUMN($S$3:$S$202),4))) ->  | AC29: =IF(ROW()-ROW($T$3:$T$202)+1>ROWS($AC$3:$AC$202)-COUNTBLANK($T$3:$T$202),"",INDIRECT(ADDRESS(SMALL((IF($T$3:$T$202<>"",ROW($T$3:$T$202),ROW()+ROWS($T$3:$T$202))),ROW()-ROW($AC$3:$AC$202)+1),COLUMN($T$3:$T$202),4))) ->  | AD29: =IF(ROW()-ROW($U$3:$U$202)+1>ROWS($AD$3:$AD$202)-COUNTBLANK($U$3:$U$202),"",INDIRECT(ADDRESS(SMALL((IF($U$3:$U$202<>"",ROW($U$3:$U$202),ROW()+ROWS($U$3:$U$202))),ROW()-ROW($AD$3:$AD$202)+1),COLUMN($U$3:$U$202),4))) ->  | AE29: =IF(ROW()-ROW($V$3:$V$202)+1>ROWS($AE$3:$AE$202)-COUNTBLANK($V$3:$V$202),"",INDIRECT(ADDRESS(SMALL((IF($V$3:$V$202<>"",ROW($V$3:$V$202),ROW()+ROWS($V$3:$V$202))),ROW()-ROW($AE$3:$AE$202)+1),COLUMN($V$3:$V$202),4))) ->  | AF29: =IF(ROW()-ROW($W$3:$W$202)+1>ROWS($AF$3:$AF$202)-COUNTBLANK($W$3:$W$202),"",INDIRECT(ADDRESS(SMALL((IF($W$3:$W$202<>"",ROW($W$3:$W$202),ROW()+ROWS($W$3:$W$202))),ROW()-ROW($AF$3:$AF$202)+1),COLUMN($W$3:$W$202),4))) ->  | AG29: =IF(ROW()-ROW($X$3:$X$202)+1>ROWS($AG$3:$AG$202)-COUNTBLANK($X$3:$X$202),"",INDIRECT(ADDRESS(SMALL((IF($X$3:$X$202<>"",ROW($X$3:$X$202),ROW()+ROWS($X$3:$X$203))),ROW()-ROW($AG$3:$AG$202)+1),COLUMN($X$3:$X$202),4))) -> 
A30: ='Лист набл. руч. раб. - 1'!A34 ->  | B30: =IF('Лист набл. руч. раб. - 1'!B34="","",'Лист набл. руч. раб. - 1'!B34) ->  | C30: =IF('Лист набл. руч. раб. - 1'!R34="","",'Лист набл. руч. раб. - 1'!R34) ->  | I30: ='Лист набл. руч. раб. - 2'!A34 ->  | J30: =IF('Лист набл. руч. раб. - 2'!B34="","",'Лист набл. руч. раб. - 2'!B34) ->  | K30: =IF('Лист набл. руч. раб. - 2'!R34="","",'Лист набл. руч. раб. - 2'!R34) ->  | Q30: 28 | R30: =IFERROR(INDEX($B$3:$B$102,MATCH(Q30,$A$3:$A$102,0)),"") ->  | S30: =IFERROR(INDEX($C$3:$C$102,MATCH(Q30,$A$3:$A$102,0)),"") ->  | U30: =IFERROR(INDEX(F$1:F$102,MATCH($Q30,$A:$A,0)+1),"") ->  | V30: =IFERROR(INDEX(G$1:G$102,MATCH($Q30,$A:$A,0)+1),"") ->  | Z30: 28 | AA30: =IF(ROW()-ROW($R$3:$R$202)+1>ROWS($AA$3:$AA$202)-COUNTBLANK($R$3:$R$202),"",INDIRECT(ADDRESS(SMALL((IF($R$3:$R$202<>"",ROW($R$3:$R$202),ROW()+ROWS($R$3:$R$202))),ROW()-ROW($AA$3:$AA$202)+1),COLUMN($R$3:$R$202),4))) ->  | AB30: =IF(ROW()-ROW($S$3:$S$202)+1>ROWS($AB$3:$AB$202)-COUNTBLANK($S$3:$S$202),"",INDIRECT(ADDRESS(SMALL((IF($S$3:$S$202<>"",ROW($S$3:$S$202),ROW()+ROWS($S$3:$S$202))),ROW()-ROW($AB$3:$AB$202)+1),COLUMN($S$3:$S$202),4))) ->  | AC30: =IF(ROW()-ROW($T$3:$T$202)+1>ROWS($AC$3:$AC$202)-COUNTBLANK($T$3:$T$202),"",INDIRECT(ADDRESS(SMALL((IF($T$3:$T$202<>"",ROW($T$3:$T$202),ROW()+ROWS($T$3:$T$202))),ROW()-ROW($AC$3:$AC$202)+1),COLUMN($T$3:$T$202),4))) ->  | AD30: =IF(ROW()-ROW($U$3:$U$202)+1>ROWS($AD$3:$AD$202)-COUNTBLANK($U$3:$U$202),"",INDIRECT(ADDRESS(SMALL((IF($U$3:$U$202<>"",ROW($U$3:$U$202),ROW()+ROWS($U$3:$U$202))),ROW()-ROW($AD$3:$AD$202)+1),COLUMN($U$3:$U$202),4))) ->  | AE30: =IF(ROW()-ROW($V$3:$V$202)+1>ROWS($AE$3:$AE$202)-COUNTBLANK($V$3:$V$202),"",INDIRECT(ADDRESS(SMALL((IF($V$3:$V$202<>"",ROW($V$3:$V$202),ROW()+ROWS($V$3:$V$202))),ROW()-ROW($AE$3:$AE$202)+1),COLUMN($V$3:$V$202),4))) ->  | AF30: =IF(ROW()-ROW($W$3:$W$202)+1>ROWS($AF$3:$AF$202)-COUNTBLANK($W$3:$W$202),"",INDIRECT(ADDRESS(SMALL((IF($W$3:$W$202<>"",ROW($W$3:$W$202),ROW()+ROWS($W$3:$W$202))),ROW()-ROW($AF$3:$AF$202)+1),COLUMN($W$3:$W$202),4))) ->  | AG30: =IF(ROW()-ROW($X$3:$X$202)+1>ROWS($AG$3:$AG$202)-COUNTBLANK($X$3:$X$202),"",INDIRECT(ADDRESS(SMALL((IF($X$3:$X$202<>"",ROW($X$3:$X$202),ROW()+ROWS($X$3:$X$203))),ROW()-ROW($AG$3:$AG$202)+1),COLUMN($X$3:$X$202),4))) -> 
A31: ='Лист набл. руч. раб. - 1'!A35 ->  | B31: =IF('Лист набл. руч. раб. - 1'!B35="","",'Лист набл. руч. раб. - 1'!B35) ->  | C31: =IF('Лист набл. руч. раб. - 1'!R35="","",'Лист набл. руч. раб. - 1'!R35) ->  | I31: ='Лист набл. руч. раб. - 2'!A35 ->  | J31: =IF('Лист набл. руч. раб. - 2'!B35="","",'Лист набл. руч. раб. - 2'!B35) ->  | K31: =IF('Лист набл. руч. раб. - 2'!R35="","",'Лист набл. руч. раб. - 2'!R35) ->  | Q31: 29 | R31: =IFERROR(INDEX($B$3:$B$102,MATCH(Q31,$A$3:$A$102,0)),"") ->  | S31: =IFERROR(INDEX($C$3:$C$102,MATCH(Q31,$A$3:$A$102,0)),"") ->  | U31: =IFERROR(INDEX(F$1:F$102,MATCH($Q31,$A:$A,0)+1),"") ->  | V31: =IFERROR(INDEX(G$1:G$102,MATCH($Q31,$A:$A,0)+1),"") ->  | Z31: 29 | AA31: =IF(ROW()-ROW($R$3:$R$202)+1>ROWS($AA$3:$AA$202)-COUNTBLANK($R$3:$R$202),"",INDIRECT(ADDRESS(SMALL((IF($R$3:$R$202<>"",ROW($R$3:$R$202),ROW()+ROWS($R$3:$R$202))),ROW()-ROW($AA$3:$AA$202)+1),COLUMN($R$3:$R$202),4))) ->  | AB31: =IF(ROW()-ROW($S$3:$S$202)+1>ROWS($AB$3:$AB$202)-COUNTBLANK($S$3:$S$202),"",INDIRECT(ADDRESS(SMALL((IF($S$3:$S$202<>"",ROW($S$3:$S$202),ROW()+ROWS($S$3:$S$202))),ROW()-ROW($AB$3:$AB$202)+1),COLUMN($S$3:$S$202),4))) ->  | AC31: =IF(ROW()-ROW($T$3:$T$202)+1>ROWS($AC$3:$AC$202)-COUNTBLANK($T$3:$T$202),"",INDIRECT(ADDRESS(SMALL((IF($T$3:$T$202<>"",ROW($T$3:$T$202),ROW()+ROWS($T$3:$T$202))),ROW()-ROW($AC$3:$AC$202)+1),COLUMN($T$3:$T$202),4))) ->  | AD31: =IF(ROW()-ROW($U$3:$U$202)+1>ROWS($AD$3:$AD$202)-COUNTBLANK($U$3:$U$202),"",INDIRECT(ADDRESS(SMALL((IF($U$3:$U$202<>"",ROW($U$3:$U$202),ROW()+ROWS($U$3:$U$202))),ROW()-ROW($AD$3:$AD$202)+1),COLUMN($U$3:$U$202),4))) ->  | AE31: =IF(ROW()-ROW($V$3:$V$202)+1>ROWS($AE$3:$AE$202)-COUNTBLANK($V$3:$V$202),"",INDIRECT(ADDRESS(SMALL((IF($V$3:$V$202<>"",ROW($V$3:$V$202),ROW()+ROWS($V$3:$V$202))),ROW()-ROW($AE$3:$AE$202)+1),COLUMN($V$3:$V$202),4))) ->  | AF31: =IF(ROW()-ROW($W$3:$W$202)+1>ROWS($AF$3:$AF$202)-COUNTBLANK($W$3:$W$202),"",INDIRECT(ADDRESS(SMALL((IF($W$3:$W$202<>"",ROW($W$3:$W$202),ROW()+ROWS($W$3:$W$202))),ROW()-ROW($AF$3:$AF$202)+1),COLUMN($W$3:$W$202),4))) ->  | AG31: =IF(ROW()-ROW($X$3:$X$202)+1>ROWS($AG$3:$AG$202)-COUNTBLANK($X$3:$X$202),"",INDIRECT(ADDRESS(SMALL((IF($X$3:$X$202<>"",ROW($X$3:$X$202),ROW()+ROWS($X$3:$X$203))),ROW()-ROW($AG$3:$AG$202)+1),COLUMN($X$3:$X$202),4))) -> 
A32: ='Лист набл. руч. раб. - 1'!A36 ->  | B32: =IF('Лист набл. руч. раб. - 1'!B36="","",'Лист набл. руч. раб. - 1'!B36) ->  | C32: =IF('Лист набл. руч. раб. - 1'!R36="","",'Лист набл. руч. раб. - 1'!R36) ->  | I32: ='Лист набл. руч. раб. - 2'!A36 ->  | J32: =IF('Лист набл. руч. раб. - 2'!B36="","",'Лист набл. руч. раб. - 2'!B36) ->  | K32: =IF('Лист набл. руч. раб. - 2'!R36="","",'Лист набл. руч. раб. - 2'!R36) ->  | Q32: 30 | R32: =IFERROR(INDEX($B$3:$B$102,MATCH(Q32,$A$3:$A$102,0)),"") ->  | S32: =IFERROR(INDEX($C$3:$C$102,MATCH(Q32,$A$3:$A$102,0)),"") ->  | U32: =IFERROR(INDEX(F$1:F$102,MATCH($Q32,$A:$A,0)+1),"") ->  | V32: =IFERROR(INDEX(G$1:G$102,MATCH($Q32,$A:$A,0)+1),"") ->  | Z32: 30 | AA32: =IF(ROW()-ROW($R$3:$R$202)+1>ROWS($AA$3:$AA$202)-COUNTBLANK($R$3:$R$202),"",INDIRECT(ADDRESS(SMALL((IF($R$3:$R$202<>"",ROW($R$3:$R$202),ROW()+ROWS($R$3:$R$202))),ROW()-ROW($AA$3:$AA$202)+1),COLUMN($R$3:$R$202),4))) ->  | AB32: =IF(ROW()-ROW($S$3:$S$202)+1>ROWS($AB$3:$AB$202)-COUNTBLANK($S$3:$S$202),"",INDIRECT(ADDRESS(SMALL((IF($S$3:$S$202<>"",ROW($S$3:$S$202),ROW()+ROWS($S$3:$S$202))),ROW()-ROW($AB$3:$AB$202)+1),COLUMN($S$3:$S$202),4))) ->  | AC32: =IF(ROW()-ROW($T$3:$T$202)+1>ROWS($AC$3:$AC$202)-COUNTBLANK($T$3:$T$202),"",INDIRECT(ADDRESS(SMALL((IF($T$3:$T$202<>"",ROW($T$3:$T$202),ROW()+ROWS($T$3:$T$202))),ROW()-ROW($AC$3:$AC$202)+1),COLUMN($T$3:$T$202),4))) ->  | AD32: =IF(ROW()-ROW($U$3:$U$202)+1>ROWS($AD$3:$AD$202)-COUNTBLANK($U$3:$U$202),"",INDIRECT(ADDRESS(SMALL((IF($U$3:$U$202<>"",ROW($U$3:$U$202),ROW()+ROWS($U$3:$U$202))),ROW()-ROW($AD$3:$AD$202)+1),COLUMN($U$3:$U$202),4))) ->  | AE32: =IF(ROW()-ROW($V$3:$V$202)+1>ROWS($AE$3:$AE$202)-COUNTBLANK($V$3:$V$202),"",INDIRECT(ADDRESS(SMALL((IF($V$3:$V$202<>"",ROW($V$3:$V$202),ROW()+ROWS($V$3:$V$202))),ROW()-ROW($AE$3:$AE$202)+1),COLUMN($V$3:$V$202),4))) ->  | AF32: =IF(ROW()-ROW($W$3:$W$202)+1>ROWS($AF$3:$AF$202)-COUNTBLANK($W$3:$W$202),"",INDIRECT(ADDRESS(SMALL((IF($W$3:$W$202<>"",ROW($W$3:$W$202),ROW()+ROWS($W$3:$W$202))),ROW()-ROW($AF$3:$AF$202)+1),COLUMN($W$3:$W$202),4))) ->  | AG32: =IF(ROW()-ROW($X$3:$X$202)+1>ROWS($AG$3:$AG$202)-COUNTBLANK($X$3:$X$202),"",INDIRECT(ADDRESS(SMALL((IF($X$3:$X$202<>"",ROW($X$3:$X$202),ROW()+ROWS($X$3:$X$203))),ROW()-ROW($AG$3:$AG$202)+1),COLUMN($X$3:$X$202),4))) -> 
A33: ='Лист набл. руч. раб. - 1'!A37 ->  | B33: =IF('Лист набл. руч. раб. - 1'!B37="","",'Лист набл. руч. раб. - 1'!B37) ->  | C33: =IF('Лист набл. руч. раб. - 1'!R37="","",'Лист набл. руч. раб. - 1'!R37) ->  | I33: ='Лист набл. руч. раб. - 2'!A37 ->  | J33: =IF('Лист набл. руч. раб. - 2'!B37="","",'Лист набл. руч. раб. - 2'!B37) ->  | K33: =IF('Лист набл. руч. раб. - 2'!R37="","",'Лист набл. руч. раб. - 2'!R37) ->  | Q33: 31 | R33: =IFERROR(INDEX($B$3:$B$102,MATCH(Q33,$A$3:$A$102,0)),"") ->  | S33: =IFERROR(INDEX($C$3:$C$102,MATCH(Q33,$A$3:$A$102,0)),"") ->  | U33: =IFERROR(INDEX(F$1:F$102,MATCH($Q33,$A:$A,0)+1),"") ->  | V33: =IFERROR(INDEX(G$1:G$102,MATCH($Q33,$A:$A,0)+1),"") ->  | Z33: 31 | AA33: =IF(ROW()-ROW($R$3:$R$202)+1>ROWS($AA$3:$AA$202)-COUNTBLANK($R$3:$R$202),"",INDIRECT(ADDRESS(SMALL((IF($R$3:$R$202<>"",ROW($R$3:$R$202),ROW()+ROWS($R$3:$R$202))),ROW()-ROW($AA$3:$AA$202)+1),COLUMN($R$3:$R$202),4))) ->  | AB33: =IF(ROW()-ROW($S$3:$S$202)+1>ROWS($AB$3:$AB$202)-COUNTBLANK($S$3:$S$202),"",INDIRECT(ADDRESS(SMALL((IF($S$3:$S$202<>"",ROW($S$3:$S$202),ROW()+ROWS($S$3:$S$202))),ROW()-ROW($AB$3:$AB$202)+1),COLUMN($S$3:$S$202),4))) ->  | AC33: =IF(ROW()-ROW($T$3:$T$202)+1>ROWS($AC$3:$AC$202)-COUNTBLANK($T$3:$T$202),"",INDIRECT(ADDRESS(SMALL((IF($T$3:$T$202<>"",ROW($T$3:$T$202),ROW()+ROWS($T$3:$T$202))),ROW()-ROW($AC$3:$AC$202)+1),COLUMN($T$3:$T$202),4))) ->  | AD33: =IF(ROW()-ROW($U$3:$U$202)+1>ROWS($AD$3:$AD$202)-COUNTBLANK($U$3:$U$202),"",INDIRECT(ADDRESS(SMALL((IF($U$3:$U$202<>"",ROW($U$3:$U$202),ROW()+ROWS($U$3:$U$202))),ROW()-ROW($AD$3:$AD$202)+1),COLUMN($U$3:$U$202),4))) ->  | AE33: =IF(ROW()-ROW($V$3:$V$202)+1>ROWS($AE$3:$AE$202)-COUNTBLANK($V$3:$V$202),"",INDIRECT(ADDRESS(SMALL((IF($V$3:$V$202<>"",ROW($V$3:$V$202),ROW()+ROWS($V$3:$V$202))),ROW()-ROW($AE$3:$AE$202)+1),COLUMN($V$3:$V$202),4))) ->  | AF33: =IF(ROW()-ROW($W$3:$W$202)+1>ROWS($AF$3:$AF$202)-COUNTBLANK($W$3:$W$202),"",INDIRECT(ADDRESS(SMALL((IF($W$3:$W$202<>"",ROW($W$3:$W$202),ROW()+ROWS($W$3:$W$202))),ROW()-ROW($AF$3:$AF$202)+1),COLUMN($W$3:$W$202),4))) ->  | AG33: =IF(ROW()-ROW($X$3:$X$202)+1>ROWS($AG$3:$AG$202)-COUNTBLANK($X$3:$X$202),"",INDIRECT(ADDRESS(SMALL((IF($X$3:$X$202<>"",ROW($X$3:$X$202),ROW()+ROWS($X$3:$X$203))),ROW()-ROW($AG$3:$AG$202)+1),COLUMN($X$3:$X$202),4))) -> 
A34: ='Лист набл. руч. раб. - 1'!A38 ->  | B34: =IF('Лист набл. руч. раб. - 1'!B38="","",'Лист набл. руч. раб. - 1'!B38) ->  | C34: =IF('Лист набл. руч. раб. - 1'!R38="","",'Лист набл. руч. раб. - 1'!R38) ->  | I34: ='Лист набл. руч. раб. - 2'!A38 ->  | J34: =IF('Лист набл. руч. раб. - 2'!B38="","",'Лист набл. руч. раб. - 2'!B38) ->  | K34: =IF('Лист набл. руч. раб. - 2'!R38="","",'Лист набл. руч. раб. - 2'!R38) ->  | Q34: 32 | R34: =IFERROR(INDEX($B$3:$B$102,MATCH(Q34,$A$3:$A$102,0)),"") ->  | S34: =IFERROR(INDEX($C$3:$C$102,MATCH(Q34,$A$3:$A$102,0)),"") ->  | U34: =IFERROR(INDEX(F$1:F$102,MATCH($Q34,$A:$A,0)+1),"") ->  | V34: =IFERROR(INDEX(G$1:G$102,MATCH($Q34,$A:$A,0)+1),"") ->  | Z34: 32 | AA34: =IF(ROW()-ROW($R$3:$R$202)+1>ROWS($AA$3:$AA$202)-COUNTBLANK($R$3:$R$202),"",INDIRECT(ADDRESS(SMALL((IF($R$3:$R$202<>"",ROW($R$3:$R$202),ROW()+ROWS($R$3:$R$202))),ROW()-ROW($AA$3:$AA$202)+1),COLUMN($R$3:$R$202),4))) ->  | AB34: =IF(ROW()-ROW($S$3:$S$202)+1>ROWS($AB$3:$AB$202)-COUNTBLANK($S$3:$S$202),"",INDIRECT(ADDRESS(SMALL((IF($S$3:$S$202<>"",ROW($S$3:$S$202),ROW()+ROWS($S$3:$S$202))),ROW()-ROW($AB$3:$AB$202)+1),COLUMN($S$3:$S$202),4))) ->  | AC34: =IF(ROW()-ROW($T$3:$T$202)+1>ROWS($AC$3:$AC$202)-COUNTBLANK($T$3:$T$202),"",INDIRECT(ADDRESS(SMALL((IF($T$3:$T$202<>"",ROW($T$3:$T$202),ROW()+ROWS($T$3:$T$202))),ROW()-ROW($AC$3:$AC$202)+1),COLUMN($T$3:$T$202),4))) ->  | AD34: =IF(ROW()-ROW($U$3:$U$202)+1>ROWS($AD$3:$AD$202)-COUNTBLANK($U$3:$U$202),"",INDIRECT(ADDRESS(SMALL((IF($U$3:$U$202<>"",ROW($U$3:$U$202),ROW()+ROWS($U$3:$U$202))),ROW()-ROW($AD$3:$AD$202)+1),COLUMN($U$3:$U$202),4))) ->  | AE34: =IF(ROW()-ROW($V$3:$V$202)+1>ROWS($AE$3:$AE$202)-COUNTBLANK($V$3:$V$202),"",INDIRECT(ADDRESS(SMALL((IF($V$3:$V$202<>"",ROW($V$3:$V$202),ROW()+ROWS($V$3:$V$202))),ROW()-ROW($AE$3:$AE$202)+1),COLUMN($V$3:$V$202),4))) ->  | AF34: =IF(ROW()-ROW($W$3:$W$202)+1>ROWS($AF$3:$AF$202)-COUNTBLANK($W$3:$W$202),"",INDIRECT(ADDRESS(SMALL((IF($W$3:$W$202<>"",ROW($W$3:$W$202),ROW()+ROWS($W$3:$W$202))),ROW()-ROW($AF$3:$AF$202)+1),COLUMN($W$3:$W$202),4))) ->  | AG34: =IF(ROW()-ROW($X$3:$X$202)+1>ROWS($AG$3:$AG$202)-COUNTBLANK($X$3:$X$202),"",INDIRECT(ADDRESS(SMALL((IF($X$3:$X$202<>"",ROW($X$3:$X$202),ROW()+ROWS($X$3:$X$203))),ROW()-ROW($AG$3:$AG$202)+1),COLUMN($X$3:$X$202),4))) -> 
A35: ='Лист набл. руч. раб. - 1'!A39 ->  | B35: =IF('Лист набл. руч. раб. - 1'!B39="","",'Лист набл. руч. раб. - 1'!B39) ->  | C35: =IF('Лист набл. руч. раб. - 1'!R39="","",'Лист набл. руч. раб. - 1'!R39) ->  | I35: ='Лист набл. руч. раб. - 2'!A39 ->  | J35: =IF('Лист набл. руч. раб. - 2'!B39="","",'Лист набл. руч. раб. - 2'!B39) ->  | K35: =IF('Лист набл. руч. раб. - 2'!R39="","",'Лист набл. руч. раб. - 2'!R39) ->  | Q35: 33 | R35: =IFERROR(INDEX($B$3:$B$102,MATCH(Q35,$A$3:$A$102,0)),"") ->  | S35: =IFERROR(INDEX($C$3:$C$102,MATCH(Q35,$A$3:$A$102,0)),"") ->  | U35: =IFERROR(INDEX(F$1:F$102,MATCH($Q35,$A:$A,0)+1),"") ->  | V35: =IFERROR(INDEX(G$1:G$102,MATCH($Q35,$A:$A,0)+1),"") ->  | Z35: 33 | AA35: =IF(ROW()-ROW($R$3:$R$202)+1>ROWS($AA$3:$AA$202)-COUNTBLANK($R$3:$R$202),"",INDIRECT(ADDRESS(SMALL((IF($R$3:$R$202<>"",ROW($R$3:$R$202),ROW()+ROWS($R$3:$R$202))),ROW()-ROW($AA$3:$AA$202)+1),COLUMN($R$3:$R$202),4))) ->  | AB35: =IF(ROW()-ROW($S$3:$S$202)+1>ROWS($AB$3:$AB$202)-COUNTBLANK($S$3:$S$202),"",INDIRECT(ADDRESS(SMALL((IF($S$3:$S$202<>"",ROW($S$3:$S$202),ROW()+ROWS($S$3:$S$202))),ROW()-ROW($AB$3:$AB$202)+1),COLUMN($S$3:$S$202),4))) ->  | AC35: =IF(ROW()-ROW($T$3:$T$202)+1>ROWS($AC$3:$AC$202)-COUNTBLANK($T$3:$T$202),"",INDIRECT(ADDRESS(SMALL((IF($T$3:$T$202<>"",ROW($T$3:$T$202),ROW()+ROWS($T$3:$T$202))),ROW()-ROW($AC$3:$AC$202)+1),COLUMN($T$3:$T$202),4))) ->  | AD35: =IF(ROW()-ROW($U$3:$U$202)+1>ROWS($AD$3:$AD$202)-COUNTBLANK($U$3:$U$202),"",INDIRECT(ADDRESS(SMALL((IF($U$3:$U$202<>"",ROW($U$3:$U$202),ROW()+ROWS($U$3:$U$202))),ROW()-ROW($AD$3:$AD$202)+1),COLUMN($U$3:$U$202),4))) ->  | AE35: =IF(ROW()-ROW($V$3:$V$202)+1>ROWS($AE$3:$AE$202)-COUNTBLANK($V$3:$V$202),"",INDIRECT(ADDRESS(SMALL((IF($V$3:$V$202<>"",ROW($V$3:$V$202),ROW()+ROWS($V$3:$V$202))),ROW()-ROW($AE$3:$AE$202)+1),COLUMN($V$3:$V$202),4))) ->  | AF35: =IF(ROW()-ROW($W$3:$W$202)+1>ROWS($AF$3:$AF$202)-COUNTBLANK($W$3:$W$202),"",INDIRECT(ADDRESS(SMALL((IF($W$3:$W$202<>"",ROW($W$3:$W$202),ROW()+ROWS($W$3:$W$202))),ROW()-ROW($AF$3:$AF$202)+1),COLUMN($W$3:$W$202),4))) ->  | AG35: =IF(ROW()-ROW($X$3:$X$202)+1>ROWS($AG$3:$AG$202)-COUNTBLANK($X$3:$X$202),"",INDIRECT(ADDRESS(SMALL((IF($X$3:$X$202<>"",ROW($X$3:$X$202),ROW()+ROWS($X$3:$X$203))),ROW()-ROW($AG$3:$AG$202)+1),COLUMN($X$3:$X$202),4))) -> 
A36: ='Лист набл. руч. раб. - 1'!A40 ->  | B36: =IF('Лист набл. руч. раб. - 1'!B40="","",'Лист набл. руч. раб. - 1'!B40) ->  | C36: =IF('Лист набл. руч. раб. - 1'!R40="","",'Лист набл. руч. раб. - 1'!R40) ->  | I36: ='Лист набл. руч. раб. - 2'!A40 ->  | J36: =IF('Лист набл. руч. раб. - 2'!B40="","",'Лист набл. руч. раб. - 2'!B40) ->  | K36: =IF('Лист набл. руч. раб. - 2'!R40="","",'Лист набл. руч. раб. - 2'!R40) ->  | Q36: 34 | R36: =IFERROR(INDEX($B$3:$B$102,MATCH(Q36,$A$3:$A$102,0)),"") ->  | S36: =IFERROR(INDEX($C$3:$C$102,MATCH(Q36,$A$3:$A$102,0)),"") ->  | U36: =IFERROR(INDEX(F$1:F$102,MATCH($Q36,$A:$A,0)+1),"") ->  | V36: =IFERROR(INDEX(G$1:G$102,MATCH($Q36,$A:$A,0)+1),"") ->  | Z36: 34 | AA36: =IF(ROW()-ROW($R$3:$R$202)+1>ROWS($AA$3:$AA$202)-COUNTBLANK($R$3:$R$202),"",INDIRECT(ADDRESS(SMALL((IF($R$3:$R$202<>"",ROW($R$3:$R$202),ROW()+ROWS($R$3:$R$202))),ROW()-ROW($AA$3:$AA$202)+1),COLUMN($R$3:$R$202),4))) ->  | AB36: =IF(ROW()-ROW($S$3:$S$202)+1>ROWS($AB$3:$AB$202)-COUNTBLANK($S$3:$S$202),"",INDIRECT(ADDRESS(SMALL((IF($S$3:$S$202<>"",ROW($S$3:$S$202),ROW()+ROWS($S$3:$S$202))),ROW()-ROW($AB$3:$AB$202)+1),COLUMN($S$3:$S$202),4))) ->  | AC36: =IF(ROW()-ROW($T$3:$T$202)+1>ROWS($AC$3:$AC$202)-COUNTBLANK($T$3:$T$202),"",INDIRECT(ADDRESS(SMALL((IF($T$3:$T$202<>"",ROW($T$3:$T$202),ROW()+ROWS($T$3:$T$202))),ROW()-ROW($AC$3:$AC$202)+1),COLUMN($T$3:$T$202),4))) ->  | AD36: =IF(ROW()-ROW($U$3:$U$202)+1>ROWS($AD$3:$AD$202)-COUNTBLANK($U$3:$U$202),"",INDIRECT(ADDRESS(SMALL((IF($U$3:$U$202<>"",ROW($U$3:$U$202),ROW()+ROWS($U$3:$U$202))),ROW()-ROW($AD$3:$AD$202)+1),COLUMN($U$3:$U$202),4))) ->  | AE36: =IF(ROW()-ROW($V$3:$V$202)+1>ROWS($AE$3:$AE$202)-COUNTBLANK($V$3:$V$202),"",INDIRECT(ADDRESS(SMALL((IF($V$3:$V$202<>"",ROW($V$3:$V$202),ROW()+ROWS($V$3:$V$202))),ROW()-ROW($AE$3:$AE$202)+1),COLUMN($V$3:$V$202),4))) ->  | AF36: =IF(ROW()-ROW($W$3:$W$202)+1>ROWS($AF$3:$AF$202)-COUNTBLANK($W$3:$W$202),"",INDIRECT(ADDRESS(SMALL((IF($W$3:$W$202<>"",ROW($W$3:$W$202),ROW()+ROWS($W$3:$W$202))),ROW()-ROW($AF$3:$AF$202)+1),COLUMN($W$3:$W$202),4))) ->  | AG36: =IF(ROW()-ROW($X$3:$X$202)+1>ROWS($AG$3:$AG$202)-COUNTBLANK($X$3:$X$202),"",INDIRECT(ADDRESS(SMALL((IF($X$3:$X$202<>"",ROW($X$3:$X$202),ROW()+ROWS($X$3:$X$203))),ROW()-ROW($AG$3:$AG$202)+1),COLUMN($X$3:$X$202),4))) -> 
A37: ='Лист набл. руч. раб. - 1'!A41 ->  | B37: =IF('Лист набл. руч. раб. - 1'!B41="","",'Лист набл. руч. раб. - 1'!B41) ->  | C37: =IF('Лист набл. руч. раб. - 1'!R41="","",'Лист набл. руч. раб. - 1'!R41) ->  | I37: ='Лист набл. руч. раб. - 2'!A41 ->  | J37: =IF('Лист набл. руч. раб. - 2'!B41="","",'Лист набл. руч. раб. - 2'!B41) ->  | K37: =IF('Лист набл. руч. раб. - 2'!R41="","",'Лист набл. руч. раб. - 2'!R41) ->  | Q37: 35 | R37: =IFERROR(INDEX($B$3:$B$102,MATCH(Q37,$A$3:$A$102,0)),"") ->  | S37: =IFERROR(INDEX($C$3:$C$102,MATCH(Q37,$A$3:$A$102,0)),"") ->  | U37: =IFERROR(INDEX(F$1:F$102,MATCH($Q37,$A:$A,0)+1),"") ->  | V37: =IFERROR(INDEX(G$1:G$102,MATCH($Q37,$A:$A,0)+1),"") ->  | Z37: 35 | AA37: =IF(ROW()-ROW($R$3:$R$202)+1>ROWS($AA$3:$AA$202)-COUNTBLANK($R$3:$R$202),"",INDIRECT(ADDRESS(SMALL((IF($R$3:$R$202<>"",ROW($R$3:$R$202),ROW()+ROWS($R$3:$R$202))),ROW()-ROW($AA$3:$AA$202)+1),COLUMN($R$3:$R$202),4))) ->  | AB37: =IF(ROW()-ROW($S$3:$S$202)+1>ROWS($AB$3:$AB$202)-COUNTBLANK($S$3:$S$202),"",INDIRECT(ADDRESS(SMALL((IF($S$3:$S$202<>"",ROW($S$3:$S$202),ROW()+ROWS($S$3:$S$202))),ROW()-ROW($AB$3:$AB$202)+1),COLUMN($S$3:$S$202),4))) ->  | AC37: =IF(ROW()-ROW($T$3:$T$202)+1>ROWS($AC$3:$AC$202)-COUNTBLANK($T$3:$T$202),"",INDIRECT(ADDRESS(SMALL((IF($T$3:$T$202<>"",ROW($T$3:$T$202),ROW()+ROWS($T$3:$T$202))),ROW()-ROW($AC$3:$AC$202)+1),COLUMN($T$3:$T$202),4))) ->  | AD37: =IF(ROW()-ROW($U$3:$U$202)+1>ROWS($AD$3:$AD$202)-COUNTBLANK($U$3:$U$202),"",INDIRECT(ADDRESS(SMALL((IF($U$3:$U$202<>"",ROW($U$3:$U$202),ROW()+ROWS($U$3:$U$202))),ROW()-ROW($AD$3:$AD$202)+1),COLUMN($U$3:$U$202),4))) ->  | AE37: =IF(ROW()-ROW($V$3:$V$202)+1>ROWS($AE$3:$AE$202)-COUNTBLANK($V$3:$V$202),"",INDIRECT(ADDRESS(SMALL((IF($V$3:$V$202<>"",ROW($V$3:$V$202),ROW()+ROWS($V$3:$V$202))),ROW()-ROW($AE$3:$AE$202)+1),COLUMN($V$3:$V$202),4))) ->  | AF37: =IF(ROW()-ROW($W$3:$W$202)+1>ROWS($AF$3:$AF$202)-COUNTBLANK($W$3:$W$202),"",INDIRECT(ADDRESS(SMALL((IF($W$3:$W$202<>"",ROW($W$3:$W$202),ROW()+ROWS($W$3:$W$202))),ROW()-ROW($AF$3:$AF$202)+1),COLUMN($W$3:$W$202),4))) ->  | AG37: =IF(ROW()-ROW($X$3:$X$202)+1>ROWS($AG$3:$AG$202)-COUNTBLANK($X$3:$X$202),"",INDIRECT(ADDRESS(SMALL((IF($X$3:$X$202<>"",ROW($X$3:$X$202),ROW()+ROWS($X$3:$X$203))),ROW()-ROW($AG$3:$AG$202)+1),COLUMN($X$3:$X$202),4))) -> 
A38: ='Лист набл. руч. раб. - 1'!A42 ->  | B38: =IF('Лист набл. руч. раб. - 1'!B42="","",'Лист набл. руч. раб. - 1'!B42) ->  | C38: =IF('Лист набл. руч. раб. - 1'!R42="","",'Лист набл. руч. раб. - 1'!R42) ->  | I38: ='Лист набл. руч. раб. - 2'!A42 ->  | J38: =IF('Лист набл. руч. раб. - 2'!B42="","",'Лист набл. руч. раб. - 2'!B42) ->  | K38: =IF('Лист набл. руч. раб. - 2'!R42="","",'Лист набл. руч. раб. - 2'!R42) ->  | Q38: 36 | R38: =IFERROR(INDEX($B$3:$B$102,MATCH(Q38,$A$3:$A$102,0)),"") ->  | S38: =IFERROR(INDEX($C$3:$C$102,MATCH(Q38,$A$3:$A$102,0)),"") ->  | U38: =IFERROR(INDEX(F$1:F$102,MATCH($Q38,$A:$A,0)+1),"") ->  | V38: =IFERROR(INDEX(G$1:G$102,MATCH($Q38,$A:$A,0)+1),"") ->  | Z38: 36 | AA38: =IF(ROW()-ROW($R$3:$R$202)+1>ROWS($AA$3:$AA$202)-COUNTBLANK($R$3:$R$202),"",INDIRECT(ADDRESS(SMALL((IF($R$3:$R$202<>"",ROW($R$3:$R$202),ROW()+ROWS($R$3:$R$202))),ROW()-ROW($AA$3:$AA$202)+1),COLUMN($R$3:$R$202),4))) ->  | AB38: =IF(ROW()-ROW($S$3:$S$202)+1>ROWS($AB$3:$AB$202)-COUNTBLANK($S$3:$S$202),"",INDIRECT(ADDRESS(SMALL((IF($S$3:$S$202<>"",ROW($S$3:$S$202),ROW()+ROWS($S$3:$S$202))),ROW()-ROW($AB$3:$AB$202)+1),COLUMN($S$3:$S$202),4))) ->  | AC38: =IF(ROW()-ROW($T$3:$T$202)+1>ROWS($AC$3:$AC$202)-COUNTBLANK($T$3:$T$202),"",INDIRECT(ADDRESS(SMALL((IF($T$3:$T$202<>"",ROW($T$3:$T$202),ROW()+ROWS($T$3:$T$202))),ROW()-ROW($AC$3:$AC$202)+1),COLUMN($T$3:$T$202),4))) ->  | AD38: =IF(ROW()-ROW($U$3:$U$202)+1>ROWS($AD$3:$AD$202)-COUNTBLANK($U$3:$U$202),"",INDIRECT(ADDRESS(SMALL((IF($U$3:$U$202<>"",ROW($U$3:$U$202),ROW()+ROWS($U$3:$U$202))),ROW()-ROW($AD$3:$AD$202)+1),COLUMN($U$3:$U$202),4))) ->  | AE38: =IF(ROW()-ROW($V$3:$V$202)+1>ROWS($AE$3:$AE$202)-COUNTBLANK($V$3:$V$202),"",INDIRECT(ADDRESS(SMALL((IF($V$3:$V$202<>"",ROW($V$3:$V$202),ROW()+ROWS($V$3:$V$202))),ROW()-ROW($AE$3:$AE$202)+1),COLUMN($V$3:$V$202),4))) ->  | AF38: =IF(ROW()-ROW($W$3:$W$202)+1>ROWS($AF$3:$AF$202)-COUNTBLANK($W$3:$W$202),"",INDIRECT(ADDRESS(SMALL((IF($W$3:$W$202<>"",ROW($W$3:$W$202),ROW()+ROWS($W$3:$W$202))),ROW()-ROW($AF$3:$AF$202)+1),COLUMN($W$3:$W$202),4))) ->  | AG38: =IF(ROW()-ROW($X$3:$X$202)+1>ROWS($AG$3:$AG$202)-COUNTBLANK($X$3:$X$202),"",INDIRECT(ADDRESS(SMALL((IF($X$3:$X$202<>"",ROW($X$3:$X$202),ROW()+ROWS($X$3:$X$203))),ROW()-ROW($AG$3:$AG$202)+1),COLUMN($X$3:$X$202),4))) -> 
A39: ='Лист набл. руч. раб. - 1'!A43 ->  | B39: =IF('Лист набл. руч. раб. - 1'!B43="","",'Лист набл. руч. раб. - 1'!B43) ->  | C39: =IF('Лист набл. руч. раб. - 1'!R43="","",'Лист набл. руч. раб. - 1'!R43) ->  | I39: ='Лист набл. руч. раб. - 2'!A43 ->  | J39: =IF('Лист набл. руч. раб. - 2'!B43="","",'Лист набл. руч. раб. - 2'!B43) ->  | K39: =IF('Лист набл. руч. раб. - 2'!R43="","",'Лист набл. руч. раб. - 2'!R43) ->  | Q39: 37 | R39: =IFERROR(INDEX($B$3:$B$102,MATCH(Q39,$A$3:$A$102,0)),"") ->  | S39: =IFERROR(INDEX($C$3:$C$102,MATCH(Q39,$A$3:$A$102,0)),"") ->  | U39: =IFERROR(INDEX(F$1:F$102,MATCH($Q39,$A:$A,0)+1),"") ->  | V39: =IFERROR(INDEX(G$1:G$102,MATCH($Q39,$A:$A,0)+1),"") ->  | Z39: 37 | AA39: =IF(ROW()-ROW($R$3:$R$202)+1>ROWS($AA$3:$AA$202)-COUNTBLANK($R$3:$R$202),"",INDIRECT(ADDRESS(SMALL((IF($R$3:$R$202<>"",ROW($R$3:$R$202),ROW()+ROWS($R$3:$R$202))),ROW()-ROW($AA$3:$AA$202)+1),COLUMN($R$3:$R$202),4))) ->  | AB39: =IF(ROW()-ROW($S$3:$S$202)+1>ROWS($AB$3:$AB$202)-COUNTBLANK($S$3:$S$202),"",INDIRECT(ADDRESS(SMALL((IF($S$3:$S$202<>"",ROW($S$3:$S$202),ROW()+ROWS($S$3:$S$202))),ROW()-ROW($AB$3:$AB$202)+1),COLUMN($S$3:$S$202),4))) ->  | AC39: =IF(ROW()-ROW($T$3:$T$202)+1>ROWS($AC$3:$AC$202)-COUNTBLANK($T$3:$T$202),"",INDIRECT(ADDRESS(SMALL((IF($T$3:$T$202<>"",ROW($T$3:$T$202),ROW()+ROWS($T$3:$T$202))),ROW()-ROW($AC$3:$AC$202)+1),COLUMN($T$3:$T$202),4))) ->  | AD39: =IF(ROW()-ROW($U$3:$U$202)+1>ROWS($AD$3:$AD$202)-COUNTBLANK($U$3:$U$202),"",INDIRECT(ADDRESS(SMALL((IF($U$3:$U$202<>"",ROW($U$3:$U$202),ROW()+ROWS($U$3:$U$202))),ROW()-ROW($AD$3:$AD$202)+1),COLUMN($U$3:$U$202),4))) ->  | AE39: =IF(ROW()-ROW($V$3:$V$202)+1>ROWS($AE$3:$AE$202)-COUNTBLANK($V$3:$V$202),"",INDIRECT(ADDRESS(SMALL((IF($V$3:$V$202<>"",ROW($V$3:$V$202),ROW()+ROWS($V$3:$V$202))),ROW()-ROW($AE$3:$AE$202)+1),COLUMN($V$3:$V$202),4))) ->  | AF39: =IF(ROW()-ROW($W$3:$W$202)+1>ROWS($AF$3:$AF$202)-COUNTBLANK($W$3:$W$202),"",INDIRECT(ADDRESS(SMALL((IF($W$3:$W$202<>"",ROW($W$3:$W$202),ROW()+ROWS($W$3:$W$202))),ROW()-ROW($AF$3:$AF$202)+1),COLUMN($W$3:$W$202),4))) ->  | AG39: =IF(ROW()-ROW($X$3:$X$202)+1>ROWS($AG$3:$AG$202)-COUNTBLANK($X$3:$X$202),"",INDIRECT(ADDRESS(SMALL((IF($X$3:$X$202<>"",ROW($X$3:$X$202),ROW()+ROWS($X$3:$X$203))),ROW()-ROW($AG$3:$AG$202)+1),COLUMN($X$3:$X$202),4))) -> 
A40: ='Лист набл. руч. раб. - 1'!A44 ->  | B40: =IF('Лист набл. руч. раб. - 1'!B44="","",'Лист набл. руч. раб. - 1'!B44) ->  | C40: =IF('Лист набл. руч. раб. - 1'!R44="","",'Лист набл. руч. раб. - 1'!R44) ->  | I40: ='Лист набл. руч. раб. - 2'!A44 ->  | J40: =IF('Лист набл. руч. раб. - 2'!B44="","",'Лист набл. руч. раб. - 2'!B44) ->  | K40: =IF('Лист набл. руч. раб. - 2'!R44="","",'Лист набл. руч. раб. - 2'!R44) ->  | Q40: 38 | R40: =IFERROR(INDEX($B$3:$B$102,MATCH(Q40,$A$3:$A$102,0)),"") ->  | S40: =IFERROR(INDEX($C$3:$C$102,MATCH(Q40,$A$3:$A$102,0)),"") ->  | U40: =IFERROR(INDEX(F$1:F$102,MATCH($Q40,$A:$A,0)+1),"") ->  | V40: =IFERROR(INDEX(G$1:G$102,MATCH($Q40,$A:$A,0)+1),"") ->  | Z40: 38 | AA40: =IF(ROW()-ROW($R$3:$R$202)+1>ROWS($AA$3:$AA$202)-COUNTBLANK($R$3:$R$202),"",INDIRECT(ADDRESS(SMALL((IF($R$3:$R$202<>"",ROW($R$3:$R$202),ROW()+ROWS($R$3:$R$202))),ROW()-ROW($AA$3:$AA$202)+1),COLUMN($R$3:$R$202),4))) ->  | AB40: =IF(ROW()-ROW($S$3:$S$202)+1>ROWS($AB$3:$AB$202)-COUNTBLANK($S$3:$S$202),"",INDIRECT(ADDRESS(SMALL((IF($S$3:$S$202<>"",ROW($S$3:$S$202),ROW()+ROWS($S$3:$S$202))),ROW()-ROW($AB$3:$AB$202)+1),COLUMN($S$3:$S$202),4))) ->  | AC40: =IF(ROW()-ROW($T$3:$T$202)+1>ROWS($AC$3:$AC$202)-COUNTBLANK($T$3:$T$202),"",INDIRECT(ADDRESS(SMALL((IF($T$3:$T$202<>"",ROW($T$3:$T$202),ROW()+ROWS($T$3:$T$202))),ROW()-ROW($AC$3:$AC$202)+1),COLUMN($T$3:$T$202),4))) ->  | AD40: =IF(ROW()-ROW($U$3:$U$202)+1>ROWS($AD$3:$AD$202)-COUNTBLANK($U$3:$U$202),"",INDIRECT(ADDRESS(SMALL((IF($U$3:$U$202<>"",ROW($U$3:$U$202),ROW()+ROWS($U$3:$U$202))),ROW()-ROW($AD$3:$AD$202)+1),COLUMN($U$3:$U$202),4))) ->  | AE40: =IF(ROW()-ROW($V$3:$V$202)+1>ROWS($AE$3:$AE$202)-COUNTBLANK($V$3:$V$202),"",INDIRECT(ADDRESS(SMALL((IF($V$3:$V$202<>"",ROW($V$3:$V$202),ROW()+ROWS($V$3:$V$202))),ROW()-ROW($AE$3:$AE$202)+1),COLUMN($V$3:$V$202),4))) ->  | AF40: =IF(ROW()-ROW($W$3:$W$202)+1>ROWS($AF$3:$AF$202)-COUNTBLANK($W$3:$W$202),"",INDIRECT(ADDRESS(SMALL((IF($W$3:$W$202<>"",ROW($W$3:$W$202),ROW()+ROWS($W$3:$W$202))),ROW()-ROW($AF$3:$AF$202)+1),COLUMN($W$3:$W$202),4))) ->  | AG40: =IF(ROW()-ROW($X$3:$X$202)+1>ROWS($AG$3:$AG$202)-COUNTBLANK($X$3:$X$202),"",INDIRECT(ADDRESS(SMALL((IF($X$3:$X$202<>"",ROW($X$3:$X$202),ROW()+ROWS($X$3:$X$203))),ROW()-ROW($AG$3:$AG$202)+1),COLUMN($X$3:$X$202),4))) -> 
A41: ='Лист набл. руч. раб. - 1'!A45 ->  | B41: =IF('Лист набл. руч. раб. - 1'!B45="","",'Лист набл. руч. раб. - 1'!B45) ->  | C41: =IF('Лист набл. руч. раб. - 1'!R45="","",'Лист набл. руч. раб. - 1'!R45) ->  | I41: ='Лист набл. руч. раб. - 2'!A45 ->  | J41: =IF('Лист набл. руч. раб. - 2'!B45="","",'Лист набл. руч. раб. - 2'!B45) ->  | K41: =IF('Лист набл. руч. раб. - 2'!R45="","",'Лист набл. руч. раб. - 2'!R45) ->  | Q41: 39 | R41: =IFERROR(INDEX($B$3:$B$102,MATCH(Q41,$A$3:$A$102,0)),"") ->  | S41: =IFERROR(INDEX($C$3:$C$102,MATCH(Q41,$A$3:$A$102,0)),"") ->  | U41: =IFERROR(INDEX(F$1:F$102,MATCH($Q41,$A:$A,0)+1),"") ->  | V41: =IFERROR(INDEX(G$1:G$102,MATCH($Q41,$A:$A,0)+1),"") ->  | Z41: 39 | AA41: =IF(ROW()-ROW($R$3:$R$202)+1>ROWS($AA$3:$AA$202)-COUNTBLANK($R$3:$R$202),"",INDIRECT(ADDRESS(SMALL((IF($R$3:$R$202<>"",ROW($R$3:$R$202),ROW()+ROWS($R$3:$R$202))),ROW()-ROW($AA$3:$AA$202)+1),COLUMN($R$3:$R$202),4))) ->  | AB41: =IF(ROW()-ROW($S$3:$S$202)+1>ROWS($AB$3:$AB$202)-COUNTBLANK($S$3:$S$202),"",INDIRECT(ADDRESS(SMALL((IF($S$3:$S$202<>"",ROW($S$3:$S$202),ROW()+ROWS($S$3:$S$202))),ROW()-ROW($AB$3:$AB$202)+1),COLUMN($S$3:$S$202),4))) ->  | AC41: =IF(ROW()-ROW($T$3:$T$202)+1>ROWS($AC$3:$AC$202)-COUNTBLANK($T$3:$T$202),"",INDIRECT(ADDRESS(SMALL((IF($T$3:$T$202<>"",ROW($T$3:$T$202),ROW()+ROWS($T$3:$T$202))),ROW()-ROW($AC$3:$AC$202)+1),COLUMN($T$3:$T$202),4))) ->  | AD41: =IF(ROW()-ROW($U$3:$U$202)+1>ROWS($AD$3:$AD$202)-COUNTBLANK($U$3:$U$202),"",INDIRECT(ADDRESS(SMALL((IF($U$3:$U$202<>"",ROW($U$3:$U$202),ROW()+ROWS($U$3:$U$202))),ROW()-ROW($AD$3:$AD$202)+1),COLUMN($U$3:$U$202),4))) ->  | AE41: =IF(ROW()-ROW($V$3:$V$202)+1>ROWS($AE$3:$AE$202)-COUNTBLANK($V$3:$V$202),"",INDIRECT(ADDRESS(SMALL((IF($V$3:$V$202<>"",ROW($V$3:$V$202),ROW()+ROWS($V$3:$V$202))),ROW()-ROW($AE$3:$AE$202)+1),COLUMN($V$3:$V$202),4))) ->  | AF41: =IF(ROW()-ROW($W$3:$W$202)+1>ROWS($AF$3:$AF$202)-COUNTBLANK($W$3:$W$202),"",INDIRECT(ADDRESS(SMALL((IF($W$3:$W$202<>"",ROW($W$3:$W$202),ROW()+ROWS($W$3:$W$202))),ROW()-ROW($AF$3:$AF$202)+1),COLUMN($W$3:$W$202),4))) ->  | AG41: =IF(ROW()-ROW($X$3:$X$202)+1>ROWS($AG$3:$AG$202)-COUNTBLANK($X$3:$X$202),"",INDIRECT(ADDRESS(SMALL((IF($X$3:$X$202<>"",ROW($X$3:$X$202),ROW()+ROWS($X$3:$X$203))),ROW()-ROW($AG$3:$AG$202)+1),COLUMN($X$3:$X$202),4))) -> 
A42: ='Лист набл. руч. раб. - 1'!A46 ->  | B42: =IF('Лист набл. руч. раб. - 1'!B46="","",'Лист набл. руч. раб. - 1'!B46) ->  | C42: =IF('Лист набл. руч. раб. - 1'!R46="","",'Лист набл. руч. раб. - 1'!R46) ->  | I42: ='Лист набл. руч. раб. - 2'!A46 ->  | J42: =IF('Лист набл. руч. раб. - 2'!B46="","",'Лист набл. руч. раб. - 2'!B46) ->  | K42: =IF('Лист набл. руч. раб. - 2'!R46="","",'Лист набл. руч. раб. - 2'!R46) ->  | Q42: 40 | R42: =IFERROR(INDEX($B$3:$B$102,MATCH(Q42,$A$3:$A$102,0)),"") ->  | S42: =IFERROR(INDEX($C$3:$C$102,MATCH(Q42,$A$3:$A$102,0)),"") ->  | U42: =IFERROR(INDEX(F$1:F$102,MATCH($Q42,$A:$A,0)+1),"") ->  | V42: =IFERROR(INDEX(G$1:G$102,MATCH($Q42,$A:$A,0)+1),"") ->  | Z42: 40 | AA42: =IF(ROW()-ROW($R$3:$R$202)+1>ROWS($AA$3:$AA$202)-COUNTBLANK($R$3:$R$202),"",INDIRECT(ADDRESS(SMALL((IF($R$3:$R$202<>"",ROW($R$3:$R$202),ROW()+ROWS($R$3:$R$202))),ROW()-ROW($AA$3:$AA$202)+1),COLUMN($R$3:$R$202),4))) ->  | AB42: =IF(ROW()-ROW($S$3:$S$202)+1>ROWS($AB$3:$AB$202)-COUNTBLANK($S$3:$S$202),"",INDIRECT(ADDRESS(SMALL((IF($S$3:$S$202<>"",ROW($S$3:$S$202),ROW()+ROWS($S$3:$S$202))),ROW()-ROW($AB$3:$AB$202)+1),COLUMN($S$3:$S$202),4))) ->  | AC42: =IF(ROW()-ROW($T$3:$T$202)+1>ROWS($AC$3:$AC$202)-COUNTBLANK($T$3:$T$202),"",INDIRECT(ADDRESS(SMALL((IF($T$3:$T$202<>"",ROW($T$3:$T$202),ROW()+ROWS($T$3:$T$202))),ROW()-ROW($AC$3:$AC$202)+1),COLUMN($T$3:$T$202),4))) ->  | AD42: =IF(ROW()-ROW($U$3:$U$202)+1>ROWS($AD$3:$AD$202)-COUNTBLANK($U$3:$U$202),"",INDIRECT(ADDRESS(SMALL((IF($U$3:$U$202<>"",ROW($U$3:$U$202),ROW()+ROWS($U$3:$U$202))),ROW()-ROW($AD$3:$AD$202)+1),COLUMN($U$3:$U$202),4))) ->  | AE42: =IF(ROW()-ROW($V$3:$V$202)+1>ROWS($AE$3:$AE$202)-COUNTBLANK($V$3:$V$202),"",INDIRECT(ADDRESS(SMALL((IF($V$3:$V$202<>"",ROW($V$3:$V$202),ROW()+ROWS($V$3:$V$202))),ROW()-ROW($AE$3:$AE$202)+1),COLUMN($V$3:$V$202),4))) ->  | AF42: =IF(ROW()-ROW($W$3:$W$202)+1>ROWS($AF$3:$AF$202)-COUNTBLANK($W$3:$W$202),"",INDIRECT(ADDRESS(SMALL((IF($W$3:$W$202<>"",ROW($W$3:$W$202),ROW()+ROWS($W$3:$W$202))),ROW()-ROW($AF$3:$AF$202)+1),COLUMN($W$3:$W$202),4))) ->  | AG42: =IF(ROW()-ROW($X$3:$X$202)+1>ROWS($AG$3:$AG$202)-COUNTBLANK($X$3:$X$202),"",INDIRECT(ADDRESS(SMALL((IF($X$3:$X$202<>"",ROW($X$3:$X$202),ROW()+ROWS($X$3:$X$203))),ROW()-ROW($AG$3:$AG$202)+1),COLUMN($X$3:$X$202),4))) -> 
A43: ='Лист набл. руч. раб. - 1'!A47 ->  | B43: =IF('Лист набл. руч. раб. - 1'!B47="","",'Лист набл. руч. раб. - 1'!B47) ->  | C43: =IF('Лист набл. руч. раб. - 1'!R47="","",'Лист набл. руч. раб. - 1'!R47) ->  | I43: ='Лист набл. руч. раб. - 2'!A47 ->  | J43: =IF('Лист набл. руч. раб. - 2'!B47="","",'Лист набл. руч. раб. - 2'!B47) ->  | K43: =IF('Лист набл. руч. раб. - 2'!R47="","",'Лист набл. руч. раб. - 2'!R47) ->  | Q43: 41 | R43: =IFERROR(INDEX($B$3:$B$102,MATCH(Q43,$A$3:$A$102,0)),"") ->  | S43: =IFERROR(INDEX($C$3:$C$102,MATCH(Q43,$A$3:$A$102,0)),"") ->  | U43: =IFERROR(INDEX(F$1:F$102,MATCH($Q43,$A:$A,0)+1),"") ->  | V43: =IFERROR(INDEX(G$1:G$102,MATCH($Q43,$A:$A,0)+1),"") ->  | Z43: 41 | AA43: =IF(ROW()-ROW($R$3:$R$202)+1>ROWS($AA$3:$AA$202)-COUNTBLANK($R$3:$R$202),"",INDIRECT(ADDRESS(SMALL((IF($R$3:$R$202<>"",ROW($R$3:$R$202),ROW()+ROWS($R$3:$R$202))),ROW()-ROW($AA$3:$AA$202)+1),COLUMN($R$3:$R$202),4))) ->  | AB43: =IF(ROW()-ROW($S$3:$S$202)+1>ROWS($AB$3:$AB$202)-COUNTBLANK($S$3:$S$202),"",INDIRECT(ADDRESS(SMALL((IF($S$3:$S$202<>"",ROW($S$3:$S$202),ROW()+ROWS($S$3:$S$202))),ROW()-ROW($AB$3:$AB$202)+1),COLUMN($S$3:$S$202),4))) ->  | AC43: =IF(ROW()-ROW($T$3:$T$202)+1>ROWS($AC$3:$AC$202)-COUNTBLANK($T$3:$T$202),"",INDIRECT(ADDRESS(SMALL((IF($T$3:$T$202<>"",ROW($T$3:$T$202),ROW()+ROWS($T$3:$T$202))),ROW()-ROW($AC$3:$AC$202)+1),COLUMN($T$3:$T$202),4))) ->  | AD43: =IF(ROW()-ROW($U$3:$U$202)+1>ROWS($AD$3:$AD$202)-COUNTBLANK($U$3:$U$202),"",INDIRECT(ADDRESS(SMALL((IF($U$3:$U$202<>"",ROW($U$3:$U$202),ROW()+ROWS($U$3:$U$202))),ROW()-ROW($AD$3:$AD$202)+1),COLUMN($U$3:$U$202),4))) ->  | AE43: =IF(ROW()-ROW($V$3:$V$202)+1>ROWS($AE$3:$AE$202)-COUNTBLANK($V$3:$V$202),"",INDIRECT(ADDRESS(SMALL((IF($V$3:$V$202<>"",ROW($V$3:$V$202),ROW()+ROWS($V$3:$V$202))),ROW()-ROW($AE$3:$AE$202)+1),COLUMN($V$3:$V$202),4))) ->  | AF43: =IF(ROW()-ROW($W$3:$W$202)+1>ROWS($AF$3:$AF$202)-COUNTBLANK($W$3:$W$202),"",INDIRECT(ADDRESS(SMALL((IF($W$3:$W$202<>"",ROW($W$3:$W$202),ROW()+ROWS($W$3:$W$202))),ROW()-ROW($AF$3:$AF$202)+1),COLUMN($W$3:$W$202),4))) ->  | AG43: =IF(ROW()-ROW($X$3:$X$202)+1>ROWS($AG$3:$AG$202)-COUNTBLANK($X$3:$X$202),"",INDIRECT(ADDRESS(SMALL((IF($X$3:$X$202<>"",ROW($X$3:$X$202),ROW()+ROWS($X$3:$X$203))),ROW()-ROW($AG$3:$AG$202)+1),COLUMN($X$3:$X$202),4))) -> 
A44: ='Лист набл. руч. раб. - 1'!A48 ->  | B44: =IF('Лист набл. руч. раб. - 1'!B48="","",'Лист набл. руч. раб. - 1'!B48) ->  | C44: =IF('Лист набл. руч. раб. - 1'!R48="","",'Лист набл. руч. раб. - 1'!R48) ->  | I44: ='Лист набл. руч. раб. - 2'!A48 ->  | J44: =IF('Лист набл. руч. раб. - 2'!B48="","",'Лист набл. руч. раб. - 2'!B48) ->  | K44: =IF('Лист набл. руч. раб. - 2'!R48="","",'Лист набл. руч. раб. - 2'!R48) ->  | Q44: 42 | R44: =IFERROR(INDEX($B$3:$B$102,MATCH(Q44,$A$3:$A$102,0)),"") ->  | S44: =IFERROR(INDEX($C$3:$C$102,MATCH(Q44,$A$3:$A$102,0)),"") ->  | U44: =IFERROR(INDEX(F$1:F$102,MATCH($Q44,$A:$A,0)+1),"") ->  | V44: =IFERROR(INDEX(G$1:G$102,MATCH($Q44,$A:$A,0)+1),"") ->  | Z44: 42 | AA44: =IF(ROW()-ROW($R$3:$R$202)+1>ROWS($AA$3:$AA$202)-COUNTBLANK($R$3:$R$202),"",INDIRECT(ADDRESS(SMALL((IF($R$3:$R$202<>"",ROW($R$3:$R$202),ROW()+ROWS($R$3:$R$202))),ROW()-ROW($AA$3:$AA$202)+1),COLUMN($R$3:$R$202),4))) ->  | AB44: =IF(ROW()-ROW($S$3:$S$202)+1>ROWS($AB$3:$AB$202)-COUNTBLANK($S$3:$S$202),"",INDIRECT(ADDRESS(SMALL((IF($S$3:$S$202<>"",ROW($S$3:$S$202),ROW()+ROWS($S$3:$S$202))),ROW()-ROW($AB$3:$AB$202)+1),COLUMN($S$3:$S$202),4))) ->  | AC44: =IF(ROW()-ROW($T$3:$T$202)+1>ROWS($AC$3:$AC$202)-COUNTBLANK($T$3:$T$202),"",INDIRECT(ADDRESS(SMALL((IF($T$3:$T$202<>"",ROW($T$3:$T$202),ROW()+ROWS($T$3:$T$202))),ROW()-ROW($AC$3:$AC$202)+1),COLUMN($T$3:$T$202),4))) ->  | AD44: =IF(ROW()-ROW($U$3:$U$202)+1>ROWS($AD$3:$AD$202)-COUNTBLANK($U$3:$U$202),"",INDIRECT(ADDRESS(SMALL((IF($U$3:$U$202<>"",ROW($U$3:$U$202),ROW()+ROWS($U$3:$U$202))),ROW()-ROW($AD$3:$AD$202)+1),COLUMN($U$3:$U$202),4))) ->  | AE44: =IF(ROW()-ROW($V$3:$V$202)+1>ROWS($AE$3:$AE$202)-COUNTBLANK($V$3:$V$202),"",INDIRECT(ADDRESS(SMALL((IF($V$3:$V$202<>"",ROW($V$3:$V$202),ROW()+ROWS($V$3:$V$202))),ROW()-ROW($AE$3:$AE$202)+1),COLUMN($V$3:$V$202),4))) ->  | AF44: =IF(ROW()-ROW($W$3:$W$202)+1>ROWS($AF$3:$AF$202)-COUNTBLANK($W$3:$W$202),"",INDIRECT(ADDRESS(SMALL((IF($W$3:$W$202<>"",ROW($W$3:$W$202),ROW()+ROWS($W$3:$W$202))),ROW()-ROW($AF$3:$AF$202)+1),COLUMN($W$3:$W$202),4))) ->  | AG44: =IF(ROW()-ROW($X$3:$X$202)+1>ROWS($AG$3:$AG$202)-COUNTBLANK($X$3:$X$202),"",INDIRECT(ADDRESS(SMALL((IF($X$3:$X$202<>"",ROW($X$3:$X$202),ROW()+ROWS($X$3:$X$203))),ROW()-ROW($AG$3:$AG$202)+1),COLUMN($X$3:$X$202),4))) -> 
A45: ='Лист набл. руч. раб. - 1'!A49 ->  | B45: =IF('Лист набл. руч. раб. - 1'!B49="","",'Лист набл. руч. раб. - 1'!B49) ->  | C45: =IF('Лист набл. руч. раб. - 1'!R49="","",'Лист набл. руч. раб. - 1'!R49) ->  | I45: ='Лист набл. руч. раб. - 2'!A49 ->  | J45: =IF('Лист набл. руч. раб. - 2'!B49="","",'Лист набл. руч. раб. - 2'!B49) ->  | K45: =IF('Лист набл. руч. раб. - 2'!R49="","",'Лист набл. руч. раб. - 2'!R49) ->  | Q45: 43 | R45: =IFERROR(INDEX($B$3:$B$102,MATCH(Q45,$A$3:$A$102,0)),"") ->  | S45: =IFERROR(INDEX($C$3:$C$102,MATCH(Q45,$A$3:$A$102,0)),"") ->  | U45: =IFERROR(INDEX(F$1:F$102,MATCH($Q45,$A:$A,0)+1),"") ->  | V45: =IFERROR(INDEX(G$1:G$102,MATCH($Q45,$A:$A,0)+1),"") ->  | Z45: 43 | AA45: =IF(ROW()-ROW($R$3:$R$202)+1>ROWS($AA$3:$AA$202)-COUNTBLANK($R$3:$R$202),"",INDIRECT(ADDRESS(SMALL((IF($R$3:$R$202<>"",ROW($R$3:$R$202),ROW()+ROWS($R$3:$R$202))),ROW()-ROW($AA$3:$AA$202)+1),COLUMN($R$3:$R$202),4))) ->  | AB45: =IF(ROW()-ROW($S$3:$S$202)+1>ROWS($AB$3:$AB$202)-COUNTBLANK($S$3:$S$202),"",INDIRECT(ADDRESS(SMALL((IF($S$3:$S$202<>"",ROW($S$3:$S$202),ROW()+ROWS($S$3:$S$202))),ROW()-ROW($AB$3:$AB$202)+1),COLUMN($S$3:$S$202),4))) ->  | AC45: =IF(ROW()-ROW($T$3:$T$202)+1>ROWS($AC$3:$AC$202)-COUNTBLANK($T$3:$T$202),"",INDIRECT(ADDRESS(SMALL((IF($T$3:$T$202<>"",ROW($T$3:$T$202),ROW()+ROWS($T$3:$T$202))),ROW()-ROW($AC$3:$AC$202)+1),COLUMN($T$3:$T$202),4))) ->  | AD45: =IF(ROW()-ROW($U$3:$U$202)+1>ROWS($AD$3:$AD$202)-COUNTBLANK($U$3:$U$202),"",INDIRECT(ADDRESS(SMALL((IF($U$3:$U$202<>"",ROW($U$3:$U$202),ROW()+ROWS($U$3:$U$202))),ROW()-ROW($AD$3:$AD$202)+1),COLUMN($U$3:$U$202),4))) ->  | AE45: =IF(ROW()-ROW($V$3:$V$202)+1>ROWS($AE$3:$AE$202)-COUNTBLANK($V$3:$V$202),"",INDIRECT(ADDRESS(SMALL((IF($V$3:$V$202<>"",ROW($V$3:$V$202),ROW()+ROWS($V$3:$V$202))),ROW()-ROW($AE$3:$AE$202)+1),COLUMN($V$3:$V$202),4))) ->  | AF45: =IF(ROW()-ROW($W$3:$W$202)+1>ROWS($AF$3:$AF$202)-COUNTBLANK($W$3:$W$202),"",INDIRECT(ADDRESS(SMALL((IF($W$3:$W$202<>"",ROW($W$3:$W$202),ROW()+ROWS($W$3:$W$202))),ROW()-ROW($AF$3:$AF$202)+1),COLUMN($W$3:$W$202),4))) ->  | AG45: =IF(ROW()-ROW($X$3:$X$202)+1>ROWS($AG$3:$AG$202)-COUNTBLANK($X$3:$X$202),"",INDIRECT(ADDRESS(SMALL((IF($X$3:$X$202<>"",ROW($X$3:$X$202),ROW()+ROWS($X$3:$X$203))),ROW()-ROW($AG$3:$AG$202)+1),COLUMN($X$3:$X$202),4))) -> 
A46: ='Лист набл. руч. раб. - 1'!A50 ->  | B46: =IF('Лист набл. руч. раб. - 1'!B50="","",'Лист набл. руч. раб. - 1'!B50) ->  | C46: =IF('Лист набл. руч. раб. - 1'!R50="","",'Лист набл. руч. раб. - 1'!R50) ->  | I46: ='Лист набл. руч. раб. - 2'!A50 ->  | J46: =IF('Лист набл. руч. раб. - 2'!B50="","",'Лист набл. руч. раб. - 2'!B50) ->  | K46: =IF('Лист набл. руч. раб. - 2'!R50="","",'Лист набл. руч. раб. - 2'!R50) ->  | Q46: 44 | R46: =IFERROR(INDEX($B$3:$B$102,MATCH(Q46,$A$3:$A$102,0)),"") ->  | S46: =IFERROR(INDEX($C$3:$C$102,MATCH(Q46,$A$3:$A$102,0)),"") ->  | U46: =IFERROR(INDEX(F$1:F$102,MATCH($Q46,$A:$A,0)+1),"") ->  | V46: =IFERROR(INDEX(G$1:G$102,MATCH($Q46,$A:$A,0)+1),"") ->  | Z46: 44 | AA46: =IF(ROW()-ROW($R$3:$R$202)+1>ROWS($AA$3:$AA$202)-COUNTBLANK($R$3:$R$202),"",INDIRECT(ADDRESS(SMALL((IF($R$3:$R$202<>"",ROW($R$3:$R$202),ROW()+ROWS($R$3:$R$202))),ROW()-ROW($AA$3:$AA$202)+1),COLUMN($R$3:$R$202),4))) ->  | AB46: =IF(ROW()-ROW($S$3:$S$202)+1>ROWS($AB$3:$AB$202)-COUNTBLANK($S$3:$S$202),"",INDIRECT(ADDRESS(SMALL((IF($S$3:$S$202<>"",ROW($S$3:$S$202),ROW()+ROWS($S$3:$S$202))),ROW()-ROW($AB$3:$AB$202)+1),COLUMN($S$3:$S$202),4))) ->  | AC46: =IF(ROW()-ROW($T$3:$T$202)+1>ROWS($AC$3:$AC$202)-COUNTBLANK($T$3:$T$202),"",INDIRECT(ADDRESS(SMALL((IF($T$3:$T$202<>"",ROW($T$3:$T$202),ROW()+ROWS($T$3:$T$202))),ROW()-ROW($AC$3:$AC$202)+1),COLUMN($T$3:$T$202),4))) ->  | AD46: =IF(ROW()-ROW($U$3:$U$202)+1>ROWS($AD$3:$AD$202)-COUNTBLANK($U$3:$U$202),"",INDIRECT(ADDRESS(SMALL((IF($U$3:$U$202<>"",ROW($U$3:$U$202),ROW()+ROWS($U$3:$U$202))),ROW()-ROW($AD$3:$AD$202)+1),COLUMN($U$3:$U$202),4))) ->  | AE46: =IF(ROW()-ROW($V$3:$V$202)+1>ROWS($AE$3:$AE$202)-COUNTBLANK($V$3:$V$202),"",INDIRECT(ADDRESS(SMALL((IF($V$3:$V$202<>"",ROW($V$3:$V$202),ROW()+ROWS($V$3:$V$202))),ROW()-ROW($AE$3:$AE$202)+1),COLUMN($V$3:$V$202),4))) ->  | AF46: =IF(ROW()-ROW($W$3:$W$202)+1>ROWS($AF$3:$AF$202)-COUNTBLANK($W$3:$W$202),"",INDIRECT(ADDRESS(SMALL((IF($W$3:$W$202<>"",ROW($W$3:$W$202),ROW()+ROWS($W$3:$W$202))),ROW()-ROW($AF$3:$AF$202)+1),COLUMN($W$3:$W$202),4))) ->  | AG46: =IF(ROW()-ROW($X$3:$X$202)+1>ROWS($AG$3:$AG$202)-COUNTBLANK($X$3:$X$202),"",INDIRECT(ADDRESS(SMALL((IF($X$3:$X$202<>"",ROW($X$3:$X$202),ROW()+ROWS($X$3:$X$203))),ROW()-ROW($AG$3:$AG$202)+1),COLUMN($X$3:$X$202),4))) -> 
A47: ='Лист набл. руч. раб. - 1'!A51 ->  | B47: =IF('Лист набл. руч. раб. - 1'!B51="","",'Лист набл. руч. раб. - 1'!B51) ->  | C47: =IF('Лист набл. руч. раб. - 1'!R51="","",'Лист набл. руч. раб. - 1'!R51) ->  | I47: ='Лист набл. руч. раб. - 2'!A51 ->  | J47: =IF('Лист набл. руч. раб. - 2'!B51="","",'Лист набл. руч. раб. - 2'!B51) ->  | K47: =IF('Лист набл. руч. раб. - 2'!R51="","",'Лист набл. руч. раб. - 2'!R51) ->  | Q47: 45 | R47: =IFERROR(INDEX($B$3:$B$102,MATCH(Q47,$A$3:$A$102,0)),"") ->  | S47: =IFERROR(INDEX($C$3:$C$102,MATCH(Q47,$A$3:$A$102,0)),"") ->  | U47: =IFERROR(INDEX(F$1:F$102,MATCH($Q47,$A:$A,0)+1),"") ->  | V47: =IFERROR(INDEX(G$1:G$102,MATCH($Q47,$A:$A,0)+1),"") ->  | Z47: 45 | AA47: =IF(ROW()-ROW($R$3:$R$202)+1>ROWS($AA$3:$AA$202)-COUNTBLANK($R$3:$R$202),"",INDIRECT(ADDRESS(SMALL((IF($R$3:$R$202<>"",ROW($R$3:$R$202),ROW()+ROWS($R$3:$R$202))),ROW()-ROW($AA$3:$AA$202)+1),COLUMN($R$3:$R$202),4))) ->  | AB47: =IF(ROW()-ROW($S$3:$S$202)+1>ROWS($AB$3:$AB$202)-COUNTBLANK($S$3:$S$202),"",INDIRECT(ADDRESS(SMALL((IF($S$3:$S$202<>"",ROW($S$3:$S$202),ROW()+ROWS($S$3:$S$202))),ROW()-ROW($AB$3:$AB$202)+1),COLUMN($S$3:$S$202),4))) ->  | AC47: =IF(ROW()-ROW($T$3:$T$202)+1>ROWS($AC$3:$AC$202)-COUNTBLANK($T$3:$T$202),"",INDIRECT(ADDRESS(SMALL((IF($T$3:$T$202<>"",ROW($T$3:$T$202),ROW()+ROWS($T$3:$T$202))),ROW()-ROW($AC$3:$AC$202)+1),COLUMN($T$3:$T$202),4))) ->  | AD47: =IF(ROW()-ROW($U$3:$U$202)+1>ROWS($AD$3:$AD$202)-COUNTBLANK($U$3:$U$202),"",INDIRECT(ADDRESS(SMALL((IF($U$3:$U$202<>"",ROW($U$3:$U$202),ROW()+ROWS($U$3:$U$202))),ROW()-ROW($AD$3:$AD$202)+1),COLUMN($U$3:$U$202),4))) ->  | AE47: =IF(ROW()-ROW($V$3:$V$202)+1>ROWS($AE$3:$AE$202)-COUNTBLANK($V$3:$V$202),"",INDIRECT(ADDRESS(SMALL((IF($V$3:$V$202<>"",ROW($V$3:$V$202),ROW()+ROWS($V$3:$V$202))),ROW()-ROW($AE$3:$AE$202)+1),COLUMN($V$3:$V$202),4))) ->  | AF47: =IF(ROW()-ROW($W$3:$W$202)+1>ROWS($AF$3:$AF$202)-COUNTBLANK($W$3:$W$202),"",INDIRECT(ADDRESS(SMALL((IF($W$3:$W$202<>"",ROW($W$3:$W$202),ROW()+ROWS($W$3:$W$202))),ROW()-ROW($AF$3:$AF$202)+1),COLUMN($W$3:$W$202),4))) ->  | AG47: =IF(ROW()-ROW($X$3:$X$202)+1>ROWS($AG$3:$AG$202)-COUNTBLANK($X$3:$X$202),"",INDIRECT(ADDRESS(SMALL((IF($X$3:$X$202<>"",ROW($X$3:$X$202),ROW()+ROWS($X$3:$X$203))),ROW()-ROW($AG$3:$AG$202)+1),COLUMN($X$3:$X$202),4))) -> 
A48: ='Лист набл. руч. раб. - 1'!A52 ->  | B48: =IF('Лист набл. руч. раб. - 1'!B52="","",'Лист набл. руч. раб. - 1'!B52) ->  | C48: =IF('Лист набл. руч. раб. - 1'!R52="","",'Лист набл. руч. раб. - 1'!R52) ->  | I48: ='Лист набл. руч. раб. - 2'!A52 ->  | J48: =IF('Лист набл. руч. раб. - 2'!B52="","",'Лист набл. руч. раб. - 2'!B52) ->  | K48: =IF('Лист набл. руч. раб. - 2'!R52="","",'Лист набл. руч. раб. - 2'!R52) ->  | Q48: 46 | R48: =IFERROR(INDEX($B$3:$B$102,MATCH(Q48,$A$3:$A$102,0)),"") ->  | S48: =IFERROR(INDEX($C$3:$C$102,MATCH(Q48,$A$3:$A$102,0)),"") ->  | U48: =IFERROR(INDEX(F$1:F$102,MATCH($Q48,$A:$A,0)+1),"") ->  | V48: =IFERROR(INDEX(G$1:G$102,MATCH($Q48,$A:$A,0)+1),"") ->  | Z48: 46 | AA48: =IF(ROW()-ROW($R$3:$R$202)+1>ROWS($AA$3:$AA$202)-COUNTBLANK($R$3:$R$202),"",INDIRECT(ADDRESS(SMALL((IF($R$3:$R$202<>"",ROW($R$3:$R$202),ROW()+ROWS($R$3:$R$202))),ROW()-ROW($AA$3:$AA$202)+1),COLUMN($R$3:$R$202),4))) ->  | AB48: =IF(ROW()-ROW($S$3:$S$202)+1>ROWS($AB$3:$AB$202)-COUNTBLANK($S$3:$S$202),"",INDIRECT(ADDRESS(SMALL((IF($S$3:$S$202<>"",ROW($S$3:$S$202),ROW()+ROWS($S$3:$S$202))),ROW()-ROW($AB$3:$AB$202)+1),COLUMN($S$3:$S$202),4))) ->  | AC48: =IF(ROW()-ROW($T$3:$T$202)+1>ROWS($AC$3:$AC$202)-COUNTBLANK($T$3:$T$202),"",INDIRECT(ADDRESS(SMALL((IF($T$3:$T$202<>"",ROW($T$3:$T$202),ROW()+ROWS($T$3:$T$202))),ROW()-ROW($AC$3:$AC$202)+1),COLUMN($T$3:$T$202),4))) ->  | AD48: =IF(ROW()-ROW($U$3:$U$202)+1>ROWS($AD$3:$AD$202)-COUNTBLANK($U$3:$U$202),"",INDIRECT(ADDRESS(SMALL((IF($U$3:$U$202<>"",ROW($U$3:$U$202),ROW()+ROWS($U$3:$U$202))),ROW()-ROW($AD$3:$AD$202)+1),COLUMN($U$3:$U$202),4))) ->  | AE48: =IF(ROW()-ROW($V$3:$V$202)+1>ROWS($AE$3:$AE$202)-COUNTBLANK($V$3:$V$202),"",INDIRECT(ADDRESS(SMALL((IF($V$3:$V$202<>"",ROW($V$3:$V$202),ROW()+ROWS($V$3:$V$202))),ROW()-ROW($AE$3:$AE$202)+1),COLUMN($V$3:$V$202),4))) ->  | AF48: =IF(ROW()-ROW($W$3:$W$202)+1>ROWS($AF$3:$AF$202)-COUNTBLANK($W$3:$W$202),"",INDIRECT(ADDRESS(SMALL((IF($W$3:$W$202<>"",ROW($W$3:$W$202),ROW()+ROWS($W$3:$W$202))),ROW()-ROW($AF$3:$AF$202)+1),COLUMN($W$3:$W$202),4))) ->  | AG48: =IF(ROW()-ROW($X$3:$X$202)+1>ROWS($AG$3:$AG$202)-COUNTBLANK($X$3:$X$202),"",INDIRECT(ADDRESS(SMALL((IF($X$3:$X$202<>"",ROW($X$3:$X$202),ROW()+ROWS($X$3:$X$203))),ROW()-ROW($AG$3:$AG$202)+1),COLUMN($X$3:$X$202),4))) -> 
A49: ='Лист набл. руч. раб. - 1'!A53 ->  | B49: =IF('Лист набл. руч. раб. - 1'!B53="","",'Лист набл. руч. раб. - 1'!B53) ->  | C49: =IF('Лист набл. руч. раб. - 1'!R53="","",'Лист набл. руч. раб. - 1'!R53) ->  | I49: ='Лист набл. руч. раб. - 2'!A53 ->  | J49: =IF('Лист набл. руч. раб. - 2'!B53="","",'Лист набл. руч. раб. - 2'!B53) ->  | K49: =IF('Лист набл. руч. раб. - 2'!R53="","",'Лист набл. руч. раб. - 2'!R53) ->  | Q49: 47 | R49: =IFERROR(INDEX($B$3:$B$102,MATCH(Q49,$A$3:$A$102,0)),"") ->  | S49: =IFERROR(INDEX($C$3:$C$102,MATCH(Q49,$A$3:$A$102,0)),"") ->  | U49: =IFERROR(INDEX(F$1:F$102,MATCH($Q49,$A:$A,0)+1),"") ->  | V49: =IFERROR(INDEX(G$1:G$102,MATCH($Q49,$A:$A,0)+1),"") ->  | Z49: 47 | AA49: =IF(ROW()-ROW($R$3:$R$202)+1>ROWS($AA$3:$AA$202)-COUNTBLANK($R$3:$R$202),"",INDIRECT(ADDRESS(SMALL((IF($R$3:$R$202<>"",ROW($R$3:$R$202),ROW()+ROWS($R$3:$R$202))),ROW()-ROW($AA$3:$AA$202)+1),COLUMN($R$3:$R$202),4))) ->  | AB49: =IF(ROW()-ROW($S$3:$S$202)+1>ROWS($AB$3:$AB$202)-COUNTBLANK($S$3:$S$202),"",INDIRECT(ADDRESS(SMALL((IF($S$3:$S$202<>"",ROW($S$3:$S$202),ROW()+ROWS($S$3:$S$202))),ROW()-ROW($AB$3:$AB$202)+1),COLUMN($S$3:$S$202),4))) ->  | AC49: =IF(ROW()-ROW($T$3:$T$202)+1>ROWS($AC$3:$AC$202)-COUNTBLANK($T$3:$T$202),"",INDIRECT(ADDRESS(SMALL((IF($T$3:$T$202<>"",ROW($T$3:$T$202),ROW()+ROWS($T$3:$T$202))),ROW()-ROW($AC$3:$AC$202)+1),COLUMN($T$3:$T$202),4))) ->  | AD49: =IF(ROW()-ROW($U$3:$U$202)+1>ROWS($AD$3:$AD$202)-COUNTBLANK($U$3:$U$202),"",INDIRECT(ADDRESS(SMALL((IF($U$3:$U$202<>"",ROW($U$3:$U$202),ROW()+ROWS($U$3:$U$202))),ROW()-ROW($AD$3:$AD$202)+1),COLUMN($U$3:$U$202),4))) ->  | AE49: =IF(ROW()-ROW($V$3:$V$202)+1>ROWS($AE$3:$AE$202)-COUNTBLANK($V$3:$V$202),"",INDIRECT(ADDRESS(SMALL((IF($V$3:$V$202<>"",ROW($V$3:$V$202),ROW()+ROWS($V$3:$V$202))),ROW()-ROW($AE$3:$AE$202)+1),COLUMN($V$3:$V$202),4))) ->  | AF49: =IF(ROW()-ROW($W$3:$W$202)+1>ROWS($AF$3:$AF$202)-COUNTBLANK($W$3:$W$202),"",INDIRECT(ADDRESS(SMALL((IF($W$3:$W$202<>"",ROW($W$3:$W$202),ROW()+ROWS($W$3:$W$202))),ROW()-ROW($AF$3:$AF$202)+1),COLUMN($W$3:$W$202),4))) ->  | AG49: =IF(ROW()-ROW($X$3:$X$202)+1>ROWS($AG$3:$AG$202)-COUNTBLANK($X$3:$X$202),"",INDIRECT(ADDRESS(SMALL((IF($X$3:$X$202<>"",ROW($X$3:$X$202),ROW()+ROWS($X$3:$X$203))),ROW()-ROW($AG$3:$AG$202)+1),COLUMN($X$3:$X$202),4))) -> 
A50: ='Лист набл. руч. раб. - 1'!A54 ->  | B50: =IF('Лист набл. руч. раб. - 1'!B54="","",'Лист набл. руч. раб. - 1'!B54) ->  | C50: =IF('Лист набл. руч. раб. - 1'!R54="","",'Лист набл. руч. раб. - 1'!R54) ->  | I50: ='Лист набл. руч. раб. - 2'!A54 ->  | J50: =IF('Лист набл. руч. раб. - 2'!B54="","",'Лист набл. руч. раб. - 2'!B54) ->  | K50: =IF('Лист набл. руч. раб. - 2'!R54="","",'Лист набл. руч. раб. - 2'!R54) ->  | Q50: 48 | R50: =IFERROR(INDEX($B$3:$B$102,MATCH(Q50,$A$3:$A$102,0)),"") ->  | S50: =IFERROR(INDEX($C$3:$C$102,MATCH(Q50,$A$3:$A$102,0)),"") ->  | U50: =IFERROR(INDEX(F$1:F$102,MATCH($Q50,$A:$A,0)+1),"") ->  | V50: =IFERROR(INDEX(G$1:G$102,MATCH($Q50,$A:$A,0)+1),"") ->  | Z50: 48 | AA50: =IF(ROW()-ROW($R$3:$R$202)+1>ROWS($AA$3:$AA$202)-COUNTBLANK($R$3:$R$202),"",INDIRECT(ADDRESS(SMALL((IF($R$3:$R$202<>"",ROW($R$3:$R$202),ROW()+ROWS($R$3:$R$202))),ROW()-ROW($AA$3:$AA$202)+1),COLUMN($R$3:$R$202),4))) ->  | AB50: =IF(ROW()-ROW($S$3:$S$202)+1>ROWS($AB$3:$AB$202)-COUNTBLANK($S$3:$S$202),"",INDIRECT(ADDRESS(SMALL((IF($S$3:$S$202<>"",ROW($S$3:$S$202),ROW()+ROWS($S$3:$S$202))),ROW()-ROW($AB$3:$AB$202)+1),COLUMN($S$3:$S$202),4))) ->  | AC50: =IF(ROW()-ROW($T$3:$T$202)+1>ROWS($AC$3:$AC$202)-COUNTBLANK($T$3:$T$202),"",INDIRECT(ADDRESS(SMALL((IF($T$3:$T$202<>"",ROW($T$3:$T$202),ROW()+ROWS($T$3:$T$202))),ROW()-ROW($AC$3:$AC$202)+1),COLUMN($T$3:$T$202),4))) ->  | AD50: =IF(ROW()-ROW($U$3:$U$202)+1>ROWS($AD$3:$AD$202)-COUNTBLANK($U$3:$U$202),"",INDIRECT(ADDRESS(SMALL((IF($U$3:$U$202<>"",ROW($U$3:$U$202),ROW()+ROWS($U$3:$U$202))),ROW()-ROW($AD$3:$AD$202)+1),COLUMN($U$3:$U$202),4))) ->  | AE50: =IF(ROW()-ROW($V$3:$V$202)+1>ROWS($AE$3:$AE$202)-COUNTBLANK($V$3:$V$202),"",INDIRECT(ADDRESS(SMALL((IF($V$3:$V$202<>"",ROW($V$3:$V$202),ROW()+ROWS($V$3:$V$202))),ROW()-ROW($AE$3:$AE$202)+1),COLUMN($V$3:$V$202),4))) ->  | AF50: =IF(ROW()-ROW($W$3:$W$202)+1>ROWS($AF$3:$AF$202)-COUNTBLANK($W$3:$W$202),"",INDIRECT(ADDRESS(SMALL((IF($W$3:$W$202<>"",ROW($W$3:$W$202),ROW()+ROWS($W$3:$W$202))),ROW()-ROW($AF$3:$AF$202)+1),COLUMN($W$3:$W$202),4))) ->  | AG50: =IF(ROW()-ROW($X$3:$X$202)+1>ROWS($AG$3:$AG$202)-COUNTBLANK($X$3:$X$202),"",INDIRECT(ADDRESS(SMALL((IF($X$3:$X$202<>"",ROW($X$3:$X$202),ROW()+ROWS($X$3:$X$203))),ROW()-ROW($AG$3:$AG$202)+1),COLUMN($X$3:$X$202),4))) -> 
A51: ='Лист набл. руч. раб. - 1'!A55 ->  | B51: =IF('Лист набл. руч. раб. - 1'!B55="","",'Лист набл. руч. раб. - 1'!B55) ->  | C51: =IF('Лист набл. руч. раб. - 1'!R55="","",'Лист набл. руч. раб. - 1'!R55) ->  | I51: ='Лист набл. руч. раб. - 2'!A55 ->  | J51: =IF('Лист набл. руч. раб. - 2'!B55="","",'Лист набл. руч. раб. - 2'!B55) ->  | K51: =IF('Лист набл. руч. раб. - 2'!R55="","",'Лист набл. руч. раб. - 2'!R55) ->  | Q51: 49 | R51: =IFERROR(INDEX($B$3:$B$102,MATCH(Q51,$A$3:$A$102,0)),"") ->  | S51: =IFERROR(INDEX($C$3:$C$102,MATCH(Q51,$A$3:$A$102,0)),"") ->  | U51: =IFERROR(INDEX(F$1:F$102,MATCH($Q51,$A:$A,0)+1),"") ->  | V51: =IFERROR(INDEX(G$1:G$102,MATCH($Q51,$A:$A,0)+1),"") ->  | Z51: 49 | AA51: =IF(ROW()-ROW($R$3:$R$202)+1>ROWS($AA$3:$AA$202)-COUNTBLANK($R$3:$R$202),"",INDIRECT(ADDRESS(SMALL((IF($R$3:$R$202<>"",ROW($R$3:$R$202),ROW()+ROWS($R$3:$R$202))),ROW()-ROW($AA$3:$AA$202)+1),COLUMN($R$3:$R$202),4))) ->  | AB51: =IF(ROW()-ROW($S$3:$S$202)+1>ROWS($AB$3:$AB$202)-COUNTBLANK($S$3:$S$202),"",INDIRECT(ADDRESS(SMALL((IF($S$3:$S$202<>"",ROW($S$3:$S$202),ROW()+ROWS($S$3:$S$202))),ROW()-ROW($AB$3:$AB$202)+1),COLUMN($S$3:$S$202),4))) ->  | AC51: =IF(ROW()-ROW($T$3:$T$202)+1>ROWS($AC$3:$AC$202)-COUNTBLANK($T$3:$T$202),"",INDIRECT(ADDRESS(SMALL((IF($T$3:$T$202<>"",ROW($T$3:$T$202),ROW()+ROWS($T$3:$T$202))),ROW()-ROW($AC$3:$AC$202)+1),COLUMN($T$3:$T$202),4))) ->  | AD51: =IF(ROW()-ROW($U$3:$U$202)+1>ROWS($AD$3:$AD$202)-COUNTBLANK($U$3:$U$202),"",INDIRECT(ADDRESS(SMALL((IF($U$3:$U$202<>"",ROW($U$3:$U$202),ROW()+ROWS($U$3:$U$202))),ROW()-ROW($AD$3:$AD$202)+1),COLUMN($U$3:$U$202),4))) ->  | AE51: =IF(ROW()-ROW($V$3:$V$202)+1>ROWS($AE$3:$AE$202)-COUNTBLANK($V$3:$V$202),"",INDIRECT(ADDRESS(SMALL((IF($V$3:$V$202<>"",ROW($V$3:$V$202),ROW()+ROWS($V$3:$V$202))),ROW()-ROW($AE$3:$AE$202)+1),COLUMN($V$3:$V$202),4))) ->  | AF51: =IF(ROW()-ROW($W$3:$W$202)+1>ROWS($AF$3:$AF$202)-COUNTBLANK($W$3:$W$202),"",INDIRECT(ADDRESS(SMALL((IF($W$3:$W$202<>"",ROW($W$3:$W$202),ROW()+ROWS($W$3:$W$202))),ROW()-ROW($AF$3:$AF$202)+1),COLUMN($W$3:$W$202),4))) ->  | AG51: =IF(ROW()-ROW($X$3:$X$202)+1>ROWS($AG$3:$AG$202)-COUNTBLANK($X$3:$X$202),"",INDIRECT(ADDRESS(SMALL((IF($X$3:$X$202<>"",ROW($X$3:$X$202),ROW()+ROWS($X$3:$X$203))),ROW()-ROW($AG$3:$AG$202)+1),COLUMN($X$3:$X$202),4))) -> 
A52: ='Лист набл. руч. раб. - 1'!A56 ->  | B52: =IF('Лист набл. руч. раб. - 1'!B56="","",'Лист набл. руч. раб. - 1'!B56) ->  | C52: =IF('Лист набл. руч. раб. - 1'!R56="","",'Лист набл. руч. раб. - 1'!R56) ->  | I52: ='Лист набл. руч. раб. - 2'!A56 ->  | J52: =IF('Лист набл. руч. раб. - 2'!B56="","",'Лист набл. руч. раб. - 2'!B56) ->  | K52: =IF('Лист набл. руч. раб. - 2'!R56="","",'Лист набл. руч. раб. - 2'!R56) ->  | Q52: 50 | R52: =IFERROR(INDEX($B$3:$B$102,MATCH(Q52,$A$3:$A$102,0)),"") ->  | S52: =IFERROR(INDEX($C$3:$C$102,MATCH(Q52,$A$3:$A$102,0)),"") ->  | U52: =IFERROR(INDEX(F$1:F$102,MATCH($Q52,$A:$A,0)+1),"") ->  | V52: =IFERROR(INDEX(G$1:G$102,MATCH($Q52,$A:$A,0)+1),"") ->  | Z52: 50 | AA52: =IF(ROW()-ROW($R$3:$R$202)+1>ROWS($AA$3:$AA$202)-COUNTBLANK($R$3:$R$202),"",INDIRECT(ADDRESS(SMALL((IF($R$3:$R$202<>"",ROW($R$3:$R$202),ROW()+ROWS($R$3:$R$202))),ROW()-ROW($AA$3:$AA$202)+1),COLUMN($R$3:$R$202),4))) ->  | AB52: =IF(ROW()-ROW($S$3:$S$202)+1>ROWS($AB$3:$AB$202)-COUNTBLANK($S$3:$S$202),"",INDIRECT(ADDRESS(SMALL((IF($S$3:$S$202<>"",ROW($S$3:$S$202),ROW()+ROWS($S$3:$S$202))),ROW()-ROW($AB$3:$AB$202)+1),COLUMN($S$3:$S$202),4))) ->  | AC52: =IF(ROW()-ROW($T$3:$T$202)+1>ROWS($AC$3:$AC$202)-COUNTBLANK($T$3:$T$202),"",INDIRECT(ADDRESS(SMALL((IF($T$3:$T$202<>"",ROW($T$3:$T$202),ROW()+ROWS($T$3:$T$202))),ROW()-ROW($AC$3:$AC$202)+1),COLUMN($T$3:$T$202),4))) ->  | AD52: =IF(ROW()-ROW($U$3:$U$202)+1>ROWS($AD$3:$AD$202)-COUNTBLANK($U$3:$U$202),"",INDIRECT(ADDRESS(SMALL((IF($U$3:$U$202<>"",ROW($U$3:$U$202),ROW()+ROWS($U$3:$U$202))),ROW()-ROW($AD$3:$AD$202)+1),COLUMN($U$3:$U$202),4))) ->  | AE52: =IF(ROW()-ROW($V$3:$V$202)+1>ROWS($AE$3:$AE$202)-COUNTBLANK($V$3:$V$202),"",INDIRECT(ADDRESS(SMALL((IF($V$3:$V$202<>"",ROW($V$3:$V$202),ROW()+ROWS($V$3:$V$202))),ROW()-ROW($AE$3:$AE$202)+1),COLUMN($V$3:$V$202),4))) ->  | AF52: =IF(ROW()-ROW($W$3:$W$202)+1>ROWS($AF$3:$AF$202)-COUNTBLANK($W$3:$W$202),"",INDIRECT(ADDRESS(SMALL((IF($W$3:$W$202<>"",ROW($W$3:$W$202),ROW()+ROWS($W$3:$W$202))),ROW()-ROW($AF$3:$AF$202)+1),COLUMN($W$3:$W$202),4))) ->  | AG52: =IF(ROW()-ROW($X$3:$X$202)+1>ROWS($AG$3:$AG$202)-COUNTBLANK($X$3:$X$202),"",INDIRECT(ADDRESS(SMALL((IF($X$3:$X$202<>"",ROW($X$3:$X$202),ROW()+ROWS($X$3:$X$203))),ROW()-ROW($AG$3:$AG$202)+1),COLUMN($X$3:$X$202),4))) -> 
A53: ='Лист набл. руч. раб. - 1'!A57 ->  | B53: =IF('Лист набл. руч. раб. - 1'!B57="","",'Лист набл. руч. раб. - 1'!B57) ->  | C53: =IF('Лист набл. руч. раб. - 1'!R57="","",'Лист набл. руч. раб. - 1'!R57) ->  | I53: ='Лист набл. руч. раб. - 2'!A57 ->  | J53: =IF('Лист набл. руч. раб. - 2'!B57="","",'Лист набл. руч. раб. - 2'!B57) ->  | K53: =IF('Лист набл. руч. раб. - 2'!R57="","",'Лист набл. руч. раб. - 2'!R57) ->  | Q53: 51 | R53: =IFERROR(INDEX($B$3:$B$102,MATCH(Q53,$A$3:$A$102,0)),"") ->  | S53: =IFERROR(INDEX($C$3:$C$102,MATCH(Q53,$A$3:$A$102,0)),"") ->  | U53: =IFERROR(INDEX(F$1:F$102,MATCH($Q53,$A:$A,0)+1),"") ->  | V53: =IFERROR(INDEX(G$1:G$102,MATCH($Q53,$A:$A,0)+1),"") ->  | Z53: 51 | AA53: =IF(ROW()-ROW($R$3:$R$202)+1>ROWS($AA$3:$AA$202)-COUNTBLANK($R$3:$R$202),"",INDIRECT(ADDRESS(SMALL((IF($R$3:$R$202<>"",ROW($R$3:$R$202),ROW()+ROWS($R$3:$R$202))),ROW()-ROW($AA$3:$AA$202)+1),COLUMN($R$3:$R$202),4))) ->  | AB53: =IF(ROW()-ROW($S$3:$S$202)+1>ROWS($AB$3:$AB$202)-COUNTBLANK($S$3:$S$202),"",INDIRECT(ADDRESS(SMALL((IF($S$3:$S$202<>"",ROW($S$3:$S$202),ROW()+ROWS($S$3:$S$202))),ROW()-ROW($AB$3:$AB$202)+1),COLUMN($S$3:$S$202),4))) ->  | AC53: =IF(ROW()-ROW($T$3:$T$202)+1>ROWS($AC$3:$AC$202)-COUNTBLANK($T$3:$T$202),"",INDIRECT(ADDRESS(SMALL((IF($T$3:$T$202<>"",ROW($T$3:$T$202),ROW()+ROWS($T$3:$T$202))),ROW()-ROW($AC$3:$AC$202)+1),COLUMN($T$3:$T$202),4))) ->  | AD53: =IF(ROW()-ROW($U$3:$U$202)+1>ROWS($AD$3:$AD$202)-COUNTBLANK($U$3:$U$202),"",INDIRECT(ADDRESS(SMALL((IF($U$3:$U$202<>"",ROW($U$3:$U$202),ROW()+ROWS($U$3:$U$202))),ROW()-ROW($AD$3:$AD$202)+1),COLUMN($U$3:$U$202),4))) ->  | AE53: =IF(ROW()-ROW($V$3:$V$202)+1>ROWS($AE$3:$AE$202)-COUNTBLANK($V$3:$V$202),"",INDIRECT(ADDRESS(SMALL((IF($V$3:$V$202<>"",ROW($V$3:$V$202),ROW()+ROWS($V$3:$V$202))),ROW()-ROW($AE$3:$AE$202)+1),COLUMN($V$3:$V$202),4))) ->  | AF53: =IF(ROW()-ROW($W$3:$W$202)+1>ROWS($AF$3:$AF$202)-COUNTBLANK($W$3:$W$202),"",INDIRECT(ADDRESS(SMALL((IF($W$3:$W$202<>"",ROW($W$3:$W$202),ROW()+ROWS($W$3:$W$202))),ROW()-ROW($AF$3:$AF$202)+1),COLUMN($W$3:$W$202),4))) ->  | AG53: =IF(ROW()-ROW($X$3:$X$202)+1>ROWS($AG$3:$AG$202)-COUNTBLANK($X$3:$X$202),"",INDIRECT(ADDRESS(SMALL((IF($X$3:$X$202<>"",ROW($X$3:$X$202),ROW()+ROWS($X$3:$X$203))),ROW()-ROW($AG$3:$AG$202)+1),COLUMN($X$3:$X$202),4))) -> 
A54: ='Лист набл. руч. раб. - 1'!A58 ->  | B54: =IF('Лист набл. руч. раб. - 1'!B58="","",'Лист набл. руч. раб. - 1'!B58) ->  | C54: =IF('Лист набл. руч. раб. - 1'!R58="","",'Лист набл. руч. раб. - 1'!R58) ->  | I54: ='Лист набл. руч. раб. - 2'!A58 ->  | J54: =IF('Лист набл. руч. раб. - 2'!B58="","",'Лист набл. руч. раб. - 2'!B58) ->  | K54: =IF('Лист набл. руч. раб. - 2'!R58="","",'Лист набл. руч. раб. - 2'!R58) ->  | Q54: 52 | R54: =IFERROR(INDEX($B$3:$B$102,MATCH(Q54,$A$3:$A$102,0)),"") ->  | S54: =IFERROR(INDEX($C$3:$C$102,MATCH(Q54,$A$3:$A$102,0)),"") ->  | U54: =IFERROR(INDEX(F$1:F$102,MATCH($Q54,$A:$A,0)+1),"") ->  | V54: =IFERROR(INDEX(G$1:G$102,MATCH($Q54,$A:$A,0)+1),"") ->  | Z54: 52 | AA54: =IF(ROW()-ROW($R$3:$R$202)+1>ROWS($AA$3:$AA$202)-COUNTBLANK($R$3:$R$202),"",INDIRECT(ADDRESS(SMALL((IF($R$3:$R$202<>"",ROW($R$3:$R$202),ROW()+ROWS($R$3:$R$202))),ROW()-ROW($AA$3:$AA$202)+1),COLUMN($R$3:$R$202),4))) ->  | AB54: =IF(ROW()-ROW($S$3:$S$202)+1>ROWS($AB$3:$AB$202)-COUNTBLANK($S$3:$S$202),"",INDIRECT(ADDRESS(SMALL((IF($S$3:$S$202<>"",ROW($S$3:$S$202),ROW()+ROWS($S$3:$S$202))),ROW()-ROW($AB$3:$AB$202)+1),COLUMN($S$3:$S$202),4))) ->  | AC54: =IF(ROW()-ROW($T$3:$T$202)+1>ROWS($AC$3:$AC$202)-COUNTBLANK($T$3:$T$202),"",INDIRECT(ADDRESS(SMALL((IF($T$3:$T$202<>"",ROW($T$3:$T$202),ROW()+ROWS($T$3:$T$202))),ROW()-ROW($AC$3:$AC$202)+1),COLUMN($T$3:$T$202),4))) ->  | AD54: =IF(ROW()-ROW($U$3:$U$202)+1>ROWS($AD$3:$AD$202)-COUNTBLANK($U$3:$U$202),"",INDIRECT(ADDRESS(SMALL((IF($U$3:$U$202<>"",ROW($U$3:$U$202),ROW()+ROWS($U$3:$U$202))),ROW()-ROW($AD$3:$AD$202)+1),COLUMN($U$3:$U$202),4))) ->  | AE54: =IF(ROW()-ROW($V$3:$V$202)+1>ROWS($AE$3:$AE$202)-COUNTBLANK($V$3:$V$202),"",INDIRECT(ADDRESS(SMALL((IF($V$3:$V$202<>"",ROW($V$3:$V$202),ROW()+ROWS($V$3:$V$202))),ROW()-ROW($AE$3:$AE$202)+1),COLUMN($V$3:$V$202),4))) ->  | AF54: =IF(ROW()-ROW($W$3:$W$202)+1>ROWS($AF$3:$AF$202)-COUNTBLANK($W$3:$W$202),"",INDIRECT(ADDRESS(SMALL((IF($W$3:$W$202<>"",ROW($W$3:$W$202),ROW()+ROWS($W$3:$W$202))),ROW()-ROW($AF$3:$AF$202)+1),COLUMN($W$3:$W$202),4))) ->  | AG54: =IF(ROW()-ROW($X$3:$X$202)+1>ROWS($AG$3:$AG$202)-COUNTBLANK($X$3:$X$202),"",INDIRECT(ADDRESS(SMALL((IF($X$3:$X$202<>"",ROW($X$3:$X$202),ROW()+ROWS($X$3:$X$203))),ROW()-ROW($AG$3:$AG$202)+1),COLUMN($X$3:$X$202),4))) -> 
A55: ='Лист набл. руч. раб. - 1'!A59 ->  | B55: =IF('Лист набл. руч. раб. - 1'!B59="","",'Лист набл. руч. раб. - 1'!B59) ->  | C55: =IF('Лист набл. руч. раб. - 1'!R59="","",'Лист набл. руч. раб. - 1'!R59) ->  | I55: ='Лист набл. руч. раб. - 2'!A59 ->  | J55: =IF('Лист набл. руч. раб. - 2'!B59="","",'Лист набл. руч. раб. - 2'!B59) ->  | K55: =IF('Лист набл. руч. раб. - 2'!R59="","",'Лист набл. руч. раб. - 2'!R59) ->  | Q55: 53 | R55: =IFERROR(INDEX($B$3:$B$102,MATCH(Q55,$A$3:$A$102,0)),"") ->  | S55: =IFERROR(INDEX($C$3:$C$102,MATCH(Q55,$A$3:$A$102,0)),"") ->  | U55: =IFERROR(INDEX(F$1:F$102,MATCH($Q55,$A:$A,0)+1),"") ->  | V55: =IFERROR(INDEX(G$1:G$102,MATCH($Q55,$A:$A,0)+1),"") ->  | Z55: 53 | AA55: =IF(ROW()-ROW($R$3:$R$202)+1>ROWS($AA$3:$AA$202)-COUNTBLANK($R$3:$R$202),"",INDIRECT(ADDRESS(SMALL((IF($R$3:$R$202<>"",ROW($R$3:$R$202),ROW()+ROWS($R$3:$R$202))),ROW()-ROW($AA$3:$AA$202)+1),COLUMN($R$3:$R$202),4))) ->  | AB55: =IF(ROW()-ROW($S$3:$S$202)+1>ROWS($AB$3:$AB$202)-COUNTBLANK($S$3:$S$202),"",INDIRECT(ADDRESS(SMALL((IF($S$3:$S$202<>"",ROW($S$3:$S$202),ROW()+ROWS($S$3:$S$202))),ROW()-ROW($AB$3:$AB$202)+1),COLUMN($S$3:$S$202),4))) ->  | AC55: =IF(ROW()-ROW($T$3:$T$202)+1>ROWS($AC$3:$AC$202)-COUNTBLANK($T$3:$T$202),"",INDIRECT(ADDRESS(SMALL((IF($T$3:$T$202<>"",ROW($T$3:$T$202),ROW()+ROWS($T$3:$T$202))),ROW()-ROW($AC$3:$AC$202)+1),COLUMN($T$3:$T$202),4))) ->  | AD55: =IF(ROW()-ROW($U$3:$U$202)+1>ROWS($AD$3:$AD$202)-COUNTBLANK($U$3:$U$202),"",INDIRECT(ADDRESS(SMALL((IF($U$3:$U$202<>"",ROW($U$3:$U$202),ROW()+ROWS($U$3:$U$202))),ROW()-ROW($AD$3:$AD$202)+1),COLUMN($U$3:$U$202),4))) ->  | AE55: =IF(ROW()-ROW($V$3:$V$202)+1>ROWS($AE$3:$AE$202)-COUNTBLANK($V$3:$V$202),"",INDIRECT(ADDRESS(SMALL((IF($V$3:$V$202<>"",ROW($V$3:$V$202),ROW()+ROWS($V$3:$V$202))),ROW()-ROW($AE$3:$AE$202)+1),COLUMN($V$3:$V$202),4))) ->  | AF55: =IF(ROW()-ROW($W$3:$W$202)+1>ROWS($AF$3:$AF$202)-COUNTBLANK($W$3:$W$202),"",INDIRECT(ADDRESS(SMALL((IF($W$3:$W$202<>"",ROW($W$3:$W$202),ROW()+ROWS($W$3:$W$202))),ROW()-ROW($AF$3:$AF$202)+1),COLUMN($W$3:$W$202),4))) ->  | AG55: =IF(ROW()-ROW($X$3:$X$202)+1>ROWS($AG$3:$AG$202)-COUNTBLANK($X$3:$X$202),"",INDIRECT(ADDRESS(SMALL((IF($X$3:$X$202<>"",ROW($X$3:$X$202),ROW()+ROWS($X$3:$X$203))),ROW()-ROW($AG$3:$AG$202)+1),COLUMN($X$3:$X$202),4))) -> 
A56: ='Лист набл. руч. раб. - 1'!A60 ->  | B56: =IF('Лист набл. руч. раб. - 1'!B60="","",'Лист набл. руч. раб. - 1'!B60) ->  | C56: =IF('Лист набл. руч. раб. - 1'!R60="","",'Лист набл. руч. раб. - 1'!R60) ->  | I56: ='Лист набл. руч. раб. - 2'!A60 ->  | J56: =IF('Лист набл. руч. раб. - 2'!B60="","",'Лист набл. руч. раб. - 2'!B60) ->  | K56: =IF('Лист набл. руч. раб. - 2'!R60="","",'Лист набл. руч. раб. - 2'!R60) ->  | Q56: 54 | R56: =IFERROR(INDEX($B$3:$B$102,MATCH(Q56,$A$3:$A$102,0)),"") ->  | S56: =IFERROR(INDEX($C$3:$C$102,MATCH(Q56,$A$3:$A$102,0)),"") ->  | U56: =IFERROR(INDEX(F$1:F$102,MATCH($Q56,$A:$A,0)+1),"") ->  | V56: =IFERROR(INDEX(G$1:G$102,MATCH($Q56,$A:$A,0)+1),"") ->  | Z56: 54 | AA56: =IF(ROW()-ROW($R$3:$R$202)+1>ROWS($AA$3:$AA$202)-COUNTBLANK($R$3:$R$202),"",INDIRECT(ADDRESS(SMALL((IF($R$3:$R$202<>"",ROW($R$3:$R$202),ROW()+ROWS($R$3:$R$202))),ROW()-ROW($AA$3:$AA$202)+1),COLUMN($R$3:$R$202),4))) ->  | AB56: =IF(ROW()-ROW($S$3:$S$202)+1>ROWS($AB$3:$AB$202)-COUNTBLANK($S$3:$S$202),"",INDIRECT(ADDRESS(SMALL((IF($S$3:$S$202<>"",ROW($S$3:$S$202),ROW()+ROWS($S$3:$S$202))),ROW()-ROW($AB$3:$AB$202)+1),COLUMN($S$3:$S$202),4))) ->  | AC56: =IF(ROW()-ROW($T$3:$T$202)+1>ROWS($AC$3:$AC$202)-COUNTBLANK($T$3:$T$202),"",INDIRECT(ADDRESS(SMALL((IF($T$3:$T$202<>"",ROW($T$3:$T$202),ROW()+ROWS($T$3:$T$202))),ROW()-ROW($AC$3:$AC$202)+1),COLUMN($T$3:$T$202),4))) ->  | AD56: =IF(ROW()-ROW($U$3:$U$202)+1>ROWS($AD$3:$AD$202)-COUNTBLANK($U$3:$U$202),"",INDIRECT(ADDRESS(SMALL((IF($U$3:$U$202<>"",ROW($U$3:$U$202),ROW()+ROWS($U$3:$U$202))),ROW()-ROW($AD$3:$AD$202)+1),COLUMN($U$3:$U$202),4))) ->  | AE56: =IF(ROW()-ROW($V$3:$V$202)+1>ROWS($AE$3:$AE$202)-COUNTBLANK($V$3:$V$202),"",INDIRECT(ADDRESS(SMALL((IF($V$3:$V$202<>"",ROW($V$3:$V$202),ROW()+ROWS($V$3:$V$202))),ROW()-ROW($AE$3:$AE$202)+1),COLUMN($V$3:$V$202),4))) ->  | AF56: =IF(ROW()-ROW($W$3:$W$202)+1>ROWS($AF$3:$AF$202)-COUNTBLANK($W$3:$W$202),"",INDIRECT(ADDRESS(SMALL((IF($W$3:$W$202<>"",ROW($W$3:$W$202),ROW()+ROWS($W$3:$W$202))),ROW()-ROW($AF$3:$AF$202)+1),COLUMN($W$3:$W$202),4))) ->  | AG56: =IF(ROW()-ROW($X$3:$X$202)+1>ROWS($AG$3:$AG$202)-COUNTBLANK($X$3:$X$202),"",INDIRECT(ADDRESS(SMALL((IF($X$3:$X$202<>"",ROW($X$3:$X$202),ROW()+ROWS($X$3:$X$203))),ROW()-ROW($AG$3:$AG$202)+1),COLUMN($X$3:$X$202),4))) -> 
A57: ='Лист набл. руч. раб. - 1'!A61 ->  | B57: =IF('Лист набл. руч. раб. - 1'!B61="","",'Лист набл. руч. раб. - 1'!B61) ->  | C57: =IF('Лист набл. руч. раб. - 1'!R61="","",'Лист набл. руч. раб. - 1'!R61) ->  | I57: ='Лист набл. руч. раб. - 2'!A61 ->  | J57: =IF('Лист набл. руч. раб. - 2'!B61="","",'Лист набл. руч. раб. - 2'!B61) ->  | K57: =IF('Лист набл. руч. раб. - 2'!R61="","",'Лист набл. руч. раб. - 2'!R61) ->  | Q57: 55 | R57: =IFERROR(INDEX($B$3:$B$102,MATCH(Q57,$A$3:$A$102,0)),"") ->  | S57: =IFERROR(INDEX($C$3:$C$102,MATCH(Q57,$A$3:$A$102,0)),"") ->  | U57: =IFERROR(INDEX(F$1:F$102,MATCH($Q57,$A:$A,0)+1),"") ->  | V57: =IFERROR(INDEX(G$1:G$102,MATCH($Q57,$A:$A,0)+1),"") ->  | Z57: 55 | AA57: =IF(ROW()-ROW($R$3:$R$202)+1>ROWS($AA$3:$AA$202)-COUNTBLANK($R$3:$R$202),"",INDIRECT(ADDRESS(SMALL((IF($R$3:$R$202<>"",ROW($R$3:$R$202),ROW()+ROWS($R$3:$R$202))),ROW()-ROW($AA$3:$AA$202)+1),COLUMN($R$3:$R$202),4))) ->  | AB57: =IF(ROW()-ROW($S$3:$S$202)+1>ROWS($AB$3:$AB$202)-COUNTBLANK($S$3:$S$202),"",INDIRECT(ADDRESS(SMALL((IF($S$3:$S$202<>"",ROW($S$3:$S$202),ROW()+ROWS($S$3:$S$202))),ROW()-ROW($AB$3:$AB$202)+1),COLUMN($S$3:$S$202),4))) ->  | AC57: =IF(ROW()-ROW($T$3:$T$202)+1>ROWS($AC$3:$AC$202)-COUNTBLANK($T$3:$T$202),"",INDIRECT(ADDRESS(SMALL((IF($T$3:$T$202<>"",ROW($T$3:$T$202),ROW()+ROWS($T$3:$T$202))),ROW()-ROW($AC$3:$AC$202)+1),COLUMN($T$3:$T$202),4))) ->  | AD57: =IF(ROW()-ROW($U$3:$U$202)+1>ROWS($AD$3:$AD$202)-COUNTBLANK($U$3:$U$202),"",INDIRECT(ADDRESS(SMALL((IF($U$3:$U$202<>"",ROW($U$3:$U$202),ROW()+ROWS($U$3:$U$202))),ROW()-ROW($AD$3:$AD$202)+1),COLUMN($U$3:$U$202),4))) ->  | AE57: =IF(ROW()-ROW($V$3:$V$202)+1>ROWS($AE$3:$AE$202)-COUNTBLANK($V$3:$V$202),"",INDIRECT(ADDRESS(SMALL((IF($V$3:$V$202<>"",ROW($V$3:$V$202),ROW()+ROWS($V$3:$V$202))),ROW()-ROW($AE$3:$AE$202)+1),COLUMN($V$3:$V$202),4))) ->  | AF57: =IF(ROW()-ROW($W$3:$W$202)+1>ROWS($AF$3:$AF$202)-COUNTBLANK($W$3:$W$202),"",INDIRECT(ADDRESS(SMALL((IF($W$3:$W$202<>"",ROW($W$3:$W$202),ROW()+ROWS($W$3:$W$202))),ROW()-ROW($AF$3:$AF$202)+1),COLUMN($W$3:$W$202),4))) ->  | AG57: =IF(ROW()-ROW($X$3:$X$202)+1>ROWS($AG$3:$AG$202)-COUNTBLANK($X$3:$X$202),"",INDIRECT(ADDRESS(SMALL((IF($X$3:$X$202<>"",ROW($X$3:$X$202),ROW()+ROWS($X$3:$X$203))),ROW()-ROW($AG$3:$AG$202)+1),COLUMN($X$3:$X$202),4))) -> 
A58: ='Лист набл. руч. раб. - 1'!A62 ->  | B58: =IF('Лист набл. руч. раб. - 1'!B62="","",'Лист набл. руч. раб. - 1'!B62) ->  | C58: =IF('Лист набл. руч. раб. - 1'!R62="","",'Лист набл. руч. раб. - 1'!R62) ->  | I58: ='Лист набл. руч. раб. - 2'!A62 ->  | J58: =IF('Лист набл. руч. раб. - 2'!B62="","",'Лист набл. руч. раб. - 2'!B62) ->  | K58: =IF('Лист набл. руч. раб. - 2'!R62="","",'Лист набл. руч. раб. - 2'!R62) ->  | Q58: 56 | R58: =IFERROR(INDEX($B$3:$B$102,MATCH(Q58,$A$3:$A$102,0)),"") ->  | S58: =IFERROR(INDEX($C$3:$C$102,MATCH(Q58,$A$3:$A$102,0)),"") ->  | U58: =IFERROR(INDEX(F$1:F$102,MATCH($Q58,$A:$A,0)+1),"") ->  | V58: =IFERROR(INDEX(G$1:G$102,MATCH($Q58,$A:$A,0)+1),"") ->  | Z58: 56 | AA58: =IF(ROW()-ROW($R$3:$R$202)+1>ROWS($AA$3:$AA$202)-COUNTBLANK($R$3:$R$202),"",INDIRECT(ADDRESS(SMALL((IF($R$3:$R$202<>"",ROW($R$3:$R$202),ROW()+ROWS($R$3:$R$202))),ROW()-ROW($AA$3:$AA$202)+1),COLUMN($R$3:$R$202),4))) ->  | AB58: =IF(ROW()-ROW($S$3:$S$202)+1>ROWS($AB$3:$AB$202)-COUNTBLANK($S$3:$S$202),"",INDIRECT(ADDRESS(SMALL((IF($S$3:$S$202<>"",ROW($S$3:$S$202),ROW()+ROWS($S$3:$S$202))),ROW()-ROW($AB$3:$AB$202)+1),COLUMN($S$3:$S$202),4))) ->  | AC58: =IF(ROW()-ROW($T$3:$T$202)+1>ROWS($AC$3:$AC$202)-COUNTBLANK($T$3:$T$202),"",INDIRECT(ADDRESS(SMALL((IF($T$3:$T$202<>"",ROW($T$3:$T$202),ROW()+ROWS($T$3:$T$202))),ROW()-ROW($AC$3:$AC$202)+1),COLUMN($T$3:$T$202),4))) ->  | AD58: =IF(ROW()-ROW($U$3:$U$202)+1>ROWS($AD$3:$AD$202)-COUNTBLANK($U$3:$U$202),"",INDIRECT(ADDRESS(SMALL((IF($U$3:$U$202<>"",ROW($U$3:$U$202),ROW()+ROWS($U$3:$U$202))),ROW()-ROW($AD$3:$AD$202)+1),COLUMN($U$3:$U$202),4))) ->  | AE58: =IF(ROW()-ROW($V$3:$V$202)+1>ROWS($AE$3:$AE$202)-COUNTBLANK($V$3:$V$202),"",INDIRECT(ADDRESS(SMALL((IF($V$3:$V$202<>"",ROW($V$3:$V$202),ROW()+ROWS($V$3:$V$202))),ROW()-ROW($AE$3:$AE$202)+1),COLUMN($V$3:$V$202),4))) ->  | AF58: =IF(ROW()-ROW($W$3:$W$202)+1>ROWS($AF$3:$AF$202)-COUNTBLANK($W$3:$W$202),"",INDIRECT(ADDRESS(SMALL((IF($W$3:$W$202<>"",ROW($W$3:$W$202),ROW()+ROWS($W$3:$W$202))),ROW()-ROW($AF$3:$AF$202)+1),COLUMN($W$3:$W$202),4))) ->  | AG58: =IF(ROW()-ROW($X$3:$X$202)+1>ROWS($AG$3:$AG$202)-COUNTBLANK($X$3:$X$202),"",INDIRECT(ADDRESS(SMALL((IF($X$3:$X$202<>"",ROW($X$3:$X$202),ROW()+ROWS($X$3:$X$203))),ROW()-ROW($AG$3:$AG$202)+1),COLUMN($X$3:$X$202),4))) -> 
A59: ='Лист набл. руч. раб. - 1'!A63 ->  | B59: =IF('Лист набл. руч. раб. - 1'!B63="","",'Лист набл. руч. раб. - 1'!B63) ->  | C59: =IF('Лист набл. руч. раб. - 1'!R63="","",'Лист набл. руч. раб. - 1'!R63) ->  | I59: ='Лист набл. руч. раб. - 2'!A63 ->  | J59: =IF('Лист набл. руч. раб. - 2'!B63="","",'Лист набл. руч. раб. - 2'!B63) ->  | K59: =IF('Лист набл. руч. раб. - 2'!R63="","",'Лист набл. руч. раб. - 2'!R63) ->  | Q59: 57 | R59: =IFERROR(INDEX($B$3:$B$102,MATCH(Q59,$A$3:$A$102,0)),"") ->  | S59: =IFERROR(INDEX($C$3:$C$102,MATCH(Q59,$A$3:$A$102,0)),"") ->  | U59: =IFERROR(INDEX(F$1:F$102,MATCH($Q59,$A:$A,0)+1),"") ->  | V59: =IFERROR(INDEX(G$1:G$102,MATCH($Q59,$A:$A,0)+1),"") ->  | Z59: 57 | AA59: =IF(ROW()-ROW($R$3:$R$202)+1>ROWS($AA$3:$AA$202)-COUNTBLANK($R$3:$R$202),"",INDIRECT(ADDRESS(SMALL((IF($R$3:$R$202<>"",ROW($R$3:$R$202),ROW()+ROWS($R$3:$R$202))),ROW()-ROW($AA$3:$AA$202)+1),COLUMN($R$3:$R$202),4))) ->  | AB59: =IF(ROW()-ROW($S$3:$S$202)+1>ROWS($AB$3:$AB$202)-COUNTBLANK($S$3:$S$202),"",INDIRECT(ADDRESS(SMALL((IF($S$3:$S$202<>"",ROW($S$3:$S$202),ROW()+ROWS($S$3:$S$202))),ROW()-ROW($AB$3:$AB$202)+1),COLUMN($S$3:$S$202),4))) ->  | AC59: =IF(ROW()-ROW($T$3:$T$202)+1>ROWS($AC$3:$AC$202)-COUNTBLANK($T$3:$T$202),"",INDIRECT(ADDRESS(SMALL((IF($T$3:$T$202<>"",ROW($T$3:$T$202),ROW()+ROWS($T$3:$T$202))),ROW()-ROW($AC$3:$AC$202)+1),COLUMN($T$3:$T$202),4))) ->  | AD59: =IF(ROW()-ROW($U$3:$U$202)+1>ROWS($AD$3:$AD$202)-COUNTBLANK($U$3:$U$202),"",INDIRECT(ADDRESS(SMALL((IF($U$3:$U$202<>"",ROW($U$3:$U$202),ROW()+ROWS($U$3:$U$202))),ROW()-ROW($AD$3:$AD$202)+1),COLUMN($U$3:$U$202),4))) ->  | AE59: =IF(ROW()-ROW($V$3:$V$202)+1>ROWS($AE$3:$AE$202)-COUNTBLANK($V$3:$V$202),"",INDIRECT(ADDRESS(SMALL((IF($V$3:$V$202<>"",ROW($V$3:$V$202),ROW()+ROWS($V$3:$V$202))),ROW()-ROW($AE$3:$AE$202)+1),COLUMN($V$3:$V$202),4))) ->  | AF59: =IF(ROW()-ROW($W$3:$W$202)+1>ROWS($AF$3:$AF$202)-COUNTBLANK($W$3:$W$202),"",INDIRECT(ADDRESS(SMALL((IF($W$3:$W$202<>"",ROW($W$3:$W$202),ROW()+ROWS($W$3:$W$202))),ROW()-ROW($AF$3:$AF$202)+1),COLUMN($W$3:$W$202),4))) ->  | AG59: =IF(ROW()-ROW($X$3:$X$202)+1>ROWS($AG$3:$AG$202)-COUNTBLANK($X$3:$X$202),"",INDIRECT(ADDRESS(SMALL((IF($X$3:$X$202<>"",ROW($X$3:$X$202),ROW()+ROWS($X$3:$X$203))),ROW()-ROW($AG$3:$AG$202)+1),COLUMN($X$3:$X$202),4))) -> 
A60: ='Лист набл. руч. раб. - 1'!A64 ->  | B60: =IF('Лист набл. руч. раб. - 1'!B64="","",'Лист набл. руч. раб. - 1'!B64) ->  | C60: =IF('Лист набл. руч. раб. - 1'!R64="","",'Лист набл. руч. раб. - 1'!R64) ->  | I60: ='Лист набл. руч. раб. - 2'!A64 ->  | J60: =IF('Лист набл. руч. раб. - 2'!B64="","",'Лист набл. руч. раб. - 2'!B64) ->  | K60: =IF('Лист набл. руч. раб. - 2'!R64="","",'Лист набл. руч. раб. - 2'!R64) ->  | Q60: 58 | R60: =IFERROR(INDEX($B$3:$B$102,MATCH(Q60,$A$3:$A$102,0)),"") ->  | S60: =IFERROR(INDEX($C$3:$C$102,MATCH(Q60,$A$3:$A$102,0)),"") ->  | U60: =IFERROR(INDEX(F$1:F$102,MATCH($Q60,$A:$A,0)+1),"") ->  | V60: =IFERROR(INDEX(G$1:G$102,MATCH($Q60,$A:$A,0)+1),"") ->  | Z60: 58 | AA60: =IF(ROW()-ROW($R$3:$R$202)+1>ROWS($AA$3:$AA$202)-COUNTBLANK($R$3:$R$202),"",INDIRECT(ADDRESS(SMALL((IF($R$3:$R$202<>"",ROW($R$3:$R$202),ROW()+ROWS($R$3:$R$202))),ROW()-ROW($AA$3:$AA$202)+1),COLUMN($R$3:$R$202),4))) ->  | AB60: =IF(ROW()-ROW($S$3:$S$202)+1>ROWS($AB$3:$AB$202)-COUNTBLANK($S$3:$S$202),"",INDIRECT(ADDRESS(SMALL((IF($S$3:$S$202<>"",ROW($S$3:$S$202),ROW()+ROWS($S$3:$S$202))),ROW()-ROW($AB$3:$AB$202)+1),COLUMN($S$3:$S$202),4))) ->  | AC60: =IF(ROW()-ROW($T$3:$T$202)+1>ROWS($AC$3:$AC$202)-COUNTBLANK($T$3:$T$202),"",INDIRECT(ADDRESS(SMALL((IF($T$3:$T$202<>"",ROW($T$3:$T$202),ROW()+ROWS($T$3:$T$202))),ROW()-ROW($AC$3:$AC$202)+1),COLUMN($T$3:$T$202),4))) ->  | AD60: =IF(ROW()-ROW($U$3:$U$202)+1>ROWS($AD$3:$AD$202)-COUNTBLANK($U$3:$U$202),"",INDIRECT(ADDRESS(SMALL((IF($U$3:$U$202<>"",ROW($U$3:$U$202),ROW()+ROWS($U$3:$U$202))),ROW()-ROW($AD$3:$AD$202)+1),COLUMN($U$3:$U$202),4))) ->  | AE60: =IF(ROW()-ROW($V$3:$V$202)+1>ROWS($AE$3:$AE$202)-COUNTBLANK($V$3:$V$202),"",INDIRECT(ADDRESS(SMALL((IF($V$3:$V$202<>"",ROW($V$3:$V$202),ROW()+ROWS($V$3:$V$202))),ROW()-ROW($AE$3:$AE$202)+1),COLUMN($V$3:$V$202),4))) ->  | AF60: =IF(ROW()-ROW($W$3:$W$202)+1>ROWS($AF$3:$AF$202)-COUNTBLANK($W$3:$W$202),"",INDIRECT(ADDRESS(SMALL((IF($W$3:$W$202<>"",ROW($W$3:$W$202),ROW()+ROWS($W$3:$W$202))),ROW()-ROW($AF$3:$AF$202)+1),COLUMN($W$3:$W$202),4))) ->  | AG60: =IF(ROW()-ROW($X$3:$X$202)+1>ROWS($AG$3:$AG$202)-COUNTBLANK($X$3:$X$202),"",INDIRECT(ADDRESS(SMALL((IF($X$3:$X$202<>"",ROW($X$3:$X$202),ROW()+ROWS($X$3:$X$203))),ROW()-ROW($AG$3:$AG$202)+1),COLUMN($X$3:$X$202),4))) -> 
A61: ='Лист набл. руч. раб. - 1'!A65 ->  | B61: =IF('Лист набл. руч. раб. - 1'!B65="","",'Лист набл. руч. раб. - 1'!B65) ->  | C61: =IF('Лист набл. руч. раб. - 1'!R65="","",'Лист набл. руч. раб. - 1'!R65) ->  | I61: ='Лист набл. руч. раб. - 2'!A65 ->  | J61: =IF('Лист набл. руч. раб. - 2'!B65="","",'Лист набл. руч. раб. - 2'!B65) ->  | K61: =IF('Лист набл. руч. раб. - 2'!R65="","",'Лист набл. руч. раб. - 2'!R65) ->  | Q61: 59 | R61: =IFERROR(INDEX($B$3:$B$102,MATCH(Q61,$A$3:$A$102,0)),"") ->  | S61: =IFERROR(INDEX($C$3:$C$102,MATCH(Q61,$A$3:$A$102,0)),"") ->  | U61: =IFERROR(INDEX(F$1:F$102,MATCH($Q61,$A:$A,0)+1),"") ->  | V61: =IFERROR(INDEX(G$1:G$102,MATCH($Q61,$A:$A,0)+1),"") ->  | Z61: 59 | AA61: =IF(ROW()-ROW($R$3:$R$202)+1>ROWS($AA$3:$AA$202)-COUNTBLANK($R$3:$R$202),"",INDIRECT(ADDRESS(SMALL((IF($R$3:$R$202<>"",ROW($R$3:$R$202),ROW()+ROWS($R$3:$R$202))),ROW()-ROW($AA$3:$AA$202)+1),COLUMN($R$3:$R$202),4))) ->  | AB61: =IF(ROW()-ROW($S$3:$S$202)+1>ROWS($AB$3:$AB$202)-COUNTBLANK($S$3:$S$202),"",INDIRECT(ADDRESS(SMALL((IF($S$3:$S$202<>"",ROW($S$3:$S$202),ROW()+ROWS($S$3:$S$202))),ROW()-ROW($AB$3:$AB$202)+1),COLUMN($S$3:$S$202),4))) ->  | AC61: =IF(ROW()-ROW($T$3:$T$202)+1>ROWS($AC$3:$AC$202)-COUNTBLANK($T$3:$T$202),"",INDIRECT(ADDRESS(SMALL((IF($T$3:$T$202<>"",ROW($T$3:$T$202),ROW()+ROWS($T$3:$T$202))),ROW()-ROW($AC$3:$AC$202)+1),COLUMN($T$3:$T$202),4))) ->  | AD61: =IF(ROW()-ROW($U$3:$U$202)+1>ROWS($AD$3:$AD$202)-COUNTBLANK($U$3:$U$202),"",INDIRECT(ADDRESS(SMALL((IF($U$3:$U$202<>"",ROW($U$3:$U$202),ROW()+ROWS($U$3:$U$202))),ROW()-ROW($AD$3:$AD$202)+1),COLUMN($U$3:$U$202),4))) ->  | AE61: =IF(ROW()-ROW($V$3:$V$202)+1>ROWS($AE$3:$AE$202)-COUNTBLANK($V$3:$V$202),"",INDIRECT(ADDRESS(SMALL((IF($V$3:$V$202<>"",ROW($V$3:$V$202),ROW()+ROWS($V$3:$V$202))),ROW()-ROW($AE$3:$AE$202)+1),COLUMN($V$3:$V$202),4))) ->  | AF61: =IF(ROW()-ROW($W$3:$W$202)+1>ROWS($AF$3:$AF$202)-COUNTBLANK($W$3:$W$202),"",INDIRECT(ADDRESS(SMALL((IF($W$3:$W$202<>"",ROW($W$3:$W$202),ROW()+ROWS($W$3:$W$202))),ROW()-ROW($AF$3:$AF$202)+1),COLUMN($W$3:$W$202),4))) ->  | AG61: =IF(ROW()-ROW($X$3:$X$202)+1>ROWS($AG$3:$AG$202)-COUNTBLANK($X$3:$X$202),"",INDIRECT(ADDRESS(SMALL((IF($X$3:$X$202<>"",ROW($X$3:$X$202),ROW()+ROWS($X$3:$X$203))),ROW()-ROW($AG$3:$AG$202)+1),COLUMN($X$3:$X$202),4))) -> 
A62: ='Лист набл. руч. раб. - 1'!A66 ->  | B62: =IF('Лист набл. руч. раб. - 1'!B66="","",'Лист набл. руч. раб. - 1'!B66) ->  | C62: =IF('Лист набл. руч. раб. - 1'!R66="","",'Лист набл. руч. раб. - 1'!R66) ->  | I62: ='Лист набл. руч. раб. - 2'!A66 ->  | J62: =IF('Лист набл. руч. раб. - 2'!B66="","",'Лист набл. руч. раб. - 2'!B66) ->  | K62: =IF('Лист набл. руч. раб. - 2'!R66="","",'Лист набл. руч. раб. - 2'!R66) ->  | Q62: 60 | R62: =IFERROR(INDEX($B$3:$B$102,MATCH(Q62,$A$3:$A$102,0)),"") ->  | S62: =IFERROR(INDEX($C$3:$C$102,MATCH(Q62,$A$3:$A$102,0)),"") ->  | U62: =IFERROR(INDEX(F$1:F$102,MATCH($Q62,$A:$A,0)+1),"") ->  | V62: =IFERROR(INDEX(G$1:G$102,MATCH($Q62,$A:$A,0)+1),"") ->  | Z62: 60 | AA62: =IF(ROW()-ROW($R$3:$R$202)+1>ROWS($AA$3:$AA$202)-COUNTBLANK($R$3:$R$202),"",INDIRECT(ADDRESS(SMALL((IF($R$3:$R$202<>"",ROW($R$3:$R$202),ROW()+ROWS($R$3:$R$202))),ROW()-ROW($AA$3:$AA$202)+1),COLUMN($R$3:$R$202),4))) ->  | AB62: =IF(ROW()-ROW($S$3:$S$202)+1>ROWS($AB$3:$AB$202)-COUNTBLANK($S$3:$S$202),"",INDIRECT(ADDRESS(SMALL((IF($S$3:$S$202<>"",ROW($S$3:$S$202),ROW()+ROWS($S$3:$S$202))),ROW()-ROW($AB$3:$AB$202)+1),COLUMN($S$3:$S$202),4))) ->  | AC62: =IF(ROW()-ROW($T$3:$T$202)+1>ROWS($AC$3:$AC$202)-COUNTBLANK($T$3:$T$202),"",INDIRECT(ADDRESS(SMALL((IF($T$3:$T$202<>"",ROW($T$3:$T$202),ROW()+ROWS($T$3:$T$202))),ROW()-ROW($AC$3:$AC$202)+1),COLUMN($T$3:$T$202),4))) ->  | AD62: =IF(ROW()-ROW($U$3:$U$202)+1>ROWS($AD$3:$AD$202)-COUNTBLANK($U$3:$U$202),"",INDIRECT(ADDRESS(SMALL((IF($U$3:$U$202<>"",ROW($U$3:$U$202),ROW()+ROWS($U$3:$U$202))),ROW()-ROW($AD$3:$AD$202)+1),COLUMN($U$3:$U$202),4))) ->  | AE62: =IF(ROW()-ROW($V$3:$V$202)+1>ROWS($AE$3:$AE$202)-COUNTBLANK($V$3:$V$202),"",INDIRECT(ADDRESS(SMALL((IF($V$3:$V$202<>"",ROW($V$3:$V$202),ROW()+ROWS($V$3:$V$202))),ROW()-ROW($AE$3:$AE$202)+1),COLUMN($V$3:$V$202),4))) ->  | AF62: =IF(ROW()-ROW($W$3:$W$202)+1>ROWS($AF$3:$AF$202)-COUNTBLANK($W$3:$W$202),"",INDIRECT(ADDRESS(SMALL((IF($W$3:$W$202<>"",ROW($W$3:$W$202),ROW()+ROWS($W$3:$W$202))),ROW()-ROW($AF$3:$AF$202)+1),COLUMN($W$3:$W$202),4))) ->  | AG62: =IF(ROW()-ROW($X$3:$X$202)+1>ROWS($AG$3:$AG$202)-COUNTBLANK($X$3:$X$202),"",INDIRECT(ADDRESS(SMALL((IF($X$3:$X$202<>"",ROW($X$3:$X$202),ROW()+ROWS($X$3:$X$203))),ROW()-ROW($AG$3:$AG$202)+1),COLUMN($X$3:$X$202),4))) -> 
A63: ='Лист набл. руч. раб. - 1'!A67 ->  | B63: =IF('Лист набл. руч. раб. - 1'!B67="","",'Лист набл. руч. раб. - 1'!B67) ->  | C63: =IF('Лист набл. руч. раб. - 1'!R67="","",'Лист набл. руч. раб. - 1'!R67) ->  | I63: ='Лист набл. руч. раб. - 2'!A67 ->  | J63: =IF('Лист набл. руч. раб. - 2'!B67="","",'Лист набл. руч. раб. - 2'!B67) ->  | K63: =IF('Лист набл. руч. раб. - 2'!R67="","",'Лист набл. руч. раб. - 2'!R67) ->  | Q63: 61 | R63: =IFERROR(INDEX($B$3:$B$102,MATCH(Q63,$A$3:$A$102,0)),"") ->  | S63: =IFERROR(INDEX($C$3:$C$102,MATCH(Q63,$A$3:$A$102,0)),"") ->  | U63: =IFERROR(INDEX(F$1:F$102,MATCH($Q63,$A:$A,0)+1),"") ->  | V63: =IFERROR(INDEX(G$1:G$102,MATCH($Q63,$A:$A,0)+1),"") ->  | Z63: 61 | AA63: =IF(ROW()-ROW($R$3:$R$202)+1>ROWS($AA$3:$AA$202)-COUNTBLANK($R$3:$R$202),"",INDIRECT(ADDRESS(SMALL((IF($R$3:$R$202<>"",ROW($R$3:$R$202),ROW()+ROWS($R$3:$R$202))),ROW()-ROW($AA$3:$AA$202)+1),COLUMN($R$3:$R$202),4))) ->  | AB63: =IF(ROW()-ROW($S$3:$S$202)+1>ROWS($AB$3:$AB$202)-COUNTBLANK($S$3:$S$202),"",INDIRECT(ADDRESS(SMALL((IF($S$3:$S$202<>"",ROW($S$3:$S$202),ROW()+ROWS($S$3:$S$202))),ROW()-ROW($AB$3:$AB$202)+1),COLUMN($S$3:$S$202),4))) ->  | AC63: =IF(ROW()-ROW($T$3:$T$202)+1>ROWS($AC$3:$AC$202)-COUNTBLANK($T$3:$T$202),"",INDIRECT(ADDRESS(SMALL((IF($T$3:$T$202<>"",ROW($T$3:$T$202),ROW()+ROWS($T$3:$T$202))),ROW()-ROW($AC$3:$AC$202)+1),COLUMN($T$3:$T$202),4))) ->  | AD63: =IF(ROW()-ROW($U$3:$U$202)+1>ROWS($AD$3:$AD$202)-COUNTBLANK($U$3:$U$202),"",INDIRECT(ADDRESS(SMALL((IF($U$3:$U$202<>"",ROW($U$3:$U$202),ROW()+ROWS($U$3:$U$202))),ROW()-ROW($AD$3:$AD$202)+1),COLUMN($U$3:$U$202),4))) ->  | AE63: =IF(ROW()-ROW($V$3:$V$202)+1>ROWS($AE$3:$AE$202)-COUNTBLANK($V$3:$V$202),"",INDIRECT(ADDRESS(SMALL((IF($V$3:$V$202<>"",ROW($V$3:$V$202),ROW()+ROWS($V$3:$V$202))),ROW()-ROW($AE$3:$AE$202)+1),COLUMN($V$3:$V$202),4))) ->  | AF63: =IF(ROW()-ROW($W$3:$W$202)+1>ROWS($AF$3:$AF$202)-COUNTBLANK($W$3:$W$202),"",INDIRECT(ADDRESS(SMALL((IF($W$3:$W$202<>"",ROW($W$3:$W$202),ROW()+ROWS($W$3:$W$202))),ROW()-ROW($AF$3:$AF$202)+1),COLUMN($W$3:$W$202),4))) ->  | AG63: =IF(ROW()-ROW($X$3:$X$202)+1>ROWS($AG$3:$AG$202)-COUNTBLANK($X$3:$X$202),"",INDIRECT(ADDRESS(SMALL((IF($X$3:$X$202<>"",ROW($X$3:$X$202),ROW()+ROWS($X$3:$X$203))),ROW()-ROW($AG$3:$AG$202)+1),COLUMN($X$3:$X$202),4))) -> 
A64: ='Лист набл. руч. раб. - 1'!A68 ->  | B64: =IF('Лист набл. руч. раб. - 1'!B68="","",'Лист набл. руч. раб. - 1'!B68) ->  | C64: =IF('Лист набл. руч. раб. - 1'!R68="","",'Лист набл. руч. раб. - 1'!R68) ->  | I64: ='Лист набл. руч. раб. - 2'!A68 ->  | J64: =IF('Лист набл. руч. раб. - 2'!B68="","",'Лист набл. руч. раб. - 2'!B68) ->  | K64: =IF('Лист набл. руч. раб. - 2'!R68="","",'Лист набл. руч. раб. - 2'!R68) ->  | Q64: 62 | R64: =IFERROR(INDEX($B$3:$B$102,MATCH(Q64,$A$3:$A$102,0)),"") ->  | S64: =IFERROR(INDEX($C$3:$C$102,MATCH(Q64,$A$3:$A$102,0)),"") ->  | U64: =IFERROR(INDEX(F$1:F$102,MATCH($Q64,$A:$A,0)+1),"") ->  | V64: =IFERROR(INDEX(G$1:G$102,MATCH($Q64,$A:$A,0)+1),"") ->  | Z64: 62 | AA64: =IF(ROW()-ROW($R$3:$R$202)+1>ROWS($AA$3:$AA$202)-COUNTBLANK($R$3:$R$202),"",INDIRECT(ADDRESS(SMALL((IF($R$3:$R$202<>"",ROW($R$3:$R$202),ROW()+ROWS($R$3:$R$202))),ROW()-ROW($AA$3:$AA$202)+1),COLUMN($R$3:$R$202),4))) ->  | AB64: =IF(ROW()-ROW($S$3:$S$202)+1>ROWS($AB$3:$AB$202)-COUNTBLANK($S$3:$S$202),"",INDIRECT(ADDRESS(SMALL((IF($S$3:$S$202<>"",ROW($S$3:$S$202),ROW()+ROWS($S$3:$S$202))),ROW()-ROW($AB$3:$AB$202)+1),COLUMN($S$3:$S$202),4))) ->  | AC64: =IF(ROW()-ROW($T$3:$T$202)+1>ROWS($AC$3:$AC$202)-COUNTBLANK($T$3:$T$202),"",INDIRECT(ADDRESS(SMALL((IF($T$3:$T$202<>"",ROW($T$3:$T$202),ROW()+ROWS($T$3:$T$202))),ROW()-ROW($AC$3:$AC$202)+1),COLUMN($T$3:$T$202),4))) ->  | AD64: =IF(ROW()-ROW($U$3:$U$202)+1>ROWS($AD$3:$AD$202)-COUNTBLANK($U$3:$U$202),"",INDIRECT(ADDRESS(SMALL((IF($U$3:$U$202<>"",ROW($U$3:$U$202),ROW()+ROWS($U$3:$U$202))),ROW()-ROW($AD$3:$AD$202)+1),COLUMN($U$3:$U$202),4))) ->  | AE64: =IF(ROW()-ROW($V$3:$V$202)+1>ROWS($AE$3:$AE$202)-COUNTBLANK($V$3:$V$202),"",INDIRECT(ADDRESS(SMALL((IF($V$3:$V$202<>"",ROW($V$3:$V$202),ROW()+ROWS($V$3:$V$202))),ROW()-ROW($AE$3:$AE$202)+1),COLUMN($V$3:$V$202),4))) ->  | AF64: =IF(ROW()-ROW($W$3:$W$202)+1>ROWS($AF$3:$AF$202)-COUNTBLANK($W$3:$W$202),"",INDIRECT(ADDRESS(SMALL((IF($W$3:$W$202<>"",ROW($W$3:$W$202),ROW()+ROWS($W$3:$W$202))),ROW()-ROW($AF$3:$AF$202)+1),COLUMN($W$3:$W$202),4))) ->  | AG64: =IF(ROW()-ROW($X$3:$X$202)+1>ROWS($AG$3:$AG$202)-COUNTBLANK($X$3:$X$202),"",INDIRECT(ADDRESS(SMALL((IF($X$3:$X$202<>"",ROW($X$3:$X$202),ROW()+ROWS($X$3:$X$203))),ROW()-ROW($AG$3:$AG$202)+1),COLUMN($X$3:$X$202),4))) -> 
A65: ='Лист набл. руч. раб. - 1'!A69 ->  | B65: =IF('Лист набл. руч. раб. - 1'!B69="","",'Лист набл. руч. раб. - 1'!B69) ->  | C65: =IF('Лист набл. руч. раб. - 1'!R69="","",'Лист набл. руч. раб. - 1'!R69) ->  | I65: ='Лист набл. руч. раб. - 2'!A69 ->  | J65: =IF('Лист набл. руч. раб. - 2'!B69="","",'Лист набл. руч. раб. - 2'!B69) ->  | K65: =IF('Лист набл. руч. раб. - 2'!R69="","",'Лист набл. руч. раб. - 2'!R69) ->  | Q65: 63 | R65: =IFERROR(INDEX($B$3:$B$102,MATCH(Q65,$A$3:$A$102,0)),"") ->  | S65: =IFERROR(INDEX($C$3:$C$102,MATCH(Q65,$A$3:$A$102,0)),"") ->  | U65: =IFERROR(INDEX(F$1:F$102,MATCH($Q65,$A:$A,0)+1),"") ->  | V65: =IFERROR(INDEX(G$1:G$102,MATCH($Q65,$A:$A,0)+1),"") ->  | Z65: 63 | AA65: =IF(ROW()-ROW($R$3:$R$202)+1>ROWS($AA$3:$AA$202)-COUNTBLANK($R$3:$R$202),"",INDIRECT(ADDRESS(SMALL((IF($R$3:$R$202<>"",ROW($R$3:$R$202),ROW()+ROWS($R$3:$R$202))),ROW()-ROW($AA$3:$AA$202)+1),COLUMN($R$3:$R$202),4))) ->  | AB65: =IF(ROW()-ROW($S$3:$S$202)+1>ROWS($AB$3:$AB$202)-COUNTBLANK($S$3:$S$202),"",INDIRECT(ADDRESS(SMALL((IF($S$3:$S$202<>"",ROW($S$3:$S$202),ROW()+ROWS($S$3:$S$202))),ROW()-ROW($AB$3:$AB$202)+1),COLUMN($S$3:$S$202),4))) ->  | AC65: =IF(ROW()-ROW($T$3:$T$202)+1>ROWS($AC$3:$AC$202)-COUNTBLANK($T$3:$T$202),"",INDIRECT(ADDRESS(SMALL((IF($T$3:$T$202<>"",ROW($T$3:$T$202),ROW()+ROWS($T$3:$T$202))),ROW()-ROW($AC$3:$AC$202)+1),COLUMN($T$3:$T$202),4))) ->  | AD65: =IF(ROW()-ROW($U$3:$U$202)+1>ROWS($AD$3:$AD$202)-COUNTBLANK($U$3:$U$202),"",INDIRECT(ADDRESS(SMALL((IF($U$3:$U$202<>"",ROW($U$3:$U$202),ROW()+ROWS($U$3:$U$202))),ROW()-ROW($AD$3:$AD$202)+1),COLUMN($U$3:$U$202),4))) ->  | AE65: =IF(ROW()-ROW($V$3:$V$202)+1>ROWS($AE$3:$AE$202)-COUNTBLANK($V$3:$V$202),"",INDIRECT(ADDRESS(SMALL((IF($V$3:$V$202<>"",ROW($V$3:$V$202),ROW()+ROWS($V$3:$V$202))),ROW()-ROW($AE$3:$AE$202)+1),COLUMN($V$3:$V$202),4))) ->  | AF65: =IF(ROW()-ROW($W$3:$W$202)+1>ROWS($AF$3:$AF$202)-COUNTBLANK($W$3:$W$202),"",INDIRECT(ADDRESS(SMALL((IF($W$3:$W$202<>"",ROW($W$3:$W$202),ROW()+ROWS($W$3:$W$202))),ROW()-ROW($AF$3:$AF$202)+1),COLUMN($W$3:$W$202),4))) ->  | AG65: =IF(ROW()-ROW($X$3:$X$202)+1>ROWS($AG$3:$AG$202)-COUNTBLANK($X$3:$X$202),"",INDIRECT(ADDRESS(SMALL((IF($X$3:$X$202<>"",ROW($X$3:$X$202),ROW()+ROWS($X$3:$X$203))),ROW()-ROW($AG$3:$AG$202)+1),COLUMN($X$3:$X$202),4))) -> 
A66: ='Лист набл. руч. раб. - 1'!A70 ->  | B66: =IF('Лист набл. руч. раб. - 1'!B70="","",'Лист набл. руч. раб. - 1'!B70) ->  | C66: =IF('Лист набл. руч. раб. - 1'!R70="","",'Лист набл. руч. раб. - 1'!R70) ->  | I66: ='Лист набл. руч. раб. - 2'!A70 ->  | J66: =IF('Лист набл. руч. раб. - 2'!B70="","",'Лист набл. руч. раб. - 2'!B70) ->  | K66: =IF('Лист набл. руч. раб. - 2'!R70="","",'Лист набл. руч. раб. - 2'!R70) ->  | Q66: 64 | R66: =IFERROR(INDEX($B$3:$B$102,MATCH(Q66,$A$3:$A$102,0)),"") ->  | S66: =IFERROR(INDEX($C$3:$C$102,MATCH(Q66,$A$3:$A$102,0)),"") ->  | U66: =IFERROR(INDEX(F$1:F$102,MATCH($Q66,$A:$A,0)+1),"") ->  | V66: =IFERROR(INDEX(G$1:G$102,MATCH($Q66,$A:$A,0)+1),"") ->  | Z66: 64 | AA66: =IF(ROW()-ROW($R$3:$R$202)+1>ROWS($AA$3:$AA$202)-COUNTBLANK($R$3:$R$202),"",INDIRECT(ADDRESS(SMALL((IF($R$3:$R$202<>"",ROW($R$3:$R$202),ROW()+ROWS($R$3:$R$202))),ROW()-ROW($AA$3:$AA$202)+1),COLUMN($R$3:$R$202),4))) ->  | AB66: =IF(ROW()-ROW($S$3:$S$202)+1>ROWS($AB$3:$AB$202)-COUNTBLANK($S$3:$S$202),"",INDIRECT(ADDRESS(SMALL((IF($S$3:$S$202<>"",ROW($S$3:$S$202),ROW()+ROWS($S$3:$S$202))),ROW()-ROW($AB$3:$AB$202)+1),COLUMN($S$3:$S$202),4))) ->  | AC66: =IF(ROW()-ROW($T$3:$T$202)+1>ROWS($AC$3:$AC$202)-COUNTBLANK($T$3:$T$202),"",INDIRECT(ADDRESS(SMALL((IF($T$3:$T$202<>"",ROW($T$3:$T$202),ROW()+ROWS($T$3:$T$202))),ROW()-ROW($AC$3:$AC$202)+1),COLUMN($T$3:$T$202),4))) ->  | AD66: =IF(ROW()-ROW($U$3:$U$202)+1>ROWS($AD$3:$AD$202)-COUNTBLANK($U$3:$U$202),"",INDIRECT(ADDRESS(SMALL((IF($U$3:$U$202<>"",ROW($U$3:$U$202),ROW()+ROWS($U$3:$U$202))),ROW()-ROW($AD$3:$AD$202)+1),COLUMN($U$3:$U$202),4))) ->  | AE66: =IF(ROW()-ROW($V$3:$V$202)+1>ROWS($AE$3:$AE$202)-COUNTBLANK($V$3:$V$202),"",INDIRECT(ADDRESS(SMALL((IF($V$3:$V$202<>"",ROW($V$3:$V$202),ROW()+ROWS($V$3:$V$202))),ROW()-ROW($AE$3:$AE$202)+1),COLUMN($V$3:$V$202),4))) ->  | AF66: =IF(ROW()-ROW($W$3:$W$202)+1>ROWS($AF$3:$AF$202)-COUNTBLANK($W$3:$W$202),"",INDIRECT(ADDRESS(SMALL((IF($W$3:$W$202<>"",ROW($W$3:$W$202),ROW()+ROWS($W$3:$W$202))),ROW()-ROW($AF$3:$AF$202)+1),COLUMN($W$3:$W$202),4))) ->  | AG66: =IF(ROW()-ROW($X$3:$X$202)+1>ROWS($AG$3:$AG$202)-COUNTBLANK($X$3:$X$202),"",INDIRECT(ADDRESS(SMALL((IF($X$3:$X$202<>"",ROW($X$3:$X$202),ROW()+ROWS($X$3:$X$203))),ROW()-ROW($AG$3:$AG$202)+1),COLUMN($X$3:$X$202),4))) -> 
A67: ='Лист набл. руч. раб. - 1'!A71 ->  | B67: =IF('Лист набл. руч. раб. - 1'!B71="","",'Лист набл. руч. раб. - 1'!B71) ->  | C67: =IF('Лист набл. руч. раб. - 1'!R71="","",'Лист набл. руч. раб. - 1'!R71) ->  | I67: ='Лист набл. руч. раб. - 2'!A71 ->  | J67: =IF('Лист набл. руч. раб. - 2'!B71="","",'Лист набл. руч. раб. - 2'!B71) ->  | K67: =IF('Лист набл. руч. раб. - 2'!R71="","",'Лист набл. руч. раб. - 2'!R71) ->  | Q67: 65 | R67: =IFERROR(INDEX($B$3:$B$102,MATCH(Q67,$A$3:$A$102,0)),"") ->  | S67: =IFERROR(INDEX($C$3:$C$102,MATCH(Q67,$A$3:$A$102,0)),"") ->  | U67: =IFERROR(INDEX(F$1:F$102,MATCH($Q67,$A:$A,0)+1),"") ->  | V67: =IFERROR(INDEX(G$1:G$102,MATCH($Q67,$A:$A,0)+1),"") ->  | Z67: 65 | AA67: =IF(ROW()-ROW($R$3:$R$202)+1>ROWS($AA$3:$AA$202)-COUNTBLANK($R$3:$R$202),"",INDIRECT(ADDRESS(SMALL((IF($R$3:$R$202<>"",ROW($R$3:$R$202),ROW()+ROWS($R$3:$R$202))),ROW()-ROW($AA$3:$AA$202)+1),COLUMN($R$3:$R$202),4))) ->  | AB67: =IF(ROW()-ROW($S$3:$S$202)+1>ROWS($AB$3:$AB$202)-COUNTBLANK($S$3:$S$202),"",INDIRECT(ADDRESS(SMALL((IF($S$3:$S$202<>"",ROW($S$3:$S$202),ROW()+ROWS($S$3:$S$202))),ROW()-ROW($AB$3:$AB$202)+1),COLUMN($S$3:$S$202),4))) ->  | AC67: =IF(ROW()-ROW($T$3:$T$202)+1>ROWS($AC$3:$AC$202)-COUNTBLANK($T$3:$T$202),"",INDIRECT(ADDRESS(SMALL((IF($T$3:$T$202<>"",ROW($T$3:$T$202),ROW()+ROWS($T$3:$T$202))),ROW()-ROW($AC$3:$AC$202)+1),COLUMN($T$3:$T$202),4))) ->  | AD67: =IF(ROW()-ROW($U$3:$U$202)+1>ROWS($AD$3:$AD$202)-COUNTBLANK($U$3:$U$202),"",INDIRECT(ADDRESS(SMALL((IF($U$3:$U$202<>"",ROW($U$3:$U$202),ROW()+ROWS($U$3:$U$202))),ROW()-ROW($AD$3:$AD$202)+1),COLUMN($U$3:$U$202),4))) ->  | AE67: =IF(ROW()-ROW($V$3:$V$202)+1>ROWS($AE$3:$AE$202)-COUNTBLANK($V$3:$V$202),"",INDIRECT(ADDRESS(SMALL((IF($V$3:$V$202<>"",ROW($V$3:$V$202),ROW()+ROWS($V$3:$V$202))),ROW()-ROW($AE$3:$AE$202)+1),COLUMN($V$3:$V$202),4))) ->  | AF67: =IF(ROW()-ROW($W$3:$W$202)+1>ROWS($AF$3:$AF$202)-COUNTBLANK($W$3:$W$202),"",INDIRECT(ADDRESS(SMALL((IF($W$3:$W$202<>"",ROW($W$3:$W$202),ROW()+ROWS($W$3:$W$202))),ROW()-ROW($AF$3:$AF$202)+1),COLUMN($W$3:$W$202),4))) ->  | AG67: =IF(ROW()-ROW($X$3:$X$202)+1>ROWS($AG$3:$AG$202)-COUNTBLANK($X$3:$X$202),"",INDIRECT(ADDRESS(SMALL((IF($X$3:$X$202<>"",ROW($X$3:$X$202),ROW()+ROWS($X$3:$X$203))),ROW()-ROW($AG$3:$AG$202)+1),COLUMN($X$3:$X$202),4))) -> 
A68: ='Лист набл. руч. раб. - 1'!A72 ->  | B68: =IF('Лист набл. руч. раб. - 1'!B72="","",'Лист набл. руч. раб. - 1'!B72) ->  | C68: =IF('Лист набл. руч. раб. - 1'!R72="","",'Лист набл. руч. раб. - 1'!R72) ->  | D68: =IF(B68="","",IF(AND(F68=0,G68=0),C68,0)) ->  | F68: =IF(B68="","",IFERROR(VLOOKUP($F$1,B68:C68,2,FALSE),0)) ->  | G68: =IF(B68="","",IFERROR(VLOOKUP($G$1,B68:C68,2,FALSE),0)) ->  | I68: ='Лист набл. руч. раб. - 2'!A72 ->  | J68: =IF('Лист набл. руч. раб. - 2'!B72="","",'Лист набл. руч. раб. - 2'!B72) ->  | K68: =IF('Лист набл. руч. раб. - 2'!R72="","",'Лист набл. руч. раб. - 2'!R72) ->  | L68: =IF(J68="","",IF(AND(N68=0,O68=0),K68,0)) ->  | N68: =IF(J68="","",IFERROR(VLOOKUP($N$1,J68:K68,2,FALSE),0)) ->  | O68: =IF(J68="","",IFERROR(VLOOKUP($O$1,J68:K68,2,FALSE),0)) ->  | Q68: 66 | R68: =IFERROR(INDEX($B$3:$B$102,MATCH(Q68,$A$3:$A$102,0)),"") ->  | S68: =IFERROR(INDEX($C$3:$C$102,MATCH(Q68,$A$3:$A$102,0)),"") ->  | T68: =IF(R68="","",0) ->  | U68: =IFERROR(INDEX(F$1:F$102,MATCH($Q68,$A:$A,0)+1),"") ->  | V68: =IFERROR(INDEX(G$1:G$102,MATCH($Q68,$A:$A,0)+1),"") ->  | W68: =IF(R68="","",1) ->  | X68: =IF(R68="","",1) ->  | Z68: 66 | AA68: =IF(ROW()-ROW($R$3:$R$202)+1>ROWS($AA$3:$AA$202)-COUNTBLANK($R$3:$R$202),"",INDIRECT(ADDRESS(SMALL((IF($R$3:$R$202<>"",ROW($R$3:$R$202),ROW()+ROWS($R$3:$R$202))),ROW()-ROW($AA$3:$AA$202)+1),COLUMN($R$3:$R$202),4))) ->  | AB68: =IF(ROW()-ROW($S$3:$S$202)+1>ROWS($AB$3:$AB$202)-COUNTBLANK($S$3:$S$202),"",INDIRECT(ADDRESS(SMALL((IF($S$3:$S$202<>"",ROW($S$3:$S$202),ROW()+ROWS($S$3:$S$202))),ROW()-ROW($AB$3:$AB$202)+1),COLUMN($S$3:$S$202),4))) ->  | AC68: =IF(ROW()-ROW($T$3:$T$202)+1>ROWS($AC$3:$AC$202)-COUNTBLANK($T$3:$T$202),"",INDIRECT(ADDRESS(SMALL((IF($T$3:$T$202<>"",ROW($T$3:$T$202),ROW()+ROWS($T$3:$T$202))),ROW()-ROW($AC$3:$AC$202)+1),COLUMN($T$3:$T$202),4))) ->  | AD68: =IF(ROW()-ROW($U$3:$U$202)+1>ROWS($AD$3:$AD$202)-COUNTBLANK($U$3:$U$202),"",INDIRECT(ADDRESS(SMALL((IF($U$3:$U$202<>"",ROW($U$3:$U$202),ROW()+ROWS($U$3:$U$202))),ROW()-ROW($AD$3:$AD$202)+1),COLUMN($U$3:$U$202),4))) ->  | AE68: =IF(ROW()-ROW($V$3:$V$202)+1>ROWS($AE$3:$AE$202)-COUNTBLANK($V$3:$V$202),"",INDIRECT(ADDRESS(SMALL((IF($V$3:$V$202<>"",ROW($V$3:$V$202),ROW()+ROWS($V$3:$V$202))),ROW()-ROW($AE$3:$AE$202)+1),COLUMN($V$3:$V$202),4))) ->  | AF68: =IF(ROW()-ROW($W$3:$W$202)+1>ROWS($AF$3:$AF$202)-COUNTBLANK($W$3:$W$202),"",INDIRECT(ADDRESS(SMALL((IF($W$3:$W$202<>"",ROW($W$3:$W$202),ROW()+ROWS($W$3:$W$202))),ROW()-ROW($AF$3:$AF$202)+1),COLUMN($W$3:$W$202),4))) ->  | AG68: =IF(ROW()-ROW($X$3:$X$202)+1>ROWS($AG$3:$AG$202)-COUNTBLANK($X$3:$X$202),"",INDIRECT(ADDRESS(SMALL((IF($X$3:$X$202<>"",ROW($X$3:$X$202),ROW()+ROWS($X$3:$X$203))),ROW()-ROW($AG$3:$AG$202)+1),COLUMN($X$3:$X$202),4))) -> 
A69: ='Лист набл. руч. раб. - 1'!A73 ->  | B69: =IF('Лист набл. руч. раб. - 1'!B73="","",'Лист набл. руч. раб. - 1'!B73) ->  | C69: =IF('Лист набл. руч. раб. - 1'!R73="","",'Лист набл. руч. раб. - 1'!R73) ->  | I69: ='Лист набл. руч. раб. - 2'!A73 ->  | J69: =IF('Лист набл. руч. раб. - 2'!B73="","",'Лист набл. руч. раб. - 2'!B73) ->  | K69: =IF('Лист набл. руч. раб. - 2'!R73="","",'Лист набл. руч. раб. - 2'!R73) ->  | Q69: 67 | R69: =IFERROR(INDEX($B$3:$B$102,MATCH(Q69,$A$3:$A$102,0)),"") ->  | S69: =IFERROR(INDEX($C$3:$C$102,MATCH(Q69,$A$3:$A$102,0)),"") ->  | U69: =IFERROR(INDEX(F$1:F$102,MATCH($Q69,$A:$A,0)+1),"") ->  | V69: =IFERROR(INDEX(G$1:G$102,MATCH($Q69,$A:$A,0)+1),"") ->  | Z69: 67 | AA69: =IF(ROW()-ROW($R$3:$R$202)+1>ROWS($AA$3:$AA$202)-COUNTBLANK($R$3:$R$202),"",INDIRECT(ADDRESS(SMALL((IF($R$3:$R$202<>"",ROW($R$3:$R$202),ROW()+ROWS($R$3:$R$202))),ROW()-ROW($AA$3:$AA$202)+1),COLUMN($R$3:$R$202),4))) ->  | AB69: =IF(ROW()-ROW($S$3:$S$202)+1>ROWS($AB$3:$AB$202)-COUNTBLANK($S$3:$S$202),"",INDIRECT(ADDRESS(SMALL((IF($S$3:$S$202<>"",ROW($S$3:$S$202),ROW()+ROWS($S$3:$S$202))),ROW()-ROW($AB$3:$AB$202)+1),COLUMN($S$3:$S$202),4))) ->  | AC69: =IF(ROW()-ROW($T$3:$T$202)+1>ROWS($AC$3:$AC$202)-COUNTBLANK($T$3:$T$202),"",INDIRECT(ADDRESS(SMALL((IF($T$3:$T$202<>"",ROW($T$3:$T$202),ROW()+ROWS($T$3:$T$202))),ROW()-ROW($AC$3:$AC$202)+1),COLUMN($T$3:$T$202),4))) ->  | AD69: =IF(ROW()-ROW($U$3:$U$202)+1>ROWS($AD$3:$AD$202)-COUNTBLANK($U$3:$U$202),"",INDIRECT(ADDRESS(SMALL((IF($U$3:$U$202<>"",ROW($U$3:$U$202),ROW()+ROWS($U$3:$U$202))),ROW()-ROW($AD$3:$AD$202)+1),COLUMN($U$3:$U$202),4))) ->  | AE69: =IF(ROW()-ROW($V$3:$V$202)+1>ROWS($AE$3:$AE$202)-COUNTBLANK($V$3:$V$202),"",INDIRECT(ADDRESS(SMALL((IF($V$3:$V$202<>"",ROW($V$3:$V$202),ROW()+ROWS($V$3:$V$202))),ROW()-ROW($AE$3:$AE$202)+1),COLUMN($V$3:$V$202),4))) ->  | AF69: =IF(ROW()-ROW($W$3:$W$202)+1>ROWS($AF$3:$AF$202)-COUNTBLANK($W$3:$W$202),"",INDIRECT(ADDRESS(SMALL((IF($W$3:$W$202<>"",ROW($W$3:$W$202),ROW()+ROWS($W$3:$W$202))),ROW()-ROW($AF$3:$AF$202)+1),COLUMN($W$3:$W$202),4))) ->  | AG69: =IF(ROW()-ROW($X$3:$X$202)+1>ROWS($AG$3:$AG$202)-COUNTBLANK($X$3:$X$202),"",INDIRECT(ADDRESS(SMALL((IF($X$3:$X$202<>"",ROW($X$3:$X$202),ROW()+ROWS($X$3:$X$203))),ROW()-ROW($AG$3:$AG$202)+1),COLUMN($X$3:$X$202),4))) -> 
A70: ='Лист набл. руч. раб. - 1'!A74 ->  | B70: =IF('Лист набл. руч. раб. - 1'!B74="","",'Лист набл. руч. раб. - 1'!B74) ->  | C70: =IF('Лист набл. руч. раб. - 1'!R74="","",'Лист набл. руч. раб. - 1'!R74) ->  | I70: ='Лист набл. руч. раб. - 2'!A74 ->  | J70: =IF('Лист набл. руч. раб. - 2'!B74="","",'Лист набл. руч. раб. - 2'!B74) ->  | K70: =IF('Лист набл. руч. раб. - 2'!R74="","",'Лист набл. руч. раб. - 2'!R74) ->  | Q70: 68 | R70: =IFERROR(INDEX($B$3:$B$102,MATCH(Q70,$A$3:$A$102,0)),"") ->  | S70: =IFERROR(INDEX($C$3:$C$102,MATCH(Q70,$A$3:$A$102,0)),"") ->  | U70: =IFERROR(INDEX(F$1:F$102,MATCH($Q70,$A:$A,0)+1),"") ->  | V70: =IFERROR(INDEX(G$1:G$102,MATCH($Q70,$A:$A,0)+1),"") ->  | Z70: 68 | AA70: =IF(ROW()-ROW($R$3:$R$202)+1>ROWS($AA$3:$AA$202)-COUNTBLANK($R$3:$R$202),"",INDIRECT(ADDRESS(SMALL((IF($R$3:$R$202<>"",ROW($R$3:$R$202),ROW()+ROWS($R$3:$R$202))),ROW()-ROW($AA$3:$AA$202)+1),COLUMN($R$3:$R$202),4))) ->  | AB70: =IF(ROW()-ROW($S$3:$S$202)+1>ROWS($AB$3:$AB$202)-COUNTBLANK($S$3:$S$202),"",INDIRECT(ADDRESS(SMALL((IF($S$3:$S$202<>"",ROW($S$3:$S$202),ROW()+ROWS($S$3:$S$202))),ROW()-ROW($AB$3:$AB$202)+1),COLUMN($S$3:$S$202),4))) ->  | AC70: =IF(ROW()-ROW($T$3:$T$202)+1>ROWS($AC$3:$AC$202)-COUNTBLANK($T$3:$T$202),"",INDIRECT(ADDRESS(SMALL((IF($T$3:$T$202<>"",ROW($T$3:$T$202),ROW()+ROWS($T$3:$T$202))),ROW()-ROW($AC$3:$AC$202)+1),COLUMN($T$3:$T$202),4))) ->  | AD70: =IF(ROW()-ROW($U$3:$U$202)+1>ROWS($AD$3:$AD$202)-COUNTBLANK($U$3:$U$202),"",INDIRECT(ADDRESS(SMALL((IF($U$3:$U$202<>"",ROW($U$3:$U$202),ROW()+ROWS($U$3:$U$202))),ROW()-ROW($AD$3:$AD$202)+1),COLUMN($U$3:$U$202),4))) ->  | AE70: =IF(ROW()-ROW($V$3:$V$202)+1>ROWS($AE$3:$AE$202)-COUNTBLANK($V$3:$V$202),"",INDIRECT(ADDRESS(SMALL((IF($V$3:$V$202<>"",ROW($V$3:$V$202),ROW()+ROWS($V$3:$V$202))),ROW()-ROW($AE$3:$AE$202)+1),COLUMN($V$3:$V$202),4))) ->  | AF70: =IF(ROW()-ROW($W$3:$W$202)+1>ROWS($AF$3:$AF$202)-COUNTBLANK($W$3:$W$202),"",INDIRECT(ADDRESS(SMALL((IF($W$3:$W$202<>"",ROW($W$3:$W$202),ROW()+ROWS($W$3:$W$202))),ROW()-ROW($AF$3:$AF$202)+1),COLUMN($W$3:$W$202),4))) ->  | AG70: =IF(ROW()-ROW($X$3:$X$202)+1>ROWS($AG$3:$AG$202)-COUNTBLANK($X$3:$X$202),"",INDIRECT(ADDRESS(SMALL((IF($X$3:$X$202<>"",ROW($X$3:$X$202),ROW()+ROWS($X$3:$X$203))),ROW()-ROW($AG$3:$AG$202)+1),COLUMN($X$3:$X$202),4))) -> 
A71: ='Лист набл. руч. раб. - 1'!A75 ->  | B71: =IF('Лист набл. руч. раб. - 1'!B75="","",'Лист набл. руч. раб. - 1'!B75) ->  | C71: =IF('Лист набл. руч. раб. - 1'!R75="","",'Лист набл. руч. раб. - 1'!R75) ->  | I71: ='Лист набл. руч. раб. - 2'!A75 ->  | J71: =IF('Лист набл. руч. раб. - 2'!B75="","",'Лист набл. руч. раб. - 2'!B75) ->  | K71: =IF('Лист набл. руч. раб. - 2'!R75="","",'Лист набл. руч. раб. - 2'!R75) ->  | Q71: 69 | R71: =IFERROR(INDEX($B$3:$B$102,MATCH(Q71,$A$3:$A$102,0)),"") ->  | S71: =IFERROR(INDEX($C$3:$C$102,MATCH(Q71,$A$3:$A$102,0)),"") ->  | U71: =IFERROR(INDEX(F$1:F$102,MATCH($Q71,$A:$A,0)+1),"") ->  | V71: =IFERROR(INDEX(G$1:G$102,MATCH($Q71,$A:$A,0)+1),"") ->  | Z71: 69 | AA71: =IF(ROW()-ROW($R$3:$R$202)+1>ROWS($AA$3:$AA$202)-COUNTBLANK($R$3:$R$202),"",INDIRECT(ADDRESS(SMALL((IF($R$3:$R$202<>"",ROW($R$3:$R$202),ROW()+ROWS($R$3:$R$202))),ROW()-ROW($AA$3:$AA$202)+1),COLUMN($R$3:$R$202),4))) ->  | AB71: =IF(ROW()-ROW($S$3:$S$202)+1>ROWS($AB$3:$AB$202)-COUNTBLANK($S$3:$S$202),"",INDIRECT(ADDRESS(SMALL((IF($S$3:$S$202<>"",ROW($S$3:$S$202),ROW()+ROWS($S$3:$S$202))),ROW()-ROW($AB$3:$AB$202)+1),COLUMN($S$3:$S$202),4))) ->  | AC71: =IF(ROW()-ROW($T$3:$T$202)+1>ROWS($AC$3:$AC$202)-COUNTBLANK($T$3:$T$202),"",INDIRECT(ADDRESS(SMALL((IF($T$3:$T$202<>"",ROW($T$3:$T$202),ROW()+ROWS($T$3:$T$202))),ROW()-ROW($AC$3:$AC$202)+1),COLUMN($T$3:$T$202),4))) ->  | AD71: =IF(ROW()-ROW($U$3:$U$202)+1>ROWS($AD$3:$AD$202)-COUNTBLANK($U$3:$U$202),"",INDIRECT(ADDRESS(SMALL((IF($U$3:$U$202<>"",ROW($U$3:$U$202),ROW()+ROWS($U$3:$U$202))),ROW()-ROW($AD$3:$AD$202)+1),COLUMN($U$3:$U$202),4))) ->  | AE71: =IF(ROW()-ROW($V$3:$V$202)+1>ROWS($AE$3:$AE$202)-COUNTBLANK($V$3:$V$202),"",INDIRECT(ADDRESS(SMALL((IF($V$3:$V$202<>"",ROW($V$3:$V$202),ROW()+ROWS($V$3:$V$202))),ROW()-ROW($AE$3:$AE$202)+1),COLUMN($V$3:$V$202),4))) ->  | AF71: =IF(ROW()-ROW($W$3:$W$202)+1>ROWS($AF$3:$AF$202)-COUNTBLANK($W$3:$W$202),"",INDIRECT(ADDRESS(SMALL((IF($W$3:$W$202<>"",ROW($W$3:$W$202),ROW()+ROWS($W$3:$W$202))),ROW()-ROW($AF$3:$AF$202)+1),COLUMN($W$3:$W$202),4))) ->  | AG71: =IF(ROW()-ROW($X$3:$X$202)+1>ROWS($AG$3:$AG$202)-COUNTBLANK($X$3:$X$202),"",INDIRECT(ADDRESS(SMALL((IF($X$3:$X$202<>"",ROW($X$3:$X$202),ROW()+ROWS($X$3:$X$203))),ROW()-ROW($AG$3:$AG$202)+1),COLUMN($X$3:$X$202),4))) -> 
A72: ='Лист набл. руч. раб. - 1'!A76 ->  | B72: =IF('Лист набл. руч. раб. - 1'!B76="","",'Лист набл. руч. раб. - 1'!B76) ->  | C72: =IF('Лист набл. руч. раб. - 1'!R76="","",'Лист набл. руч. раб. - 1'!R76) ->  | I72: ='Лист набл. руч. раб. - 2'!A76 ->  | J72: =IF('Лист набл. руч. раб. - 2'!B76="","",'Лист набл. руч. раб. - 2'!B76) ->  | K72: =IF('Лист набл. руч. раб. - 2'!R76="","",'Лист набл. руч. раб. - 2'!R76) ->  | Q72: 70 | R72: =IFERROR(INDEX($B$3:$B$102,MATCH(Q72,$A$3:$A$102,0)),"") ->  | S72: =IFERROR(INDEX($C$3:$C$102,MATCH(Q72,$A$3:$A$102,0)),"") ->  | U72: =IFERROR(INDEX(F$1:F$102,MATCH($Q72,$A:$A,0)+1),"") ->  | V72: =IFERROR(INDEX(G$1:G$102,MATCH($Q72,$A:$A,0)+1),"") ->  | Z72: 70 | AA72: =IF(ROW()-ROW($R$3:$R$202)+1>ROWS($AA$3:$AA$202)-COUNTBLANK($R$3:$R$202),"",INDIRECT(ADDRESS(SMALL((IF($R$3:$R$202<>"",ROW($R$3:$R$202),ROW()+ROWS($R$3:$R$202))),ROW()-ROW($AA$3:$AA$202)+1),COLUMN($R$3:$R$202),4))) ->  | AB72: =IF(ROW()-ROW($S$3:$S$202)+1>ROWS($AB$3:$AB$202)-COUNTBLANK($S$3:$S$202),"",INDIRECT(ADDRESS(SMALL((IF($S$3:$S$202<>"",ROW($S$3:$S$202),ROW()+ROWS($S$3:$S$202))),ROW()-ROW($AB$3:$AB$202)+1),COLUMN($S$3:$S$202),4))) ->  | AC72: =IF(ROW()-ROW($T$3:$T$202)+1>ROWS($AC$3:$AC$202)-COUNTBLANK($T$3:$T$202),"",INDIRECT(ADDRESS(SMALL((IF($T$3:$T$202<>"",ROW($T$3:$T$202),ROW()+ROWS($T$3:$T$202))),ROW()-ROW($AC$3:$AC$202)+1),COLUMN($T$3:$T$202),4))) ->  | AD72: =IF(ROW()-ROW($U$3:$U$202)+1>ROWS($AD$3:$AD$202)-COUNTBLANK($U$3:$U$202),"",INDIRECT(ADDRESS(SMALL((IF($U$3:$U$202<>"",ROW($U$3:$U$202),ROW()+ROWS($U$3:$U$202))),ROW()-ROW($AD$3:$AD$202)+1),COLUMN($U$3:$U$202),4))) ->  | AE72: =IF(ROW()-ROW($V$3:$V$202)+1>ROWS($AE$3:$AE$202)-COUNTBLANK($V$3:$V$202),"",INDIRECT(ADDRESS(SMALL((IF($V$3:$V$202<>"",ROW($V$3:$V$202),ROW()+ROWS($V$3:$V$202))),ROW()-ROW($AE$3:$AE$202)+1),COLUMN($V$3:$V$202),4))) ->  | AF72: =IF(ROW()-ROW($W$3:$W$202)+1>ROWS($AF$3:$AF$202)-COUNTBLANK($W$3:$W$202),"",INDIRECT(ADDRESS(SMALL((IF($W$3:$W$202<>"",ROW($W$3:$W$202),ROW()+ROWS($W$3:$W$202))),ROW()-ROW($AF$3:$AF$202)+1),COLUMN($W$3:$W$202),4))) ->  | AG72: =IF(ROW()-ROW($X$3:$X$202)+1>ROWS($AG$3:$AG$202)-COUNTBLANK($X$3:$X$202),"",INDIRECT(ADDRESS(SMALL((IF($X$3:$X$202<>"",ROW($X$3:$X$202),ROW()+ROWS($X$3:$X$203))),ROW()-ROW($AG$3:$AG$202)+1),COLUMN($X$3:$X$202),4))) -> 
A73: ='Лист набл. руч. раб. - 1'!A77 ->  | B73: =IF('Лист набл. руч. раб. - 1'!B77="","",'Лист набл. руч. раб. - 1'!B77) ->  | C73: =IF('Лист набл. руч. раб. - 1'!R77="","",'Лист набл. руч. раб. - 1'!R77) ->  | I73: ='Лист набл. руч. раб. - 2'!A77 ->  | J73: =IF('Лист набл. руч. раб. - 2'!B77="","",'Лист набл. руч. раб. - 2'!B77) ->  | K73: =IF('Лист набл. руч. раб. - 2'!R77="","",'Лист набл. руч. раб. - 2'!R77) ->  | Q73: 71 | R73: =IFERROR(INDEX($B$3:$B$102,MATCH(Q73,$A$3:$A$102,0)),"") ->  | S73: =IFERROR(INDEX($C$3:$C$102,MATCH(Q73,$A$3:$A$102,0)),"") ->  | U73: =IFERROR(INDEX(F$1:F$102,MATCH($Q73,$A:$A,0)+1),"") ->  | V73: =IFERROR(INDEX(G$1:G$102,MATCH($Q73,$A:$A,0)+1),"") ->  | Z73: 71 | AA73: =IF(ROW()-ROW($R$3:$R$202)+1>ROWS($AA$3:$AA$202)-COUNTBLANK($R$3:$R$202),"",INDIRECT(ADDRESS(SMALL((IF($R$3:$R$202<>"",ROW($R$3:$R$202),ROW()+ROWS($R$3:$R$202))),ROW()-ROW($AA$3:$AA$202)+1),COLUMN($R$3:$R$202),4))) ->  | AB73: =IF(ROW()-ROW($S$3:$S$202)+1>ROWS($AB$3:$AB$202)-COUNTBLANK($S$3:$S$202),"",INDIRECT(ADDRESS(SMALL((IF($S$3:$S$202<>"",ROW($S$3:$S$202),ROW()+ROWS($S$3:$S$202))),ROW()-ROW($AB$3:$AB$202)+1),COLUMN($S$3:$S$202),4))) ->  | AC73: =IF(ROW()-ROW($T$3:$T$202)+1>ROWS($AC$3:$AC$202)-COUNTBLANK($T$3:$T$202),"",INDIRECT(ADDRESS(SMALL((IF($T$3:$T$202<>"",ROW($T$3:$T$202),ROW()+ROWS($T$3:$T$202))),ROW()-ROW($AC$3:$AC$202)+1),COLUMN($T$3:$T$202),4))) ->  | AD73: =IF(ROW()-ROW($U$3:$U$202)+1>ROWS($AD$3:$AD$202)-COUNTBLANK($U$3:$U$202),"",INDIRECT(ADDRESS(SMALL((IF($U$3:$U$202<>"",ROW($U$3:$U$202),ROW()+ROWS($U$3:$U$202))),ROW()-ROW($AD$3:$AD$202)+1),COLUMN($U$3:$U$202),4))) ->  | AE73: =IF(ROW()-ROW($V$3:$V$202)+1>ROWS($AE$3:$AE$202)-COUNTBLANK($V$3:$V$202),"",INDIRECT(ADDRESS(SMALL((IF($V$3:$V$202<>"",ROW($V$3:$V$202),ROW()+ROWS($V$3:$V$202))),ROW()-ROW($AE$3:$AE$202)+1),COLUMN($V$3:$V$202),4))) ->  | AF73: =IF(ROW()-ROW($W$3:$W$202)+1>ROWS($AF$3:$AF$202)-COUNTBLANK($W$3:$W$202),"",INDIRECT(ADDRESS(SMALL((IF($W$3:$W$202<>"",ROW($W$3:$W$202),ROW()+ROWS($W$3:$W$202))),ROW()-ROW($AF$3:$AF$202)+1),COLUMN($W$3:$W$202),4))) ->  | AG73: =IF(ROW()-ROW($X$3:$X$202)+1>ROWS($AG$3:$AG$202)-COUNTBLANK($X$3:$X$202),"",INDIRECT(ADDRESS(SMALL((IF($X$3:$X$202<>"",ROW($X$3:$X$202),ROW()+ROWS($X$3:$X$203))),ROW()-ROW($AG$3:$AG$202)+1),COLUMN($X$3:$X$202),4))) -> 
A74: ='Лист набл. руч. раб. - 1'!A78 ->  | B74: =IF('Лист набл. руч. раб. - 1'!B78="","",'Лист набл. руч. раб. - 1'!B78) ->  | C74: =IF('Лист набл. руч. раб. - 1'!R78="","",'Лист набл. руч. раб. - 1'!R78) ->  | I74: ='Лист набл. руч. раб. - 2'!A78 ->  | J74: =IF('Лист набл. руч. раб. - 2'!B78="","",'Лист набл. руч. раб. - 2'!B78) ->  | K74: =IF('Лист набл. руч. раб. - 2'!R78="","",'Лист набл. руч. раб. - 2'!R78) ->  | Q74: 72 | R74: =IFERROR(INDEX($B$3:$B$102,MATCH(Q74,$A$3:$A$102,0)),"") ->  | S74: =IFERROR(INDEX($C$3:$C$102,MATCH(Q74,$A$3:$A$102,0)),"") ->  | U74: =IFERROR(INDEX(F$1:F$102,MATCH($Q74,$A:$A,0)+1),"") ->  | V74: =IFERROR(INDEX(G$1:G$102,MATCH($Q74,$A:$A,0)+1),"") ->  | Z74: 72 | AA74: =IF(ROW()-ROW($R$3:$R$202)+1>ROWS($AA$3:$AA$202)-COUNTBLANK($R$3:$R$202),"",INDIRECT(ADDRESS(SMALL((IF($R$3:$R$202<>"",ROW($R$3:$R$202),ROW()+ROWS($R$3:$R$202))),ROW()-ROW($AA$3:$AA$202)+1),COLUMN($R$3:$R$202),4))) ->  | AB74: =IF(ROW()-ROW($S$3:$S$202)+1>ROWS($AB$3:$AB$202)-COUNTBLANK($S$3:$S$202),"",INDIRECT(ADDRESS(SMALL((IF($S$3:$S$202<>"",ROW($S$3:$S$202),ROW()+ROWS($S$3:$S$202))),ROW()-ROW($AB$3:$AB$202)+1),COLUMN($S$3:$S$202),4))) ->  | AC74: =IF(ROW()-ROW($T$3:$T$202)+1>ROWS($AC$3:$AC$202)-COUNTBLANK($T$3:$T$202),"",INDIRECT(ADDRESS(SMALL((IF($T$3:$T$202<>"",ROW($T$3:$T$202),ROW()+ROWS($T$3:$T$202))),ROW()-ROW($AC$3:$AC$202)+1),COLUMN($T$3:$T$202),4))) ->  | AD74: =IF(ROW()-ROW($U$3:$U$202)+1>ROWS($AD$3:$AD$202)-COUNTBLANK($U$3:$U$202),"",INDIRECT(ADDRESS(SMALL((IF($U$3:$U$202<>"",ROW($U$3:$U$202),ROW()+ROWS($U$3:$U$202))),ROW()-ROW($AD$3:$AD$202)+1),COLUMN($U$3:$U$202),4))) ->  | AE74: =IF(ROW()-ROW($V$3:$V$202)+1>ROWS($AE$3:$AE$202)-COUNTBLANK($V$3:$V$202),"",INDIRECT(ADDRESS(SMALL((IF($V$3:$V$202<>"",ROW($V$3:$V$202),ROW()+ROWS($V$3:$V$202))),ROW()-ROW($AE$3:$AE$202)+1),COLUMN($V$3:$V$202),4))) ->  | AF74: =IF(ROW()-ROW($W$3:$W$202)+1>ROWS($AF$3:$AF$202)-COUNTBLANK($W$3:$W$202),"",INDIRECT(ADDRESS(SMALL((IF($W$3:$W$202<>"",ROW($W$3:$W$202),ROW()+ROWS($W$3:$W$202))),ROW()-ROW($AF$3:$AF$202)+1),COLUMN($W$3:$W$202),4))) ->  | AG74: =IF(ROW()-ROW($X$3:$X$202)+1>ROWS($AG$3:$AG$202)-COUNTBLANK($X$3:$X$202),"",INDIRECT(ADDRESS(SMALL((IF($X$3:$X$202<>"",ROW($X$3:$X$202),ROW()+ROWS($X$3:$X$203))),ROW()-ROW($AG$3:$AG$202)+1),COLUMN($X$3:$X$202),4))) -> 
A75: ='Лист набл. руч. раб. - 1'!A79 ->  | B75: =IF('Лист набл. руч. раб. - 1'!B79="","",'Лист набл. руч. раб. - 1'!B79) ->  | C75: =IF('Лист набл. руч. раб. - 1'!R79="","",'Лист набл. руч. раб. - 1'!R79) ->  | I75: ='Лист набл. руч. раб. - 2'!A79 ->  | J75: =IF('Лист набл. руч. раб. - 2'!B79="","",'Лист набл. руч. раб. - 2'!B79) ->  | K75: =IF('Лист набл. руч. раб. - 2'!R79="","",'Лист набл. руч. раб. - 2'!R79) ->  | Q75: 73 | R75: =IFERROR(INDEX($B$3:$B$102,MATCH(Q75,$A$3:$A$102,0)),"") ->  | S75: =IFERROR(INDEX($C$3:$C$102,MATCH(Q75,$A$3:$A$102,0)),"") ->  | U75: =IFERROR(INDEX(F$1:F$102,MATCH($Q75,$A:$A,0)+1),"") ->  | V75: =IFERROR(INDEX(G$1:G$102,MATCH($Q75,$A:$A,0)+1),"") ->  | Z75: 73 | AA75: =IF(ROW()-ROW($R$3:$R$202)+1>ROWS($AA$3:$AA$202)-COUNTBLANK($R$3:$R$202),"",INDIRECT(ADDRESS(SMALL((IF($R$3:$R$202<>"",ROW($R$3:$R$202),ROW()+ROWS($R$3:$R$202))),ROW()-ROW($AA$3:$AA$202)+1),COLUMN($R$3:$R$202),4))) ->  | AB75: =IF(ROW()-ROW($S$3:$S$202)+1>ROWS($AB$3:$AB$202)-COUNTBLANK($S$3:$S$202),"",INDIRECT(ADDRESS(SMALL((IF($S$3:$S$202<>"",ROW($S$3:$S$202),ROW()+ROWS($S$3:$S$202))),ROW()-ROW($AB$3:$AB$202)+1),COLUMN($S$3:$S$202),4))) ->  | AC75: =IF(ROW()-ROW($T$3:$T$202)+1>ROWS($AC$3:$AC$202)-COUNTBLANK($T$3:$T$202),"",INDIRECT(ADDRESS(SMALL((IF($T$3:$T$202<>"",ROW($T$3:$T$202),ROW()+ROWS($T$3:$T$202))),ROW()-ROW($AC$3:$AC$202)+1),COLUMN($T$3:$T$202),4))) ->  | AD75: =IF(ROW()-ROW($U$3:$U$202)+1>ROWS($AD$3:$AD$202)-COUNTBLANK($U$3:$U$202),"",INDIRECT(ADDRESS(SMALL((IF($U$3:$U$202<>"",ROW($U$3:$U$202),ROW()+ROWS($U$3:$U$202))),ROW()-ROW($AD$3:$AD$202)+1),COLUMN($U$3:$U$202),4))) ->  | AE75: =IF(ROW()-ROW($V$3:$V$202)+1>ROWS($AE$3:$AE$202)-COUNTBLANK($V$3:$V$202),"",INDIRECT(ADDRESS(SMALL((IF($V$3:$V$202<>"",ROW($V$3:$V$202),ROW()+ROWS($V$3:$V$202))),ROW()-ROW($AE$3:$AE$202)+1),COLUMN($V$3:$V$202),4))) ->  | AF75: =IF(ROW()-ROW($W$3:$W$202)+1>ROWS($AF$3:$AF$202)-COUNTBLANK($W$3:$W$202),"",INDIRECT(ADDRESS(SMALL((IF($W$3:$W$202<>"",ROW($W$3:$W$202),ROW()+ROWS($W$3:$W$202))),ROW()-ROW($AF$3:$AF$202)+1),COLUMN($W$3:$W$202),4))) ->  | AG75: =IF(ROW()-ROW($X$3:$X$202)+1>ROWS($AG$3:$AG$202)-COUNTBLANK($X$3:$X$202),"",INDIRECT(ADDRESS(SMALL((IF($X$3:$X$202<>"",ROW($X$3:$X$202),ROW()+ROWS($X$3:$X$203))),ROW()-ROW($AG$3:$AG$202)+1),COLUMN($X$3:$X$202),4))) -> 
A76: ='Лист набл. руч. раб. - 1'!A80 ->  | B76: =IF('Лист набл. руч. раб. - 1'!B80="","",'Лист набл. руч. раб. - 1'!B80) ->  | C76: =IF('Лист набл. руч. раб. - 1'!R80="","",'Лист набл. руч. раб. - 1'!R80) ->  | I76: ='Лист набл. руч. раб. - 2'!A80 ->  | J76: =IF('Лист набл. руч. раб. - 2'!B80="","",'Лист набл. руч. раб. - 2'!B80) ->  | K76: =IF('Лист набл. руч. раб. - 2'!R80="","",'Лист набл. руч. раб. - 2'!R80) ->  | Q76: 74 | R76: =IFERROR(INDEX($B$3:$B$102,MATCH(Q76,$A$3:$A$102,0)),"") ->  | S76: =IFERROR(INDEX($C$3:$C$102,MATCH(Q76,$A$3:$A$102,0)),"") ->  | U76: =IFERROR(INDEX(F$1:F$102,MATCH($Q76,$A:$A,0)+1),"") ->  | V76: =IFERROR(INDEX(G$1:G$102,MATCH($Q76,$A:$A,0)+1),"") ->  | Z76: 74 | AA76: =IF(ROW()-ROW($R$3:$R$202)+1>ROWS($AA$3:$AA$202)-COUNTBLANK($R$3:$R$202),"",INDIRECT(ADDRESS(SMALL((IF($R$3:$R$202<>"",ROW($R$3:$R$202),ROW()+ROWS($R$3:$R$202))),ROW()-ROW($AA$3:$AA$202)+1),COLUMN($R$3:$R$202),4))) ->  | AB76: =IF(ROW()-ROW($S$3:$S$202)+1>ROWS($AB$3:$AB$202)-COUNTBLANK($S$3:$S$202),"",INDIRECT(ADDRESS(SMALL((IF($S$3:$S$202<>"",ROW($S$3:$S$202),ROW()+ROWS($S$3:$S$202))),ROW()-ROW($AB$3:$AB$202)+1),COLUMN($S$3:$S$202),4))) ->  | AC76: =IF(ROW()-ROW($T$3:$T$202)+1>ROWS($AC$3:$AC$202)-COUNTBLANK($T$3:$T$202),"",INDIRECT(ADDRESS(SMALL((IF($T$3:$T$202<>"",ROW($T$3:$T$202),ROW()+ROWS($T$3:$T$202))),ROW()-ROW($AC$3:$AC$202)+1),COLUMN($T$3:$T$202),4))) ->  | AD76: =IF(ROW()-ROW($U$3:$U$202)+1>ROWS($AD$3:$AD$202)-COUNTBLANK($U$3:$U$202),"",INDIRECT(ADDRESS(SMALL((IF($U$3:$U$202<>"",ROW($U$3:$U$202),ROW()+ROWS($U$3:$U$202))),ROW()-ROW($AD$3:$AD$202)+1),COLUMN($U$3:$U$202),4))) ->  | AE76: =IF(ROW()-ROW($V$3:$V$202)+1>ROWS($AE$3:$AE$202)-COUNTBLANK($V$3:$V$202),"",INDIRECT(ADDRESS(SMALL((IF($V$3:$V$202<>"",ROW($V$3:$V$202),ROW()+ROWS($V$3:$V$202))),ROW()-ROW($AE$3:$AE$202)+1),COLUMN($V$3:$V$202),4))) ->  | AF76: =IF(ROW()-ROW($W$3:$W$202)+1>ROWS($AF$3:$AF$202)-COUNTBLANK($W$3:$W$202),"",INDIRECT(ADDRESS(SMALL((IF($W$3:$W$202<>"",ROW($W$3:$W$202),ROW()+ROWS($W$3:$W$202))),ROW()-ROW($AF$3:$AF$202)+1),COLUMN($W$3:$W$202),4))) ->  | AG76: =IF(ROW()-ROW($X$3:$X$202)+1>ROWS($AG$3:$AG$202)-COUNTBLANK($X$3:$X$202),"",INDIRECT(ADDRESS(SMALL((IF($X$3:$X$202<>"",ROW($X$3:$X$202),ROW()+ROWS($X$3:$X$203))),ROW()-ROW($AG$3:$AG$202)+1),COLUMN($X$3:$X$202),4))) -> 
A77: ='Лист набл. руч. раб. - 1'!A81 ->  | B77: =IF('Лист набл. руч. раб. - 1'!B81="","",'Лист набл. руч. раб. - 1'!B81) ->  | C77: =IF('Лист набл. руч. раб. - 1'!R81="","",'Лист набл. руч. раб. - 1'!R81) ->  | I77: ='Лист набл. руч. раб. - 2'!A81 ->  | J77: =IF('Лист набл. руч. раб. - 2'!B81="","",'Лист набл. руч. раб. - 2'!B81) ->  | K77: =IF('Лист набл. руч. раб. - 2'!R81="","",'Лист набл. руч. раб. - 2'!R81) ->  | Q77: 75 | R77: =IFERROR(INDEX($B$3:$B$102,MATCH(Q77,$A$3:$A$102,0)),"") ->  | S77: =IFERROR(INDEX($C$3:$C$102,MATCH(Q77,$A$3:$A$102,0)),"") ->  | U77: =IFERROR(INDEX(F$1:F$102,MATCH($Q77,$A:$A,0)+1),"") ->  | V77: =IFERROR(INDEX(G$1:G$102,MATCH($Q77,$A:$A,0)+1),"") ->  | Z77: 75 | AA77: =IF(ROW()-ROW($R$3:$R$202)+1>ROWS($AA$3:$AA$202)-COUNTBLANK($R$3:$R$202),"",INDIRECT(ADDRESS(SMALL((IF($R$3:$R$202<>"",ROW($R$3:$R$202),ROW()+ROWS($R$3:$R$202))),ROW()-ROW($AA$3:$AA$202)+1),COLUMN($R$3:$R$202),4))) ->  | AB77: =IF(ROW()-ROW($S$3:$S$202)+1>ROWS($AB$3:$AB$202)-COUNTBLANK($S$3:$S$202),"",INDIRECT(ADDRESS(SMALL((IF($S$3:$S$202<>"",ROW($S$3:$S$202),ROW()+ROWS($S$3:$S$202))),ROW()-ROW($AB$3:$AB$202)+1),COLUMN($S$3:$S$202),4))) ->  | AC77: =IF(ROW()-ROW($T$3:$T$202)+1>ROWS($AC$3:$AC$202)-COUNTBLANK($T$3:$T$202),"",INDIRECT(ADDRESS(SMALL((IF($T$3:$T$202<>"",ROW($T$3:$T$202),ROW()+ROWS($T$3:$T$202))),ROW()-ROW($AC$3:$AC$202)+1),COLUMN($T$3:$T$202),4))) ->  | AD77: =IF(ROW()-ROW($U$3:$U$202)+1>ROWS($AD$3:$AD$202)-COUNTBLANK($U$3:$U$202),"",INDIRECT(ADDRESS(SMALL((IF($U$3:$U$202<>"",ROW($U$3:$U$202),ROW()+ROWS($U$3:$U$202))),ROW()-ROW($AD$3:$AD$202)+1),COLUMN($U$3:$U$202),4))) ->  | AE77: =IF(ROW()-ROW($V$3:$V$202)+1>ROWS($AE$3:$AE$202)-COUNTBLANK($V$3:$V$202),"",INDIRECT(ADDRESS(SMALL((IF($V$3:$V$202<>"",ROW($V$3:$V$202),ROW()+ROWS($V$3:$V$202))),ROW()-ROW($AE$3:$AE$202)+1),COLUMN($V$3:$V$202),4))) ->  | AF77: =IF(ROW()-ROW($W$3:$W$202)+1>ROWS($AF$3:$AF$202)-COUNTBLANK($W$3:$W$202),"",INDIRECT(ADDRESS(SMALL((IF($W$3:$W$202<>"",ROW($W$3:$W$202),ROW()+ROWS($W$3:$W$202))),ROW()-ROW($AF$3:$AF$202)+1),COLUMN($W$3:$W$202),4))) ->  | AG77: =IF(ROW()-ROW($X$3:$X$202)+1>ROWS($AG$3:$AG$202)-COUNTBLANK($X$3:$X$202),"",INDIRECT(ADDRESS(SMALL((IF($X$3:$X$202<>"",ROW($X$3:$X$202),ROW()+ROWS($X$3:$X$203))),ROW()-ROW($AG$3:$AG$202)+1),COLUMN($X$3:$X$202),4))) -> 
A78: ='Лист набл. руч. раб. - 1'!A82 ->  | B78: =IF('Лист набл. руч. раб. - 1'!B82="","",'Лист набл. руч. раб. - 1'!B82) ->  | C78: =IF('Лист набл. руч. раб. - 1'!R82="","",'Лист набл. руч. раб. - 1'!R82) ->  | I78: ='Лист набл. руч. раб. - 2'!A82 ->  | J78: =IF('Лист набл. руч. раб. - 2'!B82="","",'Лист набл. руч. раб. - 2'!B82) ->  | K78: =IF('Лист набл. руч. раб. - 2'!R82="","",'Лист набл. руч. раб. - 2'!R82) ->  | Q78: 76 | R78: =IFERROR(INDEX($B$3:$B$102,MATCH(Q78,$A$3:$A$102,0)),"") ->  | S78: =IFERROR(INDEX($C$3:$C$102,MATCH(Q78,$A$3:$A$102,0)),"") ->  | U78: =IFERROR(INDEX(F$1:F$102,MATCH($Q78,$A:$A,0)+1),"") ->  | V78: =IFERROR(INDEX(G$1:G$102,MATCH($Q78,$A:$A,0)+1),"") ->  | Z78: 76 | AA78: =IF(ROW()-ROW($R$3:$R$202)+1>ROWS($AA$3:$AA$202)-COUNTBLANK($R$3:$R$202),"",INDIRECT(ADDRESS(SMALL((IF($R$3:$R$202<>"",ROW($R$3:$R$202),ROW()+ROWS($R$3:$R$202))),ROW()-ROW($AA$3:$AA$202)+1),COLUMN($R$3:$R$202),4))) ->  | AB78: =IF(ROW()-ROW($S$3:$S$202)+1>ROWS($AB$3:$AB$202)-COUNTBLANK($S$3:$S$202),"",INDIRECT(ADDRESS(SMALL((IF($S$3:$S$202<>"",ROW($S$3:$S$202),ROW()+ROWS($S$3:$S$202))),ROW()-ROW($AB$3:$AB$202)+1),COLUMN($S$3:$S$202),4))) ->  | AC78: =IF(ROW()-ROW($T$3:$T$202)+1>ROWS($AC$3:$AC$202)-COUNTBLANK($T$3:$T$202),"",INDIRECT(ADDRESS(SMALL((IF($T$3:$T$202<>"",ROW($T$3:$T$202),ROW()+ROWS($T$3:$T$202))),ROW()-ROW($AC$3:$AC$202)+1),COLUMN($T$3:$T$202),4))) ->  | AD78: =IF(ROW()-ROW($U$3:$U$202)+1>ROWS($AD$3:$AD$202)-COUNTBLANK($U$3:$U$202),"",INDIRECT(ADDRESS(SMALL((IF($U$3:$U$202<>"",ROW($U$3:$U$202),ROW()+ROWS($U$3:$U$202))),ROW()-ROW($AD$3:$AD$202)+1),COLUMN($U$3:$U$202),4))) ->  | AE78: =IF(ROW()-ROW($V$3:$V$202)+1>ROWS($AE$3:$AE$202)-COUNTBLANK($V$3:$V$202),"",INDIRECT(ADDRESS(SMALL((IF($V$3:$V$202<>"",ROW($V$3:$V$202),ROW()+ROWS($V$3:$V$202))),ROW()-ROW($AE$3:$AE$202)+1),COLUMN($V$3:$V$202),4))) ->  | AF78: =IF(ROW()-ROW($W$3:$W$202)+1>ROWS($AF$3:$AF$202)-COUNTBLANK($W$3:$W$202),"",INDIRECT(ADDRESS(SMALL((IF($W$3:$W$202<>"",ROW($W$3:$W$202),ROW()+ROWS($W$3:$W$202))),ROW()-ROW($AF$3:$AF$202)+1),COLUMN($W$3:$W$202),4))) ->  | AG78: =IF(ROW()-ROW($X$3:$X$202)+1>ROWS($AG$3:$AG$202)-COUNTBLANK($X$3:$X$202),"",INDIRECT(ADDRESS(SMALL((IF($X$3:$X$202<>"",ROW($X$3:$X$202),ROW()+ROWS($X$3:$X$203))),ROW()-ROW($AG$3:$AG$202)+1),COLUMN($X$3:$X$202),4))) -> 
A79: ='Лист набл. руч. раб. - 1'!A83 ->  | B79: =IF('Лист набл. руч. раб. - 1'!B83="","",'Лист набл. руч. раб. - 1'!B83) ->  | C79: =IF('Лист набл. руч. раб. - 1'!R83="","",'Лист набл. руч. раб. - 1'!R83) ->  | I79: ='Лист набл. руч. раб. - 2'!A83 ->  | J79: =IF('Лист набл. руч. раб. - 2'!B83="","",'Лист набл. руч. раб. - 2'!B83) ->  | K79: =IF('Лист набл. руч. раб. - 2'!R83="","",'Лист набл. руч. раб. - 2'!R83) ->  | Q79: 77 | R79: =IFERROR(INDEX($B$3:$B$102,MATCH(Q79,$A$3:$A$102,0)),"") ->  | S79: =IFERROR(INDEX($C$3:$C$102,MATCH(Q79,$A$3:$A$102,0)),"") ->  | U79: =IFERROR(INDEX(F$1:F$102,MATCH($Q79,$A:$A,0)+1),"") ->  | V79: =IFERROR(INDEX(G$1:G$102,MATCH($Q79,$A:$A,0)+1),"") ->  | Z79: 77 | AA79: =IF(ROW()-ROW($R$3:$R$202)+1>ROWS($AA$3:$AA$202)-COUNTBLANK($R$3:$R$202),"",INDIRECT(ADDRESS(SMALL((IF($R$3:$R$202<>"",ROW($R$3:$R$202),ROW()+ROWS($R$3:$R$202))),ROW()-ROW($AA$3:$AA$202)+1),COLUMN($R$3:$R$202),4))) ->  | AB79: =IF(ROW()-ROW($S$3:$S$202)+1>ROWS($AB$3:$AB$202)-COUNTBLANK($S$3:$S$202),"",INDIRECT(ADDRESS(SMALL((IF($S$3:$S$202<>"",ROW($S$3:$S$202),ROW()+ROWS($S$3:$S$202))),ROW()-ROW($AB$3:$AB$202)+1),COLUMN($S$3:$S$202),4))) ->  | AC79: =IF(ROW()-ROW($T$3:$T$202)+1>ROWS($AC$3:$AC$202)-COUNTBLANK($T$3:$T$202),"",INDIRECT(ADDRESS(SMALL((IF($T$3:$T$202<>"",ROW($T$3:$T$202),ROW()+ROWS($T$3:$T$202))),ROW()-ROW($AC$3:$AC$202)+1),COLUMN($T$3:$T$202),4))) ->  | AD79: =IF(ROW()-ROW($U$3:$U$202)+1>ROWS($AD$3:$AD$202)-COUNTBLANK($U$3:$U$202),"",INDIRECT(ADDRESS(SMALL((IF($U$3:$U$202<>"",ROW($U$3:$U$202),ROW()+ROWS($U$3:$U$202))),ROW()-ROW($AD$3:$AD$202)+1),COLUMN($U$3:$U$202),4))) ->  | AE79: =IF(ROW()-ROW($V$3:$V$202)+1>ROWS($AE$3:$AE$202)-COUNTBLANK($V$3:$V$202),"",INDIRECT(ADDRESS(SMALL((IF($V$3:$V$202<>"",ROW($V$3:$V$202),ROW()+ROWS($V$3:$V$202))),ROW()-ROW($AE$3:$AE$202)+1),COLUMN($V$3:$V$202),4))) ->  | AF79: =IF(ROW()-ROW($W$3:$W$202)+1>ROWS($AF$3:$AF$202)-COUNTBLANK($W$3:$W$202),"",INDIRECT(ADDRESS(SMALL((IF($W$3:$W$202<>"",ROW($W$3:$W$202),ROW()+ROWS($W$3:$W$202))),ROW()-ROW($AF$3:$AF$202)+1),COLUMN($W$3:$W$202),4))) ->  | AG79: =IF(ROW()-ROW($X$3:$X$202)+1>ROWS($AG$3:$AG$202)-COUNTBLANK($X$3:$X$202),"",INDIRECT(ADDRESS(SMALL((IF($X$3:$X$202<>"",ROW($X$3:$X$202),ROW()+ROWS($X$3:$X$203))),ROW()-ROW($AG$3:$AG$202)+1),COLUMN($X$3:$X$202),4))) -> 
A80: ='Лист набл. руч. раб. - 1'!A84 ->  | B80: =IF('Лист набл. руч. раб. - 1'!B84="","",'Лист набл. руч. раб. - 1'!B84) ->  | C80: =IF('Лист набл. руч. раб. - 1'!R84="","",'Лист набл. руч. раб. - 1'!R84) ->  | I80: ='Лист набл. руч. раб. - 2'!A84 ->  | J80: =IF('Лист набл. руч. раб. - 2'!B84="","",'Лист набл. руч. раб. - 2'!B84) ->  | K80: =IF('Лист набл. руч. раб. - 2'!R84="","",'Лист набл. руч. раб. - 2'!R84) ->  | Q80: 78 | R80: =IFERROR(INDEX($B$3:$B$102,MATCH(Q80,$A$3:$A$102,0)),"") ->  | S80: =IFERROR(INDEX($C$3:$C$102,MATCH(Q80,$A$3:$A$102,0)),"") ->  | U80: =IFERROR(INDEX(F$1:F$102,MATCH($Q80,$A:$A,0)+1),"") ->  | V80: =IFERROR(INDEX(G$1:G$102,MATCH($Q80,$A:$A,0)+1),"") ->  | Z80: 78 | AA80: =IF(ROW()-ROW($R$3:$R$202)+1>ROWS($AA$3:$AA$202)-COUNTBLANK($R$3:$R$202),"",INDIRECT(ADDRESS(SMALL((IF($R$3:$R$202<>"",ROW($R$3:$R$202),ROW()+ROWS($R$3:$R$202))),ROW()-ROW($AA$3:$AA$202)+1),COLUMN($R$3:$R$202),4))) ->  | AB80: =IF(ROW()-ROW($S$3:$S$202)+1>ROWS($AB$3:$AB$202)-COUNTBLANK($S$3:$S$202),"",INDIRECT(ADDRESS(SMALL((IF($S$3:$S$202<>"",ROW($S$3:$S$202),ROW()+ROWS($S$3:$S$202))),ROW()-ROW($AB$3:$AB$202)+1),COLUMN($S$3:$S$202),4))) ->  | AC80: =IF(ROW()-ROW($T$3:$T$202)+1>ROWS($AC$3:$AC$202)-COUNTBLANK($T$3:$T$202),"",INDIRECT(ADDRESS(SMALL((IF($T$3:$T$202<>"",ROW($T$3:$T$202),ROW()+ROWS($T$3:$T$202))),ROW()-ROW($AC$3:$AC$202)+1),COLUMN($T$3:$T$202),4))) ->  | AD80: =IF(ROW()-ROW($U$3:$U$202)+1>ROWS($AD$3:$AD$202)-COUNTBLANK($U$3:$U$202),"",INDIRECT(ADDRESS(SMALL((IF($U$3:$U$202<>"",ROW($U$3:$U$202),ROW()+ROWS($U$3:$U$202))),ROW()-ROW($AD$3:$AD$202)+1),COLUMN($U$3:$U$202),4))) ->  | AE80: =IF(ROW()-ROW($V$3:$V$202)+1>ROWS($AE$3:$AE$202)-COUNTBLANK($V$3:$V$202),"",INDIRECT(ADDRESS(SMALL((IF($V$3:$V$202<>"",ROW($V$3:$V$202),ROW()+ROWS($V$3:$V$202))),ROW()-ROW($AE$3:$AE$202)+1),COLUMN($V$3:$V$202),4))) ->  | AF80: =IF(ROW()-ROW($W$3:$W$202)+1>ROWS($AF$3:$AF$202)-COUNTBLANK($W$3:$W$202),"",INDIRECT(ADDRESS(SMALL((IF($W$3:$W$202<>"",ROW($W$3:$W$202),ROW()+ROWS($W$3:$W$202))),ROW()-ROW($AF$3:$AF$202)+1),COLUMN($W$3:$W$202),4))) ->  | AG80: =IF(ROW()-ROW($X$3:$X$202)+1>ROWS($AG$3:$AG$202)-COUNTBLANK($X$3:$X$202),"",INDIRECT(ADDRESS(SMALL((IF($X$3:$X$202<>"",ROW($X$3:$X$202),ROW()+ROWS($X$3:$X$203))),ROW()-ROW($AG$3:$AG$202)+1),COLUMN($X$3:$X$202),4))) -> 
A81: ='Лист набл. руч. раб. - 1'!A85 ->  | B81: =IF('Лист набл. руч. раб. - 1'!B85="","",'Лист набл. руч. раб. - 1'!B85) ->  | C81: =IF('Лист набл. руч. раб. - 1'!R85="","",'Лист набл. руч. раб. - 1'!R85) ->  | I81: ='Лист набл. руч. раб. - 2'!A85 ->  | J81: =IF('Лист набл. руч. раб. - 2'!B85="","",'Лист набл. руч. раб. - 2'!B85) ->  | K81: =IF('Лист набл. руч. раб. - 2'!R85="","",'Лист набл. руч. раб. - 2'!R85) ->  | Q81: 79 | R81: =IFERROR(INDEX($B$3:$B$102,MATCH(Q81,$A$3:$A$102,0)),"") ->  | S81: =IFERROR(INDEX($C$3:$C$102,MATCH(Q81,$A$3:$A$102,0)),"") ->  | U81: =IFERROR(INDEX(F$1:F$102,MATCH($Q81,$A:$A,0)+1),"") ->  | V81: =IFERROR(INDEX(G$1:G$102,MATCH($Q81,$A:$A,0)+1),"") ->  | Z81: 79 | AA81: =IF(ROW()-ROW($R$3:$R$202)+1>ROWS($AA$3:$AA$202)-COUNTBLANK($R$3:$R$202),"",INDIRECT(ADDRESS(SMALL((IF($R$3:$R$202<>"",ROW($R$3:$R$202),ROW()+ROWS($R$3:$R$202))),ROW()-ROW($AA$3:$AA$202)+1),COLUMN($R$3:$R$202),4))) ->  | AB81: =IF(ROW()-ROW($S$3:$S$202)+1>ROWS($AB$3:$AB$202)-COUNTBLANK($S$3:$S$202),"",INDIRECT(ADDRESS(SMALL((IF($S$3:$S$202<>"",ROW($S$3:$S$202),ROW()+ROWS($S$3:$S$202))),ROW()-ROW($AB$3:$AB$202)+1),COLUMN($S$3:$S$202),4))) ->  | AC81: =IF(ROW()-ROW($T$3:$T$202)+1>ROWS($AC$3:$AC$202)-COUNTBLANK($T$3:$T$202),"",INDIRECT(ADDRESS(SMALL((IF($T$3:$T$202<>"",ROW($T$3:$T$202),ROW()+ROWS($T$3:$T$202))),ROW()-ROW($AC$3:$AC$202)+1),COLUMN($T$3:$T$202),4))) ->  | AD81: =IF(ROW()-ROW($U$3:$U$202)+1>ROWS($AD$3:$AD$202)-COUNTBLANK($U$3:$U$202),"",INDIRECT(ADDRESS(SMALL((IF($U$3:$U$202<>"",ROW($U$3:$U$202),ROW()+ROWS($U$3:$U$202))),ROW()-ROW($AD$3:$AD$202)+1),COLUMN($U$3:$U$202),4))) ->  | AE81: =IF(ROW()-ROW($V$3:$V$202)+1>ROWS($AE$3:$AE$202)-COUNTBLANK($V$3:$V$202),"",INDIRECT(ADDRESS(SMALL((IF($V$3:$V$202<>"",ROW($V$3:$V$202),ROW()+ROWS($V$3:$V$202))),ROW()-ROW($AE$3:$AE$202)+1),COLUMN($V$3:$V$202),4))) ->  | AF81: =IF(ROW()-ROW($W$3:$W$202)+1>ROWS($AF$3:$AF$202)-COUNTBLANK($W$3:$W$202),"",INDIRECT(ADDRESS(SMALL((IF($W$3:$W$202<>"",ROW($W$3:$W$202),ROW()+ROWS($W$3:$W$202))),ROW()-ROW($AF$3:$AF$202)+1),COLUMN($W$3:$W$202),4))) ->  | AG81: =IF(ROW()-ROW($X$3:$X$202)+1>ROWS($AG$3:$AG$202)-COUNTBLANK($X$3:$X$202),"",INDIRECT(ADDRESS(SMALL((IF($X$3:$X$202<>"",ROW($X$3:$X$202),ROW()+ROWS($X$3:$X$203))),ROW()-ROW($AG$3:$AG$202)+1),COLUMN($X$3:$X$202),4))) -> 
A82: ='Лист набл. руч. раб. - 1'!A86 ->  | B82: =IF('Лист набл. руч. раб. - 1'!B86="","",'Лист набл. руч. раб. - 1'!B86) ->  | C82: =IF('Лист набл. руч. раб. - 1'!R86="","",'Лист набл. руч. раб. - 1'!R86) ->  | I82: ='Лист набл. руч. раб. - 2'!A86 ->  | J82: =IF('Лист набл. руч. раб. - 2'!B86="","",'Лист набл. руч. раб. - 2'!B86) ->  | K82: =IF('Лист набл. руч. раб. - 2'!R86="","",'Лист набл. руч. раб. - 2'!R86) ->  | Q82: 80 | R82: =IFERROR(INDEX($B$3:$B$102,MATCH(Q82,$A$3:$A$102,0)),"") ->  | S82: =IFERROR(INDEX($C$3:$C$102,MATCH(Q82,$A$3:$A$102,0)),"") ->  | U82: =IFERROR(INDEX(F$1:F$102,MATCH($Q82,$A:$A,0)+1),"") ->  | V82: =IFERROR(INDEX(G$1:G$102,MATCH($Q82,$A:$A,0)+1),"") ->  | Z82: 80 | AA82: =IF(ROW()-ROW($R$3:$R$202)+1>ROWS($AA$3:$AA$202)-COUNTBLANK($R$3:$R$202),"",INDIRECT(ADDRESS(SMALL((IF($R$3:$R$202<>"",ROW($R$3:$R$202),ROW()+ROWS($R$3:$R$202))),ROW()-ROW($AA$3:$AA$202)+1),COLUMN($R$3:$R$202),4))) ->  | AB82: =IF(ROW()-ROW($S$3:$S$202)+1>ROWS($AB$3:$AB$202)-COUNTBLANK($S$3:$S$202),"",INDIRECT(ADDRESS(SMALL((IF($S$3:$S$202<>"",ROW($S$3:$S$202),ROW()+ROWS($S$3:$S$202))),ROW()-ROW($AB$3:$AB$202)+1),COLUMN($S$3:$S$202),4))) ->  | AC82: =IF(ROW()-ROW($T$3:$T$202)+1>ROWS($AC$3:$AC$202)-COUNTBLANK($T$3:$T$202),"",INDIRECT(ADDRESS(SMALL((IF($T$3:$T$202<>"",ROW($T$3:$T$202),ROW()+ROWS($T$3:$T$202))),ROW()-ROW($AC$3:$AC$202)+1),COLUMN($T$3:$T$202),4))) ->  | AD82: =IF(ROW()-ROW($U$3:$U$202)+1>ROWS($AD$3:$AD$202)-COUNTBLANK($U$3:$U$202),"",INDIRECT(ADDRESS(SMALL((IF($U$3:$U$202<>"",ROW($U$3:$U$202),ROW()+ROWS($U$3:$U$202))),ROW()-ROW($AD$3:$AD$202)+1),COLUMN($U$3:$U$202),4))) ->  | AE82: =IF(ROW()-ROW($V$3:$V$202)+1>ROWS($AE$3:$AE$202)-COUNTBLANK($V$3:$V$202),"",INDIRECT(ADDRESS(SMALL((IF($V$3:$V$202<>"",ROW($V$3:$V$202),ROW()+ROWS($V$3:$V$202))),ROW()-ROW($AE$3:$AE$202)+1),COLUMN($V$3:$V$202),4))) ->  | AF82: =IF(ROW()-ROW($W$3:$W$202)+1>ROWS($AF$3:$AF$202)-COUNTBLANK($W$3:$W$202),"",INDIRECT(ADDRESS(SMALL((IF($W$3:$W$202<>"",ROW($W$3:$W$202),ROW()+ROWS($W$3:$W$202))),ROW()-ROW($AF$3:$AF$202)+1),COLUMN($W$3:$W$202),4))) ->  | AG82: =IF(ROW()-ROW($X$3:$X$202)+1>ROWS($AG$3:$AG$202)-COUNTBLANK($X$3:$X$202),"",INDIRECT(ADDRESS(SMALL((IF($X$3:$X$202<>"",ROW($X$3:$X$202),ROW()+ROWS($X$3:$X$203))),ROW()-ROW($AG$3:$AG$202)+1),COLUMN($X$3:$X$202),4))) -> 
A83: ='Лист набл. руч. раб. - 1'!A87 ->  | B83: =IF('Лист набл. руч. раб. - 1'!B87="","",'Лист набл. руч. раб. - 1'!B87) ->  | C83: =IF('Лист набл. руч. раб. - 1'!R87="","",'Лист набл. руч. раб. - 1'!R87) ->  | I83: ='Лист набл. руч. раб. - 2'!A87 ->  | J83: =IF('Лист набл. руч. раб. - 2'!B87="","",'Лист набл. руч. раб. - 2'!B87) ->  | K83: =IF('Лист набл. руч. раб. - 2'!R87="","",'Лист набл. руч. раб. - 2'!R87) ->  | Q83: 81 | R83: =IFERROR(INDEX($B$3:$B$102,MATCH(Q83,$A$3:$A$102,0)),"") ->  | S83: =IFERROR(INDEX($C$3:$C$102,MATCH(Q83,$A$3:$A$102,0)),"") ->  | U83: =IFERROR(INDEX(F$1:F$102,MATCH($Q83,$A:$A,0)+1),"") ->  | V83: =IFERROR(INDEX(G$1:G$102,MATCH($Q83,$A:$A,0)+1),"") ->  | Z83: 81 | AA83: =IF(ROW()-ROW($R$3:$R$202)+1>ROWS($AA$3:$AA$202)-COUNTBLANK($R$3:$R$202),"",INDIRECT(ADDRESS(SMALL((IF($R$3:$R$202<>"",ROW($R$3:$R$202),ROW()+ROWS($R$3:$R$202))),ROW()-ROW($AA$3:$AA$202)+1),COLUMN($R$3:$R$202),4))) ->  | AB83: =IF(ROW()-ROW($S$3:$S$202)+1>ROWS($AB$3:$AB$202)-COUNTBLANK($S$3:$S$202),"",INDIRECT(ADDRESS(SMALL((IF($S$3:$S$202<>"",ROW($S$3:$S$202),ROW()+ROWS($S$3:$S$202))),ROW()-ROW($AB$3:$AB$202)+1),COLUMN($S$3:$S$202),4))) ->  | AC83: =IF(ROW()-ROW($T$3:$T$202)+1>ROWS($AC$3:$AC$202)-COUNTBLANK($T$3:$T$202),"",INDIRECT(ADDRESS(SMALL((IF($T$3:$T$202<>"",ROW($T$3:$T$202),ROW()+ROWS($T$3:$T$202))),ROW()-ROW($AC$3:$AC$202)+1),COLUMN($T$3:$T$202),4))) ->  | AD83: =IF(ROW()-ROW($U$3:$U$202)+1>ROWS($AD$3:$AD$202)-COUNTBLANK($U$3:$U$202),"",INDIRECT(ADDRESS(SMALL((IF($U$3:$U$202<>"",ROW($U$3:$U$202),ROW()+ROWS($U$3:$U$202))),ROW()-ROW($AD$3:$AD$202)+1),COLUMN($U$3:$U$202),4))) ->  | AE83: =IF(ROW()-ROW($V$3:$V$202)+1>ROWS($AE$3:$AE$202)-COUNTBLANK($V$3:$V$202),"",INDIRECT(ADDRESS(SMALL((IF($V$3:$V$202<>"",ROW($V$3:$V$202),ROW()+ROWS($V$3:$V$202))),ROW()-ROW($AE$3:$AE$202)+1),COLUMN($V$3:$V$202),4))) ->  | AF83: =IF(ROW()-ROW($W$3:$W$202)+1>ROWS($AF$3:$AF$202)-COUNTBLANK($W$3:$W$202),"",INDIRECT(ADDRESS(SMALL((IF($W$3:$W$202<>"",ROW($W$3:$W$202),ROW()+ROWS($W$3:$W$202))),ROW()-ROW($AF$3:$AF$202)+1),COLUMN($W$3:$W$202),4))) ->  | AG83: =IF(ROW()-ROW($X$3:$X$202)+1>ROWS($AG$3:$AG$202)-COUNTBLANK($X$3:$X$202),"",INDIRECT(ADDRESS(SMALL((IF($X$3:$X$202<>"",ROW($X$3:$X$202),ROW()+ROWS($X$3:$X$203))),ROW()-ROW($AG$3:$AG$202)+1),COLUMN($X$3:$X$202),4))) -> 
A84: ='Лист набл. руч. раб. - 1'!A88 ->  | B84: =IF('Лист набл. руч. раб. - 1'!B88="","",'Лист набл. руч. раб. - 1'!B88) ->  | C84: =IF('Лист набл. руч. раб. - 1'!R88="","",'Лист набл. руч. раб. - 1'!R88) ->  | I84: ='Лист набл. руч. раб. - 2'!A88 ->  | J84: =IF('Лист набл. руч. раб. - 2'!B88="","",'Лист набл. руч. раб. - 2'!B88) ->  | K84: =IF('Лист набл. руч. раб. - 2'!R88="","",'Лист набл. руч. раб. - 2'!R88) ->  | Q84: 82 | R84: =IFERROR(INDEX($B$3:$B$102,MATCH(Q84,$A$3:$A$102,0)),"") ->  | S84: =IFERROR(INDEX($C$3:$C$102,MATCH(Q84,$A$3:$A$102,0)),"") ->  | U84: =IFERROR(INDEX(F$1:F$102,MATCH($Q84,$A:$A,0)+1),"") ->  | V84: =IFERROR(INDEX(G$1:G$102,MATCH($Q84,$A:$A,0)+1),"") ->  | Z84: 82 | AA84: =IF(ROW()-ROW($R$3:$R$202)+1>ROWS($AA$3:$AA$202)-COUNTBLANK($R$3:$R$202),"",INDIRECT(ADDRESS(SMALL((IF($R$3:$R$202<>"",ROW($R$3:$R$202),ROW()+ROWS($R$3:$R$202))),ROW()-ROW($AA$3:$AA$202)+1),COLUMN($R$3:$R$202),4))) ->  | AB84: =IF(ROW()-ROW($S$3:$S$202)+1>ROWS($AB$3:$AB$202)-COUNTBLANK($S$3:$S$202),"",INDIRECT(ADDRESS(SMALL((IF($S$3:$S$202<>"",ROW($S$3:$S$202),ROW()+ROWS($S$3:$S$202))),ROW()-ROW($AB$3:$AB$202)+1),COLUMN($S$3:$S$202),4))) ->  | AC84: =IF(ROW()-ROW($T$3:$T$202)+1>ROWS($AC$3:$AC$202)-COUNTBLANK($T$3:$T$202),"",INDIRECT(ADDRESS(SMALL((IF($T$3:$T$202<>"",ROW($T$3:$T$202),ROW()+ROWS($T$3:$T$202))),ROW()-ROW($AC$3:$AC$202)+1),COLUMN($T$3:$T$202),4))) ->  | AD84: =IF(ROW()-ROW($U$3:$U$202)+1>ROWS($AD$3:$AD$202)-COUNTBLANK($U$3:$U$202),"",INDIRECT(ADDRESS(SMALL((IF($U$3:$U$202<>"",ROW($U$3:$U$202),ROW()+ROWS($U$3:$U$202))),ROW()-ROW($AD$3:$AD$202)+1),COLUMN($U$3:$U$202),4))) ->  | AE84: =IF(ROW()-ROW($V$3:$V$202)+1>ROWS($AE$3:$AE$202)-COUNTBLANK($V$3:$V$202),"",INDIRECT(ADDRESS(SMALL((IF($V$3:$V$202<>"",ROW($V$3:$V$202),ROW()+ROWS($V$3:$V$202))),ROW()-ROW($AE$3:$AE$202)+1),COLUMN($V$3:$V$202),4))) ->  | AF84: =IF(ROW()-ROW($W$3:$W$202)+1>ROWS($AF$3:$AF$202)-COUNTBLANK($W$3:$W$202),"",INDIRECT(ADDRESS(SMALL((IF($W$3:$W$202<>"",ROW($W$3:$W$202),ROW()+ROWS($W$3:$W$202))),ROW()-ROW($AF$3:$AF$202)+1),COLUMN($W$3:$W$202),4))) ->  | AG84: =IF(ROW()-ROW($X$3:$X$202)+1>ROWS($AG$3:$AG$202)-COUNTBLANK($X$3:$X$202),"",INDIRECT(ADDRESS(SMALL((IF($X$3:$X$202<>"",ROW($X$3:$X$202),ROW()+ROWS($X$3:$X$203))),ROW()-ROW($AG$3:$AG$202)+1),COLUMN($X$3:$X$202),4))) -> 
A85: ='Лист набл. руч. раб. - 1'!A89 ->  | B85: =IF('Лист набл. руч. раб. - 1'!B89="","",'Лист набл. руч. раб. - 1'!B89) ->  | C85: =IF('Лист набл. руч. раб. - 1'!R89="","",'Лист набл. руч. раб. - 1'!R89) ->  | I85: ='Лист набл. руч. раб. - 2'!A89 ->  | J85: =IF('Лист набл. руч. раб. - 2'!B89="","",'Лист набл. руч. раб. - 2'!B89) ->  | K85: =IF('Лист набл. руч. раб. - 2'!R89="","",'Лист набл. руч. раб. - 2'!R89) ->  | Q85: 83 | R85: =IFERROR(INDEX($B$3:$B$102,MATCH(Q85,$A$3:$A$102,0)),"") ->  | S85: =IFERROR(INDEX($C$3:$C$102,MATCH(Q85,$A$3:$A$102,0)),"") ->  | U85: =IFERROR(INDEX(F$1:F$102,MATCH($Q85,$A:$A,0)+1),"") ->  | V85: =IFERROR(INDEX(G$1:G$102,MATCH($Q85,$A:$A,0)+1),"") ->  | Z85: 83 | AA85: =IF(ROW()-ROW($R$3:$R$202)+1>ROWS($AA$3:$AA$202)-COUNTBLANK($R$3:$R$202),"",INDIRECT(ADDRESS(SMALL((IF($R$3:$R$202<>"",ROW($R$3:$R$202),ROW()+ROWS($R$3:$R$202))),ROW()-ROW($AA$3:$AA$202)+1),COLUMN($R$3:$R$202),4))) ->  | AB85: =IF(ROW()-ROW($S$3:$S$202)+1>ROWS($AB$3:$AB$202)-COUNTBLANK($S$3:$S$202),"",INDIRECT(ADDRESS(SMALL((IF($S$3:$S$202<>"",ROW($S$3:$S$202),ROW()+ROWS($S$3:$S$202))),ROW()-ROW($AB$3:$AB$202)+1),COLUMN($S$3:$S$202),4))) ->  | AC85: =IF(ROW()-ROW($T$3:$T$202)+1>ROWS($AC$3:$AC$202)-COUNTBLANK($T$3:$T$202),"",INDIRECT(ADDRESS(SMALL((IF($T$3:$T$202<>"",ROW($T$3:$T$202),ROW()+ROWS($T$3:$T$202))),ROW()-ROW($AC$3:$AC$202)+1),COLUMN($T$3:$T$202),4))) ->  | AD85: =IF(ROW()-ROW($U$3:$U$202)+1>ROWS($AD$3:$AD$202)-COUNTBLANK($U$3:$U$202),"",INDIRECT(ADDRESS(SMALL((IF($U$3:$U$202<>"",ROW($U$3:$U$202),ROW()+ROWS($U$3:$U$202))),ROW()-ROW($AD$3:$AD$202)+1),COLUMN($U$3:$U$202),4))) ->  | AE85: =IF(ROW()-ROW($V$3:$V$202)+1>ROWS($AE$3:$AE$202)-COUNTBLANK($V$3:$V$202),"",INDIRECT(ADDRESS(SMALL((IF($V$3:$V$202<>"",ROW($V$3:$V$202),ROW()+ROWS($V$3:$V$202))),ROW()-ROW($AE$3:$AE$202)+1),COLUMN($V$3:$V$202),4))) ->  | AF85: =IF(ROW()-ROW($W$3:$W$202)+1>ROWS($AF$3:$AF$202)-COUNTBLANK($W$3:$W$202),"",INDIRECT(ADDRESS(SMALL((IF($W$3:$W$202<>"",ROW($W$3:$W$202),ROW()+ROWS($W$3:$W$202))),ROW()-ROW($AF$3:$AF$202)+1),COLUMN($W$3:$W$202),4))) ->  | AG85: =IF(ROW()-ROW($X$3:$X$202)+1>ROWS($AG$3:$AG$202)-COUNTBLANK($X$3:$X$202),"",INDIRECT(ADDRESS(SMALL((IF($X$3:$X$202<>"",ROW($X$3:$X$202),ROW()+ROWS($X$3:$X$203))),ROW()-ROW($AG$3:$AG$202)+1),COLUMN($X$3:$X$202),4))) -> 
A86: ='Лист набл. руч. раб. - 1'!A90 ->  | B86: =IF('Лист набл. руч. раб. - 1'!B90="","",'Лист набл. руч. раб. - 1'!B90) ->  | C86: =IF('Лист набл. руч. раб. - 1'!R90="","",'Лист набл. руч. раб. - 1'!R90) ->  | I86: ='Лист набл. руч. раб. - 2'!A90 ->  | J86: =IF('Лист набл. руч. раб. - 2'!B90="","",'Лист набл. руч. раб. - 2'!B90) ->  | K86: =IF('Лист набл. руч. раб. - 2'!R90="","",'Лист набл. руч. раб. - 2'!R90) ->  | Q86: 84 | R86: =IFERROR(INDEX($B$3:$B$102,MATCH(Q86,$A$3:$A$102,0)),"") ->  | S86: =IFERROR(INDEX($C$3:$C$102,MATCH(Q86,$A$3:$A$102,0)),"") ->  | U86: =IFERROR(INDEX(F$1:F$102,MATCH($Q86,$A:$A,0)+1),"") ->  | V86: =IFERROR(INDEX(G$1:G$102,MATCH($Q86,$A:$A,0)+1),"") ->  | Z86: 84 | AA86: =IF(ROW()-ROW($R$3:$R$202)+1>ROWS($AA$3:$AA$202)-COUNTBLANK($R$3:$R$202),"",INDIRECT(ADDRESS(SMALL((IF($R$3:$R$202<>"",ROW($R$3:$R$202),ROW()+ROWS($R$3:$R$202))),ROW()-ROW($AA$3:$AA$202)+1),COLUMN($R$3:$R$202),4))) ->  | AB86: =IF(ROW()-ROW($S$3:$S$202)+1>ROWS($AB$3:$AB$202)-COUNTBLANK($S$3:$S$202),"",INDIRECT(ADDRESS(SMALL((IF($S$3:$S$202<>"",ROW($S$3:$S$202),ROW()+ROWS($S$3:$S$202))),ROW()-ROW($AB$3:$AB$202)+1),COLUMN($S$3:$S$202),4))) ->  | AC86: =IF(ROW()-ROW($T$3:$T$202)+1>ROWS($AC$3:$AC$202)-COUNTBLANK($T$3:$T$202),"",INDIRECT(ADDRESS(SMALL((IF($T$3:$T$202<>"",ROW($T$3:$T$202),ROW()+ROWS($T$3:$T$202))),ROW()-ROW($AC$3:$AC$202)+1),COLUMN($T$3:$T$202),4))) ->  | AD86: =IF(ROW()-ROW($U$3:$U$202)+1>ROWS($AD$3:$AD$202)-COUNTBLANK($U$3:$U$202),"",INDIRECT(ADDRESS(SMALL((IF($U$3:$U$202<>"",ROW($U$3:$U$202),ROW()+ROWS($U$3:$U$202))),ROW()-ROW($AD$3:$AD$202)+1),COLUMN($U$3:$U$202),4))) ->  | AE86: =IF(ROW()-ROW($V$3:$V$202)+1>ROWS($AE$3:$AE$202)-COUNTBLANK($V$3:$V$202),"",INDIRECT(ADDRESS(SMALL((IF($V$3:$V$202<>"",ROW($V$3:$V$202),ROW()+ROWS($V$3:$V$202))),ROW()-ROW($AE$3:$AE$202)+1),COLUMN($V$3:$V$202),4))) ->  | AF86: =IF(ROW()-ROW($W$3:$W$202)+1>ROWS($AF$3:$AF$202)-COUNTBLANK($W$3:$W$202),"",INDIRECT(ADDRESS(SMALL((IF($W$3:$W$202<>"",ROW($W$3:$W$202),ROW()+ROWS($W$3:$W$202))),ROW()-ROW($AF$3:$AF$202)+1),COLUMN($W$3:$W$202),4))) ->  | AG86: =IF(ROW()-ROW($X$3:$X$202)+1>ROWS($AG$3:$AG$202)-COUNTBLANK($X$3:$X$202),"",INDIRECT(ADDRESS(SMALL((IF($X$3:$X$202<>"",ROW($X$3:$X$202),ROW()+ROWS($X$3:$X$203))),ROW()-ROW($AG$3:$AG$202)+1),COLUMN($X$3:$X$202),4))) -> 
A87: ='Лист набл. руч. раб. - 1'!A91 ->  | B87: =IF('Лист набл. руч. раб. - 1'!B91="","",'Лист набл. руч. раб. - 1'!B91) ->  | C87: =IF('Лист набл. руч. раб. - 1'!R91="","",'Лист набл. руч. раб. - 1'!R91) ->  | I87: ='Лист набл. руч. раб. - 2'!A91 ->  | J87: =IF('Лист набл. руч. раб. - 2'!B91="","",'Лист набл. руч. раб. - 2'!B91) ->  | K87: =IF('Лист набл. руч. раб. - 2'!R91="","",'Лист набл. руч. раб. - 2'!R91) ->  | Q87: 85 | R87: =IFERROR(INDEX($B$3:$B$102,MATCH(Q87,$A$3:$A$102,0)),"") ->  | S87: =IFERROR(INDEX($C$3:$C$102,MATCH(Q87,$A$3:$A$102,0)),"") ->  | U87: =IFERROR(INDEX(F$1:F$102,MATCH($Q87,$A:$A,0)+1),"") ->  | V87: =IFERROR(INDEX(G$1:G$102,MATCH($Q87,$A:$A,0)+1),"") ->  | Z87: 85 | AA87: =IF(ROW()-ROW($R$3:$R$202)+1>ROWS($AA$3:$AA$202)-COUNTBLANK($R$3:$R$202),"",INDIRECT(ADDRESS(SMALL((IF($R$3:$R$202<>"",ROW($R$3:$R$202),ROW()+ROWS($R$3:$R$202))),ROW()-ROW($AA$3:$AA$202)+1),COLUMN($R$3:$R$202),4))) ->  | AB87: =IF(ROW()-ROW($S$3:$S$202)+1>ROWS($AB$3:$AB$202)-COUNTBLANK($S$3:$S$202),"",INDIRECT(ADDRESS(SMALL((IF($S$3:$S$202<>"",ROW($S$3:$S$202),ROW()+ROWS($S$3:$S$202))),ROW()-ROW($AB$3:$AB$202)+1),COLUMN($S$3:$S$202),4))) ->  | AC87: =IF(ROW()-ROW($T$3:$T$202)+1>ROWS($AC$3:$AC$202)-COUNTBLANK($T$3:$T$202),"",INDIRECT(ADDRESS(SMALL((IF($T$3:$T$202<>"",ROW($T$3:$T$202),ROW()+ROWS($T$3:$T$202))),ROW()-ROW($AC$3:$AC$202)+1),COLUMN($T$3:$T$202),4))) ->  | AD87: =IF(ROW()-ROW($U$3:$U$202)+1>ROWS($AD$3:$AD$202)-COUNTBLANK($U$3:$U$202),"",INDIRECT(ADDRESS(SMALL((IF($U$3:$U$202<>"",ROW($U$3:$U$202),ROW()+ROWS($U$3:$U$202))),ROW()-ROW($AD$3:$AD$202)+1),COLUMN($U$3:$U$202),4))) ->  | AE87: =IF(ROW()-ROW($V$3:$V$202)+1>ROWS($AE$3:$AE$202)-COUNTBLANK($V$3:$V$202),"",INDIRECT(ADDRESS(SMALL((IF($V$3:$V$202<>"",ROW($V$3:$V$202),ROW()+ROWS($V$3:$V$202))),ROW()-ROW($AE$3:$AE$202)+1),COLUMN($V$3:$V$202),4))) ->  | AF87: =IF(ROW()-ROW($W$3:$W$202)+1>ROWS($AF$3:$AF$202)-COUNTBLANK($W$3:$W$202),"",INDIRECT(ADDRESS(SMALL((IF($W$3:$W$202<>"",ROW($W$3:$W$202),ROW()+ROWS($W$3:$W$202))),ROW()-ROW($AF$3:$AF$202)+1),COLUMN($W$3:$W$202),4))) ->  | AG87: =IF(ROW()-ROW($X$3:$X$202)+1>ROWS($AG$3:$AG$202)-COUNTBLANK($X$3:$X$202),"",INDIRECT(ADDRESS(SMALL((IF($X$3:$X$202<>"",ROW($X$3:$X$202),ROW()+ROWS($X$3:$X$203))),ROW()-ROW($AG$3:$AG$202)+1),COLUMN($X$3:$X$202),4))) -> 
A88: ='Лист набл. руч. раб. - 1'!A92 ->  | B88: =IF('Лист набл. руч. раб. - 1'!B92="","",'Лист набл. руч. раб. - 1'!B92) ->  | C88: =IF('Лист набл. руч. раб. - 1'!R92="","",'Лист набл. руч. раб. - 1'!R92) ->  | I88: ='Лист набл. руч. раб. - 2'!A92 ->  | J88: =IF('Лист набл. руч. раб. - 2'!B92="","",'Лист набл. руч. раб. - 2'!B92) ->  | K88: =IF('Лист набл. руч. раб. - 2'!R92="","",'Лист набл. руч. раб. - 2'!R92) ->  | Q88: 86 | R88: =IFERROR(INDEX($B$3:$B$102,MATCH(Q88,$A$3:$A$102,0)),"") ->  | S88: =IFERROR(INDEX($C$3:$C$102,MATCH(Q88,$A$3:$A$102,0)),"") ->  | U88: =IFERROR(INDEX(F$1:F$102,MATCH($Q88,$A:$A,0)+1),"") ->  | V88: =IFERROR(INDEX(G$1:G$102,MATCH($Q88,$A:$A,0)+1),"") ->  | Z88: 86 | AA88: =IF(ROW()-ROW($R$3:$R$202)+1>ROWS($AA$3:$AA$202)-COUNTBLANK($R$3:$R$202),"",INDIRECT(ADDRESS(SMALL((IF($R$3:$R$202<>"",ROW($R$3:$R$202),ROW()+ROWS($R$3:$R$202))),ROW()-ROW($AA$3:$AA$202)+1),COLUMN($R$3:$R$202),4))) ->  | AB88: =IF(ROW()-ROW($S$3:$S$202)+1>ROWS($AB$3:$AB$202)-COUNTBLANK($S$3:$S$202),"",INDIRECT(ADDRESS(SMALL((IF($S$3:$S$202<>"",ROW($S$3:$S$202),ROW()+ROWS($S$3:$S$202))),ROW()-ROW($AB$3:$AB$202)+1),COLUMN($S$3:$S$202),4))) ->  | AC88: =IF(ROW()-ROW($T$3:$T$202)+1>ROWS($AC$3:$AC$202)-COUNTBLANK($T$3:$T$202),"",INDIRECT(ADDRESS(SMALL((IF($T$3:$T$202<>"",ROW($T$3:$T$202),ROW()+ROWS($T$3:$T$202))),ROW()-ROW($AC$3:$AC$202)+1),COLUMN($T$3:$T$202),4))) ->  | AD88: =IF(ROW()-ROW($U$3:$U$202)+1>ROWS($AD$3:$AD$202)-COUNTBLANK($U$3:$U$202),"",INDIRECT(ADDRESS(SMALL((IF($U$3:$U$202<>"",ROW($U$3:$U$202),ROW()+ROWS($U$3:$U$202))),ROW()-ROW($AD$3:$AD$202)+1),COLUMN($U$3:$U$202),4))) ->  | AE88: =IF(ROW()-ROW($V$3:$V$202)+1>ROWS($AE$3:$AE$202)-COUNTBLANK($V$3:$V$202),"",INDIRECT(ADDRESS(SMALL((IF($V$3:$V$202<>"",ROW($V$3:$V$202),ROW()+ROWS($V$3:$V$202))),ROW()-ROW($AE$3:$AE$202)+1),COLUMN($V$3:$V$202),4))) ->  | AF88: =IF(ROW()-ROW($W$3:$W$202)+1>ROWS($AF$3:$AF$202)-COUNTBLANK($W$3:$W$202),"",INDIRECT(ADDRESS(SMALL((IF($W$3:$W$202<>"",ROW($W$3:$W$202),ROW()+ROWS($W$3:$W$202))),ROW()-ROW($AF$3:$AF$202)+1),COLUMN($W$3:$W$202),4))) ->  | AG88: =IF(ROW()-ROW($X$3:$X$202)+1>ROWS($AG$3:$AG$202)-COUNTBLANK($X$3:$X$202),"",INDIRECT(ADDRESS(SMALL((IF($X$3:$X$202<>"",ROW($X$3:$X$202),ROW()+ROWS($X$3:$X$203))),ROW()-ROW($AG$3:$AG$202)+1),COLUMN($X$3:$X$202),4))) -> 
A89: ='Лист набл. руч. раб. - 1'!A93 ->  | B89: =IF('Лист набл. руч. раб. - 1'!B93="","",'Лист набл. руч. раб. - 1'!B93) ->  | C89: =IF('Лист набл. руч. раб. - 1'!R93="","",'Лист набл. руч. раб. - 1'!R93) ->  | I89: ='Лист набл. руч. раб. - 2'!A93 ->  | J89: =IF('Лист набл. руч. раб. - 2'!B93="","",'Лист набл. руч. раб. - 2'!B93) ->  | K89: =IF('Лист набл. руч. раб. - 2'!R93="","",'Лист набл. руч. раб. - 2'!R93) ->  | Q89: 87 | R89: =IFERROR(INDEX($B$3:$B$102,MATCH(Q89,$A$3:$A$102,0)),"") ->  | S89: =IFERROR(INDEX($C$3:$C$102,MATCH(Q89,$A$3:$A$102,0)),"") ->  | U89: =IFERROR(INDEX(F$1:F$102,MATCH($Q89,$A:$A,0)+1),"") ->  | V89: =IFERROR(INDEX(G$1:G$102,MATCH($Q89,$A:$A,0)+1),"") ->  | Z89: 87 | AA89: =IF(ROW()-ROW($R$3:$R$202)+1>ROWS($AA$3:$AA$202)-COUNTBLANK($R$3:$R$202),"",INDIRECT(ADDRESS(SMALL((IF($R$3:$R$202<>"",ROW($R$3:$R$202),ROW()+ROWS($R$3:$R$202))),ROW()-ROW($AA$3:$AA$202)+1),COLUMN($R$3:$R$202),4))) ->  | AB89: =IF(ROW()-ROW($S$3:$S$202)+1>ROWS($AB$3:$AB$202)-COUNTBLANK($S$3:$S$202),"",INDIRECT(ADDRESS(SMALL((IF($S$3:$S$202<>"",ROW($S$3:$S$202),ROW()+ROWS($S$3:$S$202))),ROW()-ROW($AB$3:$AB$202)+1),COLUMN($S$3:$S$202),4))) ->  | AC89: =IF(ROW()-ROW($T$3:$T$202)+1>ROWS($AC$3:$AC$202)-COUNTBLANK($T$3:$T$202),"",INDIRECT(ADDRESS(SMALL((IF($T$3:$T$202<>"",ROW($T$3:$T$202),ROW()+ROWS($T$3:$T$202))),ROW()-ROW($AC$3:$AC$202)+1),COLUMN($T$3:$T$202),4))) ->  | AD89: =IF(ROW()-ROW($U$3:$U$202)+1>ROWS($AD$3:$AD$202)-COUNTBLANK($U$3:$U$202),"",INDIRECT(ADDRESS(SMALL((IF($U$3:$U$202<>"",ROW($U$3:$U$202),ROW()+ROWS($U$3:$U$202))),ROW()-ROW($AD$3:$AD$202)+1),COLUMN($U$3:$U$202),4))) ->  | AE89: =IF(ROW()-ROW($V$3:$V$202)+1>ROWS($AE$3:$AE$202)-COUNTBLANK($V$3:$V$202),"",INDIRECT(ADDRESS(SMALL((IF($V$3:$V$202<>"",ROW($V$3:$V$202),ROW()+ROWS($V$3:$V$202))),ROW()-ROW($AE$3:$AE$202)+1),COLUMN($V$3:$V$202),4))) ->  | AF89: =IF(ROW()-ROW($W$3:$W$202)+1>ROWS($AF$3:$AF$202)-COUNTBLANK($W$3:$W$202),"",INDIRECT(ADDRESS(SMALL((IF($W$3:$W$202<>"",ROW($W$3:$W$202),ROW()+ROWS($W$3:$W$202))),ROW()-ROW($AF$3:$AF$202)+1),COLUMN($W$3:$W$202),4))) ->  | AG89: =IF(ROW()-ROW($X$3:$X$202)+1>ROWS($AG$3:$AG$202)-COUNTBLANK($X$3:$X$202),"",INDIRECT(ADDRESS(SMALL((IF($X$3:$X$202<>"",ROW($X$3:$X$202),ROW()+ROWS($X$3:$X$203))),ROW()-ROW($AG$3:$AG$202)+1),COLUMN($X$3:$X$202),4))) -> 
A90: ='Лист набл. руч. раб. - 1'!A94 ->  | B90: =IF('Лист набл. руч. раб. - 1'!B94="","",'Лист набл. руч. раб. - 1'!B94) ->  | C90: =IF('Лист набл. руч. раб. - 1'!R94="","",'Лист набл. руч. раб. - 1'!R94) ->  | I90: ='Лист набл. руч. раб. - 2'!A94 ->  | J90: =IF('Лист набл. руч. раб. - 2'!B94="","",'Лист набл. руч. раб. - 2'!B94) ->  | K90: =IF('Лист набл. руч. раб. - 2'!R94="","",'Лист набл. руч. раб. - 2'!R94) ->  | Q90: 88 | R90: =IFERROR(INDEX($B$3:$B$102,MATCH(Q90,$A$3:$A$102,0)),"") ->  | S90: =IFERROR(INDEX($C$3:$C$102,MATCH(Q90,$A$3:$A$102,0)),"") ->  | U90: =IFERROR(INDEX(F$1:F$102,MATCH($Q90,$A:$A,0)+1),"") ->  | V90: =IFERROR(INDEX(G$1:G$102,MATCH($Q90,$A:$A,0)+1),"") ->  | Z90: 88 | AA90: =IF(ROW()-ROW($R$3:$R$202)+1>ROWS($AA$3:$AA$202)-COUNTBLANK($R$3:$R$202),"",INDIRECT(ADDRESS(SMALL((IF($R$3:$R$202<>"",ROW($R$3:$R$202),ROW()+ROWS($R$3:$R$202))),ROW()-ROW($AA$3:$AA$202)+1),COLUMN($R$3:$R$202),4))) ->  | AB90: =IF(ROW()-ROW($S$3:$S$202)+1>ROWS($AB$3:$AB$202)-COUNTBLANK($S$3:$S$202),"",INDIRECT(ADDRESS(SMALL((IF($S$3:$S$202<>"",ROW($S$3:$S$202),ROW()+ROWS($S$3:$S$202))),ROW()-ROW($AB$3:$AB$202)+1),COLUMN($S$3:$S$202),4))) ->  | AC90: =IF(ROW()-ROW($T$3:$T$202)+1>ROWS($AC$3:$AC$202)-COUNTBLANK($T$3:$T$202),"",INDIRECT(ADDRESS(SMALL((IF($T$3:$T$202<>"",ROW($T$3:$T$202),ROW()+ROWS($T$3:$T$202))),ROW()-ROW($AC$3:$AC$202)+1),COLUMN($T$3:$T$202),4))) ->  | AD90: =IF(ROW()-ROW($U$3:$U$202)+1>ROWS($AD$3:$AD$202)-COUNTBLANK($U$3:$U$202),"",INDIRECT(ADDRESS(SMALL((IF($U$3:$U$202<>"",ROW($U$3:$U$202),ROW()+ROWS($U$3:$U$202))),ROW()-ROW($AD$3:$AD$202)+1),COLUMN($U$3:$U$202),4))) ->  | AE90: =IF(ROW()-ROW($V$3:$V$202)+1>ROWS($AE$3:$AE$202)-COUNTBLANK($V$3:$V$202),"",INDIRECT(ADDRESS(SMALL((IF($V$3:$V$202<>"",ROW($V$3:$V$202),ROW()+ROWS($V$3:$V$202))),ROW()-ROW($AE$3:$AE$202)+1),COLUMN($V$3:$V$202),4))) ->  | AF90: =IF(ROW()-ROW($W$3:$W$202)+1>ROWS($AF$3:$AF$202)-COUNTBLANK($W$3:$W$202),"",INDIRECT(ADDRESS(SMALL((IF($W$3:$W$202<>"",ROW($W$3:$W$202),ROW()+ROWS($W$3:$W$202))),ROW()-ROW($AF$3:$AF$202)+1),COLUMN($W$3:$W$202),4))) ->  | AG90: =IF(ROW()-ROW($X$3:$X$202)+1>ROWS($AG$3:$AG$202)-COUNTBLANK($X$3:$X$202),"",INDIRECT(ADDRESS(SMALL((IF($X$3:$X$202<>"",ROW($X$3:$X$202),ROW()+ROWS($X$3:$X$203))),ROW()-ROW($AG$3:$AG$202)+1),COLUMN($X$3:$X$202),4))) -> 
A91: ='Лист набл. руч. раб. - 1'!A95 ->  | B91: =IF('Лист набл. руч. раб. - 1'!B95="","",'Лист набл. руч. раб. - 1'!B95) ->  | C91: =IF('Лист набл. руч. раб. - 1'!R95="","",'Лист набл. руч. раб. - 1'!R95) ->  | I91: ='Лист набл. руч. раб. - 2'!A95 ->  | J91: =IF('Лист набл. руч. раб. - 2'!B95="","",'Лист набл. руч. раб. - 2'!B95) ->  | K91: =IF('Лист набл. руч. раб. - 2'!R95="","",'Лист набл. руч. раб. - 2'!R95) ->  | Q91: 89 | R91: =IFERROR(INDEX($B$3:$B$102,MATCH(Q91,$A$3:$A$102,0)),"") ->  | S91: =IFERROR(INDEX($C$3:$C$102,MATCH(Q91,$A$3:$A$102,0)),"") ->  | U91: =IFERROR(INDEX(F$1:F$102,MATCH($Q91,$A:$A,0)+1),"") ->  | V91: =IFERROR(INDEX(G$1:G$102,MATCH($Q91,$A:$A,0)+1),"") ->  | Z91: 89 | AA91: =IF(ROW()-ROW($R$3:$R$202)+1>ROWS($AA$3:$AA$202)-COUNTBLANK($R$3:$R$202),"",INDIRECT(ADDRESS(SMALL((IF($R$3:$R$202<>"",ROW($R$3:$R$202),ROW()+ROWS($R$3:$R$202))),ROW()-ROW($AA$3:$AA$202)+1),COLUMN($R$3:$R$202),4))) ->  | AB91: =IF(ROW()-ROW($S$3:$S$202)+1>ROWS($AB$3:$AB$202)-COUNTBLANK($S$3:$S$202),"",INDIRECT(ADDRESS(SMALL((IF($S$3:$S$202<>"",ROW($S$3:$S$202),ROW()+ROWS($S$3:$S$202))),ROW()-ROW($AB$3:$AB$202)+1),COLUMN($S$3:$S$202),4))) ->  | AC91: =IF(ROW()-ROW($T$3:$T$202)+1>ROWS($AC$3:$AC$202)-COUNTBLANK($T$3:$T$202),"",INDIRECT(ADDRESS(SMALL((IF($T$3:$T$202<>"",ROW($T$3:$T$202),ROW()+ROWS($T$3:$T$202))),ROW()-ROW($AC$3:$AC$202)+1),COLUMN($T$3:$T$202),4))) ->  | AD91: =IF(ROW()-ROW($U$3:$U$202)+1>ROWS($AD$3:$AD$202)-COUNTBLANK($U$3:$U$202),"",INDIRECT(ADDRESS(SMALL((IF($U$3:$U$202<>"",ROW($U$3:$U$202),ROW()+ROWS($U$3:$U$202))),ROW()-ROW($AD$3:$AD$202)+1),COLUMN($U$3:$U$202),4))) ->  | AE91: =IF(ROW()-ROW($V$3:$V$202)+1>ROWS($AE$3:$AE$202)-COUNTBLANK($V$3:$V$202),"",INDIRECT(ADDRESS(SMALL((IF($V$3:$V$202<>"",ROW($V$3:$V$202),ROW()+ROWS($V$3:$V$202))),ROW()-ROW($AE$3:$AE$202)+1),COLUMN($V$3:$V$202),4))) ->  | AF91: =IF(ROW()-ROW($W$3:$W$202)+1>ROWS($AF$3:$AF$202)-COUNTBLANK($W$3:$W$202),"",INDIRECT(ADDRESS(SMALL((IF($W$3:$W$202<>"",ROW($W$3:$W$202),ROW()+ROWS($W$3:$W$202))),ROW()-ROW($AF$3:$AF$202)+1),COLUMN($W$3:$W$202),4))) ->  | AG91: =IF(ROW()-ROW($X$3:$X$202)+1>ROWS($AG$3:$AG$202)-COUNTBLANK($X$3:$X$202),"",INDIRECT(ADDRESS(SMALL((IF($X$3:$X$202<>"",ROW($X$3:$X$202),ROW()+ROWS($X$3:$X$203))),ROW()-ROW($AG$3:$AG$202)+1),COLUMN($X$3:$X$202),4))) -> 
A92: ='Лист набл. руч. раб. - 1'!A96 ->  | B92: =IF('Лист набл. руч. раб. - 1'!B96="","",'Лист набл. руч. раб. - 1'!B96) ->  | C92: =IF('Лист набл. руч. раб. - 1'!R96="","",'Лист набл. руч. раб. - 1'!R96) ->  | I92: ='Лист набл. руч. раб. - 2'!A96 ->  | J92: =IF('Лист набл. руч. раб. - 2'!B96="","",'Лист набл. руч. раб. - 2'!B96) ->  | K92: =IF('Лист набл. руч. раб. - 2'!R96="","",'Лист набл. руч. раб. - 2'!R96) ->  | Q92: 90 | R92: =IFERROR(INDEX($B$3:$B$102,MATCH(Q92,$A$3:$A$102,0)),"") ->  | S92: =IFERROR(INDEX($C$3:$C$102,MATCH(Q92,$A$3:$A$102,0)),"") ->  | U92: =IFERROR(INDEX(F$1:F$102,MATCH($Q92,$A:$A,0)+1),"") ->  | V92: =IFERROR(INDEX(G$1:G$102,MATCH($Q92,$A:$A,0)+1),"") ->  | Z92: 90 | AA92: =IF(ROW()-ROW($R$3:$R$202)+1>ROWS($AA$3:$AA$202)-COUNTBLANK($R$3:$R$202),"",INDIRECT(ADDRESS(SMALL((IF($R$3:$R$202<>"",ROW($R$3:$R$202),ROW()+ROWS($R$3:$R$202))),ROW()-ROW($AA$3:$AA$202)+1),COLUMN($R$3:$R$202),4))) ->  | AB92: =IF(ROW()-ROW($S$3:$S$202)+1>ROWS($AB$3:$AB$202)-COUNTBLANK($S$3:$S$202),"",INDIRECT(ADDRESS(SMALL((IF($S$3:$S$202<>"",ROW($S$3:$S$202),ROW()+ROWS($S$3:$S$202))),ROW()-ROW($AB$3:$AB$202)+1),COLUMN($S$3:$S$202),4))) ->  | AC92: =IF(ROW()-ROW($T$3:$T$202)+1>ROWS($AC$3:$AC$202)-COUNTBLANK($T$3:$T$202),"",INDIRECT(ADDRESS(SMALL((IF($T$3:$T$202<>"",ROW($T$3:$T$202),ROW()+ROWS($T$3:$T$202))),ROW()-ROW($AC$3:$AC$202)+1),COLUMN($T$3:$T$202),4))) ->  | AD92: =IF(ROW()-ROW($U$3:$U$202)+1>ROWS($AD$3:$AD$202)-COUNTBLANK($U$3:$U$202),"",INDIRECT(ADDRESS(SMALL((IF($U$3:$U$202<>"",ROW($U$3:$U$202),ROW()+ROWS($U$3:$U$202))),ROW()-ROW($AD$3:$AD$202)+1),COLUMN($U$3:$U$202),4))) ->  | AE92: =IF(ROW()-ROW($V$3:$V$202)+1>ROWS($AE$3:$AE$202)-COUNTBLANK($V$3:$V$202),"",INDIRECT(ADDRESS(SMALL((IF($V$3:$V$202<>"",ROW($V$3:$V$202),ROW()+ROWS($V$3:$V$202))),ROW()-ROW($AE$3:$AE$202)+1),COLUMN($V$3:$V$202),4))) ->  | AF92: =IF(ROW()-ROW($W$3:$W$202)+1>ROWS($AF$3:$AF$202)-COUNTBLANK($W$3:$W$202),"",INDIRECT(ADDRESS(SMALL((IF($W$3:$W$202<>"",ROW($W$3:$W$202),ROW()+ROWS($W$3:$W$202))),ROW()-ROW($AF$3:$AF$202)+1),COLUMN($W$3:$W$202),4))) ->  | AG92: =IF(ROW()-ROW($X$3:$X$202)+1>ROWS($AG$3:$AG$202)-COUNTBLANK($X$3:$X$202),"",INDIRECT(ADDRESS(SMALL((IF($X$3:$X$202<>"",ROW($X$3:$X$202),ROW()+ROWS($X$3:$X$203))),ROW()-ROW($AG$3:$AG$202)+1),COLUMN($X$3:$X$202),4))) -> 
A93: ='Лист набл. руч. раб. - 1'!A97 ->  | B93: =IF('Лист набл. руч. раб. - 1'!B97="","",'Лист набл. руч. раб. - 1'!B97) ->  | C93: =IF('Лист набл. руч. раб. - 1'!R97="","",'Лист набл. руч. раб. - 1'!R97) ->  | I93: ='Лист набл. руч. раб. - 2'!A97 ->  | J93: =IF('Лист набл. руч. раб. - 2'!B97="","",'Лист набл. руч. раб. - 2'!B97) ->  | K93: =IF('Лист набл. руч. раб. - 2'!R97="","",'Лист набл. руч. раб. - 2'!R97) ->  | Q93: 91 | R93: =IFERROR(INDEX($B$3:$B$102,MATCH(Q93,$A$3:$A$102,0)),"") ->  | S93: =IFERROR(INDEX($C$3:$C$102,MATCH(Q93,$A$3:$A$102,0)),"") ->  | U93: =IFERROR(INDEX(F$1:F$102,MATCH($Q93,$A:$A,0)+1),"") ->  | V93: =IFERROR(INDEX(G$1:G$102,MATCH($Q93,$A:$A,0)+1),"") ->  | Z93: 91 | AA93: =IF(ROW()-ROW($R$3:$R$202)+1>ROWS($AA$3:$AA$202)-COUNTBLANK($R$3:$R$202),"",INDIRECT(ADDRESS(SMALL((IF($R$3:$R$202<>"",ROW($R$3:$R$202),ROW()+ROWS($R$3:$R$202))),ROW()-ROW($AA$3:$AA$202)+1),COLUMN($R$3:$R$202),4))) ->  | AB93: =IF(ROW()-ROW($S$3:$S$202)+1>ROWS($AB$3:$AB$202)-COUNTBLANK($S$3:$S$202),"",INDIRECT(ADDRESS(SMALL((IF($S$3:$S$202<>"",ROW($S$3:$S$202),ROW()+ROWS($S$3:$S$202))),ROW()-ROW($AB$3:$AB$202)+1),COLUMN($S$3:$S$202),4))) ->  | AC93: =IF(ROW()-ROW($T$3:$T$202)+1>ROWS($AC$3:$AC$202)-COUNTBLANK($T$3:$T$202),"",INDIRECT(ADDRESS(SMALL((IF($T$3:$T$202<>"",ROW($T$3:$T$202),ROW()+ROWS($T$3:$T$202))),ROW()-ROW($AC$3:$AC$202)+1),COLUMN($T$3:$T$202),4))) ->  | AD93: =IF(ROW()-ROW($U$3:$U$202)+1>ROWS($AD$3:$AD$202)-COUNTBLANK($U$3:$U$202),"",INDIRECT(ADDRESS(SMALL((IF($U$3:$U$202<>"",ROW($U$3:$U$202),ROW()+ROWS($U$3:$U$202))),ROW()-ROW($AD$3:$AD$202)+1),COLUMN($U$3:$U$202),4))) ->  | AE93: =IF(ROW()-ROW($V$3:$V$202)+1>ROWS($AE$3:$AE$202)-COUNTBLANK($V$3:$V$202),"",INDIRECT(ADDRESS(SMALL((IF($V$3:$V$202<>"",ROW($V$3:$V$202),ROW()+ROWS($V$3:$V$202))),ROW()-ROW($AE$3:$AE$202)+1),COLUMN($V$3:$V$202),4))) ->  | AF93: =IF(ROW()-ROW($W$3:$W$202)+1>ROWS($AF$3:$AF$202)-COUNTBLANK($W$3:$W$202),"",INDIRECT(ADDRESS(SMALL((IF($W$3:$W$202<>"",ROW($W$3:$W$202),ROW()+ROWS($W$3:$W$202))),ROW()-ROW($AF$3:$AF$202)+1),COLUMN($W$3:$W$202),4))) ->  | AG93: =IF(ROW()-ROW($X$3:$X$202)+1>ROWS($AG$3:$AG$202)-COUNTBLANK($X$3:$X$202),"",INDIRECT(ADDRESS(SMALL((IF($X$3:$X$202<>"",ROW($X$3:$X$202),ROW()+ROWS($X$3:$X$203))),ROW()-ROW($AG$3:$AG$202)+1),COLUMN($X$3:$X$202),4))) -> 
A94: ='Лист набл. руч. раб. - 1'!A98 ->  | B94: =IF('Лист набл. руч. раб. - 1'!B98="","",'Лист набл. руч. раб. - 1'!B98) ->  | C94: =IF('Лист набл. руч. раб. - 1'!R98="","",'Лист набл. руч. раб. - 1'!R98) ->  | I94: ='Лист набл. руч. раб. - 2'!A98 ->  | J94: =IF('Лист набл. руч. раб. - 2'!B98="","",'Лист набл. руч. раб. - 2'!B98) ->  | K94: =IF('Лист набл. руч. раб. - 2'!R98="","",'Лист набл. руч. раб. - 2'!R98) ->  | Q94: 92 | R94: =IFERROR(INDEX($B$3:$B$102,MATCH(Q94,$A$3:$A$102,0)),"") ->  | S94: =IFERROR(INDEX($C$3:$C$102,MATCH(Q94,$A$3:$A$102,0)),"") ->  | U94: =IFERROR(INDEX(F$1:F$102,MATCH($Q94,$A:$A,0)+1),"") ->  | V94: =IFERROR(INDEX(G$1:G$102,MATCH($Q94,$A:$A,0)+1),"") ->  | Z94: 92 | AA94: =IF(ROW()-ROW($R$3:$R$202)+1>ROWS($AA$3:$AA$202)-COUNTBLANK($R$3:$R$202),"",INDIRECT(ADDRESS(SMALL((IF($R$3:$R$202<>"",ROW($R$3:$R$202),ROW()+ROWS($R$3:$R$202))),ROW()-ROW($AA$3:$AA$202)+1),COLUMN($R$3:$R$202),4))) ->  | AB94: =IF(ROW()-ROW($S$3:$S$202)+1>ROWS($AB$3:$AB$202)-COUNTBLANK($S$3:$S$202),"",INDIRECT(ADDRESS(SMALL((IF($S$3:$S$202<>"",ROW($S$3:$S$202),ROW()+ROWS($S$3:$S$202))),ROW()-ROW($AB$3:$AB$202)+1),COLUMN($S$3:$S$202),4))) ->  | AC94: =IF(ROW()-ROW($T$3:$T$202)+1>ROWS($AC$3:$AC$202)-COUNTBLANK($T$3:$T$202),"",INDIRECT(ADDRESS(SMALL((IF($T$3:$T$202<>"",ROW($T$3:$T$202),ROW()+ROWS($T$3:$T$202))),ROW()-ROW($AC$3:$AC$202)+1),COLUMN($T$3:$T$202),4))) ->  | AD94: =IF(ROW()-ROW($U$3:$U$202)+1>ROWS($AD$3:$AD$202)-COUNTBLANK($U$3:$U$202),"",INDIRECT(ADDRESS(SMALL((IF($U$3:$U$202<>"",ROW($U$3:$U$202),ROW()+ROWS($U$3:$U$202))),ROW()-ROW($AD$3:$AD$202)+1),COLUMN($U$3:$U$202),4))) ->  | AE94: =IF(ROW()-ROW($V$3:$V$202)+1>ROWS($AE$3:$AE$202)-COUNTBLANK($V$3:$V$202),"",INDIRECT(ADDRESS(SMALL((IF($V$3:$V$202<>"",ROW($V$3:$V$202),ROW()+ROWS($V$3:$V$202))),ROW()-ROW($AE$3:$AE$202)+1),COLUMN($V$3:$V$202),4))) ->  | AF94: =IF(ROW()-ROW($W$3:$W$202)+1>ROWS($AF$3:$AF$202)-COUNTBLANK($W$3:$W$202),"",INDIRECT(ADDRESS(SMALL((IF($W$3:$W$202<>"",ROW($W$3:$W$202),ROW()+ROWS($W$3:$W$202))),ROW()-ROW($AF$3:$AF$202)+1),COLUMN($W$3:$W$202),4))) ->  | AG94: =IF(ROW()-ROW($X$3:$X$202)+1>ROWS($AG$3:$AG$202)-COUNTBLANK($X$3:$X$202),"",INDIRECT(ADDRESS(SMALL((IF($X$3:$X$202<>"",ROW($X$3:$X$202),ROW()+ROWS($X$3:$X$203))),ROW()-ROW($AG$3:$AG$202)+1),COLUMN($X$3:$X$202),4))) -> 
A95: ='Лист набл. руч. раб. - 1'!A99 ->  | B95: =IF('Лист набл. руч. раб. - 1'!B99="","",'Лист набл. руч. раб. - 1'!B99) ->  | C95: =IF('Лист набл. руч. раб. - 1'!R99="","",'Лист набл. руч. раб. - 1'!R99) ->  | I95: ='Лист набл. руч. раб. - 2'!A99 ->  | J95: =IF('Лист набл. руч. раб. - 2'!B99="","",'Лист набл. руч. раб. - 2'!B99) ->  | K95: =IF('Лист набл. руч. раб. - 2'!R99="","",'Лист набл. руч. раб. - 2'!R99) ->  | Q95: 93 | R95: =IFERROR(INDEX($B$3:$B$102,MATCH(Q95,$A$3:$A$102,0)),"") ->  | S95: =IFERROR(INDEX($C$3:$C$102,MATCH(Q95,$A$3:$A$102,0)),"") ->  | U95: =IFERROR(INDEX(F$1:F$102,MATCH($Q95,$A:$A,0)+1),"") ->  | V95: =IFERROR(INDEX(G$1:G$102,MATCH($Q95,$A:$A,0)+1),"") ->  | Z95: 93 | AA95: =IF(ROW()-ROW($R$3:$R$202)+1>ROWS($AA$3:$AA$202)-COUNTBLANK($R$3:$R$202),"",INDIRECT(ADDRESS(SMALL((IF($R$3:$R$202<>"",ROW($R$3:$R$202),ROW()+ROWS($R$3:$R$202))),ROW()-ROW($AA$3:$AA$202)+1),COLUMN($R$3:$R$202),4))) ->  | AB95: =IF(ROW()-ROW($S$3:$S$202)+1>ROWS($AB$3:$AB$202)-COUNTBLANK($S$3:$S$202),"",INDIRECT(ADDRESS(SMALL((IF($S$3:$S$202<>"",ROW($S$3:$S$202),ROW()+ROWS($S$3:$S$202))),ROW()-ROW($AB$3:$AB$202)+1),COLUMN($S$3:$S$202),4))) ->  | AC95: =IF(ROW()-ROW($T$3:$T$202)+1>ROWS($AC$3:$AC$202)-COUNTBLANK($T$3:$T$202),"",INDIRECT(ADDRESS(SMALL((IF($T$3:$T$202<>"",ROW($T$3:$T$202),ROW()+ROWS($T$3:$T$202))),ROW()-ROW($AC$3:$AC$202)+1),COLUMN($T$3:$T$202),4))) ->  | AD95: =IF(ROW()-ROW($U$3:$U$202)+1>ROWS($AD$3:$AD$202)-COUNTBLANK($U$3:$U$202),"",INDIRECT(ADDRESS(SMALL((IF($U$3:$U$202<>"",ROW($U$3:$U$202),ROW()+ROWS($U$3:$U$202))),ROW()-ROW($AD$3:$AD$202)+1),COLUMN($U$3:$U$202),4))) ->  | AE95: =IF(ROW()-ROW($V$3:$V$202)+1>ROWS($AE$3:$AE$202)-COUNTBLANK($V$3:$V$202),"",INDIRECT(ADDRESS(SMALL((IF($V$3:$V$202<>"",ROW($V$3:$V$202),ROW()+ROWS($V$3:$V$202))),ROW()-ROW($AE$3:$AE$202)+1),COLUMN($V$3:$V$202),4))) ->  | AF95: =IF(ROW()-ROW($W$3:$W$202)+1>ROWS($AF$3:$AF$202)-COUNTBLANK($W$3:$W$202),"",INDIRECT(ADDRESS(SMALL((IF($W$3:$W$202<>"",ROW($W$3:$W$202),ROW()+ROWS($W$3:$W$202))),ROW()-ROW($AF$3:$AF$202)+1),COLUMN($W$3:$W$202),4))) ->  | AG95: =IF(ROW()-ROW($X$3:$X$202)+1>ROWS($AG$3:$AG$202)-COUNTBLANK($X$3:$X$202),"",INDIRECT(ADDRESS(SMALL((IF($X$3:$X$202<>"",ROW($X$3:$X$202),ROW()+ROWS($X$3:$X$203))),ROW()-ROW($AG$3:$AG$202)+1),COLUMN($X$3:$X$202),4))) -> 
A96: ='Лист набл. руч. раб. - 1'!A100 ->  | B96: =IF('Лист набл. руч. раб. - 1'!B100="","",'Лист набл. руч. раб. - 1'!B100) ->  | C96: =IF('Лист набл. руч. раб. - 1'!R100="","",'Лист набл. руч. раб. - 1'!R100) ->  | I96: ='Лист набл. руч. раб. - 2'!A100 ->  | J96: =IF('Лист набл. руч. раб. - 2'!B100="","",'Лист набл. руч. раб. - 2'!B100) ->  | K96: =IF('Лист набл. руч. раб. - 2'!R100="","",'Лист набл. руч. раб. - 2'!R100) ->  | Q96: 94 | R96: =IFERROR(INDEX($B$3:$B$102,MATCH(Q96,$A$3:$A$102,0)),"") ->  | S96: =IFERROR(INDEX($C$3:$C$102,MATCH(Q96,$A$3:$A$102,0)),"") ->  | U96: =IFERROR(INDEX(F$1:F$102,MATCH($Q96,$A:$A,0)+1),"") ->  | V96: =IFERROR(INDEX(G$1:G$102,MATCH($Q96,$A:$A,0)+1),"") ->  | Z96: 94 | AA96: =IF(ROW()-ROW($R$3:$R$202)+1>ROWS($AA$3:$AA$202)-COUNTBLANK($R$3:$R$202),"",INDIRECT(ADDRESS(SMALL((IF($R$3:$R$202<>"",ROW($R$3:$R$202),ROW()+ROWS($R$3:$R$202))),ROW()-ROW($AA$3:$AA$202)+1),COLUMN($R$3:$R$202),4))) ->  | AB96: =IF(ROW()-ROW($S$3:$S$202)+1>ROWS($AB$3:$AB$202)-COUNTBLANK($S$3:$S$202),"",INDIRECT(ADDRESS(SMALL((IF($S$3:$S$202<>"",ROW($S$3:$S$202),ROW()+ROWS($S$3:$S$202))),ROW()-ROW($AB$3:$AB$202)+1),COLUMN($S$3:$S$202),4))) ->  | AC96: =IF(ROW()-ROW($T$3:$T$202)+1>ROWS($AC$3:$AC$202)-COUNTBLANK($T$3:$T$202),"",INDIRECT(ADDRESS(SMALL((IF($T$3:$T$202<>"",ROW($T$3:$T$202),ROW()+ROWS($T$3:$T$202))),ROW()-ROW($AC$3:$AC$202)+1),COLUMN($T$3:$T$202),4))) ->  | AD96: =IF(ROW()-ROW($U$3:$U$202)+1>ROWS($AD$3:$AD$202)-COUNTBLANK($U$3:$U$202),"",INDIRECT(ADDRESS(SMALL((IF($U$3:$U$202<>"",ROW($U$3:$U$202),ROW()+ROWS($U$3:$U$202))),ROW()-ROW($AD$3:$AD$202)+1),COLUMN($U$3:$U$202),4))) ->  | AE96: =IF(ROW()-ROW($V$3:$V$202)+1>ROWS($AE$3:$AE$202)-COUNTBLANK($V$3:$V$202),"",INDIRECT(ADDRESS(SMALL((IF($V$3:$V$202<>"",ROW($V$3:$V$202),ROW()+ROWS($V$3:$V$202))),ROW()-ROW($AE$3:$AE$202)+1),COLUMN($V$3:$V$202),4))) ->  | AF96: =IF(ROW()-ROW($W$3:$W$202)+1>ROWS($AF$3:$AF$202)-COUNTBLANK($W$3:$W$202),"",INDIRECT(ADDRESS(SMALL((IF($W$3:$W$202<>"",ROW($W$3:$W$202),ROW()+ROWS($W$3:$W$202))),ROW()-ROW($AF$3:$AF$202)+1),COLUMN($W$3:$W$202),4))) ->  | AG96: =IF(ROW()-ROW($X$3:$X$202)+1>ROWS($AG$3:$AG$202)-COUNTBLANK($X$3:$X$202),"",INDIRECT(ADDRESS(SMALL((IF($X$3:$X$202<>"",ROW($X$3:$X$202),ROW()+ROWS($X$3:$X$203))),ROW()-ROW($AG$3:$AG$202)+1),COLUMN($X$3:$X$202),4))) -> 
A97: ='Лист набл. руч. раб. - 1'!A101 ->  | B97: =IF('Лист набл. руч. раб. - 1'!B101="","",'Лист набл. руч. раб. - 1'!B101) ->  | C97: =IF('Лист набл. руч. раб. - 1'!R101="","",'Лист набл. руч. раб. - 1'!R101) ->  | I97: ='Лист набл. руч. раб. - 2'!A101 ->  | J97: =IF('Лист набл. руч. раб. - 2'!B101="","",'Лист набл. руч. раб. - 2'!B101) ->  | K97: =IF('Лист набл. руч. раб. - 2'!R101="","",'Лист набл. руч. раб. - 2'!R101) ->  | Q97: 95 | R97: =IFERROR(INDEX($B$3:$B$102,MATCH(Q97,$A$3:$A$102,0)),"") ->  | S97: =IFERROR(INDEX($C$3:$C$102,MATCH(Q97,$A$3:$A$102,0)),"") ->  | U97: =IFERROR(INDEX(F$1:F$102,MATCH($Q97,$A:$A,0)+1),"") ->  | V97: =IFERROR(INDEX(G$1:G$102,MATCH($Q97,$A:$A,0)+1),"") ->  | Z97: 95 | AA97: =IF(ROW()-ROW($R$3:$R$202)+1>ROWS($AA$3:$AA$202)-COUNTBLANK($R$3:$R$202),"",INDIRECT(ADDRESS(SMALL((IF($R$3:$R$202<>"",ROW($R$3:$R$202),ROW()+ROWS($R$3:$R$202))),ROW()-ROW($AA$3:$AA$202)+1),COLUMN($R$3:$R$202),4))) ->  | AB97: =IF(ROW()-ROW($S$3:$S$202)+1>ROWS($AB$3:$AB$202)-COUNTBLANK($S$3:$S$202),"",INDIRECT(ADDRESS(SMALL((IF($S$3:$S$202<>"",ROW($S$3:$S$202),ROW()+ROWS($S$3:$S$202))),ROW()-ROW($AB$3:$AB$202)+1),COLUMN($S$3:$S$202),4))) ->  | AC97: =IF(ROW()-ROW($T$3:$T$202)+1>ROWS($AC$3:$AC$202)-COUNTBLANK($T$3:$T$202),"",INDIRECT(ADDRESS(SMALL((IF($T$3:$T$202<>"",ROW($T$3:$T$202),ROW()+ROWS($T$3:$T$202))),ROW()-ROW($AC$3:$AC$202)+1),COLUMN($T$3:$T$202),4))) ->  | AD97: =IF(ROW()-ROW($U$3:$U$202)+1>ROWS($AD$3:$AD$202)-COUNTBLANK($U$3:$U$202),"",INDIRECT(ADDRESS(SMALL((IF($U$3:$U$202<>"",ROW($U$3:$U$202),ROW()+ROWS($U$3:$U$202))),ROW()-ROW($AD$3:$AD$202)+1),COLUMN($U$3:$U$202),4))) ->  | AE97: =IF(ROW()-ROW($V$3:$V$202)+1>ROWS($AE$3:$AE$202)-COUNTBLANK($V$3:$V$202),"",INDIRECT(ADDRESS(SMALL((IF($V$3:$V$202<>"",ROW($V$3:$V$202),ROW()+ROWS($V$3:$V$202))),ROW()-ROW($AE$3:$AE$202)+1),COLUMN($V$3:$V$202),4))) ->  | AF97: =IF(ROW()-ROW($W$3:$W$202)+1>ROWS($AF$3:$AF$202)-COUNTBLANK($W$3:$W$202),"",INDIRECT(ADDRESS(SMALL((IF($W$3:$W$202<>"",ROW($W$3:$W$202),ROW()+ROWS($W$3:$W$202))),ROW()-ROW($AF$3:$AF$202)+1),COLUMN($W$3:$W$202),4))) ->  | AG97: =IF(ROW()-ROW($X$3:$X$202)+1>ROWS($AG$3:$AG$202)-COUNTBLANK($X$3:$X$202),"",INDIRECT(ADDRESS(SMALL((IF($X$3:$X$202<>"",ROW($X$3:$X$202),ROW()+ROWS($X$3:$X$203))),ROW()-ROW($AG$3:$AG$202)+1),COLUMN($X$3:$X$202),4))) -> 
A98: ='Лист набл. руч. раб. - 1'!A102 ->  | B98: =IF('Лист набл. руч. раб. - 1'!B102="","",'Лист набл. руч. раб. - 1'!B102) ->  | C98: =IF('Лист набл. руч. раб. - 1'!R102="","",'Лист набл. руч. раб. - 1'!R102) ->  | I98: ='Лист набл. руч. раб. - 2'!A102 ->  | J98: =IF('Лист набл. руч. раб. - 2'!B102="","",'Лист набл. руч. раб. - 2'!B102) ->  | K98: =IF('Лист набл. руч. раб. - 2'!R102="","",'Лист набл. руч. раб. - 2'!R102) ->  | Q98: 96 | R98: =IFERROR(INDEX($B$3:$B$102,MATCH(Q98,$A$3:$A$102,0)),"") ->  | S98: =IFERROR(INDEX($C$3:$C$102,MATCH(Q98,$A$3:$A$102,0)),"") ->  | U98: =IFERROR(INDEX(F$1:F$102,MATCH($Q98,$A:$A,0)+1),"") ->  | V98: =IFERROR(INDEX(G$1:G$102,MATCH($Q98,$A:$A,0)+1),"") ->  | Z98: 96 | AA98: =IF(ROW()-ROW($R$3:$R$202)+1>ROWS($AA$3:$AA$202)-COUNTBLANK($R$3:$R$202),"",INDIRECT(ADDRESS(SMALL((IF($R$3:$R$202<>"",ROW($R$3:$R$202),ROW()+ROWS($R$3:$R$202))),ROW()-ROW($AA$3:$AA$202)+1),COLUMN($R$3:$R$202),4))) ->  | AB98: =IF(ROW()-ROW($S$3:$S$202)+1>ROWS($AB$3:$AB$202)-COUNTBLANK($S$3:$S$202),"",INDIRECT(ADDRESS(SMALL((IF($S$3:$S$202<>"",ROW($S$3:$S$202),ROW()+ROWS($S$3:$S$202))),ROW()-ROW($AB$3:$AB$202)+1),COLUMN($S$3:$S$202),4))) ->  | AC98: =IF(ROW()-ROW($T$3:$T$202)+1>ROWS($AC$3:$AC$202)-COUNTBLANK($T$3:$T$202),"",INDIRECT(ADDRESS(SMALL((IF($T$3:$T$202<>"",ROW($T$3:$T$202),ROW()+ROWS($T$3:$T$202))),ROW()-ROW($AC$3:$AC$202)+1),COLUMN($T$3:$T$202),4))) ->  | AD98: =IF(ROW()-ROW($U$3:$U$202)+1>ROWS($AD$3:$AD$202)-COUNTBLANK($U$3:$U$202),"",INDIRECT(ADDRESS(SMALL((IF($U$3:$U$202<>"",ROW($U$3:$U$202),ROW()+ROWS($U$3:$U$202))),ROW()-ROW($AD$3:$AD$202)+1),COLUMN($U$3:$U$202),4))) ->  | AE98: =IF(ROW()-ROW($V$3:$V$202)+1>ROWS($AE$3:$AE$202)-COUNTBLANK($V$3:$V$202),"",INDIRECT(ADDRESS(SMALL((IF($V$3:$V$202<>"",ROW($V$3:$V$202),ROW()+ROWS($V$3:$V$202))),ROW()-ROW($AE$3:$AE$202)+1),COLUMN($V$3:$V$202),4))) ->  | AF98: =IF(ROW()-ROW($W$3:$W$202)+1>ROWS($AF$3:$AF$202)-COUNTBLANK($W$3:$W$202),"",INDIRECT(ADDRESS(SMALL((IF($W$3:$W$202<>"",ROW($W$3:$W$202),ROW()+ROWS($W$3:$W$202))),ROW()-ROW($AF$3:$AF$202)+1),COLUMN($W$3:$W$202),4))) ->  | AG98: =IF(ROW()-ROW($X$3:$X$202)+1>ROWS($AG$3:$AG$202)-COUNTBLANK($X$3:$X$202),"",INDIRECT(ADDRESS(SMALL((IF($X$3:$X$202<>"",ROW($X$3:$X$202),ROW()+ROWS($X$3:$X$203))),ROW()-ROW($AG$3:$AG$202)+1),COLUMN($X$3:$X$202),4))) -> 
A99: ='Лист набл. руч. раб. - 1'!A103 ->  | B99: =IF('Лист набл. руч. раб. - 1'!B103="","",'Лист набл. руч. раб. - 1'!B103) ->  | C99: =IF('Лист набл. руч. раб. - 1'!R103="","",'Лист набл. руч. раб. - 1'!R103) ->  | I99: ='Лист набл. руч. раб. - 2'!A103 ->  | J99: =IF('Лист набл. руч. раб. - 2'!B103="","",'Лист набл. руч. раб. - 2'!B103) ->  | K99: =IF('Лист набл. руч. раб. - 2'!R103="","",'Лист набл. руч. раб. - 2'!R103) ->  | Q99: 97 | R99: =IFERROR(INDEX($B$3:$B$102,MATCH(Q99,$A$3:$A$102,0)),"") ->  | S99: =IFERROR(INDEX($C$3:$C$102,MATCH(Q99,$A$3:$A$102,0)),"") ->  | U99: =IFERROR(INDEX(F$1:F$102,MATCH($Q99,$A:$A,0)+1),"") ->  | V99: =IFERROR(INDEX(G$1:G$102,MATCH($Q99,$A:$A,0)+1),"") ->  | Z99: 97 | AA99: =IF(ROW()-ROW($R$3:$R$202)+1>ROWS($AA$3:$AA$202)-COUNTBLANK($R$3:$R$202),"",INDIRECT(ADDRESS(SMALL((IF($R$3:$R$202<>"",ROW($R$3:$R$202),ROW()+ROWS($R$3:$R$202))),ROW()-ROW($AA$3:$AA$202)+1),COLUMN($R$3:$R$202),4))) ->  | AB99: =IF(ROW()-ROW($S$3:$S$202)+1>ROWS($AB$3:$AB$202)-COUNTBLANK($S$3:$S$202),"",INDIRECT(ADDRESS(SMALL((IF($S$3:$S$202<>"",ROW($S$3:$S$202),ROW()+ROWS($S$3:$S$202))),ROW()-ROW($AB$3:$AB$202)+1),COLUMN($S$3:$S$202),4))) ->  | AC99: =IF(ROW()-ROW($T$3:$T$202)+1>ROWS($AC$3:$AC$202)-COUNTBLANK($T$3:$T$202),"",INDIRECT(ADDRESS(SMALL((IF($T$3:$T$202<>"",ROW($T$3:$T$202),ROW()+ROWS($T$3:$T$202))),ROW()-ROW($AC$3:$AC$202)+1),COLUMN($T$3:$T$202),4))) ->  | AD99: =IF(ROW()-ROW($U$3:$U$202)+1>ROWS($AD$3:$AD$202)-COUNTBLANK($U$3:$U$202),"",INDIRECT(ADDRESS(SMALL((IF($U$3:$U$202<>"",ROW($U$3:$U$202),ROW()+ROWS($U$3:$U$202))),ROW()-ROW($AD$3:$AD$202)+1),COLUMN($U$3:$U$202),4))) ->  | AE99: =IF(ROW()-ROW($V$3:$V$202)+1>ROWS($AE$3:$AE$202)-COUNTBLANK($V$3:$V$202),"",INDIRECT(ADDRESS(SMALL((IF($V$3:$V$202<>"",ROW($V$3:$V$202),ROW()+ROWS($V$3:$V$202))),ROW()-ROW($AE$3:$AE$202)+1),COLUMN($V$3:$V$202),4))) ->  | AF99: =IF(ROW()-ROW($W$3:$W$202)+1>ROWS($AF$3:$AF$202)-COUNTBLANK($W$3:$W$202),"",INDIRECT(ADDRESS(SMALL((IF($W$3:$W$202<>"",ROW($W$3:$W$202),ROW()+ROWS($W$3:$W$202))),ROW()-ROW($AF$3:$AF$202)+1),COLUMN($W$3:$W$202),4))) ->  | AG99: =IF(ROW()-ROW($X$3:$X$202)+1>ROWS($AG$3:$AG$202)-COUNTBLANK($X$3:$X$202),"",INDIRECT(ADDRESS(SMALL((IF($X$3:$X$202<>"",ROW($X$3:$X$202),ROW()+ROWS($X$3:$X$203))),ROW()-ROW($AG$3:$AG$202)+1),COLUMN($X$3:$X$202),4))) -> 
A100: ='Лист набл. руч. раб. - 1'!A104 ->  | B100: =IF('Лист набл. руч. раб. - 1'!B104="","",'Лист набл. руч. раб. - 1'!B104) ->  | C100: =IF('Лист набл. руч. раб. - 1'!R104="","",'Лист набл. руч. раб. - 1'!R104) ->  | I100: ='Лист набл. руч. раб. - 2'!A104 ->  | J100: =IF('Лист набл. руч. раб. - 2'!B104="","",'Лист набл. руч. раб. - 2'!B104) ->  | K100: =IF('Лист набл. руч. раб. - 2'!R104="","",'Лист набл. руч. раб. - 2'!R104) ->  | Q100: 98 | R100: =IFERROR(INDEX($B$3:$B$102,MATCH(Q100,$A$3:$A$102,0)),"") ->  | S100: =IFERROR(INDEX($C$3:$C$102,MATCH(Q100,$A$3:$A$102,0)),"") ->  | U100: =IFERROR(INDEX(F$1:F$102,MATCH($Q100,$A:$A,0)+1),"") ->  | V100: =IFERROR(INDEX(G$1:G$102,MATCH($Q100,$A:$A,0)+1),"") ->  | Z100: 98 | AA100: =IF(ROW()-ROW($R$3:$R$202)+1>ROWS($AA$3:$AA$202)-COUNTBLANK($R$3:$R$202),"",INDIRECT(ADDRESS(SMALL((IF($R$3:$R$202<>"",ROW($R$3:$R$202),ROW()+ROWS($R$3:$R$202))),ROW()-ROW($AA$3:$AA$202)+1),COLUMN($R$3:$R$202),4))) ->  | AB100: =IF(ROW()-ROW($S$3:$S$202)+1>ROWS($AB$3:$AB$202)-COUNTBLANK($S$3:$S$202),"",INDIRECT(ADDRESS(SMALL((IF($S$3:$S$202<>"",ROW($S$3:$S$202),ROW()+ROWS($S$3:$S$202))),ROW()-ROW($AB$3:$AB$202)+1),COLUMN($S$3:$S$202),4))) ->  | AC100: =IF(ROW()-ROW($T$3:$T$202)+1>ROWS($AC$3:$AC$202)-COUNTBLANK($T$3:$T$202),"",INDIRECT(ADDRESS(SMALL((IF($T$3:$T$202<>"",ROW($T$3:$T$202),ROW()+ROWS($T$3:$T$202))),ROW()-ROW($AC$3:$AC$202)+1),COLUMN($T$3:$T$202),4))) ->  | AD100: =IF(ROW()-ROW($U$3:$U$202)+1>ROWS($AD$3:$AD$202)-COUNTBLANK($U$3:$U$202),"",INDIRECT(ADDRESS(SMALL((IF($U$3:$U$202<>"",ROW($U$3:$U$202),ROW()+ROWS($U$3:$U$202))),ROW()-ROW($AD$3:$AD$202)+1),COLUMN($U$3:$U$202),4))) ->  | AE100: =IF(ROW()-ROW($V$3:$V$202)+1>ROWS($AE$3:$AE$202)-COUNTBLANK($V$3:$V$202),"",INDIRECT(ADDRESS(SMALL((IF($V$3:$V$202<>"",ROW($V$3:$V$202),ROW()+ROWS($V$3:$V$202))),ROW()-ROW($AE$3:$AE$202)+1),COLUMN($V$3:$V$202),4))) ->  | AF100: =IF(ROW()-ROW($W$3:$W$202)+1>ROWS($AF$3:$AF$202)-COUNTBLANK($W$3:$W$202),"",INDIRECT(ADDRESS(SMALL((IF($W$3:$W$202<>"",ROW($W$3:$W$202),ROW()+ROWS($W$3:$W$202))),ROW()-ROW($AF$3:$AF$202)+1),COLUMN($W$3:$W$202),4))) ->  | AG100: =IF(ROW()-ROW($X$3:$X$202)+1>ROWS($AG$3:$AG$202)-COUNTBLANK($X$3:$X$202),"",INDIRECT(ADDRESS(SMALL((IF($X$3:$X$202<>"",ROW($X$3:$X$202),ROW()+ROWS($X$3:$X$203))),ROW()-ROW($AG$3:$AG$202)+1),COLUMN($X$3:$X$202),4))) -> 
A101: ='Лист набл. руч. раб. - 1'!A105 ->  | B101: =IF('Лист набл. руч. раб. - 1'!B105="","",'Лист набл. руч. раб. - 1'!B105) ->  | C101: =IF('Лист набл. руч. раб. - 1'!R105="","",'Лист набл. руч. раб. - 1'!R105) ->  | I101: ='Лист набл. руч. раб. - 2'!A105 ->  | J101: =IF('Лист набл. руч. раб. - 2'!B105="","",'Лист набл. руч. раб. - 2'!B105) ->  | K101: =IF('Лист набл. руч. раб. - 2'!R105="","",'Лист набл. руч. раб. - 2'!R105) ->  | Q101: 99 | R101: =IFERROR(INDEX($B$3:$B$102,MATCH(Q101,$A$3:$A$102,0)),"") ->  | S101: =IFERROR(INDEX($C$3:$C$102,MATCH(Q101,$A$3:$A$102,0)),"") ->  | U101: =IFERROR(INDEX(F$1:F$102,MATCH($Q101,$A:$A,0)+1),"") ->  | V101: =IFERROR(INDEX(G$1:G$102,MATCH($Q101,$A:$A,0)+1),"") ->  | Z101: 99 | AA101: =IF(ROW()-ROW($R$3:$R$202)+1>ROWS($AA$3:$AA$202)-COUNTBLANK($R$3:$R$202),"",INDIRECT(ADDRESS(SMALL((IF($R$3:$R$202<>"",ROW($R$3:$R$202),ROW()+ROWS($R$3:$R$202))),ROW()-ROW($AA$3:$AA$202)+1),COLUMN($R$3:$R$202),4))) ->  | AB101: =IF(ROW()-ROW($S$3:$S$202)+1>ROWS($AB$3:$AB$202)-COUNTBLANK($S$3:$S$202),"",INDIRECT(ADDRESS(SMALL((IF($S$3:$S$202<>"",ROW($S$3:$S$202),ROW()+ROWS($S$3:$S$202))),ROW()-ROW($AB$3:$AB$202)+1),COLUMN($S$3:$S$202),4))) ->  | AC101: =IF(ROW()-ROW($T$3:$T$202)+1>ROWS($AC$3:$AC$202)-COUNTBLANK($T$3:$T$202),"",INDIRECT(ADDRESS(SMALL((IF($T$3:$T$202<>"",ROW($T$3:$T$202),ROW()+ROWS($T$3:$T$202))),ROW()-ROW($AC$3:$AC$202)+1),COLUMN($T$3:$T$202),4))) ->  | AD101: =IF(ROW()-ROW($U$3:$U$202)+1>ROWS($AD$3:$AD$202)-COUNTBLANK($U$3:$U$202),"",INDIRECT(ADDRESS(SMALL((IF($U$3:$U$202<>"",ROW($U$3:$U$202),ROW()+ROWS($U$3:$U$202))),ROW()-ROW($AD$3:$AD$202)+1),COLUMN($U$3:$U$202),4))) ->  | AE101: =IF(ROW()-ROW($V$3:$V$202)+1>ROWS($AE$3:$AE$202)-COUNTBLANK($V$3:$V$202),"",INDIRECT(ADDRESS(SMALL((IF($V$3:$V$202<>"",ROW($V$3:$V$202),ROW()+ROWS($V$3:$V$202))),ROW()-ROW($AE$3:$AE$202)+1),COLUMN($V$3:$V$202),4))) ->  | AF101: =IF(ROW()-ROW($W$3:$W$202)+1>ROWS($AF$3:$AF$202)-COUNTBLANK($W$3:$W$202),"",INDIRECT(ADDRESS(SMALL((IF($W$3:$W$202<>"",ROW($W$3:$W$202),ROW()+ROWS($W$3:$W$202))),ROW()-ROW($AF$3:$AF$202)+1),COLUMN($W$3:$W$202),4))) ->  | AG101: =IF(ROW()-ROW($X$3:$X$202)+1>ROWS($AG$3:$AG$202)-COUNTBLANK($X$3:$X$202),"",INDIRECT(ADDRESS(SMALL((IF($X$3:$X$202<>"",ROW($X$3:$X$202),ROW()+ROWS($X$3:$X$203))),ROW()-ROW($AG$3:$AG$202)+1),COLUMN($X$3:$X$202),4))) -> 
A102: ='Лист набл. руч. раб. - 1'!A106 ->  | B102: =IF('Лист набл. руч. раб. - 1'!B106="","",'Лист набл. руч. раб. - 1'!B106) ->  | C102: =IF('Лист набл. руч. раб. - 1'!R106="","",'Лист набл. руч. раб. - 1'!R106) ->  | I102: ='Лист набл. руч. раб. - 2'!A106 ->  | J102: =IF('Лист набл. руч. раб. - 2'!B106="","",'Лист набл. руч. раб. - 2'!B106) ->  | K102: =IF('Лист набл. руч. раб. - 2'!R106="","",'Лист набл. руч. раб. - 2'!R106) ->  | Q102: 100 | R102: =IFERROR(INDEX($B$3:$B$102,MATCH(Q102,$A$3:$A$102,0)),"") ->  | S102: =IFERROR(INDEX($C$3:$C$102,MATCH(Q102,$A$3:$A$102,0)),"") ->  | U102: =IFERROR(INDEX(F$1:F$102,MATCH($Q102,$A:$A,0)+1),"") ->  | V102: =IFERROR(INDEX(G$1:G$102,MATCH($Q102,$A:$A,0)+1),"") ->  | Z102: 100 | AA102: =IF(ROW()-ROW($R$3:$R$202)+1>ROWS($AA$3:$AA$202)-COUNTBLANK($R$3:$R$202),"",INDIRECT(ADDRESS(SMALL((IF($R$3:$R$202<>"",ROW($R$3:$R$202),ROW()+ROWS($R$3:$R$202))),ROW()-ROW($AA$3:$AA$202)+1),COLUMN($R$3:$R$202),4))) ->  | AB102: =IF(ROW()-ROW($S$3:$S$202)+1>ROWS($AB$3:$AB$202)-COUNTBLANK($S$3:$S$202),"",INDIRECT(ADDRESS(SMALL((IF($S$3:$S$202<>"",ROW($S$3:$S$202),ROW()+ROWS($S$3:$S$202))),ROW()-ROW($AB$3:$AB$202)+1),COLUMN($S$3:$S$202),4))) ->  | AC102: =IF(ROW()-ROW($T$3:$T$202)+1>ROWS($AC$3:$AC$202)-COUNTBLANK($T$3:$T$202),"",INDIRECT(ADDRESS(SMALL((IF($T$3:$T$202<>"",ROW($T$3:$T$202),ROW()+ROWS($T$3:$T$202))),ROW()-ROW($AC$3:$AC$202)+1),COLUMN($T$3:$T$202),4))) ->  | AD102: =IF(ROW()-ROW($U$3:$U$202)+1>ROWS($AD$3:$AD$202)-COUNTBLANK($U$3:$U$202),"",INDIRECT(ADDRESS(SMALL((IF($U$3:$U$202<>"",ROW($U$3:$U$202),ROW()+ROWS($U$3:$U$202))),ROW()-ROW($AD$3:$AD$202)+1),COLUMN($U$3:$U$202),4))) ->  | AE102: =IF(ROW()-ROW($V$3:$V$202)+1>ROWS($AE$3:$AE$202)-COUNTBLANK($V$3:$V$202),"",INDIRECT(ADDRESS(SMALL((IF($V$3:$V$202<>"",ROW($V$3:$V$202),ROW()+ROWS($V$3:$V$202))),ROW()-ROW($AE$3:$AE$202)+1),COLUMN($V$3:$V$202),4))) ->  | AF102: =IF(ROW()-ROW($W$3:$W$202)+1>ROWS($AF$3:$AF$202)-COUNTBLANK($W$3:$W$202),"",INDIRECT(ADDRESS(SMALL((IF($W$3:$W$202<>"",ROW($W$3:$W$202),ROW()+ROWS($W$3:$W$202))),ROW()-ROW($AF$3:$AF$202)+1),COLUMN($W$3:$W$202),4))) ->  | AG102: =IF(ROW()-ROW($X$3:$X$202)+1>ROWS($AG$3:$AG$202)-COUNTBLANK($X$3:$X$202),"",INDIRECT(ADDRESS(SMALL((IF($X$3:$X$202<>"",ROW($X$3:$X$202),ROW()+ROWS($X$3:$X$203))),ROW()-ROW($AG$3:$AG$202)+1),COLUMN($X$3:$X$202),4))) -> 
Q103: 1 | R103: =IFERROR(INDEX($J$3:$J$102,MATCH(Q103,$I$3:$I$102,0)),"") -> Подготовка рабочего места. Выполнение отключений | S103: =IFERROR(INDEX($K$3:$K$102,MATCH(Q103,$I$3:$I$102,0)),"") -> 60 | T103: =IF(R103="","",0) -> 0 | U103: =IF(R103="","",SUMIFS($N$4:$N$103,$I$3:$I$102,Q103)) -> 0 | V103: =IF(R103="","",SUMIFS($O$4:$O$103,$I$3:$I$102,Q103)) -> 20 | W103: =IF(R103="","",1) -> 1 | X103: =IF(R103="","",2) -> 2 | AA103: =IF(ROW()-ROW($R$3:$R$202)+1>ROWS($AA$3:$AA$202)-COUNTBLANK($R$3:$R$202),"",INDIRECT(ADDRESS(SMALL((IF($R$3:$R$202<>"",ROW($R$3:$R$202),ROW()+ROWS($R$3:$R$202))),ROW()-ROW($AA$3:$AA$202)+1),COLUMN($R$3:$R$202),4))) ->  | AB103: =IF(ROW()-ROW($S$3:$S$202)+1>ROWS($AB$3:$AB$202)-COUNTBLANK($S$3:$S$202),"",INDIRECT(ADDRESS(SMALL((IF($S$3:$S$202<>"",ROW($S$3:$S$202),ROW()+ROWS($S$3:$S$202))),ROW()-ROW($AB$3:$AB$202)+1),COLUMN($S$3:$S$202),4))) ->  | AC103: =IF(ROW()-ROW($T$3:$T$202)+1>ROWS($AC$3:$AC$202)-COUNTBLANK($T$3:$T$202),"",INDIRECT(ADDRESS(SMALL((IF($T$3:$T$202<>"",ROW($T$3:$T$202),ROW()+ROWS($T$3:$T$202))),ROW()-ROW($AC$3:$AC$202)+1),COLUMN($T$3:$T$202),4))) ->  | AD103: =IF(ROW()-ROW($U$3:$U$202)+1>ROWS($AD$3:$AD$202)-COUNTBLANK($U$3:$U$202),"",INDIRECT(ADDRESS(SMALL((IF($U$3:$U$202<>"",ROW($U$3:$U$202),ROW()+ROWS($U$3:$U$202))),ROW()-ROW($AD$3:$AD$202)+1),COLUMN($U$3:$U$202),4))) ->  | AE103: =IF(ROW()-ROW($V$3:$V$202)+1>ROWS($AE$3:$AE$202)-COUNTBLANK($V$3:$V$202),"",INDIRECT(ADDRESS(SMALL((IF($V$3:$V$202<>"",ROW($V$3:$V$202),ROW()+ROWS($V$3:$V$202))),ROW()-ROW($AE$3:$AE$202)+1),COLUMN($V$3:$V$202),4))) ->  | AF103: =IF(ROW()-ROW($W$3:$W$202)+1>ROWS($AF$3:$AF$202)-COUNTBLANK($W$3:$W$202),"",INDIRECT(ADDRESS(SMALL((IF($W$3:$W$202<>"",ROW($W$3:$W$202),ROW()+ROWS($W$3:$W$202))),ROW()-ROW($AF$3:$AF$202)+1),COLUMN($W$3:$W$202),4))) ->  | AG103: =IF(ROW()-ROW($X$3:$X$202)+1>ROWS($AG$3:$AG$202)-COUNTBLANK($X$3:$X$202),"",INDIRECT(ADDRESS(SMALL((IF($X$3:$X$202<>"",ROW($X$3:$X$202),ROW()+ROWS($X$3:$X$203))),ROW()-ROW($AG$3:$AG$202)+1),COLUMN($X$3:$X$202),4))) -> 
